Workbook

Sheet Plan

Sheet Projets PDR
A1: Axe stratégique | C1: Compétences | D1: Projet
A2: Axe 1 : Attractivité du territoire | B2: 1 | C2: Propres | D2: Renforcement capacitaire et création du centre régional de la formation
B3: 2 | C3: Propres | D3: Modernisdation et dévelopepment des routes non classées
B4: 3 | C4: Propres | D4: Marketing Territorial
B5: 4 | C5: Propres | D5: Programme de formation professionnelle | X5: Propres
B6: 5
B7: 6
B8: 7
B9: 8
B10: 9
B11: 10
B12: 1 | C12: Autres | D12: Programme structurant de mobilité – Renforcement des flux aèriens et maritimes | X12: Autres
B13: 2 | C13: Autres | D13: Programme structurant de mobilité – Accélération du désenclavement de la Région
B14: 3
B15: 4
B16: 5
B17: 6
B18: 7
B19: 8
B20: 9
B21: 10
A22: Axe 2: Compétitivité économique | B22: 1 | C22: Propres | D22: Pôle émergence Cluster Industriel - Reconversion du campus de Tanger
B23: 2 | D23: Pôle émergence Cluster Industriel - Cité Mohammed VI Tanger Tech
B24: 3 | D24: Trois (03) Plateformes de valorisation de l'artisanat
B25: 4 | D25: Zone Industrielle Ksar el Kebir | X25: Propres
B26: 5 | D26: Réalisation de cinq (05) Plateformes de valorisation agricole
B27: 6 | D27: Deux (02) Plateforme de valorisation des PDM
B28: 7 | D28: Parc des expositions / Palais des congrès
B29: 8 | D29: Créations d’itinéraires culturels et touristiques en milieu rural
B30: 9 | D30: Programme de dynamisation de l’Economie de Proximité
B31: 10 | D31: Dynamisation du littoral - Développement de l’activité Aquaculture dans les 10 VDP / PDA
B32: 1 | C32: Autres | D32: Programme d’aménagements hydriques | X32: Autres
B33: 2 | D33: Agropole régional
B34: 3
B35: 4
B36: 5
B37: 6
B38: 7
B39: 8
B40: 9
B41: 10
A42: Axe 3 : Valorisation du capital matériel et immatériel | B42: 1 | C42: Propres | D42: Programme de valorisation du patrimoine culturel
B43: 2
B44: 3
B45: 4 | X45: Propres
B46: 5
B47: 6
B48: 7
B49: 8
B50: 9
B51: 10
B52: 1 | C52: Autres | D52: Programme de gestion des menaces du changement climatique | X52: Autres
B53: 2 | D53: Programme de valorisation du patrimoine historique
B54: 3
B55: 4
B56: 5
B57: 6
B58: 7
B59: 8
B60: 9
B61: 10
A62: Axe 4 : Développement social | B62: 1 | C62: Propres
B63: 2
B64: 3
B65: 4 | X65: Propres
B66: 5
B67: 6
B68: 7
B69: 8
B70: 9
B71: 10
B72: 1 | C72: Autres | D72: Développement d’équipements sportifs de proximité | X72: Autres
B73: 2 | D73: Programme d’inclusion sociale
B74: 3 | D74: Accompagnement du développement des centres ruraux
B75: 4 | D75: Programme d’amélioration de l’offre scolaire – Généralisation du transport scolaire
B76: 5 | D76: Programme d’amélioration de l’offre scolaire : Généralisation du préscolaire
B77: 6 | D77: Programme d’amélioration de l’offre scolaire : Mise à niveau des établissements + Developpement des micro lycées
B78: 7
B79: 8
B80: 9
B81: 10

Sheet AT Projets
A1: Axe stratégique | B1: Compétences | D1: Projet
A2: Axe 1 : Attractivité du territoire | B2: 1 | C2: Propres | D2: Modernisation et développement des routes non classées
B3: 2 | D3: Renforcement capacitaire et création du centre régional de la formation
B4: 3 | D4: Programme de formation professionnelle
B5: 4 | D5: Marketing Territorial | AA5: Propres
B6: 5
B7: 6
B8: 7
B9: 8
B10: 9
B11: 10
B12: 1 | C12: Autres | D12: Programme structurant de mobilité – Renforcement des flux aériens et maritimes | AA12: Autres
B13: 2 | D13: Programme structurant de mobilité – Accélération du désenclavement de la Région
B14: 3
B15: 4
B16: 5
B17: 6
B18: 7
B19: 8
B20: 9
B21: 10

Sheet AT CdR
A1: PDR TTA. Domaine d'intervention: Attractivité territoriale
A2: Nº | B2: Résultat | C2: Indicateur de performance | D2: Définition | E2: Type | F2: Unité | G2: Valeur de référence (2016) | H2: Cibles annuelles | N2: Fin du PDR | O2: Responsabilité | Q2: Fréquence | R2: Données: Sources/méthodes | S2: Propriétaire des données | T2: Utilisation
H3: 2017 | I3: 2018 | J3: 2019 | K3: 2020 | L3: 2021 | M3: 2022 | O3: Diffusion | P3: Collecte
A4: COMPETENCES PROPRES
A5: 1. | B5: ='AT Projets '!D2 -> Modernisation et développement des routes non classées
A6: 1.1 | B6: Contribuer à une meilleure intégration socio-économique de la population désenclavée | C6: Niveau de revenu des ménages bénéficiaires de l'activité modernisation et développement des routes non classées | D6: Moyenne du revenu des ménages des zones désenclavées, généré par des activités agricoles et autres activités, exprimé en termes réels | E6: C | F6: MAD | G6: 25000 | K6: =G6+10%*G6 -> 27500 | L6: =G6+15%*G6 -> 28750 | M6: =G6+25%*G6 -> 31250 | N6: =IF(F6="%",M6,IF(E6="C",M6,IF(E6="I",SUM(H6:M6)))) -> 31250 | O6: DESE | P6: RESA | Q6: Une fois (à la fin du PDR) | R6: Evaluation terminale du PDR | S6: Consultant | T6: La collecte des données dont les sources, la fréquence et les propriétaires ont étés précisées va permettre aux responsables du MENFOP de mesurer, dans quelle mesure la mise en œuvre de l'ensembles des activités prévues pour améliorer l'OE "Primaire" ont-elles permis d'accroitre l'accès à l'enseignement primaire pour le secteur public, les activités ont mieux fonctionnées... Le cas contraire, qu'elles furent les causes qui ont empêché d'atteindre les objectifs escomptés ?? et quelles mesures correctives sont-elles proposés pour rectifier le tir et redresser la situation ??...
A7: 1.2 | B7: Contribuer à l'amélioration de l’accès aux soins de santé pour les femmes au niveau des régions désenclavées | C7: Taux de mortalité maternelle | D7: Le nombre de femmes enceintes qui décédent, du fait de complications liées à la grossesse ou à l’accouchement, rapporté au nombre total de femmes enceintes des zones désenclavées. | E7: I | F7: % | G7: TBD | K7: TBD | L7: TBD | M7: TBD | N7: TBD | O7: DESE | P7: RESA | Q7: Trimestrielle | R7: Rapport d'activités | S7: Délégations provinciales de la santé
A8: 1.3 | B8: La population de la région est désenclavée | C8: Taux de réduction du coût de transport des personnes | D8: Ecart entre la moyenne des tarifs unitaires " exprimés en termes réels" pratiqués pour le transport de personnes adultes, des zones désenclavées et , les tarifs actuels pratiqués pour le transport de personnes adultes au niveau des mêmes zones. | E8: I | F8: % | G8: 3.75 | K8: 65 | L8: 65 | M8: 65 | N8: 65 | O8: DESE | P8: RESA | Q8: Une fois (après mise en service de la route) | R8: Etude spécifique | S8: Consultant ou Cadres de l'AREP
A9: 1.4 | B9: Le réseau de routes non classées de la région est mis à niveau | C9: Nombre de km de routes non classées modernisées | D9: Nombre de Km linéaires de routes non classées ayant connu des travaux de mise à niveau | E9: I | F9: Km | N9: 0 | O9: DESE | P9: RESA | Q9: Trimestrielle | R9: PV de réception définitifs des différents travaux et équipements | S9: Commissions de réception des travaux et/ou équipements | T9: Idem | AF9: I
A10: 1.5 | B10: Le besoin en routes non classées est satisfait | C10: Nombre de km de routes non classées nouvellement construites | D10: Nombre de Km linéaires de routes non classées nouvellement construites | E10: I | F10: Km | I10: 266.8 | J10: 266.8 | K10: 133.4 | N10: 667 | P10: DESE | Q10: Trimestrielle | R10: PV de réception définitifs des différents travaux et équipements | S10: Commissions de réception des travaux et/ou équipements | T10: Idem | AF10: C
A11: 1.6 | N11: FALSE
A12: 2. | B12: ='AT Projets '!D3 -> Renforcement capacitaire et création du centre régional de la formation
A13: 2.1 | B13: Les différents projets mis en œuvre par les CT et associations de la région sont pertinents et sont réalisés conformément aux standards de qualité requis et les délais prescrits | C13: La part des projets jugés pertinents et mis en œuvre selon les standards de qualité requis et les délais prescrits | D13: Le nombre de projets jugés pertinents et mis en œuvre selon les standards de qualité requis et les délais prescrits rapporté aux nombre total de projets mis en œuvre par les CT et associations ayant bénéficié des actions de renforcement des capacités | E13: I | F13: % | L13: 80 | M13: 80 | N13: =IF(F13="%",M13,IF(E13="C",M85,IF(E13="I",SUM(H13:M13)))) -> 80 | O13: DESE | P13: RESA | Q13: Annuelle | R13: Rapport d'audits de performance | S13: IGF et/ou Cours des comptes
A14: 2.2 | B14: Les compétences techniques et d’ingénierie des collectivités territoriales et associations relevant des 146 communes de la région sont renforcées | C14: La part du personnel de management et cadres techniques des collectivités territoriales et des asssociations des 146 communes de la région, qui mettent en application les enseignements et techniques prodiguées | D14: L'effectif du personnel de management et cadres techniques relevant des collectivités territoriales et associations, ayant bénéficié des actions de renforcement des capacités et qui mettent en application les enseignements et techniques prodiguées rapporté au nombre total du personnel ayant bénéficié des actions de renforcement des capacités | E14: I | F14: % | J14: 80 | K14: 0 | L14: 80 | M14: 80 | N14: 80 | O14: DESE | P14: RESA | Q14: Annuelle (Une fois, 06 mois après la fin de la formation) | R14: Evaluation à froids des actions de renforcement de capacités prévues | S14: Consultant
A15: 2.3 | B15: Une structure de formation continue des élus, du personnels des communes et des instances dirrigeantes des associations de la région, est crée et est fonctionnelle | C15: Nombre de centre de formation | D15: Un centre de formation doté, entre autres , d'un personnel administratif, d'équipements didactiques, de salle de conférence, d'un centre informatique.. | E15: I | F15: Centre de formation | I15: 1 | N15: 1 | O15: DESE | P15: RESA | Q15: Annuelle Une fois en 2018) | R15: PV de récéption provisoire et définitive | S15: Commission de réception des travaux et équipements
A16: 2.4 | N16: FALSE | T16: Idem
A17: 2.5 | N17: FALSE
A18: 2.6 | N18: FALSE
A19: 3. | B19: ='AT Projets '!D4 -> Programme de formation professionnelle
A20: 3.1 | B20: Contribuer à l'amélioration de la compétitivité des entreprises de la région | C20: Part des chefs d'entreprises qui estiment que leur compétitivité est compromise par l'inadéquation "formation Vs emploi" | D20: L'effectif de chefs d'entreprises qui estiment que leur compétitivité est compromise par l'inadéquation "formation Vs emploi" rapporté à l'effectif de chef d'entreprises opérant au niveau de la région | E20: I | F20: % | G20: 100 | M20: 25 | N20: =IF(F20="%",M20,IF(E20="C",M92,IF(E20="I",SUM(H20:M20)))) -> 25 | O20: DESE | P20: RESA | Q20: Une fois (à la fin du PDR) | R20: Etude spécifique | S20: Consultant | T20: Idem
A21: 3.2 | B21: L'insertion professionnelles des lauréats des nouveaux centres de formation est renforcée | C21: Taux d'insertion professionnel | D21: L'effectif des lauréats (Femmes et hommes) des nouveaux centres de formation professionnelle qui trouvent un emploi , dans un délais de 06 mois, chez les entreprises de la région, rapporté au nombre de lauréats des nouveaux centres de formation | E21: I | F21: % | G21: 0 | M21: 80 | N21: 80 | O21: DESE | P21: RESA | Q21: Annuelle (06 mois après être sorti/e du centre de formation) | R21: Rapport d'activités/Statistiques | S21: Cellule de suivi de l'insertion professionnelle OFPPT | T21: Idem
A22: 3.3 | B22: De nouveaux centres de formation professionnelle offrant des cursus adaptés aux besoins des entreprises de la région sont crées et fonctionnels | C22: Nombre de centre de formation professionnel nouvellement entrés en service | D22: Nombre de centres de formations professionnelles offrant des filières de formation en adéquation avec les besoins réels du marchés qui sont nouvellement opérationnels | E22: I | F22: Centre de formation | G22: 0 | J22: 10 | M22: 20 | N22: 30 | O22: DESE | P22: RESA | Q22: Annuelle | R22: PV de réception définitifs des différents travaux et équipements | S22: Commissions de réception des travaux et/ou équipements
A23: 3.4 | N23: FALSE | T23: Idem
A24: 3.5 | N24: FALSE
A25: 3.6 | N25: FALSE
A26: 4. | B26: ='AT Projets '!D5 -> Marketing Territorial | T26: Idem
A27: 4.1 | B27: Contribuer à la création d'emplois au niveau de la région | C27: Nombre d'emploi | D27: Le cumul du nombre d'emplois directs et indirects crées par au niveau de la région | E27: C | F27: poste | G27: 0 | M27: 335 | N27: =IF(F27="%",M27,IF(E27="C",M27,IF(E27="I",SUM(H27:M27)))) -> 335 | O27: DESE | P27: RESA | Q27: Trimestrielle à partir de 2022 | R27: Rapport d'activités | S27: L' agence (SDL) d'attractivité du territoire
A28: 4.2 | B28: L’attractivité socio-économique de la région s'est améliorée | C28: Taux de création d'entreprises | D28: le nombre des créations d'entreprises ou d'entreprises qui agrandissent leur capacité de production de biens et services (tout secteur confondus), d'une période (n) rapporté au nombre total d'entreprises recensées à la fin de la période (n -1) | E28: I | F28: % | G28: ?? | N28: =IF(F28="%",M28,IF(E28="C",M100,IF(E28="I",SUM(H28:M28)))) ->  | O28: DESE | P28: RESA | Q28: Trimestrielle à partir de 2022 | R28: Rapport d'activités | S28: L' agence (SDL) d'attractivité du territoire | T28: Idem
A29: 4.3 | B29: Une structure (agence/SDL) d'attractivité du territoire est créée | C29: Décret (……………….) de création de l'AAT | D29: Décret d'application de la loi portant création de l'AAT | E29: I | F29: Décret | G29: 0 | M29: 1 | N29: =IF(F29="%",M29,IF(E29="C",M101,IF(E29="I",SUM(H29:M29)))) -> 1 | O29: DESE | P29: RESA | Q29: Annuelle, une fois | R29: Statut?BO | S29: SGG | T29: Idem
A30: 4.4 | N30: =IF(F30="%",M30,IF(E30="C",M102,IF(E30="I",SUM(H30:M30)))) -> FALSE
A31: 4.5 | N31: =IF(F31="%",M31,IF(E31="C",M103,IF(E31="I",SUM(H31:M31)))) -> FALSE
A32: 4.6 | N32: =IF(F32="%",M32,IF(E32="C",M104,IF(E32="I",SUM(H32:M32)))) -> FALSE
A33: 5. | B33: ='AT Projets '!D6 ->  | T33: Idem
A34: 5.1 | N34: =IF(F34="%",M34,IF(E34="C",M106,IF(E34="I",SUM(H34:M34)))) -> FALSE | T34: Idem
A35: 5.2 | N35: FALSE
A36: 5.3 | N36: FALSE
A37: 5.4 | N37: FALSE | T37: Idem
A38: 5.5 | N38: FALSE
A39: 5.6 | N39: FALSE
A40: 6. | B40: ='AT Projets '!D7 ->  | T40: Idem
A41: 6.1 | N41: =IF(F41="%",M41,IF(E41="C",M113,IF(E41="I",SUM(H41:M41)))) -> FALSE | T41: Idem
A42: 6.2 | N42: FALSE | T42: Idem
A43: 6.3 | N43: FALSE | T43: Idem
A44: 6.4 | N44: FALSE | T44: Idem
A45: 6.5 | N45: FALSE
A46: 6.6 | N46: FALSE
A47: 7. | B47: ='AT Projets '!D8 ->  | T47: Idem
A48: 7.1 | N48: =IF(F48="%",M48,IF(E48="C",M120,IF(E48="I",SUM(H48:M48)))) -> FALSE | T48: Idem
A49: 7.2 | N49: FALSE | T49: Idem
A50: 7.3 | N50: FALSE | T50: Idem
A51: 7.4 | N51: FALSE | T51: Idem
A52: 7.5 | N52: FALSE
A53: 7.6 | N53: FALSE
A54: 8. | B54: ='AT Projets '!D9 ->  | T54: Idem
A55: 8.1 | N55: =IF(F55="%",M55,IF(E55="C",M127,IF(E55="I",SUM(H55:M55)))) -> FALSE | T55: Idem
A56: 8.2 | N56: FALSE | T56: Idem
A57: 8.3 | N57: FALSE | T57: Idem
A58: 8.4 | N58: FALSE | T58: Idem
A59: 8.5 | N59: FALSE
A60: 8.6 | N60: FALSE
A61: 9. | B61: ='AT Projets '!D10 ->  | T61: Idem
A62: 9.1 | N62: =IF(F62="%",M62,IF(E62="C",M134,IF(E62="I",SUM(H62:M62)))) -> FALSE | T62: Idem
A63: 9.2 | N63: FALSE | T63: Idem
A64: 9.3 | N64: FALSE | T64: Idem
A65: 9.4 | N65: FALSE | T65: Idem
A66: 9.5 | N66: FALSE
A67: 9.6 | N67: FALSE
A68: 10. | B68: ='AT Projets '!D11 ->  | T68: Idem
A69: 10.1 | N69: =IF(F69="%",M69,IF(E69="C",M141,IF(E69="I",SUM(H69:M69)))) -> FALSE | T69: Idem
A70: 10.2 | N70: FALSE | T70: Idem
A71: 10.3 | N71: FALSE | T71: Idem
A72: 10.4 | N72: FALSE | T72: Idem
A73: 10.5 | N73: FALSE
A74: 10.6 | N74: FALSE
A75: AUTRES COMPETENCES
A76: 1. | B76: ='AT Projets '!D12 -> Programme structurant de mobilité – Renforcement des flux aériens et maritimes
A77: 1.1 | B77: Contribuer au renforcement de l’attractivité touristique de la région | C77: Durée Moyenne de Séjour | D77: Durée Moyenne de Séjour au niveau des établissements d'hébergement classés | E77: I | F77: Nuitée | G77: 1.9 | M77: 3.5 | N77: =IF(F77="%",M77,IF(E77="C",M77,IF(E77="I",SUM(H77:M77)))) -> 3.5 | P77: DESE | Q77: Trimestrielle | R77: Statistiques sur le tourisme au Maroc | S77: Observatoire du tourisme
A78: 1.2 | B78: L'accessibilité de la région aux touristes et investisseurs s'est améliorée | C78: Volume de trafic aérien | D78: Nombre de passagers accueillis au niveau des aéroports de Tanger, Tétouan et Al Hoceima | E78: C | F78: Passager | N78: 0 | P78: DESE | Q78: Trimestrielle | R78: Statistiques mensuelles afférentes au trafic aérien | S78: ONDA
A79: 1.3 | B79: Le nombre de vols reliant Casablanca à Tanger a augmenté | C79: Nombre de vols reliant Casablanca à Tanger | D79: Nombre de vols liant directement casablanca à Tanger | E79: I | F79: vol/jour | G79: 1 | I79: 2 | N79: 2 | P79: DESE | Q79: Une fois (en 2018) | R79: Statistiques mensuelles afférentes au trafic aérien | S79: ONDA
A80: 1.4 | B80: Le nombre de vols reliant Casablanca à Al Hoceima a augmenté | C80: Nombre de vols reliant Casablanca à Al Hoceima | D80: Nombre de vols liant directement casablanca à Al Hoceima | E80: I | F80: vol/semaine | G80: 3 | I80: 7 | N80: 7 | P80: DESE | Q80: Une fois (en 2018) | R80: Statistiques mensuelles afférentes au trafic aérien | S80: ONDA
A81: 1.5 | B81: La connexion aérienne Tanger Med – Al Hoceima est crée | C81: Nombre de lignes aériennes | D81: Nombre de lignes aériennes qui relient Tanger à Al Hoceima | E81: C | F81: vol/semaine | G81: 0 | H81: 2 | I81: 2 | J81: 2 | K81: 2 | L81: 2 | M81: 2 | N81: 2 | P81: DESE | Q81: Une fois (en 2018) | R81: Statistiques mensuelles afférentes au trafic aérien | S81: ONDA | T81: Idem
A82: 1.6 | B82: La connexion maritime Tanger Med – Al Hoceima est crée | C82: Nombre de connexion maritime | D82: Nombre de lignes maritimes qui relient Tanger à Al Hoceima | E82: C | F82: Ligne maritime | G82: 0 | J82: 1 | K82: 1 | L82: 1 | M82: 1 | N82: =IF(F82="%",M82,IF(E82="C",M82,IF(E82="I",SUM(H82:M82)))) -> 1 | P82: DESE | Q82: Une fois (en 2018) | R82: Statistiques mensuelles afférentes au trafic maritime | S82: ANP
A83: 2. | B83: ='AT Projets '!D13 -> Programme structurant de mobilité – Accélération du désenclavement de la Région
A84: 2.1 | B84: Contribuer au désenclavement de la région | C84: Durée du trajet Chefchaouen Al Hoceima | D84: Durée moyenne annuelle (hiver et période estivale, sans temps mort) nécessaire pour parcourir la distance reliant le centre ville de Chefchaouen au centre ville d' Al Hoceima | E84: I | F84: heure | G84: 7 | I84: 4 | N84: =IF(F84="%",M84,IF(E84="C",M154,IF(E84="I",SUM(H84:M84)))) -> 4 | O84: DESE | P84: RESA | Q84: Une fois (en 2018) | R84: Statistiques de la Direction Régionale de l’Equipement, du Transport et de la Logistique | S84: Direction Régionale de l’Equipement, du Transport et de la Logistique
A85: 2.2 | B85: La route nationale N2 reliant Chefchaouen à Al Hoceima est dédoublé | C85: Nombre de kilomètre linéaire | D85: Nombre de kilomètres linéaires de la route reliant Chefchaouen à Al Hoceima ,dédoublés | E85: C | F85: Km | G85: 0 | I85: 220 | J85: 220 | K85: 220 | L85: 220 | M85: 220 | N85: =IF(F85="%",M85,IF(E85="C",M85,IF(E85="I",SUM(H85:M85)))) -> 220 | O85: DESE | P85: RESA | Q85: Trimestrielle | R85: PV de réception provisoire et définitive | S85: Commission de réception des travaux
A86: 2.3 | B86: les DCE afférents au/à (i) moyens de transport alternatifs adaptés aux zones montagneuses, (ii) la connexion de Ouezzane à Ksar El Kébir et au trajet autoroute Fès Tétouan, (iii) la connectivité ferroviaire de Tanger – Al Hoceima, (iv) la connexion d'Al Hoceima - Nador West Med, (v) la liaison de Tétouan au littoral via un Tramway et (vi) la connexion de Larache à Ksar El Kébir via l'autoroute. | C86: Nombre de DCE | D86: Les documents nécessaires à la consultation des entreprises aux marchés de travaux | E86: I | F86: DCE | H86: 2 | I86: 0 | N86: =IF(F86="%",M86,IF(E86="C",M86,IF(E86="I",SUM(H86:M86)))) -> 2 | O86: DESE | P86: RESA | Q86: Trimestrielle | R86: DCE | S86: Direction Régionale de l’Equipement, du Transport et de la Logistique
A87: 2.4 | N87: =IF(F87="%",M87,IF(E87="C",M157,IF(E87="I",SUM(H87:M87)))) -> FALSE | T87: Idem
A88: 2.5 | N88: =IF(F88="%",M88,IF(E88="C",M158,IF(E88="I",SUM(H88:M88)))) -> FALSE
A89: 2.6 | N89: =IF(F89="%",M89,IF(E89="C",M159,IF(E89="I",SUM(H89:M89)))) -> FALSE
A90: 3. | B90: ='AT Projets '!D14 -> 
A91: 3.1 | N91: =IF(F91="%",M91,IF(E91="C",M161,IF(E91="I",SUM(H91:M91)))) -> FALSE | T91: Idem
A92: 3.2 | N92: FALSE | T92: Idem
A93: 3.3 | N93: FALSE
A94: 3.4 | N94: FALSE | T94: Idem
A95: 3.5 | N95: FALSE
A96: 3.6 | N96: FALSE
A97: 4. | B97: ='AT Projets '!D15 -> 
A98: 4.1 | N98: =IF(F98="%",M98,IF(E98="C",M168,IF(E98="I",SUM(H98:M98)))) -> FALSE | T98: Idem
A99: 4.2 | N99: FALSE
A100: 4.3 | N100: FALSE
A101: 4.4 | N101: FALSE
A102: 4.5 | N102: FALSE
A103: 4.6 | N103: FALSE
A104: 5. | B104: ='AT Projets '!D16 -> 
A105: 5.1 | N105: =IF(F105="%",M105,IF(E105="C",M175,IF(E105="I",SUM(H105:M105)))) -> FALSE | T105: Idem
A106: 5.2 | N106: FALSE | T106: Idem
A107: 5.3 | N107: FALSE
A108: 5.4 | N108: FALSE | T108: Idem
A109: 5.5 | N109: FALSE
A110: 5.6 | N110: FALSE
A111: 6. | B111: ='AT Projets '!D17 ->  | T111: Idem
A112: 6.1 | N112: =IF(F112="%",M112,IF(E112="C",M182,IF(E112="I",SUM(H112:M112)))) -> FALSE | T112: Idem
A113: 6.2 | N113: FALSE | T113: Idem
A114: 6.3 | N114: FALSE | T114: Idem
A115: 6.4 | N115: FALSE | T115: Idem
A116: 6.5 | N116: FALSE
A117: 6.6 | N117: FALSE
A118: 7. | B118: ='AT Projets '!D18 ->  | T118: Idem
A119: 7.1 | N119: =IF(F119="%",M119,IF(E119="C",M189,IF(E119="I",SUM(H119:M119)))) -> FALSE | T119: Idem
A120: 7.2 | N120: FALSE | T120: Idem
A121: 7.3 | N121: FALSE | T121: Idem
A122: 7.4 | N122: FALSE | T122: Idem
A123: 7.5 | N123: FALSE
A124: 7.6 | N124: FALSE
A125: 8. | B125: ='AT Projets '!D19 ->  | T125: Idem
A126: 8.1 | N126: =IF(F126="%",M126,IF(E126="C",M196,IF(E126="I",SUM(H126:M126)))) -> FALSE | T126: Idem
A127: 8.2 | N127: FALSE | T127: Idem
A128: 8.3 | N128: FALSE | T128: Idem
A129: 8.4 | N129: FALSE | T129: Idem
A130: 8.5 | N130: FALSE
A131: 8.6 | N131: FALSE
A132: 9. | B132: ='AT Projets '!D20 ->  | T132: Idem
A133: 9.1 | N133: =IF(F133="%",M133,IF(E133="C",M203,IF(E133="I",SUM(H133:M133)))) -> FALSE | T133: Idem
A134: 9.2 | N134: FALSE | T134: Idem
A135: 9.3 | N135: FALSE | T135: Idem
A136: 9.4 | N136: FALSE | T136: Idem
A137: 9.5 | N137: FALSE
A138: 9.6 | N138: FALSE
A139: 10. | B139: ='AT Projets '!D21 ->  | T139: Idem
A140: 10.1 | N140: =IF(F140="%",M140,IF(E140="C",M210,IF(E140="I",SUM(H140:M140)))) -> FALSE | T140: Idem
A141: 10.2 | N141: FALSE | T141: Idem
A142: 10.3 | N142: FALSE | T142: Idem
A143: 10.4 | N143: FALSE | T143: Idem
A144: 10.5 | N144: FALSE
A145: 10.6 | N145: FALSE

Sheet AT Itt
A1: PDR. D. Attractivité du territoire | G1: Valeurs trimestrielles prevues, réalisées et performance | S1: Valeurs annuelles prevues, réalisées et performance. | V1: Valeurs trimestrielles prevues, réalisées et performance | AH1: Valeurs annuelles prevues, réalisées et performance. | AK1: Valeurs trimestrielles prevues, réalisées et performance | AW1: Valeurs annuelles prevues, réalisées et performance. | AZ1: Valeurs trimestrielles prevues, réalisées et performance | BL1: Valeurs annuelles prevues, réalisées et performance. | BO1: =AZ1 -> Valeurs trimestrielles prevues, réalisées et performance | CA1: Valeurs annuelles prevues, réalisées et performance. | CD1: =BO1 -> Valeurs trimestrielles prevues, réalisées et performance | CP1: Valeurs annuelles prevues, réalisées et performance. | CS1: Valeurs terminales prevues, réalisées et performance.
A2: Nº R. | B2: Résultats | C2: Indicateur | D2: Type | E2: Unité | F2: Baseline | G2: 2017 | S2: 2017 | V2: 2018 | AH2: 2018 | AK2: 2019 | AW2: 2019 | AZ2: 2020 | BL2: 2020 | BO2: 2021 | CA2: 2021 | CD2: 2022 | CP2: 2022 | CS2: FIN du PDR
G3: S1 | M3: S2 | S3: P | T3: R | U3: Perf. | V3: S1 | AB3: S2 | AH3: P | AI3: R | AJ3: Perf. | AK3: S1 | AQ3: S2 | AW3: P | AX3: R | AY3: Perf. | AZ3: S1 | BF3: S2 | BL3: P | BM3: R | BN3: Perf. | BO3: S1 | BU3: S2 | CA3: P | CB3: R | CC3: Perf. | CD3: S1 | CJ3: S2 | CP3: P | CQ3: R | CR3: Perf.
G4: TM1 | J4: TM2 | M4: TM3 | P4: TM4 | V4: TM1 | Y4: TM2 | AB4: TM3 | AE4: TM4 | AK4: TM1 | AN4: TM2 | AQ4: TM3 | AT4: TM4 | AZ4: TM1 | BC4: TM2 | BF4: TM3 | BI4: TM4 | BO4: TM1 | BR4: TM2 | BU4: TM3 | BX4: TM4 | CD4: TM1 | CG4: TM2 | CJ4: TM3 | CM4: TM4
G5: P | H5: R | I5: Perf. | J5: P | K5: R | L5: Perf. | M5: P | N5: R | O5: Perf. | P5: P | Q5: R | R5: Perf. | V5: P | W5: R | X5: Perf. | Y5: P | Z5: R | AA5: Perf. | AB5: P | AC5: R | AD5: Perf. | AE5: P | AF5: R | AG5: Perf. | AK5: P | AL5: R | AM5: Perf. | AN5: P | AO5: R | AP5: Perf. | AQ5: P | AR5: R | AS5: Perf. | AT5: P | AU5: R | AV5: Perf. | AZ5: P | BA5: R | BB5: Perf. | BC5: P | BD5: R | BE5: Perf. | BF5: P | BG5: R | BH5: Perf. | BI5: P | BJ5: R | BK5: Perf. | BO5: P | BP5: R | BQ5: Perf. | BR5: P | BS5: R | BT5: Perf. | BU5: P | BV5: R | BW5: Perf. | BX5: P | BY5: R | BZ5: Perf. | CD5: P | CE5: R | CF5: Perf. | CG5: P | CH5: R | CI5: Perf. | CJ5: P | CK5: R | CL5: Perf. | CM5: P | CN5: R | CO5: Perf.
A6: ='AT CdR'!A4 -> COMPETENCES PROPRES
A7: ='AT CdR'!A5 -> 1. | B7: ='AT CdR'!B5:S5 -> Modernisation et développement des routes non classées
A8: ='AT CdR'!A6 -> 1.1 | B8: ='AT CdR'!B6 -> Contribuer à une meilleure intégration socio-économique de la population désenclavée | C8: ='AT CdR'!C6 -> Niveau de revenu des ménages bénéficiaires de l'activité modernisation et développement des routes non classées | D8: ='AT CdR'!E6 -> C | E8: ='AT CdR'!F6 -> MAD | F8: ='AT CdR'!G6 -> 25000 | I8: =IFERROR((H8-$F8)/(G8-$F8),"") ->  | L8: =IFERROR((K8-$F8)/(J8-$F8),"") ->  | O8: =IFERROR((N8-$F8)/(M8-$F8),"") ->  | R8: =IFERROR((Q8-$F8)/(P8-$F8),"") ->  | S8: ='AT CdR'!H6 ->  | U8: =IFERROR((T8-$F8)/(S8-$F8),"") ->  | X8: =IFERROR((W8-$F8)/(V8-$F8),"") ->  | AA8: =IFERROR((Z8-$F8)/(Y8-$F8),"") ->  | AD8: =IFERROR((AC8-$F8)/(AB8-$F8),"") ->  | AG8: =IFERROR((AF8-$F8)/(AE8-$F8),"") ->  | AH8: ='AT CdR'!I6 ->  | AJ8: =IFERROR((AI8-$F8)/(AH8-$F8),"") ->  | AM8: =IFERROR((AL8-$F8)/(AK8-$F8),"") ->  | AP8: =IFERROR((AO8-$F8)/(AN8-$F8),"") ->  | AS8: =IFERROR((AR8-$F8)/(AQ8-$F8),"") ->  | AV8: =IFERROR((AU8-$F8)/(AT8-$F8),"") ->  | AW8: ='AT CdR'!J6 ->  | AY8: =IFERROR((AX8-$F8)/(AW8-$F8),"") ->  | BB8: =IFERROR((BA8-$F8)/(AZ8-$F8),"") ->  | BE8: =IFERROR((BD8-$F8)/(BC8-$F8),"") ->  | BH8: =IFERROR((BG8-$F8)/(BF8-$F8),"") ->  | BK8: =IFERROR((BJ8-$F8)/(BI8-$F8),"") ->  | BL8: ='AT CdR'!K6 -> 27500 | BN8: =IFERROR((BM8-$F8)/(BL8-$F8),"") -> -10 | BQ8: =IFERROR((BP8-$F8)/(BO8-$F8),"") ->  | BT8: =IFERROR((BS8-$F8)/(BR8-$F8),"") ->  | BW8: =IFERROR((BV8-$F8)/(BU8-$F8),"") ->  | BZ8: =IFERROR((BY8-$F8)/(BX8-$F8),"") ->  | CA8: ='AT CdR'!L6 -> 28750 | CC8: =IFERROR((CB8-$F8)/(CA8-$F8),"") -> -6.666666667 | CF8: =IFERROR((CE8-$F8)/(CD8-$F8),"") ->  | CI8: =IFERROR((CH8-$F8)/(CG8-$F8),"") ->  | CL8: =IFERROR((CK8-$F8)/(CJ8-$F8),"") ->  | CO8: =IFERROR((CN8-$F8)/(CM8-$F8),"") ->  | CP8: ='AT CdR'!M6 -> 31250 | CR8: =IFERROR((CQ8-$F8)/(CP8-$F8),"") -> -4 | CS8: ='AT CdR'!N6 -> 31250
A9: ='AT CdR'!A7 -> 1.2 | B9: ='AT CdR'!B7 -> Contribuer à l'amélioration de l’accès aux soins de santé pour les femmes au niveau des régions désenclavées | C9: ='AT CdR'!C7 -> Taux de mortalité maternelle | D9: ='AT CdR'!E7 -> I | E9: ='AT CdR'!F7 -> % | F9: ='AT CdR'!G7 -> TBD | I9: =IFERROR((H9-$F9)/(G9-$F9),"") ->  | L9: =IFERROR((K9-$F9)/(J9-$F9),"") ->  | O9: =IFERROR((N9-$F9)/(M9-$F9),"") ->  | R9: =IFERROR((Q9-$F9)/(P9-$F9),"") ->  | S9: ='AT CdR'!H7 -> 0 | U9: =IFERROR((T9-$F9)/(S9-$F9),"") ->  | X9: =IFERROR((W9-$F9)/(V9-$F9),"") ->  | AA9: =IFERROR((Z9-$F9)/(Y9-$F9),"") ->  | AD9: =IFERROR((AC9-$F9)/(AB9-$F9),"") ->  | AG9: =IFERROR((AF9-$F9)/(AE9-$F9),"") ->  | AH9: ='AT CdR'!I7 -> 0 | AJ9: =IFERROR((AI9-$F9)/(AH9-$F9),"") ->  | AM9: =IFERROR((AL9-$F9)/(AK9-$F9),"") ->  | AP9: =IFERROR((AO9-$F9)/(AN9-$F9),"") ->  | AS9: =IFERROR((AR9-$F9)/(AQ9-$F9),"") ->  | AV9: =IFERROR((AU9-$F9)/(AT9-$F9),"") ->  | AW9: ='AT CdR'!J7 ->  | AY9: =IFERROR((AX9-$F9)/(AW9-$F9),"") ->  | BB9: =IFERROR((BA9-$F9)/(AZ9-$F9),"") ->  | BE9: =IFERROR((BD9-$F9)/(BC9-$F9),"") ->  | BH9: =IFERROR((BG9-$F9)/(BF9-$F9),"") ->  | BK9: =IFERROR((BJ9-$F9)/(BI9-$F9),"") ->  | BL9: ='AT CdR'!K7 -> TBD | BN9: =IFERROR((BM9-$F9)/(BL9-$F9),"") ->  | BQ9: =IFERROR((BP9-$F9)/(BO9-$F9),"") ->  | BT9: =IFERROR((BS9-$F9)/(BR9-$F9),"") ->  | BW9: =IFERROR((BV9-$F9)/(BU9-$F9),"") ->  | BZ9: =IFERROR((BY9-$F9)/(BX9-$F9),"") ->  | CA9: ='AT CdR'!L7 -> TBD | CC9: =IFERROR((CB9-$F9)/(CA9-$F9),"") ->  | CF9: =IFERROR((CE9-$F9)/(CD9-$F9),"") ->  | CI9: =IFERROR((CH9-$F9)/(CG9-$F9),"") ->  | CL9: =IFERROR((CK9-$F9)/(CJ9-$F9),"") ->  | CO9: =IFERROR((CN9-$F9)/(CM9-$F9),"") ->  | CP9: ='AT CdR'!M7 -> TBD | CR9: =IFERROR((CQ9-$F9)/(CP9-$F9),"") ->  | CS9: ='AT CdR'!N7 -> TBD
A10: ='AT CdR'!A8 -> 1.3 | B10: ='AT CdR'!B8 -> La population de la région est désenclavée | C10: ='AT CdR'!C8 -> Taux de réduction du coût de transport des personnes | D10: ='AT CdR'!E8 -> I | E10: ='AT CdR'!F8 -> % | F10: ='AT CdR'!G8 -> 3.75 | R10: =IFERROR((Q10-$F10)/(P10-$F10),"") ->  | S10: ='AT CdR'!H8 ->  | AH10: ='AT CdR'!I8 ->  | AW10: ='AT CdR'!J8 ->  | BL10: ='AT CdR'!K8 -> 65 | CA10: ='AT CdR'!L8 -> 65 | CP10: ='AT CdR'!M8 -> 65 | CS10: ='AT CdR'!N8 -> 65
A11: ='AT CdR'!A9 -> 1.4 | B11: ='AT CdR'!B9 -> Le réseau de routes non classées de la région est mis à niveau | C11: ='AT CdR'!C9 -> Nombre de km de routes non classées modernisées | D11: ='AT CdR'!E9 -> I | E11: ='AT CdR'!F9 -> Km | F11: ='AT CdR'!G9 ->  | S11: ='AT CdR'!H9 ->  | AH11: ='AT CdR'!I9 ->  | AW11: ='AT CdR'!J9 ->  | BL11: ='AT CdR'!K9 ->  | CA11: ='AT CdR'!L9 ->  | CP11: ='AT CdR'!M9 ->  | CS11: ='AT CdR'!N9 -> 0
A12: ='AT CdR'!A10 -> 1.5 | B12: ='AT CdR'!B10 -> Le besoin en routes non classées est satisfait | C12: ='AT CdR'!C10 -> Nombre de km de routes non classées nouvellement construites | D12: ='AT CdR'!E10 -> I | E12: ='AT CdR'!F10 -> Km | F12: ='AT CdR'!G10 ->  | S12: ='AT CdR'!H10 ->  | V12: 100 | W12: 50 | Y12: 150 | Z12: 100 | AB12: 180 | AE12: 267 | AH12: ='AT CdR'!I10 -> 266.8 | AW12: ='AT CdR'!J10 -> 266.8 | BL12: ='AT CdR'!K10 -> 133.4 | CA12: ='AT CdR'!L10 ->  | CP12: ='AT CdR'!M10 ->  | CS12: ='AT CdR'!N10 -> 667
A13: ='AT CdR'!A11 -> 1.6 | B13: ='AT CdR'!B11 -> 0 | C13: ='AT CdR'!C11 -> 0 | D13: ='AT CdR'!E11 -> 0 | E13: ='AT CdR'!F11 ->  | F13: ='AT CdR'!G11 -> 0 | I13: =IFERROR((H13-$F13)/(G13-$F13),"") ->  | L13: =IFERROR((K13-$F13)/(J13-$F13),"") ->  | O13: =IFERROR((N13-$F13)/(M13-$F13),"") ->  | R13: =IFERROR((Q13-$F13)/(P13-$F13),"") ->  | S13: ='AT CdR'!H11 -> 0 | U13: =IFERROR((T13-$F13)/(S13-$F13),"") ->  | X13: =IFERROR((W13-$F13)/(V13-$F13),"") ->  | AA13: =IFERROR((Z13-$F13)/(Y13-$F13),"") ->  | AD13: =IFERROR((AC13-$F13)/(AB13-$F13),"") ->  | AG13: =IFERROR((AF13-$F13)/(AE13-$F13),"") ->  | AH13: ='AT CdR'!I11 -> 0 | AJ13: =IFERROR((AI13-$F13)/(AH13-$F13),"") ->  | AM13: =IFERROR((AL13-$F13)/(AK13-$F13),"") ->  | AP13: =IFERROR((AO13-$F13)/(AN13-$F13),"") ->  | AS13: =IFERROR((AR13-$F13)/(AQ13-$F13),"") ->  | AV13: =IFERROR((AU13-$F13)/(AT13-$F13),"") ->  | AW13: ='AT CdR'!J11 -> 0 | AY13: =IFERROR((AX13-$F13)/(AW13-$F13),"") ->  | BB13: =IFERROR((BA13-$F13)/(AZ13-$F13),"") ->  | BE13: =IFERROR((BD13-$F13)/(BC13-$F13),"") ->  | BH13: =IFERROR((BG13-$F13)/(BF13-$F13),"") ->  | BK13: =IFERROR((BJ13-$F13)/(BI13-$F13),"") ->  | BL13: ='AT CdR'!K11 -> 0 | BN13: =IFERROR((BM13-$F13)/(BL13-$F13),"") ->  | BQ13: =IFERROR((BP13-$F13)/(BO13-$F13),"") ->  | BT13: =IFERROR((BS13-$F13)/(BR13-$F13),"") ->  | BW13: =IFERROR((BV13-$F13)/(BU13-$F13),"") ->  | BZ13: =IFERROR((BY13-$F13)/(BX13-$F13),"") ->  | CA13: ='AT CdR'!L11 -> 0 | CC13: =IFERROR((CB13-$F13)/(CA13-$F13),"") ->  | CF13: =IFERROR((CE13-$F13)/(CD13-$F13),"") ->  | CI13: =IFERROR((CH13-$F13)/(CG13-$F13),"") ->  | CL13: =IFERROR((CK13-$F13)/(CJ13-$F13),"") ->  | CO13: =IFERROR((CN13-$F13)/(CM13-$F13),"") ->  | CP13: ='AT CdR'!M11 -> 0 | CR13: =IFERROR((CQ13-$F13)/(CP13-$F13),"") ->  | CS13: ='AT CdR'!N11 -> FALSE
A14: ='AT CdR'!A12 -> 2. | B14: ='AT CdR'!B12:S12 -> Renforcement capacitaire et création du centre régional de la formation
A15: ='AT CdR'!A13 -> 2.1 | B15: ='AT CdR'!B13 -> Les différents projets mis en œuvre par les CT et associations de la région sont pertinents et sont réalisés conformément aux standards de qualité requis et les délais prescrits | C15: ='AT CdR'!C13 -> La part des projets jugés pertinents et mis en œuvre selon les standards de qualité requis et les délais prescrits | D15: ='AT CdR'!E13 -> I | E15: ='AT CdR'!F13 -> % | F15: ='AT CdR'!G13 ->  | I15: =IFERROR((H15-$F15)/(G15-$F15),"") ->  | L15: =IFERROR((K15-$F15)/(J15-$F15),"") ->  | O15: =IFERROR((N15-$F15)/(M15-$F15),"") ->  | R15: =IFERROR((Q15-$F15)/(P15-$F15),"") ->  | S15: ='AT CdR'!H13 ->  | U15: =IFERROR((T15-$F15)/(S15-$F15),"") ->  | X15: =IFERROR((W15-$F15)/(V15-$F15),"") ->  | AA15: =IFERROR((Z15-$F15)/(Y15-$F15),"") ->  | AD15: =IFERROR((AC15-$F15)/(AB15-$F15),"") ->  | AG15: =IFERROR((AF15-$F15)/(AE15-$F15),"") ->  | AH15: ='AT CdR'!I13 ->  | AJ15: =IFERROR((AI15-$F15)/(AH15-$F15),"") ->  | AM15: =IFERROR((AL15-$F15)/(AK15-$F15),"") ->  | AP15: =IFERROR((AO15-$F15)/(AN15-$F15),"") ->  | AS15: =IFERROR((AR15-$F15)/(AQ15-$F15),"") ->  | AV15: =IFERROR((AU15-$F15)/(AT15-$F15),"") ->  | AW15: ='AT CdR'!J13 ->  | AY15: =IFERROR((AX15-$F15)/(AW15-$F15),"") ->  | BB15: =IFERROR((BA15-$F15)/(AZ15-$F15),"") ->  | BE15: =IFERROR((BD15-$F15)/(BC15-$F15),"") ->  | BH15: =IFERROR((BG15-$F15)/(BF15-$F15),"") ->  | BK15: =IFERROR((BJ15-$F15)/(BI15-$F15),"") ->  | BL15: ='AT CdR'!K13 ->  | BN15: =IFERROR((BM15-$F15)/(BL15-$F15),"") ->  | BQ15: =IFERROR((BP15-$F15)/(BO15-$F15),"") ->  | BT15: =IFERROR((BS15-$F15)/(BR15-$F15),"") ->  | BW15: =IFERROR((BV15-$F15)/(BU15-$F15),"") ->  | BZ15: =IFERROR((BY15-$F15)/(BX15-$F15),"") ->  | CA15: ='AT CdR'!L13 -> 80 | CC15: =IFERROR((CB15-$F15)/(CA15-$F15),"") ->  | CF15: =IFERROR((CE15-$F15)/(CD15-$F15),"") ->  | CI15: =IFERROR((CH15-$F15)/(CG15-$F15),"") ->  | CL15: =IFERROR((CK15-$F15)/(CJ15-$F15),"") ->  | CO15: =IFERROR((CN15-$F15)/(CM15-$F15),"") ->  | CP15: ='AT CdR'!M13 -> 80 | CR15: =IFERROR((CQ15-$F15)/(CP15-$F15),"") ->  | CS15: ='AT CdR'!N13 -> 80
A16: ='AT CdR'!A14 -> 2.2 | B16: ='AT CdR'!B14 -> Les compétences techniques et d’ingénierie des collectivités territoriales et associations relevant des 146 communes de la région sont renforcées | C16: ='AT CdR'!C14 -> La part du personnel de management et cadres techniques des collectivités territoriales et des asssociations des 146 communes de la région, qui mettent en application les enseignements et techniques prodiguées | D16: ='AT CdR'!E14 -> I | E16: ='AT CdR'!F14 -> % | F16: ='AT CdR'!G14 ->  | R16: =IFERROR((Q16-$F16)/(P16-$F16),"") ->  | S16: ='AT CdR'!H14 ->  | AH16: ='AT CdR'!I14 ->  | AW16: ='AT CdR'!J14 -> 80 | BL16: ='AT CdR'!K14 -> 0 | CA16: ='AT CdR'!L14 -> 80 | CP16: ='AT CdR'!M14 -> 80 | CS16: ='AT CdR'!N14 -> 80
A17: ='AT CdR'!A15 -> 2.3 | B17: ='AT CdR'!B15 -> Une structure de formation continue des élus, du personnels des communes et des instances dirrigeantes des associations de la région, est crée et est fonctionnelle | C17: ='AT CdR'!C15 -> Nombre de centre de formation | D17: ='AT CdR'!E15 -> I | E17: ='AT CdR'!F15 -> Centre de formation | F17: ='AT CdR'!G15 -> 0 | R17: =IFERROR((Q17-$F17)/(P17-$F17),"") ->  | S17: ='AT CdR'!H15 -> 0 | AH17: ='AT CdR'!I15 -> 1 | AJ17: 0 | AW17: ='AT CdR'!J15 -> 0 | BL17: ='AT CdR'!K15 -> 0 | CA17: ='AT CdR'!L15 -> 0 | CP17: ='AT CdR'!M15 -> 0 | CS17: ='AT CdR'!N15 -> 1
A18: ='AT CdR'!A16 -> 2.4 | B18: ='AT CdR'!B16 ->  | C18: ='AT CdR'!C16 ->  | D18: ='AT CdR'!E16 ->  | E18: ='AT CdR'!F16 ->  | F18: ='AT CdR'!G16 ->  | S18: ='AT CdR'!H16 ->  | AH18: ='AT CdR'!I16 ->  | AW18: ='AT CdR'!J16 ->  | BL18: ='AT CdR'!K16 ->  | BN18: =IFERROR((BM18-$F18)/(BL18-$F18),"") ->  | CA18: ='AT CdR'!L16 ->  | CP18: ='AT CdR'!M16 ->  | CR18: =IFERROR((CQ18-$F18)/(CP18-$F18),"") ->  | CS18: ='AT CdR'!N16 -> FALSE
A19: ='AT CdR'!A17 -> 2.5 | B19: ='AT CdR'!B17 -> 0 | C19: ='AT CdR'!C17 -> 0 | D19: ='AT CdR'!E17 -> 0 | E19: ='AT CdR'!F17 -> 0 | F19: ='AT CdR'!G17 -> 0 | S19: ='AT CdR'!H17 -> 0 | AH19: ='AT CdR'!I17 -> 0 | AW19: ='AT CdR'!J17 -> 0 | BL19: ='AT CdR'!K17 -> 0 | CA19: ='AT CdR'!L17 -> 0 | CP19: ='AT CdR'!M17 -> 0 | CS19: ='AT CdR'!N17 -> FALSE
A20: ='AT CdR'!A18 -> 2.6 | B20: ='AT CdR'!B18 -> 0 | C20: ='AT CdR'!C18 -> 0 | D20: ='AT CdR'!E18 -> 0 | E20: ='AT CdR'!F18 -> 0 | F20: ='AT CdR'!G18 -> 0 | S20: ='AT CdR'!H18 -> 0 | AH20: ='AT CdR'!I18 -> 0 | AW20: ='AT CdR'!J18 -> 0 | BL20: ='AT CdR'!K18 -> 0 | CA20: ='AT CdR'!L18 -> 0 | CP20: ='AT CdR'!M18 -> 0 | CS20: ='AT CdR'!N18 -> FALSE
A21: ='AT CdR'!A19 -> 3. | B21: ='AT CdR'!B19:S19 -> Programme de formation professionnelle
A22: ='AT CdR'!A20 -> 3.1 | B22: ='AT CdR'!B20 -> Contribuer à l'amélioration de la compétitivité des entreprises de la région | C22: ='AT CdR'!C20 -> Part des chefs d'entreprises qui estiment que leur compétitivité est compromise par l'inadéquation "formation Vs emploi" | D22: ='AT CdR'!E20 -> I | E22: ='AT CdR'!F20 -> % | F22: ='AT CdR'!G20 -> 100 | I22: =IFERROR((H22-$F22)/(G22-$F22),"") ->  | L22: =IFERROR((K22-$F22)/(J22-$F22),"") ->  | O22: =IFERROR((N22-$F22)/(M22-$F22),"") ->  | R22: =IFERROR((Q22-$F22)/(P22-$F22),"") ->  | S22: ='AT CdR'!H20 -> 0 | U22: =IFERROR((T22-$F22)/(S22-$F22),"") ->  | X22: =IFERROR((W22-$F22)/(V22-$F22),"") ->  | AA22: =IFERROR((Z22-$F22)/(Y22-$F22),"") ->  | AD22: =IFERROR((AC22-$F22)/(AB22-$F22),"") ->  | AG22: =IFERROR((AF22-$F22)/(AE22-$F22),"") ->  | AH22: ='AT CdR'!I20 -> 0 | AJ22: =IFERROR((AI22-$F22)/(AH22-$F22),"") -> 1 | AM22: =IFERROR((AL22-$F22)/(AK22-$F22),"") ->  | AP22: =IFERROR((AO22-$F22)/(AN22-$F22),"") ->  | AS22: =IFERROR((AR22-$F22)/(AQ22-$F22),"") ->  | AV22: =IFERROR((AU22-$F22)/(AT22-$F22),"") ->  | AW22: ='AT CdR'!J20 -> 0 | AY22: =IFERROR((AX22-$F22)/(AW22-$F22),"") -> 1 | BB22: =IFERROR((BA22-$F22)/(AZ22-$F22),"") ->  | BE22: =IFERROR((BD22-$F22)/(BC22-$F22),"") ->  | BH22: =IFERROR((BG22-$F22)/(BF22-$F22),"") ->  | BK22: =IFERROR((BJ22-$F22)/(BI22-$F22),"") ->  | BL22: ='AT CdR'!K20 -> 0 | BN22: =IFERROR((BM22-$F22)/(BL22-$F22),"") -> 1 | BQ22: =IFERROR((BP22-$F22)/(BO22-$F22),"") ->  | BT22: =IFERROR((BS22-$F22)/(BR22-$F22),"") ->  | BW22: =IFERROR((BV22-$F22)/(BU22-$F22),"") ->  | BZ22: =IFERROR((BY22-$F22)/(BX22-$F22),"") ->  | CA22: ='AT CdR'!L20 -> 0 | CC22: =IFERROR((CB22-$F22)/(CA22-$F22),"") -> 1 | CF22: =IFERROR((CE22-$F22)/(CD22-$F22),"") ->  | CI22: =IFERROR((CH22-$F22)/(CG22-$F22),"") ->  | CL22: =IFERROR((CK22-$F22)/(CJ22-$F22),"") ->  | CO22: =IFERROR((CN22-$F22)/(CM22-$F22),"") ->  | CP22: ='AT CdR'!M20 -> 25 | CR22: =IFERROR((CQ22-$F22)/(CP22-$F22),"") -> 1.333333333 | CS22: ='AT CdR'!N20 -> 25
A23: ='AT CdR'!A21 -> 3.2 | B23: ='AT CdR'!B21 -> L'insertion professionnelles des lauréats des nouveaux centres de formation est renforcée | C23: ='AT CdR'!C21 -> Taux d'insertion professionnel | D23: ='AT CdR'!E21 -> I | E23: ='AT CdR'!F21 -> % | F23: ='AT CdR'!G21 -> 0 | R23: =IFERROR((Q23-$F23)/(P23-$F23),"") ->  | S23: ='AT CdR'!H21 ->  | AH23: ='AT CdR'!I21 ->  | AW23: ='AT CdR'!J21 -> 0 | BL23: ='AT CdR'!K21 ->  | CA23: ='AT CdR'!L21 -> 0 | CP23: ='AT CdR'!M21 -> 80 | CR23: 0 | CS23: ='AT CdR'!N21 -> 80
A24: ='AT CdR'!A22 -> 3.3 | B24: ='AT CdR'!B22 -> De nouveaux centres de formation professionnelle offrant des cursus adaptés aux besoins des entreprises de la région sont crées et fonctionnels | C24: ='AT CdR'!C22 -> Nombre de centre de formation professionnel nouvellement entrés en service | D24: ='AT CdR'!E22 -> I | E24: ='AT CdR'!F22 -> Centre de formation | F24: ='AT CdR'!G22 -> 0 | R24: =IFERROR((Q24-$F24)/(P24-$F24),"") ->  | S24: ='AT CdR'!H22 ->  | AH24: ='AT CdR'!I22 ->  | AK24: 5 | AL24: 4 | AM24: 0.8 | AN24: 5 | AO24: 2 | AP24: 0.4 | AW24: ='AT CdR'!J22 -> 10 | BL24: ='AT CdR'!K22 -> 0 | CA24: ='AT CdR'!L22 -> 0 | CP24: ='AT CdR'!M22 -> 20 | CS24: ='AT CdR'!N22 -> 30
A25: ='AT CdR'!A23 -> 3.4 | B25: ='AT CdR'!B23 ->  | C25: ='AT CdR'!C23 ->  | D25: ='AT CdR'!E23 ->  | E25: ='AT CdR'!F23 ->  | F25: ='AT CdR'!G23 ->  | S25: ='AT CdR'!H23 ->  | AH25: ='AT CdR'!I23 ->  | AW25: ='AT CdR'!J23 ->  | BL25: ='AT CdR'!K23 ->  | BN25: =IFERROR((BM25-$F25)/(BL25-$F25),"") ->  | CA25: ='AT CdR'!L23 ->  | CP25: ='AT CdR'!M23 ->  | CR25: =IFERROR((CQ25-$F25)/(CP25-$F25),"") ->  | CS25: ='AT CdR'!N23 -> FALSE
A26: ='AT CdR'!A24 -> 3.5 | B26: ='AT CdR'!B24 ->  | C26: ='AT CdR'!C24 ->  | D26: ='AT CdR'!E24 ->  | E26: ='AT CdR'!F24 ->  | F26: ='AT CdR'!G24 ->  | S26: ='AT CdR'!H24 ->  | AH26: ='AT CdR'!I24 ->  | AW26: ='AT CdR'!J24 ->  | BL26: ='AT CdR'!K24 ->  | CA26: ='AT CdR'!L24 ->  | CP26: ='AT CdR'!M24 ->  | CS26: ='AT CdR'!N24 -> FALSE
A27: ='AT CdR'!A25 -> 3.6 | B27: ='AT CdR'!B25 ->  | C27: ='AT CdR'!C25 ->  | D27: ='AT CdR'!E25 ->  | E27: ='AT CdR'!F25 ->  | F27: ='AT CdR'!G25 ->  | S27: ='AT CdR'!H25 ->  | AH27: ='AT CdR'!I25 ->  | AW27: ='AT CdR'!J25 ->  | BL27: ='AT CdR'!K25 ->  | CA27: ='AT CdR'!L25 ->  | CP27: ='AT CdR'!M25 ->  | CS27: ='AT CdR'!N25 -> FALSE
A28: ='AT CdR'!A26 -> 4. | B28: ='AT CdR'!B26:S26 -> Marketing Territorial
A29: ='AT CdR'!A27 -> 4.1 | B29: ='AT CdR'!B27 -> Contribuer à la création d'emplois au niveau de la région | C29: ='AT CdR'!C27 -> Nombre d'emploi | D29: ='AT CdR'!E27 -> C | E29: ='AT CdR'!F27 -> poste | F29: ='AT CdR'!G27 -> 0 | I29: =IFERROR((H29-$F29)/(G29-$F29),"") ->  | L29: =IFERROR((K29-$F29)/(J29-$F29),"") ->  | O29: =IFERROR((N29-$F29)/(M29-$F29),"") ->  | R29: =IFERROR((Q29-$F29)/(P29-$F29),"") ->  | S29: ='AT CdR'!H27 -> 0 | U29: =IFERROR((T29-$F29)/(S29-$F29),"") ->  | X29: =IFERROR((W29-$F29)/(V29-$F29),"") ->  | AA29: =IFERROR((Z29-$F29)/(Y29-$F29),"") ->  | AD29: =IFERROR((AC29-$F29)/(AB29-$F29),"") ->  | AG29: =IFERROR((AF29-$F29)/(AE29-$F29),"") ->  | AH29: ='AT CdR'!I27 -> 0 | AJ29: =IFERROR((AI29-$F29)/(AH29-$F29),"") ->  | AM29: =IFERROR((AL29-$F29)/(AK29-$F29),"") ->  | AP29: =IFERROR((AO29-$F29)/(AN29-$F29),"") ->  | AS29: =IFERROR((AR29-$F29)/(AQ29-$F29),"") ->  | AV29: =IFERROR((AU29-$F29)/(AT29-$F29),"") ->  | AW29: ='AT CdR'!J27 ->  | AY29: =IFERROR((AX29-$F29)/(AW29-$F29),"") ->  | BB29: =IFERROR((BA29-$F29)/(AZ29-$F29),"") ->  | BE29: =IFERROR((BD29-$F29)/(BC29-$F29),"") ->  | BH29: =IFERROR((BG29-$F29)/(BF29-$F29),"") ->  | BK29: =IFERROR((BJ29-$F29)/(BI29-$F29),"") ->  | BL29: ='AT CdR'!K27 ->  | BN29: =IFERROR((BM29-$F29)/(BL29-$F29),"") ->  | BQ29: =IFERROR((BP29-$F29)/(BO29-$F29),"") ->  | BT29: =IFERROR((BS29-$F29)/(BR29-$F29),"") ->  | BW29: =IFERROR((BV29-$F29)/(BU29-$F29),"") ->  | BZ29: =IFERROR((BY29-$F29)/(BX29-$F29),"") ->  | CA29: ='AT CdR'!L27 ->  | CC29: =IFERROR((CB29-$F29)/(CA29-$F29),"") ->  | CF29: =IFERROR((CE29-$F29)/(CD29-$F29),"") ->  | CI29: =IFERROR((CH29-$F29)/(CG29-$F29),"") ->  | CL29: =IFERROR((CK29-$F29)/(CJ29-$F29),"") ->  | CO29: =IFERROR((CN29-$F29)/(CM29-$F29),"") ->  | CP29: ='AT CdR'!M27 -> 335 | CR29: =IFERROR((CQ29-$F29)/(CP29-$F29),"") -> 0 | CS29: ='AT CdR'!N27 -> 335
A30: ='AT CdR'!A28 -> 4.2 | B30: ='AT CdR'!B28 -> L’attractivité socio-économique de la région s'est améliorée | C30: ='AT CdR'!C28 -> Taux de création d'entreprises | D30: ='AT CdR'!E28 -> I | E30: ='AT CdR'!F28 -> % | F30: ='AT CdR'!G28 -> ?? | R30: =IFERROR((Q30-$F30)/(P30-$F30),"") ->  | S30: ='AT CdR'!H28 ->  | AH30: ='AT CdR'!I28 ->  | AW30: ='AT CdR'!J28 ->  | BL30: ='AT CdR'!K28 ->  | CA30: ='AT CdR'!L28 ->  | CP30: ='AT CdR'!M28 ->  | CS30: ='AT CdR'!N28 -> 
A31: ='AT CdR'!A29 -> 4.3 | B31: ='AT CdR'!B29 -> Une structure (agence/SDL) d'attractivité du territoire est créée | C31: ='AT CdR'!C29 -> Décret (……………….) de création de l'AAT | D31: ='AT CdR'!E29 -> I | E31: ='AT CdR'!F29 -> Décret | F31: ='AT CdR'!G29 -> 0 | R31: =IFERROR((Q31-$F31)/(P31-$F31),"") ->  | S31: ='AT CdR'!H29 ->  | AH31: ='AT CdR'!I29 ->  | AW31: ='AT CdR'!J29 ->  | BL31: ='AT CdR'!K29 ->  | CA31: ='AT CdR'!L29 ->  | CP31: ='AT CdR'!M29 -> 1 | CS31: ='AT CdR'!N29 -> 1
A32: ='AT CdR'!A30 -> 4.4 | B32: ='AT CdR'!B30 ->  | C32: ='AT CdR'!C30 ->  | D32: ='AT CdR'!E30 ->  | E32: ='AT CdR'!F30 ->  | F32: ='AT CdR'!G30 ->  | S32: ='AT CdR'!H30 ->  | AH32: ='AT CdR'!I30 ->  | AW32: ='AT CdR'!J30 ->  | BL32: ='AT CdR'!K30 ->  | BN32: =IFERROR((BM32-$F32)/(BL32-$F32),"") ->  | CA32: ='AT CdR'!L30 ->  | CP32: ='AT CdR'!M30 ->  | CR32: =IFERROR((CQ32-$F32)/(CP32-$F32),"") ->  | CS32: ='AT CdR'!N30 -> FALSE
A33: ='AT CdR'!A31 -> 4.5 | B33: ='AT CdR'!B31 ->  | C33: ='AT CdR'!C31 ->  | D33: ='AT CdR'!E31 ->  | E33: ='AT CdR'!F31 ->  | F33: ='AT CdR'!G31 ->  | S33: ='AT CdR'!H31 ->  | AH33: ='AT CdR'!I31 ->  | AW33: ='AT CdR'!J31 ->  | BL33: ='AT CdR'!K31 ->  | CA33: ='AT CdR'!L31 ->  | CP33: ='AT CdR'!M31 ->  | CS33: ='AT CdR'!N31 -> FALSE
A34: ='AT CdR'!A32 -> 4.6 | B34: ='AT CdR'!B32 ->  | C34: ='AT CdR'!C32 ->  | D34: ='AT CdR'!E32 ->  | E34: ='AT CdR'!F32 ->  | F34: ='AT CdR'!G32 ->  | S34: ='AT CdR'!H32 ->  | AH34: ='AT CdR'!I32 ->  | AW34: ='AT CdR'!J32 ->  | BL34: ='AT CdR'!K32 ->  | CA34: ='AT CdR'!L32 ->  | CP34: ='AT CdR'!M32 ->  | CS34: ='AT CdR'!N32 -> FALSE
A35: ='AT CdR'!A33 -> 5. | B35: ='AT CdR'!B33:S33 -> 
A36: ='AT CdR'!A34 -> 5.1 | B36: ='AT CdR'!B34 -> 0 | C36: ='AT CdR'!C34 -> 0 | D36: ='AT CdR'!E34 -> 0 | E36: ='AT CdR'!F34 -> 0 | F36: ='AT CdR'!G34 -> 0 | I36: =IFERROR((H36-$F36)/(G36-$F36),"") ->  | L36: =IFERROR((K36-$F36)/(J36-$F36),"") ->  | O36: =IFERROR((N36-$F36)/(M36-$F36),"") ->  | R36: =IFERROR((Q36-$F36)/(P36-$F36),"") ->  | S36: ='AT CdR'!H34 -> 0 | U36: =IFERROR((T36-$F36)/(S36-$F36),"") ->  | X36: =IFERROR((W36-$F36)/(V36-$F36),"") ->  | AA36: =IFERROR((Z36-$F36)/(Y36-$F36),"") ->  | AD36: =IFERROR((AC36-$F36)/(AB36-$F36),"") ->  | AG36: =IFERROR((AF36-$F36)/(AE36-$F36),"") ->  | AH36: ='AT CdR'!I34 -> 0 | AJ36: =IFERROR((AI36-$F36)/(AH36-$F36),"") ->  | AM36: =IFERROR((AL36-$F36)/(AK36-$F36),"") ->  | AP36: =IFERROR((AO36-$F36)/(AN36-$F36),"") ->  | AS36: =IFERROR((AR36-$F36)/(AQ36-$F36),"") ->  | AV36: =IFERROR((AU36-$F36)/(AT36-$F36),"") ->  | AW36: ='AT CdR'!J34 -> 0 | AY36: =IFERROR((AX36-$F36)/(AW36-$F36),"") ->  | BB36: =IFERROR((BA36-$F36)/(AZ36-$F36),"") ->  | BE36: =IFERROR((BD36-$F36)/(BC36-$F36),"") ->  | BH36: =IFERROR((BG36-$F36)/(BF36-$F36),"") ->  | BK36: =IFERROR((BJ36-$F36)/(BI36-$F36),"") ->  | BL36: ='AT CdR'!K34 -> 0 | BN36: =IFERROR((BM36-$F36)/(BL36-$F36),"") ->  | BQ36: =IFERROR((BP36-$F36)/(BO36-$F36),"") ->  | BT36: =IFERROR((BS36-$F36)/(BR36-$F36),"") ->  | BW36: =IFERROR((BV36-$F36)/(BU36-$F36),"") ->  | BZ36: =IFERROR((BY36-$F36)/(BX36-$F36),"") ->  | CA36: ='AT CdR'!L34 -> 0 | CC36: =IFERROR((CB36-$F36)/(CA36-$F36),"") ->  | CF36: =IFERROR((CE36-$F36)/(CD36-$F36),"") ->  | CI36: =IFERROR((CH36-$F36)/(CG36-$F36),"") ->  | CL36: =IFERROR((CK36-$F36)/(CJ36-$F36),"") ->  | CO36: =IFERROR((CN36-$F36)/(CM36-$F36),"") ->  | CP36: ='AT CdR'!M34 -> 0 | CR36: =IFERROR((CQ36-$F36)/(CP36-$F36),"") ->  | CS36: ='AT CdR'!N34 -> FALSE
A37: ='AT CdR'!A35 -> 5.2 | B37: ='AT CdR'!B35 -> 0 | C37: ='AT CdR'!C35 -> 0 | D37: ='AT CdR'!E35 -> 0 | E37: ='AT CdR'!F35 -> 0 | F37: ='AT CdR'!G35 -> 0 | R37: =IFERROR((Q37-$F37)/(P37-$F37),"") ->  | S37: ='AT CdR'!H35 -> 0 | AH37: ='AT CdR'!I35 -> 0 | AW37: ='AT CdR'!J35 -> 0 | BL37: ='AT CdR'!K35 -> 0 | CA37: ='AT CdR'!L35 -> 0 | CP37: ='AT CdR'!M35 -> 0 | CS37: ='AT CdR'!N35 -> FALSE
A38: ='AT CdR'!A36 -> 5.3 | B38: ='AT CdR'!B36 -> 0 | C38: ='AT CdR'!C36 -> 0 | D38: ='AT CdR'!E36 -> 0 | E38: ='AT CdR'!F36 -> 0 | F38: ='AT CdR'!G36 -> 0 | R38: =IFERROR((Q38-$F38)/(P38-$F38),"") ->  | S38: ='AT CdR'!H36 -> 0 | AH38: ='AT CdR'!I36 -> 0 | AW38: ='AT CdR'!J36 -> 0 | BL38: ='AT CdR'!K36 -> 0 | CA38: ='AT CdR'!L36 -> 0 | CP38: ='AT CdR'!M36 -> 0 | CS38: ='AT CdR'!N36 -> FALSE
A39: ='AT CdR'!A37 -> 5.4 | B39: ='AT CdR'!B37 -> 0 | C39: ='AT CdR'!C37 -> 0 | D39: ='AT CdR'!E37 -> 0 | E39: ='AT CdR'!F37 -> 0 | F39: ='AT CdR'!G37 -> 0 | S39: ='AT CdR'!H37 -> 0 | AH39: ='AT CdR'!I37 -> 0 | AW39: ='AT CdR'!J37 -> 0 | BL39: ='AT CdR'!K37 -> 0 | BN39: =IFERROR((BM39-$F39)/(BL39-$F39),"") ->  | CA39: ='AT CdR'!L37 -> 0 | CP39: ='AT CdR'!M37 -> 0 | CR39: =IFERROR((CQ39-$F39)/(CP39-$F39),"") ->  | CS39: ='AT CdR'!N37 -> FALSE
A40: ='AT CdR'!A38 -> 5.5 | B40: ='AT CdR'!B38 -> 0 | C40: ='AT CdR'!C38 -> 0 | D40: ='AT CdR'!E38 -> 0 | E40: ='AT CdR'!F38 -> 0 | F40: ='AT CdR'!G38 -> 0 | S40: ='AT CdR'!H38 -> 0 | AH40: ='AT CdR'!I38 -> 0 | AW40: ='AT CdR'!J38 -> 0 | BL40: ='AT CdR'!K38 -> 0 | CA40: ='AT CdR'!L38 -> 0 | CP40: ='AT CdR'!M38 -> 0 | CS40: ='AT CdR'!N38 -> FALSE
A41: ='AT CdR'!A39 -> 5.6 | B41: ='AT CdR'!B39 -> 0 | C41: ='AT CdR'!C39 -> 0 | D41: ='AT CdR'!E39 -> 0 | E41: ='AT CdR'!F39 -> 0 | F41: ='AT CdR'!G39 -> 0 | S41: ='AT CdR'!H39 -> 0 | AH41: ='AT CdR'!I39 -> 0 | AW41: ='AT CdR'!J39 -> 0 | BL41: ='AT CdR'!K39 -> 0 | CA41: ='AT CdR'!L39 -> 0 | CP41: ='AT CdR'!M39 -> 0 | CS41: ='AT CdR'!N39 -> FALSE
A42: ='AT CdR'!A40 -> 6. | B42: ='AT CdR'!B40:S40 -> 
A43: ='AT CdR'!A41 -> 6.1 | B43: ='AT CdR'!B41 -> 0 | C43: ='AT CdR'!C41 -> 0 | D43: ='AT CdR'!E41 -> 0 | E43: ='AT CdR'!F41 -> 0 | F43: ='AT CdR'!G41 -> 0 | I43: =IFERROR((H43-$F43)/(G43-$F43),"") ->  | L43: =IFERROR((K43-$F43)/(J43-$F43),"") ->  | O43: =IFERROR((N43-$F43)/(M43-$F43),"") ->  | R43: =IFERROR((Q43-$F43)/(P43-$F43),"") ->  | S43: ='AT CdR'!H41 -> 0 | U43: =IFERROR((T43-$F43)/(S43-$F43),"") ->  | X43: =IFERROR((W43-$F43)/(V43-$F43),"") ->  | AA43: =IFERROR((Z43-$F43)/(Y43-$F43),"") ->  | AD43: =IFERROR((AC43-$F43)/(AB43-$F43),"") ->  | AG43: =IFERROR((AF43-$F43)/(AE43-$F43),"") ->  | AH43: ='AT CdR'!I41 -> 0 | AJ43: =IFERROR((AI43-$F43)/(AH43-$F43),"") ->  | AM43: =IFERROR((AL43-$F43)/(AK43-$F43),"") ->  | AP43: =IFERROR((AO43-$F43)/(AN43-$F43),"") ->  | AS43: =IFERROR((AR43-$F43)/(AQ43-$F43),"") ->  | AV43: =IFERROR((AU43-$F43)/(AT43-$F43),"") ->  | AW43: ='AT CdR'!J41 -> 0 | AY43: =IFERROR((AX43-$F43)/(AW43-$F43),"") ->  | BB43: =IFERROR((BA43-$F43)/(AZ43-$F43),"") ->  | BE43: =IFERROR((BD43-$F43)/(BC43-$F43),"") ->  | BH43: =IFERROR((BG43-$F43)/(BF43-$F43),"") ->  | BK43: =IFERROR((BJ43-$F43)/(BI43-$F43),"") ->  | BL43: ='AT CdR'!K41 -> 0 | BN43: =IFERROR((BM43-$F43)/(BL43-$F43),"") ->  | BQ43: =IFERROR((BP43-$F43)/(BO43-$F43),"") ->  | BT43: =IFERROR((BS43-$F43)/(BR43-$F43),"") ->  | BW43: =IFERROR((BV43-$F43)/(BU43-$F43),"") ->  | BZ43: =IFERROR((BY43-$F43)/(BX43-$F43),"") ->  | CA43: ='AT CdR'!L41 -> 0 | CC43: =IFERROR((CB43-$F43)/(CA43-$F43),"") ->  | CF43: =IFERROR((CE43-$F43)/(CD43-$F43),"") ->  | CI43: =IFERROR((CH43-$F43)/(CG43-$F43),"") ->  | CL43: =IFERROR((CK43-$F43)/(CJ43-$F43),"") ->  | CO43: =IFERROR((CN43-$F43)/(CM43-$F43),"") ->  | CP43: ='AT CdR'!M41 -> 0 | CR43: =IFERROR((CQ43-$F43)/(CP43-$F43),"") ->  | CS43: ='AT CdR'!N41 -> FALSE
A44: ='AT CdR'!A42 -> 6.2 | B44: ='AT CdR'!B42 -> 0 | C44: ='AT CdR'!C42 -> 0 | D44: ='AT CdR'!E42 -> 0 | E44: ='AT CdR'!F42 -> 0 | F44: ='AT CdR'!G42 -> 0 | R44: =IFERROR((Q44-$F44)/(P44-$F44),"") ->  | S44: ='AT CdR'!H42 -> 0 | AH44: ='AT CdR'!I42 -> 0 | AW44: ='AT CdR'!J42 -> 0 | BL44: ='AT CdR'!K42 -> 0 | CA44: ='AT CdR'!L42 -> 0 | CP44: ='AT CdR'!M42 -> 0 | CS44: ='AT CdR'!N42 -> FALSE
A45: ='AT CdR'!A43 -> 6.3 | B45: ='AT CdR'!B43 -> 0 | C45: ='AT CdR'!C43 -> 0 | D45: ='AT CdR'!E43 -> 0 | E45: ='AT CdR'!F43 -> 0 | F45: ='AT CdR'!G43 -> 0 | R45: =IFERROR((Q45-$F45)/(P45-$F45),"") ->  | S45: ='AT CdR'!H43 -> 0 | AH45: ='AT CdR'!I43 -> 0 | AW45: ='AT CdR'!J43 -> 0 | BL45: ='AT CdR'!K43 -> 0 | CA45: ='AT CdR'!L43 -> 0 | CP45: ='AT CdR'!M43 -> 0 | CS45: ='AT CdR'!N43 -> FALSE
A46: ='AT CdR'!A44 -> 6.4 | B46: ='AT CdR'!B44 -> 0 | C46: ='AT CdR'!C44 -> 0 | D46: ='AT CdR'!E44 -> 0 | E46: ='AT CdR'!F44 -> 0 | F46: ='AT CdR'!G44 -> 0 | S46: ='AT CdR'!H44 -> 0 | AH46: ='AT CdR'!I44 -> 0 | AW46: ='AT CdR'!J44 -> 0 | BL46: ='AT CdR'!K44 -> 0 | BN46: =IFERROR((BM46-$F46)/(BL46-$F46),"") ->  | CA46: ='AT CdR'!L44 -> 0 | CP46: ='AT CdR'!M44 -> 0 | CR46: =IFERROR((CQ46-$F46)/(CP46-$F46),"") ->  | CS46: ='AT CdR'!N44 -> FALSE
A47: ='AT CdR'!A45 -> 6.5 | B47: ='AT CdR'!B45 -> 0 | C47: ='AT CdR'!C45 -> 0 | D47: ='AT CdR'!E45 -> 0 | E47: ='AT CdR'!F45 -> 0 | F47: ='AT CdR'!G45 -> 0 | S47: ='AT CdR'!H45 -> 0 | AH47: ='AT CdR'!I45 -> 0 | AW47: ='AT CdR'!J45 -> 0 | BL47: ='AT CdR'!K45 -> 0 | CA47: ='AT CdR'!L45 -> 0 | CP47: ='AT CdR'!M45 -> 0 | CS47: ='AT CdR'!N45 -> FALSE
A48: ='AT CdR'!A46 -> 6.6 | B48: ='AT CdR'!B46 -> 0 | C48: ='AT CdR'!C46 -> 0 | D48: ='AT CdR'!E46 -> 0 | E48: ='AT CdR'!F46 -> 0 | F48: ='AT CdR'!G46 -> 0 | S48: ='AT CdR'!H46 -> 0 | AH48: ='AT CdR'!I46 -> 0 | AW48: ='AT CdR'!J46 -> 0 | BL48: ='AT CdR'!K46 -> 0 | CA48: ='AT CdR'!L46 -> 0 | CP48: ='AT CdR'!M46 -> 0 | CS48: ='AT CdR'!N46 -> FALSE
A49: ='AT CdR'!A47 -> 7. | B49: ='AT CdR'!B47:S47 -> 
A50: ='AT CdR'!A48 -> 7.1 | B50: ='AT CdR'!B48 -> 0 | C50: ='AT CdR'!C48 -> 0 | D50: ='AT CdR'!E48 -> 0 | E50: ='AT CdR'!F48 -> 0 | F50: ='AT CdR'!G48 -> 0 | I50: =IFERROR((H50-$F50)/(G50-$F50),"") ->  | L50: =IFERROR((K50-$F50)/(J50-$F50),"") ->  | O50: =IFERROR((N50-$F50)/(M50-$F50),"") ->  | R50: =IFERROR((Q50-$F50)/(P50-$F50),"") ->  | S50: ='AT CdR'!H48 -> 0 | U50: =IFERROR((T50-$F50)/(S50-$F50),"") ->  | X50: =IFERROR((W50-$F50)/(V50-$F50),"") ->  | AA50: =IFERROR((Z50-$F50)/(Y50-$F50),"") ->  | AD50: =IFERROR((AC50-$F50)/(AB50-$F50),"") ->  | AG50: =IFERROR((AF50-$F50)/(AE50-$F50),"") ->  | AH50: ='AT CdR'!I48 -> 0 | AJ50: =IFERROR((AI50-$F50)/(AH50-$F50),"") ->  | AM50: =IFERROR((AL50-$F50)/(AK50-$F50),"") ->  | AP50: =IFERROR((AO50-$F50)/(AN50-$F50),"") ->  | AS50: =IFERROR((AR50-$F50)/(AQ50-$F50),"") ->  | AV50: =IFERROR((AU50-$F50)/(AT50-$F50),"") ->  | AW50: ='AT CdR'!J48 -> 0 | AY50: =IFERROR((AX50-$F50)/(AW50-$F50),"") ->  | BB50: =IFERROR((BA50-$F50)/(AZ50-$F50),"") ->  | BE50: =IFERROR((BD50-$F50)/(BC50-$F50),"") ->  | BH50: =IFERROR((BG50-$F50)/(BF50-$F50),"") ->  | BK50: =IFERROR((BJ50-$F50)/(BI50-$F50),"") ->  | BL50: ='AT CdR'!K48 -> 0 | BN50: =IFERROR((BM50-$F50)/(BL50-$F50),"") ->  | BQ50: =IFERROR((BP50-$F50)/(BO50-$F50),"") ->  | BT50: =IFERROR((BS50-$F50)/(BR50-$F50),"") ->  | BW50: =IFERROR((BV50-$F50)/(BU50-$F50),"") ->  | BZ50: =IFERROR((BY50-$F50)/(BX50-$F50),"") ->  | CA50: ='AT CdR'!L48 -> 0 | CC50: =IFERROR((CB50-$F50)/(CA50-$F50),"") ->  | CF50: =IFERROR((CE50-$F50)/(CD50-$F50),"") ->  | CI50: =IFERROR((CH50-$F50)/(CG50-$F50),"") ->  | CL50: =IFERROR((CK50-$F50)/(CJ50-$F50),"") ->  | CO50: =IFERROR((CN50-$F50)/(CM50-$F50),"") ->  | CP50: ='AT CdR'!M48 -> 0 | CR50: =IFERROR((CQ50-$F50)/(CP50-$F50),"") ->  | CS50: ='AT CdR'!N48 -> FALSE
A51: ='AT CdR'!A49 -> 7.2 | B51: ='AT CdR'!B49 -> 0 | C51: ='AT CdR'!C49 -> 0 | D51: ='AT CdR'!E49 -> 0 | E51: ='AT CdR'!F49 -> 0 | F51: ='AT CdR'!G49 -> 0 | R51: =IFERROR((Q51-$F51)/(P51-$F51),"") ->  | S51: ='AT CdR'!H49 -> 0 | AH51: ='AT CdR'!I49 -> 0 | AW51: ='AT CdR'!J49 -> 0 | BL51: ='AT CdR'!K49 -> 0 | CA51: ='AT CdR'!L49 -> 0 | CP51: ='AT CdR'!M49 -> 0 | CS51: ='AT CdR'!N49 -> FALSE
A52: ='AT CdR'!A50 -> 7.3 | B52: ='AT CdR'!B50 -> 0 | C52: ='AT CdR'!C50 -> 0 | D52: ='AT CdR'!E50 -> 0 | E52: ='AT CdR'!F50 -> 0 | F52: ='AT CdR'!G50 -> 0 | R52: =IFERROR((Q52-$F52)/(P52-$F52),"") ->  | S52: ='AT CdR'!H50 -> 0 | AH52: ='AT CdR'!I50 -> 0 | AW52: ='AT CdR'!J50 -> 0 | BL52: ='AT CdR'!K50 -> 0 | CA52: ='AT CdR'!L50 -> 0 | CP52: ='AT CdR'!M50 -> 0 | CS52: ='AT CdR'!N50 -> FALSE
A53: ='AT CdR'!A51 -> 7.4 | B53: ='AT CdR'!B51 -> 0 | C53: ='AT CdR'!C51 -> 0 | D53: ='AT CdR'!E51 -> 0 | E53: ='AT CdR'!F51 -> 0 | F53: ='AT CdR'!G51 -> 0 | S53: ='AT CdR'!H51 -> 0 | AH53: ='AT CdR'!I51 -> 0 | AW53: ='AT CdR'!J51 -> 0 | BL53: ='AT CdR'!K51 -> 0 | BN53: =IFERROR((BM53-$F53)/(BL53-$F53),"") ->  | CA53: ='AT CdR'!L51 -> 0 | CP53: ='AT CdR'!M51 -> 0 | CR53: =IFERROR((CQ53-$F53)/(CP53-$F53),"") ->  | CS53: ='AT CdR'!N51 -> FALSE
A54: ='AT CdR'!A52 -> 7.5 | B54: ='AT CdR'!B52 -> 0 | C54: ='AT CdR'!C52 -> 0 | D54: ='AT CdR'!E52 -> 0 | E54: ='AT CdR'!F52 -> 0 | F54: ='AT CdR'!G52 -> 0 | S54: ='AT CdR'!H52 -> 0 | AH54: ='AT CdR'!I52 -> 0 | AW54: ='AT CdR'!J52 -> 0 | BL54: ='AT CdR'!K52 -> 0 | CA54: ='AT CdR'!L52 -> 0 | CP54: ='AT CdR'!M52 -> 0 | CS54: ='AT CdR'!N52 -> FALSE
A55: ='AT CdR'!A53 -> 7.6 | B55: ='AT CdR'!B53 -> 0 | C55: ='AT CdR'!C53 -> 0 | D55: ='AT CdR'!E53 -> 0 | E55: ='AT CdR'!F53 -> 0 | F55: ='AT CdR'!G53 -> 0 | S55: ='AT CdR'!H53 -> 0 | AH55: ='AT CdR'!I53 -> 0 | AW55: ='AT CdR'!J53 -> 0 | BL55: ='AT CdR'!K53 -> 0 | CA55: ='AT CdR'!L53 -> 0 | CP55: ='AT CdR'!M53 -> 0 | CS55: ='AT CdR'!N53 -> FALSE
A56: ='AT CdR'!A54 -> 8. | B56: ='AT CdR'!B54:S54 -> 
A57: ='AT CdR'!A55 -> 8.1 | B57: ='AT CdR'!B55 -> 0 | C57: ='AT CdR'!C55 -> 0 | D57: ='AT CdR'!E55 -> 0 | E57: ='AT CdR'!F55 -> 0 | F57: ='AT CdR'!G55 -> 0 | I57: =IFERROR((H57-$F57)/(G57-$F57),"") ->  | L57: =IFERROR((K57-$F57)/(J57-$F57),"") ->  | O57: =IFERROR((N57-$F57)/(M57-$F57),"") ->  | R57: =IFERROR((Q57-$F57)/(P57-$F57),"") ->  | S57: ='AT CdR'!H55 -> 0 | U57: =IFERROR((T57-$F57)/(S57-$F57),"") ->  | X57: =IFERROR((W57-$F57)/(V57-$F57),"") ->  | AA57: =IFERROR((Z57-$F57)/(Y57-$F57),"") ->  | AD57: =IFERROR((AC57-$F57)/(AB57-$F57),"") ->  | AG57: =IFERROR((AF57-$F57)/(AE57-$F57),"") ->  | AH57: ='AT CdR'!I55 -> 0 | AJ57: =IFERROR((AI57-$F57)/(AH57-$F57),"") ->  | AM57: =IFERROR((AL57-$F57)/(AK57-$F57),"") ->  | AP57: =IFERROR((AO57-$F57)/(AN57-$F57),"") ->  | AS57: =IFERROR((AR57-$F57)/(AQ57-$F57),"") ->  | AV57: =IFERROR((AU57-$F57)/(AT57-$F57),"") ->  | AW57: ='AT CdR'!J55 -> 0 | AY57: =IFERROR((AX57-$F57)/(AW57-$F57),"") ->  | BB57: =IFERROR((BA57-$F57)/(AZ57-$F57),"") ->  | BE57: =IFERROR((BD57-$F57)/(BC57-$F57),"") ->  | BH57: =IFERROR((BG57-$F57)/(BF57-$F57),"") ->  | BK57: =IFERROR((BJ57-$F57)/(BI57-$F57),"") ->  | BL57: ='AT CdR'!K55 -> 0 | BN57: =IFERROR((BM57-$F57)/(BL57-$F57),"") ->  | BQ57: =IFERROR((BP57-$F57)/(BO57-$F57),"") ->  | BT57: =IFERROR((BS57-$F57)/(BR57-$F57),"") ->  | BW57: =IFERROR((BV57-$F57)/(BU57-$F57),"") ->  | BZ57: =IFERROR((BY57-$F57)/(BX57-$F57),"") ->  | CA57: ='AT CdR'!L55 -> 0 | CC57: =IFERROR((CB57-$F57)/(CA57-$F57),"") ->  | CF57: =IFERROR((CE57-$F57)/(CD57-$F57),"") ->  | CI57: =IFERROR((CH57-$F57)/(CG57-$F57),"") ->  | CL57: =IFERROR((CK57-$F57)/(CJ57-$F57),"") ->  | CO57: =IFERROR((CN57-$F57)/(CM57-$F57),"") ->  | CP57: ='AT CdR'!M55 -> 0 | CR57: =IFERROR((CQ57-$F57)/(CP57-$F57),"") ->  | CS57: ='AT CdR'!N55 -> FALSE
A58: ='AT CdR'!A56 -> 8.2 | B58: ='AT CdR'!B56 -> 0 | C58: ='AT CdR'!C56 -> 0 | D58: ='AT CdR'!E56 -> 0 | E58: ='AT CdR'!F56 -> 0 | F58: ='AT CdR'!G56 -> 0 | R58: =IFERROR((Q58-$F58)/(P58-$F58),"") ->  | S58: ='AT CdR'!H56 -> 0 | AH58: ='AT CdR'!I56 -> 0 | AW58: ='AT CdR'!J56 -> 0 | BL58: ='AT CdR'!K56 -> 0 | CA58: ='AT CdR'!L56 -> 0 | CP58: ='AT CdR'!M56 -> 0 | CS58: ='AT CdR'!N56 -> FALSE
A59: ='AT CdR'!A57 -> 8.3 | B59: ='AT CdR'!B57 -> 0 | C59: ='AT CdR'!C57 -> 0 | D59: ='AT CdR'!E57 -> 0 | E59: ='AT CdR'!F57 -> 0 | F59: ='AT CdR'!G57 -> 0 | R59: =IFERROR((Q59-$F59)/(P59-$F59),"") ->  | S59: ='AT CdR'!H57 -> 0 | AH59: ='AT CdR'!I57 -> 0 | AW59: ='AT CdR'!J57 -> 0 | BL59: ='AT CdR'!K57 -> 0 | CA59: ='AT CdR'!L57 -> 0 | CP59: ='AT CdR'!M57 -> 0 | CS59: ='AT CdR'!N57 -> FALSE
A60: ='AT CdR'!A58 -> 8.4 | B60: ='AT CdR'!B58 -> 0 | C60: ='AT CdR'!C58 -> 0 | D60: ='AT CdR'!E58 -> 0 | E60: ='AT CdR'!F58 -> 0 | F60: ='AT CdR'!G58 -> 0 | S60: ='AT CdR'!H58 -> 0 | AH60: ='AT CdR'!I58 -> 0 | AW60: ='AT CdR'!J58 -> 0 | BL60: ='AT CdR'!K58 -> 0 | BN60: =IFERROR((BM60-$F60)/(BL60-$F60),"") ->  | CA60: ='AT CdR'!L58 -> 0 | CP60: ='AT CdR'!M58 -> 0 | CR60: =IFERROR((CQ60-$F60)/(CP60-$F60),"") ->  | CS60: ='AT CdR'!N58 -> FALSE
A61: ='AT CdR'!A59 -> 8.5 | B61: ='AT CdR'!B59 -> 0 | C61: ='AT CdR'!C59 -> 0 | D61: ='AT CdR'!E59 -> 0 | E61: ='AT CdR'!F59 -> 0 | F61: ='AT CdR'!G59 -> 0 | S61: ='AT CdR'!H59 -> 0 | AH61: ='AT CdR'!I59 -> 0 | AW61: ='AT CdR'!J59 -> 0 | BL61: ='AT CdR'!K59 -> 0 | CA61: ='AT CdR'!L59 -> 0 | CP61: ='AT CdR'!M59 -> 0 | CS61: ='AT CdR'!N59 -> FALSE
A62: ='AT CdR'!A60 -> 8.6 | B62: ='AT CdR'!B60 -> 0 | C62: ='AT CdR'!C60 -> 0 | D62: ='AT CdR'!E60 -> 0 | E62: ='AT CdR'!F60 -> 0 | F62: ='AT CdR'!G60 -> 0 | S62: ='AT CdR'!H60 -> 0 | AH62: ='AT CdR'!I60 -> 0 | AW62: ='AT CdR'!J60 -> 0 | BL62: ='AT CdR'!K60 -> 0 | CA62: ='AT CdR'!L60 -> 0 | CP62: ='AT CdR'!M60 -> 0 | CS62: ='AT CdR'!N60 -> FALSE
A63: ='AT CdR'!A61 -> 9. | B63: ='AT CdR'!B61:S61 -> 
A64: ='AT CdR'!A62 -> 9.1 | B64: ='AT CdR'!B62 -> 0 | C64: ='AT CdR'!C62 -> 0 | D64: ='AT CdR'!E62 -> 0 | E64: ='AT CdR'!F62 -> 0 | F64: ='AT CdR'!G62 -> 0 | I64: =IFERROR((H64-$F64)/(G64-$F64),"") ->  | L64: =IFERROR((K64-$F64)/(J64-$F64),"") ->  | O64: =IFERROR((N64-$F64)/(M64-$F64),"") ->  | R64: =IFERROR((Q64-$F64)/(P64-$F64),"") ->  | S64: ='AT CdR'!H62 -> 0 | U64: =IFERROR((T64-$F64)/(S64-$F64),"") ->  | X64: =IFERROR((W64-$F64)/(V64-$F64),"") ->  | AA64: =IFERROR((Z64-$F64)/(Y64-$F64),"") ->  | AD64: =IFERROR((AC64-$F64)/(AB64-$F64),"") ->  | AG64: =IFERROR((AF64-$F64)/(AE64-$F64),"") ->  | AH64: ='AT CdR'!I62 -> 0 | AJ64: =IFERROR((AI64-$F64)/(AH64-$F64),"") ->  | AM64: =IFERROR((AL64-$F64)/(AK64-$F64),"") ->  | AP64: =IFERROR((AO64-$F64)/(AN64-$F64),"") ->  | AS64: =IFERROR((AR64-$F64)/(AQ64-$F64),"") ->  | AV64: =IFERROR((AU64-$F64)/(AT64-$F64),"") ->  | AW64: ='AT CdR'!J62 -> 0 | AY64: =IFERROR((AX64-$F64)/(AW64-$F64),"") ->  | BB64: =IFERROR((BA64-$F64)/(AZ64-$F64),"") ->  | BE64: =IFERROR((BD64-$F64)/(BC64-$F64),"") ->  | BH64: =IFERROR((BG64-$F64)/(BF64-$F64),"") ->  | BK64: =IFERROR((BJ64-$F64)/(BI64-$F64),"") ->  | BL64: ='AT CdR'!K62 -> 0 | BN64: =IFERROR((BM64-$F64)/(BL64-$F64),"") ->  | BQ64: =IFERROR((BP64-$F64)/(BO64-$F64),"") ->  | BT64: =IFERROR((BS64-$F64)/(BR64-$F64),"") ->  | BW64: =IFERROR((BV64-$F64)/(BU64-$F64),"") ->  | BZ64: =IFERROR((BY64-$F64)/(BX64-$F64),"") ->  | CA64: ='AT CdR'!L62 -> 0 | CC64: =IFERROR((CB64-$F64)/(CA64-$F64),"") ->  | CF64: =IFERROR((CE64-$F64)/(CD64-$F64),"") ->  | CI64: =IFERROR((CH64-$F64)/(CG64-$F64),"") ->  | CL64: =IFERROR((CK64-$F64)/(CJ64-$F64),"") ->  | CO64: =IFERROR((CN64-$F64)/(CM64-$F64),"") ->  | CP64: ='AT CdR'!M62 -> 0 | CR64: =IFERROR((CQ64-$F64)/(CP64-$F64),"") ->  | CS64: ='AT CdR'!N62 -> FALSE
A65: ='AT CdR'!A63 -> 9.2 | B65: ='AT CdR'!B63 -> 0 | C65: ='AT CdR'!C63 -> 0 | D65: ='AT CdR'!E63 -> 0 | E65: ='AT CdR'!F63 -> 0 | F65: ='AT CdR'!G63 -> 0 | R65: =IFERROR((Q65-$F65)/(P65-$F65),"") ->  | S65: ='AT CdR'!H63 -> 0 | AH65: ='AT CdR'!I63 -> 0 | AW65: ='AT CdR'!J63 -> 0 | BL65: ='AT CdR'!K63 -> 0 | CA65: ='AT CdR'!L63 -> 0 | CP65: ='AT CdR'!M63 -> 0 | CS65: ='AT CdR'!N63 -> FALSE
A66: ='AT CdR'!A64 -> 9.3 | B66: ='AT CdR'!B64 -> 0 | C66: ='AT CdR'!C64 -> 0 | D66: ='AT CdR'!E64 -> 0 | E66: ='AT CdR'!F64 -> 0 | F66: ='AT CdR'!G64 -> 0 | R66: =IFERROR((Q66-$F66)/(P66-$F66),"") ->  | S66: ='AT CdR'!H64 -> 0 | AH66: ='AT CdR'!I64 -> 0 | AW66: ='AT CdR'!J64 -> 0 | BL66: ='AT CdR'!K64 -> 0 | CA66: ='AT CdR'!L64 -> 0 | CP66: ='AT CdR'!M64 -> 0 | CS66: ='AT CdR'!N64 -> FALSE
A67: ='AT CdR'!A65 -> 9.4 | B67: ='AT CdR'!B65 -> 0 | C67: ='AT CdR'!C65 -> 0 | D67: ='AT CdR'!E65 -> 0 | E67: ='AT CdR'!F65 -> 0 | F67: ='AT CdR'!G65 -> 0 | S67: ='AT CdR'!H65 -> 0 | AH67: ='AT CdR'!I65 -> 0 | AW67: ='AT CdR'!J65 -> 0 | BL67: ='AT CdR'!K65 -> 0 | BN67: =IFERROR((BM67-$F67)/(BL67-$F67),"") ->  | CA67: ='AT CdR'!L65 -> 0 | CP67: ='AT CdR'!M65 -> 0 | CR67: =IFERROR((CQ67-$F67)/(CP67-$F67),"") ->  | CS67: ='AT CdR'!N65 -> FALSE
A68: ='AT CdR'!A66 -> 9.5 | B68: ='AT CdR'!B66 -> 0 | C68: ='AT CdR'!C66 -> 0 | D68: ='AT CdR'!E66 -> 0 | E68: ='AT CdR'!F66 -> 0 | F68: ='AT CdR'!G66 -> 0 | S68: ='AT CdR'!H66 -> 0 | AH68: ='AT CdR'!I66 -> 0 | AW68: ='AT CdR'!J66 -> 0 | BL68: ='AT CdR'!K66 -> 0 | CA68: ='AT CdR'!L66 -> 0 | CP68: ='AT CdR'!M66 -> 0 | CS68: ='AT CdR'!N66 -> FALSE
A69: ='AT CdR'!A67 -> 9.6 | B69: ='AT CdR'!B67 -> 0 | C69: ='AT CdR'!C67 -> 0 | D69: ='AT CdR'!E67 -> 0 | E69: ='AT CdR'!F67 -> 0 | F69: ='AT CdR'!G67 -> 0 | S69: ='AT CdR'!H67 -> 0 | AH69: ='AT CdR'!I67 -> 0 | AW69: ='AT CdR'!J67 -> 0 | BL69: ='AT CdR'!K67 -> 0 | CA69: ='AT CdR'!L67 -> 0 | CP69: ='AT CdR'!M67 -> 0 | CS69: ='AT CdR'!N67 -> FALSE
A70: ='AT CdR'!A68 -> 10. | B70: ='AT CdR'!B68:S68 -> 
A71: ='AT CdR'!A69 -> 10.1 | B71: ='AT CdR'!B69 -> 0 | C71: ='AT CdR'!C69 -> 0 | D71: ='AT CdR'!E69 -> 0 | E71: ='AT CdR'!F69 -> 0 | F71: ='AT CdR'!G69 -> 0 | I71: =IFERROR((H71-$F71)/(G71-$F71),"") ->  | L71: =IFERROR((K71-$F71)/(J71-$F71),"") ->  | O71: =IFERROR((N71-$F71)/(M71-$F71),"") ->  | R71: =IFERROR((Q71-$F71)/(P71-$F71),"") ->  | S71: ='AT CdR'!H69 -> 0 | U71: =IFERROR((T71-$F71)/(S71-$F71),"") ->  | X71: =IFERROR((W71-$F71)/(V71-$F71),"") ->  | AA71: =IFERROR((Z71-$F71)/(Y71-$F71),"") ->  | AD71: =IFERROR((AC71-$F71)/(AB71-$F71),"") ->  | AG71: =IFERROR((AF71-$F71)/(AE71-$F71),"") ->  | AH71: ='AT CdR'!I69 -> 0 | AJ71: =IFERROR((AI71-$F71)/(AH71-$F71),"") ->  | AM71: =IFERROR((AL71-$F71)/(AK71-$F71),"") ->  | AP71: =IFERROR((AO71-$F71)/(AN71-$F71),"") ->  | AS71: =IFERROR((AR71-$F71)/(AQ71-$F71),"") ->  | AV71: =IFERROR((AU71-$F71)/(AT71-$F71),"") ->  | AW71: ='AT CdR'!J69 -> 0 | AY71: =IFERROR((AX71-$F71)/(AW71-$F71),"") ->  | BB71: =IFERROR((BA71-$F71)/(AZ71-$F71),"") ->  | BE71: =IFERROR((BD71-$F71)/(BC71-$F71),"") ->  | BH71: =IFERROR((BG71-$F71)/(BF71-$F71),"") ->  | BK71: =IFERROR((BJ71-$F71)/(BI71-$F71),"") ->  | BL71: ='AT CdR'!K69 -> 0 | BN71: =IFERROR((BM71-$F71)/(BL71-$F71),"") ->  | BQ71: =IFERROR((BP71-$F71)/(BO71-$F71),"") ->  | BT71: =IFERROR((BS71-$F71)/(BR71-$F71),"") ->  | BW71: =IFERROR((BV71-$F71)/(BU71-$F71),"") ->  | BZ71: =IFERROR((BY71-$F71)/(BX71-$F71),"") ->  | CA71: ='AT CdR'!L69 -> 0 | CC71: =IFERROR((CB71-$F71)/(CA71-$F71),"") ->  | CF71: =IFERROR((CE71-$F71)/(CD71-$F71),"") ->  | CI71: =IFERROR((CH71-$F71)/(CG71-$F71),"") ->  | CL71: =IFERROR((CK71-$F71)/(CJ71-$F71),"") ->  | CO71: =IFERROR((CN71-$F71)/(CM71-$F71),"") ->  | CP71: ='AT CdR'!M69 -> 0 | CR71: =IFERROR((CQ71-$F71)/(CP71-$F71),"") ->  | CS71: ='AT CdR'!N69 -> FALSE
A72: ='AT CdR'!A70 -> 10.2 | B72: ='AT CdR'!B70 -> 0 | C72: ='AT CdR'!C70 -> 0 | D72: ='AT CdR'!E70 -> 0 | E72: ='AT CdR'!F70 -> 0 | F72: ='AT CdR'!G70 -> 0 | R72: =IFERROR((Q72-$F72)/(P72-$F72),"") ->  | S72: ='AT CdR'!H70 -> 0 | AH72: ='AT CdR'!I70 -> 0 | AW72: ='AT CdR'!J70 -> 0 | BL72: ='AT CdR'!K70 -> 0 | CA72: ='AT CdR'!L70 -> 0 | CP72: ='AT CdR'!M70 -> 0 | CS72: ='AT CdR'!N70 -> FALSE
A73: ='AT CdR'!A71 -> 10.3 | B73: ='AT CdR'!B71 -> 0 | C73: ='AT CdR'!C71 -> 0 | D73: ='AT CdR'!E71 -> 0 | E73: ='AT CdR'!F71 -> 0 | F73: ='AT CdR'!G71 -> 0 | R73: =IFERROR((Q73-$F73)/(P73-$F73),"") ->  | S73: ='AT CdR'!H71 -> 0 | AH73: ='AT CdR'!I71 -> 0 | AW73: ='AT CdR'!J71 -> 0 | BL73: ='AT CdR'!K71 -> 0 | CA73: ='AT CdR'!L71 -> 0 | CP73: ='AT CdR'!M71 -> 0 | CS73: ='AT CdR'!N71 -> FALSE
A74: ='AT CdR'!A72 -> 10.4 | B74: ='AT CdR'!B72 -> 0 | C74: ='AT CdR'!C72 -> 0 | D74: ='AT CdR'!E72 -> 0 | E74: ='AT CdR'!F72 -> 0 | F74: ='AT CdR'!G72 -> 0 | S74: ='AT CdR'!H72 -> 0 | AH74: ='AT CdR'!I72 -> 0 | AW74: ='AT CdR'!J72 -> 0 | BL74: ='AT CdR'!K72 -> 0 | BN74: =IFERROR((BM74-$F74)/(BL74-$F74),"") ->  | CA74: ='AT CdR'!L72 -> 0 | CP74: ='AT CdR'!M72 -> 0 | CR74: =IFERROR((CQ74-$F74)/(CP74-$F74),"") ->  | CS74: ='AT CdR'!N72 -> FALSE
A75: ='AT CdR'!A73 -> 10.5 | B75: ='AT CdR'!B73 -> 0 | C75: ='AT CdR'!C73 -> 0 | D75: ='AT CdR'!E73 -> 0 | E75: ='AT CdR'!F73 -> 0 | F75: ='AT CdR'!G73 -> 0 | S75: ='AT CdR'!H73 -> 0 | AH75: ='AT CdR'!I73 -> 0 | AW75: ='AT CdR'!J73 -> 0 | BL75: ='AT CdR'!K73 -> 0 | CA75: ='AT CdR'!L73 -> 0 | CP75: ='AT CdR'!M73 -> 0 | CS75: ='AT CdR'!N73 -> FALSE
A76: ='AT CdR'!A74 -> 10.6 | B76: ='AT CdR'!B74 -> 0 | C76: ='AT CdR'!C74 -> 0 | D76: ='AT CdR'!E74 -> 0 | E76: ='AT CdR'!F74 -> 0 | F76: ='AT CdR'!G74 -> 0 | S76: ='AT CdR'!H74 -> 0 | AH76: ='AT CdR'!I74 -> 0 | AW76: ='AT CdR'!J74 -> 0 | BL76: ='AT CdR'!K74 -> 0 | CA76: ='AT CdR'!L74 -> 0 | CP76: ='AT CdR'!M74 -> 0 | CS76: ='AT CdR'!N74 -> FALSE
A77: ='AT CdR'!A75 -> AUTRES COMPETENCES
A78: ='AT CdR'!A76 -> 1. | B78: ='AT CdR'!B76:S76 -> Programme structurant de mobilité – Renforcement des flux aériens et maritimes
A79: ='AT CdR'!A77 -> 1.1 | B79: ='AT CdR'!B77 -> Contribuer au renforcement de l’attractivité touristique de la région | C79: ='AT CdR'!C106 -> 0 | D79: ='AT CdR'!E106 -> 0 | E79: ='AT CdR'!F106 -> 0 | F79: ='AT CdR'!G106 -> 0 | I79: =IFERROR((H79-$F79)/(G79-$F79),"") ->  | L79: =IFERROR((K79-$F79)/(J79-$F79),"") ->  | O79: =IFERROR((N79-$F79)/(M79-$F79),"") ->  | R79: =IFERROR((Q79-$F79)/(P79-$F79),"") ->  | S79: ='AT CdR'!H77 ->  | U79: =IFERROR((T79-$F79)/(S79-$F79),"") ->  | X79: =IFERROR((W79-$F79)/(V79-$F79),"") ->  | AA79: =IFERROR((Z79-$F79)/(Y79-$F79),"") ->  | AD79: =IFERROR((AC79-$F79)/(AB79-$F79),"") ->  | AG79: =IFERROR((AF79-$F79)/(AE79-$F79),"") ->  | AH79: ='AT CdR'!I77 ->  | AJ79: =IFERROR((AI79-$F79)/(AH79-$F79),"") ->  | AM79: =IFERROR((AL79-$F79)/(AK79-$F79),"") ->  | AP79: =IFERROR((AO79-$F79)/(AN79-$F79),"") ->  | AS79: =IFERROR((AR79-$F79)/(AQ79-$F79),"") ->  | AV79: =IFERROR((AU79-$F79)/(AT79-$F79),"") ->  | AW79: ='AT CdR'!J77 ->  | AY79: =IFERROR((AX79-$F79)/(AW79-$F79),"") ->  | BB79: =IFERROR((BA79-$F79)/(AZ79-$F79),"") ->  | BE79: =IFERROR((BD79-$F79)/(BC79-$F79),"") ->  | BH79: =IFERROR((BG79-$F79)/(BF79-$F79),"") ->  | BK79: =IFERROR((BJ79-$F79)/(BI79-$F79),"") ->  | BL79: ='AT CdR'!K77 ->  | BN79: =IFERROR((BM79-$F79)/(BL79-$F79),"") ->  | BQ79: =IFERROR((BP79-$F79)/(BO79-$F79),"") ->  | BT79: =IFERROR((BS79-$F79)/(BR79-$F79),"") ->  | BW79: =IFERROR((BV79-$F79)/(BU79-$F79),"") ->  | BZ79: =IFERROR((BY79-$F79)/(BX79-$F79),"") ->  | CA79: ='AT CdR'!L77 ->  | CC79: =IFERROR((CB79-$F79)/(CA79-$F79),"") ->  | CF79: =IFERROR((CE79-$F79)/(CD79-$F79),"") ->  | CI79: =IFERROR((CH79-$F79)/(CG79-$F79),"") ->  | CL79: =IFERROR((CK79-$F79)/(CJ79-$F79),"") ->  | CO79: =IFERROR((CN79-$F79)/(CM79-$F79),"") ->  | CP79: ='AT CdR'!M77 -> 3.5 | CR79: =IFERROR((CQ79-$F79)/(CP79-$F79),"") -> 0 | CS79: ='AT CdR'!N77 -> 3.5
A80: ='AT CdR'!A79 -> 1.3 | B80: ='AT CdR'!B79 -> Le nombre de vols reliant Casablanca à Tanger a augmenté | C80: ='AT CdR'!C107 -> 0 | D80: ='AT CdR'!E107 -> 0 | E80: ='AT CdR'!F107 -> 0 | F80: ='AT CdR'!G107 -> 0 | R80: =IFERROR((Q80-$F80)/(P80-$F80),"") ->  | S80: ='AT CdR'!H78 -> 0 | AH80: ='AT CdR'!I78 -> 0 | AW80: ='AT CdR'!J78 -> 0 | BL80: ='AT CdR'!K78 -> 0 | CA80: ='AT CdR'!L78 -> 0 | CP80: ='AT CdR'!M78 -> 0 | CS80: ='AT CdR'!N78 -> 0
A81: ='AT CdR'!A80 -> 1.4 | B81: ='AT CdR'!B80 -> Le nombre de vols reliant Casablanca à Al Hoceima a augmenté | C81: ='AT CdR'!C108 -> 0 | D81: ='AT CdR'!E108 -> 0 | E81: ='AT CdR'!F108 -> 0 | F81: ='AT CdR'!G108 -> 0 | R81: =IFERROR((Q81-$F81)/(P81-$F81),"") ->  | S81: ='AT CdR'!H79 -> 0 | AH81: ='AT CdR'!I79 -> 2 | AJ81: 0 | AW81: ='AT CdR'!J79 -> 0 | BL81: ='AT CdR'!K79 -> 0 | CA81: ='AT CdR'!L79 -> 0 | CP81: ='AT CdR'!M79 -> 0 | CS81: ='AT CdR'!N79 -> 2
A82: ='AT CdR'!A81 -> 1.5 | B82: ='AT CdR'!B81 -> La connexion aérienne Tanger Med – Al Hoceima est crée | C82: ='AT CdR'!C109 -> 0 | D82: ='AT CdR'!E109 -> 0 | E82: ='AT CdR'!F109 -> 0 | F82: ='AT CdR'!G109 -> 0 | S82: ='AT CdR'!H80 -> 0 | AH82: ='AT CdR'!I80 -> 7 | AJ82: 0 | AW82: ='AT CdR'!J80 -> 0 | BL82: ='AT CdR'!K80 -> 0 | BN82: =IFERROR((BM82-$F82)/(BL82-$F82),"") ->  | CA82: ='AT CdR'!L80 -> 0 | CP82: ='AT CdR'!M80 -> 0 | CR82: =IFERROR((CQ82-$F82)/(CP82-$F82),"") ->  | CS82: ='AT CdR'!N80 -> 7
A83: ='AT CdR'!A82 -> 1.6 | B83: ='AT CdR'!B82 -> La connexion maritime Tanger Med – Al Hoceima est crée | C83: ='AT CdR'!C112 -> 0 | D83: ='AT CdR'!E112 -> 0 | E83: ='AT CdR'!F112 -> 0 | F83: ='AT CdR'!G112 -> 0 | S83: ='AT CdR'!H81 -> 2 | AH83: ='AT CdR'!I81 -> 2 | AJ83: 0 | AW83: ='AT CdR'!J81 -> 2 | AY83: 0 | BL83: ='AT CdR'!K81 -> 2 | BN83: 0 | CA83: ='AT CdR'!L81 -> 2 | CC83: 0 | CP83: ='AT CdR'!M81 -> 2 | CR83: 0 | CS83: ='AT CdR'!N81 -> 2
A84: ='AT CdR'!#REF! ->  | B84: ='AT CdR'!#REF! ->  | C84: ='AT CdR'!C113 -> 0 | D84: ='AT CdR'!E113 -> 0 | E84: ='AT CdR'!F113 -> 0 | F84: ='AT CdR'!G113 -> 0 | S84: ='AT CdR'!H82 -> 0 | AH84: ='AT CdR'!I82 -> 0 | AW84: ='AT CdR'!J82 -> 1 | AY84: 0 | BL84: ='AT CdR'!K82 -> 1 | BN84: 0 | CA84: ='AT CdR'!L82 -> 1 | CC84: 0 | CP84: ='AT CdR'!M82 -> 1 | CR84: 0 | CS84: ='AT CdR'!N82 -> 1
A85: ='AT CdR'!A83 -> 2. | B85: ='AT CdR'!B83:S83 -> Programme structurant de mobilité – Accélération du désenclavement de la Région
A86: ='AT CdR'!A84 -> 2.1 | B86: ='AT CdR'!B84 -> Contribuer au désenclavement de la région | C86: ='AT CdR'!C113 -> 0 | D86: ='AT CdR'!E113 -> 0 | E86: ='AT CdR'!F113 -> 0 | F86: ='AT CdR'!G113 -> 0 | I86: =IFERROR((H86-$F86)/(G86-$F86),"") ->  | L86: =IFERROR((K86-$F86)/(J86-$F86),"") ->  | O86: =IFERROR((N86-$F86)/(M86-$F86),"") ->  | R86: =IFERROR((Q86-$F86)/(P86-$F86),"") ->  | S86: ='AT CdR'!H84 -> 0 | U86: =IFERROR((T86-$F86)/(S86-$F86),"") ->  | X86: =IFERROR((W86-$F86)/(V86-$F86),"") ->  | AA86: =IFERROR((Z86-$F86)/(Y86-$F86),"") ->  | AD86: =IFERROR((AC86-$F86)/(AB86-$F86),"") ->  | AG86: =IFERROR((AF86-$F86)/(AE86-$F86),"") ->  | AH86: ='AT CdR'!I84 -> 4 | AJ86: =IFERROR((AI86-$F86)/(AH86-$F86),"") -> 0 | AM86: =IFERROR((AL86-$F86)/(AK86-$F86),"") ->  | AP86: =IFERROR((AO86-$F86)/(AN86-$F86),"") ->  | AS86: =IFERROR((AR86-$F86)/(AQ86-$F86),"") ->  | AV86: =IFERROR((AU86-$F86)/(AT86-$F86),"") ->  | AW86: ='AT CdR'!J84 -> 0 | AY86: =IFERROR((AX86-$F86)/(AW86-$F86),"") ->  | BB86: =IFERROR((BA86-$F86)/(AZ86-$F86),"") ->  | BE86: =IFERROR((BD86-$F86)/(BC86-$F86),"") ->  | BH86: =IFERROR((BG86-$F86)/(BF86-$F86),"") ->  | BK86: =IFERROR((BJ86-$F86)/(BI86-$F86),"") ->  | BL86: ='AT CdR'!K84 -> 0 | BN86: =IFERROR((BM86-$F86)/(BL86-$F86),"") ->  | BQ86: =IFERROR((BP86-$F86)/(BO86-$F86),"") ->  | BT86: =IFERROR((BS86-$F86)/(BR86-$F86),"") ->  | BW86: =IFERROR((BV86-$F86)/(BU86-$F86),"") ->  | BZ86: =IFERROR((BY86-$F86)/(BX86-$F86),"") ->  | CA86: ='AT CdR'!L84 -> 0 | CC86: =IFERROR((CB86-$F86)/(CA86-$F86),"") ->  | CF86: =IFERROR((CE86-$F86)/(CD86-$F86),"") ->  | CI86: =IFERROR((CH86-$F86)/(CG86-$F86),"") ->  | CL86: =IFERROR((CK86-$F86)/(CJ86-$F86),"") ->  | CO86: =IFERROR((CN86-$F86)/(CM86-$F86),"") ->  | CP86: ='AT CdR'!M84 -> 0 | CR86: =IFERROR((CQ86-$F86)/(CP86-$F86),"") ->  | CS86: ='AT CdR'!N84 -> 4
A87: ='AT CdR'!A85 -> 2.2 | B87: ='AT CdR'!B85 -> La route nationale N2 reliant Chefchaouen à Al Hoceima est dédoublé | C87: ='AT CdR'!C114 -> 0 | D87: ='AT CdR'!E114 -> 0 | E87: ='AT CdR'!F114 -> 0 | F87: ='AT CdR'!G114 -> 0 | R87: =IFERROR((Q87-$F87)/(P87-$F87),"") ->  | S87: ='AT CdR'!H85 -> 0 | AH87: ='AT CdR'!I85 -> 220 | AJ87: 0 | AW87: ='AT CdR'!J85 -> 220 | AY87: 0 | BL87: ='AT CdR'!K85 -> 220 | BN87: 0 | CA87: ='AT CdR'!L85 -> 220 | CC87: 0 | CP87: ='AT CdR'!M85 -> 220 | CR87: 0 | CS87: ='AT CdR'!N85 -> 220
A88: ='AT CdR'!A86 -> 2.3 | B88: ='AT CdR'!B86 -> les DCE afférents au/à (i) moyens de transport alternatifs adaptés aux zones montagneuses, (ii) la connexion de Ouezzane à Ksar El Kébir et au trajet autoroute Fès Tétouan, (iii) la connectivité ferroviaire de Tanger – Al Hoceima, (iv) la connexion d'Al Hoceima - Nador West Med, (v) la liaison de Tétouan au littoral via un Tramway et (vi) la connexion de Larache à Ksar El Kébir via l'autoroute. | C88: ='AT CdR'!C115 -> 0 | D88: ='AT CdR'!E115 -> 0 | E88: ='AT CdR'!F115 -> 0 | F88: ='AT CdR'!G115 -> 0 | R88: =IFERROR((Q88-$F88)/(P88-$F88),"") ->  | S88: ='AT CdR'!H86 -> 2 | AH88: ='AT CdR'!I86 -> 0 | AW88: ='AT CdR'!J86 -> 0 | BL88: ='AT CdR'!K86 -> 0 | CA88: ='AT CdR'!L86 -> 0 | CP88: ='AT CdR'!M86 -> 0 | CS88: ='AT CdR'!N86 -> 2
A89: ='AT CdR'!A87 -> 2.4 | B89: ='AT CdR'!B87 ->  | C89: ='AT CdR'!C116 -> 0 | D89: ='AT CdR'!E116 -> 0 | E89: ='AT CdR'!F116 -> 0 | F89: ='AT CdR'!G116 -> 0 | S89: ='AT CdR'!H87 ->  | AH89: ='AT CdR'!I87 -> 0 | AW89: ='AT CdR'!J87 -> 0 | BL89: ='AT CdR'!K87 -> 0 | BN89: =IFERROR((BM89-$F89)/(BL89-$F89),"") ->  | CA89: ='AT CdR'!L87 -> 0 | CP89: ='AT CdR'!M87 -> 0 | CR89: =IFERROR((CQ89-$F89)/(CP89-$F89),"") ->  | CS89: ='AT CdR'!N87 -> FALSE
A90: ='AT CdR'!A88 -> 2.5 | B90: ='AT CdR'!B88 -> 0 | C90: ='AT CdR'!C119 -> 0 | D90: ='AT CdR'!E119 -> 0 | E90: ='AT CdR'!F119 -> 0 | F90: ='AT CdR'!G119 -> 0 | S90: ='AT CdR'!H88 -> 0 | AH90: ='AT CdR'!I88 -> 0 | AW90: ='AT CdR'!J88 -> 0 | BL90: ='AT CdR'!K88 -> 0 | CA90: ='AT CdR'!L88 -> 0 | CP90: ='AT CdR'!M88 -> 0 | CS90: ='AT CdR'!N88 -> FALSE
A91: ='AT CdR'!A89 -> 2.6 | B91: ='AT CdR'!B89 -> 0 | C91: ='AT CdR'!C120 -> 0 | D91: ='AT CdR'!E120 -> 0 | E91: ='AT CdR'!F120 -> 0 | F91: ='AT CdR'!G120 -> 0 | S91: ='AT CdR'!H89 -> 0 | AH91: ='AT CdR'!I89 -> 0 | AW91: ='AT CdR'!J89 -> 0 | BL91: ='AT CdR'!K89 -> 0 | CA91: ='AT CdR'!L89 -> 0 | CP91: ='AT CdR'!M89 -> 0 | CS91: ='AT CdR'!N89 -> FALSE
A92: ='AT CdR'!A90 -> 3. | B92: ='AT CdR'!B90:S90 -> 
A93: ='AT CdR'!A91 -> 3.1 | B93: ='AT CdR'!B91 -> 0 | C93: ='AT CdR'!C120 -> 0 | D93: ='AT CdR'!E120 -> 0 | E93: ='AT CdR'!F120 -> 0 | F93: ='AT CdR'!G120 -> 0 | I93: =IFERROR((H93-$F93)/(G93-$F93),"") ->  | L93: =IFERROR((K93-$F93)/(J93-$F93),"") ->  | O93: =IFERROR((N93-$F93)/(M93-$F93),"") ->  | R93: =IFERROR((Q93-$F93)/(P93-$F93),"") ->  | S93: ='AT CdR'!H91 -> 0 | U93: =IFERROR((T93-$F93)/(S93-$F93),"") ->  | X93: =IFERROR((W93-$F93)/(V93-$F93),"") ->  | AA93: =IFERROR((Z93-$F93)/(Y93-$F93),"") ->  | AD93: =IFERROR((AC93-$F93)/(AB93-$F93),"") ->  | AG93: =IFERROR((AF93-$F93)/(AE93-$F93),"") ->  | AH93: ='AT CdR'!I91 -> 0 | AJ93: =IFERROR((AI93-$F93)/(AH93-$F93),"") ->  | AM93: =IFERROR((AL93-$F93)/(AK93-$F93),"") ->  | AP93: =IFERROR((AO93-$F93)/(AN93-$F93),"") ->  | AS93: =IFERROR((AR93-$F93)/(AQ93-$F93),"") ->  | AV93: =IFERROR((AU93-$F93)/(AT93-$F93),"") ->  | AW93: ='AT CdR'!J91 -> 0 | AY93: =IFERROR((AX93-$F93)/(AW93-$F93),"") ->  | BB93: =IFERROR((BA93-$F93)/(AZ93-$F93),"") ->  | BE93: =IFERROR((BD93-$F93)/(BC93-$F93),"") ->  | BH93: =IFERROR((BG93-$F93)/(BF93-$F93),"") ->  | BK93: =IFERROR((BJ93-$F93)/(BI93-$F93),"") ->  | BL93: ='AT CdR'!K91 -> 0 | BN93: =IFERROR((BM93-$F93)/(BL93-$F93),"") ->  | BQ93: =IFERROR((BP93-$F93)/(BO93-$F93),"") ->  | BT93: =IFERROR((BS93-$F93)/(BR93-$F93),"") ->  | BW93: =IFERROR((BV93-$F93)/(BU93-$F93),"") ->  | BZ93: =IFERROR((BY93-$F93)/(BX93-$F93),"") ->  | CA93: ='AT CdR'!L91 -> 0 | CC93: =IFERROR((CB93-$F93)/(CA93-$F93),"") ->  | CF93: =IFERROR((CE93-$F93)/(CD93-$F93),"") ->  | CI93: =IFERROR((CH93-$F93)/(CG93-$F93),"") ->  | CL93: =IFERROR((CK93-$F93)/(CJ93-$F93),"") ->  | CO93: =IFERROR((CN93-$F93)/(CM93-$F93),"") ->  | CP93: ='AT CdR'!M91 -> 0 | CR93: =IFERROR((CQ93-$F93)/(CP93-$F93),"") ->  | CS93: ='AT CdR'!N91 -> FALSE
A94: ='AT CdR'!A92 -> 3.2 | B94: ='AT CdR'!B92 -> 0 | C94: ='AT CdR'!C121 -> 0 | D94: ='AT CdR'!E121 -> 0 | E94: ='AT CdR'!F121 -> 0 | F94: ='AT CdR'!G121 -> 0 | R94: =IFERROR((Q94-$F94)/(P94-$F94),"") ->  | S94: ='AT CdR'!H92 -> 0 | AH94: ='AT CdR'!I92 -> 0 | AW94: ='AT CdR'!J92 -> 0 | BL94: ='AT CdR'!K92 -> 0 | CA94: ='AT CdR'!L92 -> 0 | CP94: ='AT CdR'!M92 -> 0 | CS94: ='AT CdR'!N92 -> FALSE
A95: ='AT CdR'!A93 -> 3.3 | B95: ='AT CdR'!B93 -> 0 | C95: ='AT CdR'!C122 -> 0 | D95: ='AT CdR'!E122 -> 0 | E95: ='AT CdR'!F122 -> 0 | F95: ='AT CdR'!G122 -> 0 | R95: =IFERROR((Q95-$F95)/(P95-$F95),"") ->  | S95: ='AT CdR'!H93 -> 0 | AH95: ='AT CdR'!I93 -> 0 | AW95: ='AT CdR'!J93 -> 0 | BL95: ='AT CdR'!K93 -> 0 | CA95: ='AT CdR'!L93 -> 0 | CP95: ='AT CdR'!M93 -> 0 | CS95: ='AT CdR'!N93 -> FALSE
A96: ='AT CdR'!A94 -> 3.4 | B96: ='AT CdR'!B94 -> 0 | C96: ='AT CdR'!C123 -> 0 | D96: ='AT CdR'!E123 -> 0 | E96: ='AT CdR'!F123 -> 0 | F96: ='AT CdR'!G123 -> 0 | S96: ='AT CdR'!H94 -> 0 | AH96: ='AT CdR'!I94 -> 0 | AW96: ='AT CdR'!J94 -> 0 | BL96: ='AT CdR'!K94 -> 0 | BN96: =IFERROR((BM96-$F96)/(BL96-$F96),"") ->  | CA96: ='AT CdR'!L94 -> 0 | CP96: ='AT CdR'!M94 -> 0 | CR96: =IFERROR((CQ96-$F96)/(CP96-$F96),"") ->  | CS96: ='AT CdR'!N94 -> FALSE
A97: ='AT CdR'!A95 -> 3.5 | B97: ='AT CdR'!B95 -> 0 | C97: ='AT CdR'!C126 -> 0 | D97: ='AT CdR'!E126 -> 0 | E97: ='AT CdR'!F126 -> 0 | F97: ='AT CdR'!G126 -> 0 | S97: ='AT CdR'!H95 -> 0 | AH97: ='AT CdR'!I95 -> 0 | AW97: ='AT CdR'!J95 -> 0 | BL97: ='AT CdR'!K95 -> 0 | CA97: ='AT CdR'!L95 -> 0 | CP97: ='AT CdR'!M95 -> 0 | CS97: ='AT CdR'!N95 -> FALSE
A98: ='AT CdR'!A96 -> 3.6 | B98: ='AT CdR'!B96 -> 0 | C98: ='AT CdR'!C127 -> 0 | D98: ='AT CdR'!E127 -> 0 | E98: ='AT CdR'!F127 -> 0 | F98: ='AT CdR'!G127 -> 0 | S98: ='AT CdR'!H96 -> 0 | AH98: ='AT CdR'!I96 -> 0 | AW98: ='AT CdR'!J96 -> 0 | BL98: ='AT CdR'!K96 -> 0 | CA98: ='AT CdR'!L96 -> 0 | CP98: ='AT CdR'!M96 -> 0 | CS98: ='AT CdR'!N96 -> FALSE
A99: ='AT CdR'!A97 -> 4. | B99: ='AT CdR'!B97:S97 -> 
A100: ='AT CdR'!A98 -> 4.1 | B100: ='AT CdR'!B98 -> 0 | C100: ='AT CdR'!C127 -> 0 | D100: ='AT CdR'!E127 -> 0 | E100: ='AT CdR'!F127 -> 0 | F100: ='AT CdR'!G127 -> 0 | I100: =IFERROR((H100-$F100)/(G100-$F100),"") ->  | L100: =IFERROR((K100-$F100)/(J100-$F100),"") ->  | O100: =IFERROR((N100-$F100)/(M100-$F100),"") ->  | R100: =IFERROR((Q100-$F100)/(P100-$F100),"") ->  | S100: ='AT CdR'!H98 -> 0 | U100: =IFERROR((T100-$F100)/(S100-$F100),"") ->  | X100: =IFERROR((W100-$F100)/(V100-$F100),"") ->  | AA100: =IFERROR((Z100-$F100)/(Y100-$F100),"") ->  | AD100: =IFERROR((AC100-$F100)/(AB100-$F100),"") ->  | AG100: =IFERROR((AF100-$F100)/(AE100-$F100),"") ->  | AH100: ='AT CdR'!I98 -> 0 | AJ100: =IFERROR((AI100-$F100)/(AH100-$F100),"") ->  | AM100: =IFERROR((AL100-$F100)/(AK100-$F100),"") ->  | AP100: =IFERROR((AO100-$F100)/(AN100-$F100),"") ->  | AS100: =IFERROR((AR100-$F100)/(AQ100-$F100),"") ->  | AV100: =IFERROR((AU100-$F100)/(AT100-$F100),"") ->  | AW100: ='AT CdR'!J98 -> 0 | AY100: =IFERROR((AX100-$F100)/(AW100-$F100),"") ->  | BB100: =IFERROR((BA100-$F100)/(AZ100-$F100),"") ->  | BE100: =IFERROR((BD100-$F100)/(BC100-$F100),"") ->  | BH100: =IFERROR((BG100-$F100)/(BF100-$F100),"") ->  | BK100: =IFERROR((BJ100-$F100)/(BI100-$F100),"") ->  | BL100: ='AT CdR'!K98 -> 0 | BN100: =IFERROR((BM100-$F100)/(BL100-$F100),"") ->  | BQ100: =IFERROR((BP100-$F100)/(BO100-$F100),"") ->  | BT100: =IFERROR((BS100-$F100)/(BR100-$F100),"") ->  | BW100: =IFERROR((BV100-$F100)/(BU100-$F100),"") ->  | BZ100: =IFERROR((BY100-$F100)/(BX100-$F100),"") ->  | CA100: ='AT CdR'!L98 -> 0 | CC100: =IFERROR((CB100-$F100)/(CA100-$F100),"") ->  | CF100: =IFERROR((CE100-$F100)/(CD100-$F100),"") ->  | CI100: =IFERROR((CH100-$F100)/(CG100-$F100),"") ->  | CL100: =IFERROR((CK100-$F100)/(CJ100-$F100),"") ->  | CO100: =IFERROR((CN100-$F100)/(CM100-$F100),"") ->  | CP100: ='AT CdR'!M98 -> 0 | CR100: =IFERROR((CQ100-$F100)/(CP100-$F100),"") ->  | CS100: ='AT CdR'!N98 -> FALSE
A101: ='AT CdR'!A99 -> 4.2 | B101: ='AT CdR'!B99 -> 0 | C101: ='AT CdR'!C128 -> 0 | D101: ='AT CdR'!E128 -> 0 | E101: ='AT CdR'!F128 -> 0 | F101: ='AT CdR'!G128 -> 0 | R101: =IFERROR((Q101-$F101)/(P101-$F101),"") ->  | S101: ='AT CdR'!H99 -> 0 | AH101: ='AT CdR'!I99 -> 0 | AW101: ='AT CdR'!J99 -> 0 | BL101: ='AT CdR'!K99 -> 0 | CA101: ='AT CdR'!L99 -> 0 | CP101: ='AT CdR'!M99 -> 0 | CS101: ='AT CdR'!N99 -> FALSE
A102: ='AT CdR'!A100 -> 4.3 | B102: ='AT CdR'!B100 -> 0 | C102: ='AT CdR'!C129 -> 0 | D102: ='AT CdR'!E129 -> 0 | E102: ='AT CdR'!F129 -> 0 | F102: ='AT CdR'!G129 -> 0 | R102: =IFERROR((Q102-$F102)/(P102-$F102),"") ->  | S102: ='AT CdR'!H100 -> 0 | AH102: ='AT CdR'!I100 -> 0 | AW102: ='AT CdR'!J100 -> 0 | BL102: ='AT CdR'!K100 -> 0 | CA102: ='AT CdR'!L100 -> 0 | CP102: ='AT CdR'!M100 -> 0 | CS102: ='AT CdR'!N100 -> FALSE
A103: ='AT CdR'!A101 -> 4.4 | B103: ='AT CdR'!B101 -> 0 | C103: ='AT CdR'!C130 -> 0 | D103: ='AT CdR'!E130 -> 0 | E103: ='AT CdR'!F130 -> 0 | F103: ='AT CdR'!G130 -> 0 | S103: ='AT CdR'!H101 -> 0 | AH103: ='AT CdR'!I101 -> 0 | AW103: ='AT CdR'!J101 -> 0 | BL103: ='AT CdR'!K101 -> 0 | BN103: =IFERROR((BM103-$F103)/(BL103-$F103),"") ->  | CA103: ='AT CdR'!L101 -> 0 | CP103: ='AT CdR'!M101 -> 0 | CR103: =IFERROR((CQ103-$F103)/(CP103-$F103),"") ->  | CS103: ='AT CdR'!N101 -> FALSE
A104: ='AT CdR'!A102 -> 4.5 | B104: ='AT CdR'!B102 -> 0 | C104: ='AT CdR'!C133 -> 0 | D104: ='AT CdR'!E133 -> 0 | E104: ='AT CdR'!F133 -> 0 | F104: ='AT CdR'!G133 -> 0 | S104: ='AT CdR'!H102 -> 0 | AH104: ='AT CdR'!I102 -> 0 | AW104: ='AT CdR'!J102 -> 0 | BL104: ='AT CdR'!K102 -> 0 | CA104: ='AT CdR'!L102 -> 0 | CP104: ='AT CdR'!M102 -> 0 | CS104: ='AT CdR'!N102 -> FALSE
A105: ='AT CdR'!A103 -> 4.6 | B105: ='AT CdR'!B103 -> 0 | C105: ='AT CdR'!C134 -> 0 | D105: ='AT CdR'!E134 -> 0 | E105: ='AT CdR'!F134 -> 0 | F105: ='AT CdR'!G134 -> 0 | S105: ='AT CdR'!H103 -> 0 | AH105: ='AT CdR'!I103 -> 0 | AW105: ='AT CdR'!J103 -> 0 | BL105: ='AT CdR'!K103 -> 0 | CA105: ='AT CdR'!L103 -> 0 | CP105: ='AT CdR'!M103 -> 0 | CS105: ='AT CdR'!N103 -> FALSE
A106: ='AT CdR'!A104 -> 5. | B106: ='AT CdR'!B104:S104 -> 
A107: ='AT CdR'!A105 -> 5.1 | B107: ='AT CdR'!B105 -> 0 | C107: ='AT CdR'!C134 -> 0 | D107: ='AT CdR'!E134 -> 0 | E107: ='AT CdR'!F134 -> 0 | F107: ='AT CdR'!G134 -> 0 | I107: =IFERROR((H107-$F107)/(G107-$F107),"") ->  | L107: =IFERROR((K107-$F107)/(J107-$F107),"") ->  | O107: =IFERROR((N107-$F107)/(M107-$F107),"") ->  | R107: =IFERROR((Q107-$F107)/(P107-$F107),"") ->  | S107: ='AT CdR'!H105 -> 0 | U107: =IFERROR((T107-$F107)/(S107-$F107),"") ->  | X107: =IFERROR((W107-$F107)/(V107-$F107),"") ->  | AA107: =IFERROR((Z107-$F107)/(Y107-$F107),"") ->  | AD107: =IFERROR((AC107-$F107)/(AB107-$F107),"") ->  | AG107: =IFERROR((AF107-$F107)/(AE107-$F107),"") ->  | AH107: ='AT CdR'!I105 -> 0 | AJ107: =IFERROR((AI107-$F107)/(AH107-$F107),"") ->  | AM107: =IFERROR((AL107-$F107)/(AK107-$F107),"") ->  | AP107: =IFERROR((AO107-$F107)/(AN107-$F107),"") ->  | AS107: =IFERROR((AR107-$F107)/(AQ107-$F107),"") ->  | AV107: =IFERROR((AU107-$F107)/(AT107-$F107),"") ->  | AW107: ='AT CdR'!J105 -> 0 | AY107: =IFERROR((AX107-$F107)/(AW107-$F107),"") ->  | BB107: =IFERROR((BA107-$F107)/(AZ107-$F107),"") ->  | BE107: =IFERROR((BD107-$F107)/(BC107-$F107),"") ->  | BH107: =IFERROR((BG107-$F107)/(BF107-$F107),"") ->  | BK107: =IFERROR((BJ107-$F107)/(BI107-$F107),"") ->  | BL107: ='AT CdR'!K105 -> 0 | BN107: =IFERROR((BM107-$F107)/(BL107-$F107),"") ->  | BQ107: =IFERROR((BP107-$F107)/(BO107-$F107),"") ->  | BT107: =IFERROR((BS107-$F107)/(BR107-$F107),"") ->  | BW107: =IFERROR((BV107-$F107)/(BU107-$F107),"") ->  | BZ107: =IFERROR((BY107-$F107)/(BX107-$F107),"") ->  | CA107: ='AT CdR'!L105 -> 0 | CC107: =IFERROR((CB107-$F107)/(CA107-$F107),"") ->  | CF107: =IFERROR((CE107-$F107)/(CD107-$F107),"") ->  | CI107: =IFERROR((CH107-$F107)/(CG107-$F107),"") ->  | CL107: =IFERROR((CK107-$F107)/(CJ107-$F107),"") ->  | CO107: =IFERROR((CN107-$F107)/(CM107-$F107),"") ->  | CP107: ='AT CdR'!M105 -> 0 | CR107: =IFERROR((CQ107-$F107)/(CP107-$F107),"") ->  | CS107: ='AT CdR'!N105 -> FALSE
A108: ='AT CdR'!A106 -> 5.2 | B108: ='AT CdR'!B106 -> 0 | C108: ='AT CdR'!C135 -> 0 | D108: ='AT CdR'!E135 -> 0 | E108: ='AT CdR'!F135 -> 0 | F108: ='AT CdR'!G135 -> 0 | R108: =IFERROR((Q108-$F108)/(P108-$F108),"") ->  | S108: ='AT CdR'!H106 -> 0 | AH108: ='AT CdR'!I106 -> 0 | AW108: ='AT CdR'!J106 -> 0 | BL108: ='AT CdR'!K106 -> 0 | CA108: ='AT CdR'!L106 -> 0 | CP108: ='AT CdR'!M106 -> 0 | CS108: ='AT CdR'!N106 -> FALSE
A109: ='AT CdR'!A107 -> 5.3 | B109: ='AT CdR'!B107 -> 0 | C109: ='AT CdR'!C136 -> 0 | D109: ='AT CdR'!E136 -> 0 | E109: ='AT CdR'!F136 -> 0 | F109: ='AT CdR'!G136 -> 0 | R109: =IFERROR((Q109-$F109)/(P109-$F109),"") ->  | S109: ='AT CdR'!H107 -> 0 | AH109: ='AT CdR'!I107 -> 0 | AW109: ='AT CdR'!J107 -> 0 | BL109: ='AT CdR'!K107 -> 0 | CA109: ='AT CdR'!L107 -> 0 | CP109: ='AT CdR'!M107 -> 0 | CS109: ='AT CdR'!N107 -> FALSE
A110: ='AT CdR'!A108 -> 5.4 | B110: ='AT CdR'!B108 -> 0 | C110: ='AT CdR'!C137 -> 0 | D110: ='AT CdR'!E137 -> 0 | E110: ='AT CdR'!F137 -> 0 | F110: ='AT CdR'!G137 -> 0 | S110: ='AT CdR'!H108 -> 0 | AH110: ='AT CdR'!I108 -> 0 | AW110: ='AT CdR'!J108 -> 0 | BL110: ='AT CdR'!K108 -> 0 | BN110: =IFERROR((BM110-$F110)/(BL110-$F110),"") ->  | CA110: ='AT CdR'!L108 -> 0 | CP110: ='AT CdR'!M108 -> 0 | CR110: =IFERROR((CQ110-$F110)/(CP110-$F110),"") ->  | CS110: ='AT CdR'!N108 -> FALSE
A111: ='AT CdR'!A109 -> 5.5 | B111: ='AT CdR'!B109 -> 0 | C111: ='AT CdR'!C140 -> 0 | D111: ='AT CdR'!E140 -> 0 | E111: ='AT CdR'!F140 -> 0 | F111: ='AT CdR'!G140 -> 0 | S111: ='AT CdR'!H109 -> 0 | AH111: ='AT CdR'!I109 -> 0 | AW111: ='AT CdR'!J109 -> 0 | BL111: ='AT CdR'!K109 -> 0 | CA111: ='AT CdR'!L109 -> 0 | CP111: ='AT CdR'!M109 -> 0 | CS111: ='AT CdR'!N109 -> FALSE
A112: ='AT CdR'!A110 -> 5.6 | B112: ='AT CdR'!B110 -> 0 | C112: ='AT CdR'!C141 -> 0 | D112: ='AT CdR'!E141 -> 0 | E112: ='AT CdR'!F141 -> 0 | F112: ='AT CdR'!G141 -> 0 | S112: ='AT CdR'!H110 -> 0 | AH112: ='AT CdR'!I110 -> 0 | AW112: ='AT CdR'!J110 -> 0 | BL112: ='AT CdR'!K110 -> 0 | CA112: ='AT CdR'!L110 -> 0 | CP112: ='AT CdR'!M110 -> 0 | CS112: ='AT CdR'!N110 -> FALSE
A113: ='AT CdR'!A111 -> 6. | B113: ='AT CdR'!B111:S111 -> 
A114: ='AT CdR'!A112 -> 6.1 | B114: ='AT CdR'!B112 -> 0 | C114: ='AT CdR'!C141 -> 0 | D114: ='AT CdR'!E141 -> 0 | E114: ='AT CdR'!F141 -> 0 | F114: ='AT CdR'!G141 -> 0 | I114: =IFERROR((H114-$F114)/(G114-$F114),"") ->  | L114: =IFERROR((K114-$F114)/(J114-$F114),"") ->  | O114: =IFERROR((N114-$F114)/(M114-$F114),"") ->  | R114: =IFERROR((Q114-$F114)/(P114-$F114),"") ->  | S114: ='AT CdR'!H112 -> 0 | U114: =IFERROR((T114-$F114)/(S114-$F114),"") ->  | X114: =IFERROR((W114-$F114)/(V114-$F114),"") ->  | AA114: =IFERROR((Z114-$F114)/(Y114-$F114),"") ->  | AD114: =IFERROR((AC114-$F114)/(AB114-$F114),"") ->  | AG114: =IFERROR((AF114-$F114)/(AE114-$F114),"") ->  | AH114: ='AT CdR'!I112 -> 0 | AJ114: =IFERROR((AI114-$F114)/(AH114-$F114),"") ->  | AM114: =IFERROR((AL114-$F114)/(AK114-$F114),"") ->  | AP114: =IFERROR((AO114-$F114)/(AN114-$F114),"") ->  | AS114: =IFERROR((AR114-$F114)/(AQ114-$F114),"") ->  | AV114: =IFERROR((AU114-$F114)/(AT114-$F114),"") ->  | AW114: ='AT CdR'!J112 -> 0 | AY114: =IFERROR((AX114-$F114)/(AW114-$F114),"") ->  | BB114: =IFERROR((BA114-$F114)/(AZ114-$F114),"") ->  | BE114: =IFERROR((BD114-$F114)/(BC114-$F114),"") ->  | BH114: =IFERROR((BG114-$F114)/(BF114-$F114),"") ->  | BK114: =IFERROR((BJ114-$F114)/(BI114-$F114),"") ->  | BL114: ='AT CdR'!K112 -> 0 | BN114: =IFERROR((BM114-$F114)/(BL114-$F114),"") ->  | BQ114: =IFERROR((BP114-$F114)/(BO114-$F114),"") ->  | BT114: =IFERROR((BS114-$F114)/(BR114-$F114),"") ->  | BW114: =IFERROR((BV114-$F114)/(BU114-$F114),"") ->  | BZ114: =IFERROR((BY114-$F114)/(BX114-$F114),"") ->  | CA114: ='AT CdR'!L112 -> 0 | CC114: =IFERROR((CB114-$F114)/(CA114-$F114),"") ->  | CF114: =IFERROR((CE114-$F114)/(CD114-$F114),"") ->  | CI114: =IFERROR((CH114-$F114)/(CG114-$F114),"") ->  | CL114: =IFERROR((CK114-$F114)/(CJ114-$F114),"") ->  | CO114: =IFERROR((CN114-$F114)/(CM114-$F114),"") ->  | CP114: ='AT CdR'!M112 -> 0 | CR114: =IFERROR((CQ114-$F114)/(CP114-$F114),"") ->  | CS114: ='AT CdR'!N112 -> FALSE
A115: ='AT CdR'!A113 -> 6.2 | B115: ='AT CdR'!B113 -> 0 | C115: ='AT CdR'!C142 -> 0 | D115: ='AT CdR'!E142 -> 0 | E115: ='AT CdR'!F142 -> 0 | F115: ='AT CdR'!G142 -> 0 | R115: =IFERROR((Q115-$F115)/(P115-$F115),"") ->  | S115: ='AT CdR'!H113 -> 0 | AH115: ='AT CdR'!I113 -> 0 | AW115: ='AT CdR'!J113 -> 0 | BL115: ='AT CdR'!K113 -> 0 | CA115: ='AT CdR'!L113 -> 0 | CP115: ='AT CdR'!M113 -> 0 | CS115: ='AT CdR'!N113 -> FALSE
A116: ='AT CdR'!A114 -> 6.3 | B116: ='AT CdR'!B114 -> 0 | C116: ='AT CdR'!C143 -> 0 | D116: ='AT CdR'!E143 -> 0 | E116: ='AT CdR'!F143 -> 0 | F116: ='AT CdR'!G143 -> 0 | R116: =IFERROR((Q116-$F116)/(P116-$F116),"") ->  | S116: ='AT CdR'!H114 -> 0 | AH116: ='AT CdR'!I114 -> 0 | AW116: ='AT CdR'!J114 -> 0 | BL116: ='AT CdR'!K114 -> 0 | CA116: ='AT CdR'!L114 -> 0 | CP116: ='AT CdR'!M114 -> 0 | CS116: ='AT CdR'!N114 -> FALSE
A117: ='AT CdR'!A115 -> 6.4 | B117: ='AT CdR'!B115 -> 0 | C117: ='AT CdR'!C144 -> 0 | D117: ='AT CdR'!E144 -> 0 | E117: ='AT CdR'!F144 -> 0 | F117: ='AT CdR'!G144 -> 0 | S117: ='AT CdR'!H115 -> 0 | AH117: ='AT CdR'!I115 -> 0 | AW117: ='AT CdR'!J115 -> 0 | BL117: ='AT CdR'!K115 -> 0 | BN117: =IFERROR((BM117-$F117)/(BL117-$F117),"") ->  | CA117: ='AT CdR'!L115 -> 0 | CP117: ='AT CdR'!M115 -> 0 | CR117: =IFERROR((CQ117-$F117)/(CP117-$F117),"") ->  | CS117: ='AT CdR'!N115 -> FALSE
A118: ='AT CdR'!A116 -> 6.5 | B118: ='AT CdR'!B116 -> 0 | C118: ='AT CdR'!C145 -> 0 | D118: ='AT CdR'!E145 -> 0 | E118: ='AT CdR'!F145 -> 0 | F118: ='AT CdR'!G145 -> 0 | S118: ='AT CdR'!H116 -> 0 | AH118: ='AT CdR'!I116 -> 0 | AW118: ='AT CdR'!J116 -> 0 | BL118: ='AT CdR'!K116 -> 0 | CA118: ='AT CdR'!L116 -> 0 | CP118: ='AT CdR'!M116 -> 0 | CS118: ='AT CdR'!N116 -> FALSE
A119: ='AT CdR'!A117 -> 6.6 | B119: ='AT CdR'!B117 -> 0 | C119: ='AT CdR'!C146 -> 0 | D119: ='AT CdR'!E146 -> 0 | E119: ='AT CdR'!F146 -> 0 | F119: ='AT CdR'!G146 -> 0 | S119: ='AT CdR'!H117 -> 0 | AH119: ='AT CdR'!I117 -> 0 | AW119: ='AT CdR'!J117 -> 0 | BL119: ='AT CdR'!K117 -> 0 | CA119: ='AT CdR'!L117 -> 0 | CP119: ='AT CdR'!M117 -> 0 | CS119: ='AT CdR'!N117 -> FALSE
A120: ='AT CdR'!A118 -> 7. | B120: ='AT CdR'!B118:S118 -> 
A121: ='AT CdR'!A119 -> 7.1 | B121: ='AT CdR'!B119 -> 0 | C121: ='AT CdR'!C148 -> 0 | D121: ='AT CdR'!E148 -> 0 | E121: ='AT CdR'!F148 -> 0 | F121: ='AT CdR'!G148 -> 0 | I121: =IFERROR((H121-$F121)/(G121-$F121),"") ->  | L121: =IFERROR((K121-$F121)/(J121-$F121),"") ->  | O121: =IFERROR((N121-$F121)/(M121-$F121),"") ->  | R121: =IFERROR((Q121-$F121)/(P121-$F121),"") ->  | S121: ='AT CdR'!H119 -> 0 | U121: =IFERROR((T121-$F121)/(S121-$F121),"") ->  | X121: =IFERROR((W121-$F121)/(V121-$F121),"") ->  | AA121: =IFERROR((Z121-$F121)/(Y121-$F121),"") ->  | AD121: =IFERROR((AC121-$F121)/(AB121-$F121),"") ->  | AG121: =IFERROR((AF121-$F121)/(AE121-$F121),"") ->  | AH121: ='AT CdR'!I119 -> 0 | AJ121: =IFERROR((AI121-$F121)/(AH121-$F121),"") ->  | AM121: =IFERROR((AL121-$F121)/(AK121-$F121),"") ->  | AP121: =IFERROR((AO121-$F121)/(AN121-$F121),"") ->  | AS121: =IFERROR((AR121-$F121)/(AQ121-$F121),"") ->  | AV121: =IFERROR((AU121-$F121)/(AT121-$F121),"") ->  | AW121: ='AT CdR'!J119 -> 0 | AY121: =IFERROR((AX121-$F121)/(AW121-$F121),"") ->  | BB121: =IFERROR((BA121-$F121)/(AZ121-$F121),"") ->  | BE121: =IFERROR((BD121-$F121)/(BC121-$F121),"") ->  | BH121: =IFERROR((BG121-$F121)/(BF121-$F121),"") ->  | BK121: =IFERROR((BJ121-$F121)/(BI121-$F121),"") ->  | BL121: ='AT CdR'!K119 -> 0 | BN121: =IFERROR((BM121-$F121)/(BL121-$F121),"") ->  | BQ121: =IFERROR((BP121-$F121)/(BO121-$F121),"") ->  | BT121: =IFERROR((BS121-$F121)/(BR121-$F121),"") ->  | BW121: =IFERROR((BV121-$F121)/(BU121-$F121),"") ->  | BZ121: =IFERROR((BY121-$F121)/(BX121-$F121),"") ->  | CA121: ='AT CdR'!L119 -> 0 | CC121: =IFERROR((CB121-$F121)/(CA121-$F121),"") ->  | CF121: =IFERROR((CE121-$F121)/(CD121-$F121),"") ->  | CI121: =IFERROR((CH121-$F121)/(CG121-$F121),"") ->  | CL121: =IFERROR((CK121-$F121)/(CJ121-$F121),"") ->  | CO121: =IFERROR((CN121-$F121)/(CM121-$F121),"") ->  | CP121: ='AT CdR'!M119 -> 0 | CR121: =IFERROR((CQ121-$F121)/(CP121-$F121),"") ->  | CS121: ='AT CdR'!N119 -> FALSE
A122: ='AT CdR'!A120 -> 7.2 | B122: ='AT CdR'!B120 -> 0 | C122: ='AT CdR'!C149 -> 0 | D122: ='AT CdR'!E149 -> 0 | E122: ='AT CdR'!F149 -> 0 | F122: ='AT CdR'!G149 -> 0 | R122: =IFERROR((Q122-$F122)/(P122-$F122),"") ->  | S122: ='AT CdR'!H120 -> 0 | AH122: ='AT CdR'!I120 -> 0 | AW122: ='AT CdR'!J120 -> 0 | BL122: ='AT CdR'!K120 -> 0 | CA122: ='AT CdR'!L120 -> 0 | CP122: ='AT CdR'!M120 -> 0 | CS122: ='AT CdR'!N120 -> FALSE
A123: ='AT CdR'!A121 -> 7.3 | B123: ='AT CdR'!B121 -> 0 | C123: ='AT CdR'!C150 -> 0 | D123: ='AT CdR'!E150 -> 0 | E123: ='AT CdR'!F150 -> 0 | F123: ='AT CdR'!G150 -> 0 | R123: =IFERROR((Q123-$F123)/(P123-$F123),"") ->  | S123: ='AT CdR'!H121 -> 0 | AH123: ='AT CdR'!I121 -> 0 | AW123: ='AT CdR'!J121 -> 0 | BL123: ='AT CdR'!K121 -> 0 | CA123: ='AT CdR'!L121 -> 0 | CP123: ='AT CdR'!M121 -> 0 | CS123: ='AT CdR'!N121 -> FALSE
A124: ='AT CdR'!A122 -> 7.4 | B124: ='AT CdR'!B122 -> 0 | C124: ='AT CdR'!C151 -> 0 | D124: ='AT CdR'!E151 -> 0 | E124: ='AT CdR'!F151 -> 0 | F124: ='AT CdR'!G151 -> 0 | S124: ='AT CdR'!H122 -> 0 | AH124: ='AT CdR'!I122 -> 0 | AW124: ='AT CdR'!J122 -> 0 | BL124: ='AT CdR'!K122 -> 0 | BN124: =IFERROR((BM124-$F124)/(BL124-$F124),"") ->  | CA124: ='AT CdR'!L122 -> 0 | CP124: ='AT CdR'!M122 -> 0 | CR124: =IFERROR((CQ124-$F124)/(CP124-$F124),"") ->  | CS124: ='AT CdR'!N122 -> FALSE
A125: ='AT CdR'!A123 -> 7.5 | B125: ='AT CdR'!B123 -> 0 | C125: ='AT CdR'!C152 -> 0 | D125: ='AT CdR'!E152 -> 0 | E125: ='AT CdR'!F152 -> 0 | F125: ='AT CdR'!G152 -> 0 | S125: ='AT CdR'!H123 -> 0 | AH125: ='AT CdR'!I123 -> 0 | AW125: ='AT CdR'!J123 -> 0 | BL125: ='AT CdR'!K123 -> 0 | CA125: ='AT CdR'!L123 -> 0 | CP125: ='AT CdR'!M123 -> 0 | CS125: ='AT CdR'!N123 -> FALSE
A126: ='AT CdR'!A124 -> 7.6 | B126: ='AT CdR'!B124 -> 0 | C126: ='AT CdR'!C153 -> 0 | D126: ='AT CdR'!E153 -> 0 | E126: ='AT CdR'!F153 -> 0 | F126: ='AT CdR'!G153 -> 0 | S126: ='AT CdR'!H124 -> 0 | AH126: ='AT CdR'!I124 -> 0 | AW126: ='AT CdR'!J124 -> 0 | BL126: ='AT CdR'!K124 -> 0 | CA126: ='AT CdR'!L124 -> 0 | CP126: ='AT CdR'!M124 -> 0 | CS126: ='AT CdR'!N124 -> FALSE
A127: ='AT CdR'!A125 -> 8. | B127: ='AT CdR'!B125:S125 -> 
A128: ='AT CdR'!A126 -> 8.1 | B128: ='AT CdR'!B126 -> 0 | C128: ='AT CdR'!C153 -> 0 | D128: ='AT CdR'!E153 -> 0 | E128: ='AT CdR'!F153 -> 0 | F128: ='AT CdR'!G153 -> 0 | I128: =IFERROR((H128-$F128)/(G128-$F128),"") ->  | L128: =IFERROR((K128-$F128)/(J128-$F128),"") ->  | O128: =IFERROR((N128-$F128)/(M128-$F128),"") ->  | R128: =IFERROR((Q128-$F128)/(P128-$F128),"") ->  | S128: ='AT CdR'!H126 -> 0 | U128: =IFERROR((T128-$F128)/(S128-$F128),"") ->  | X128: =IFERROR((W128-$F128)/(V128-$F128),"") ->  | AA128: =IFERROR((Z128-$F128)/(Y128-$F128),"") ->  | AD128: =IFERROR((AC128-$F128)/(AB128-$F128),"") ->  | AG128: =IFERROR((AF128-$F128)/(AE128-$F128),"") ->  | AH128: ='AT CdR'!I126 -> 0 | AJ128: =IFERROR((AI128-$F128)/(AH128-$F128),"") ->  | AM128: =IFERROR((AL128-$F128)/(AK128-$F128),"") ->  | AP128: =IFERROR((AO128-$F128)/(AN128-$F128),"") ->  | AS128: =IFERROR((AR128-$F128)/(AQ128-$F128),"") ->  | AV128: =IFERROR((AU128-$F128)/(AT128-$F128),"") ->  | AW128: ='AT CdR'!J126 -> 0 | AY128: =IFERROR((AX128-$F128)/(AW128-$F128),"") ->  | BB128: =IFERROR((BA128-$F128)/(AZ128-$F128),"") ->  | BE128: =IFERROR((BD128-$F128)/(BC128-$F128),"") ->  | BH128: =IFERROR((BG128-$F128)/(BF128-$F128),"") ->  | BK128: =IFERROR((BJ128-$F128)/(BI128-$F128),"") ->  | BL128: ='AT CdR'!K126 -> 0 | BN128: =IFERROR((BM128-$F128)/(BL128-$F128),"") ->  | BQ128: =IFERROR((BP128-$F128)/(BO128-$F128),"") ->  | BT128: =IFERROR((BS128-$F128)/(BR128-$F128),"") ->  | BW128: =IFERROR((BV128-$F128)/(BU128-$F128),"") ->  | BZ128: =IFERROR((BY128-$F128)/(BX128-$F128),"") ->  | CA128: ='AT CdR'!L126 -> 0 | CC128: =IFERROR((CB128-$F128)/(CA128-$F128),"") ->  | CF128: =IFERROR((CE128-$F128)/(CD128-$F128),"") ->  | CI128: =IFERROR((CH128-$F128)/(CG128-$F128),"") ->  | CL128: =IFERROR((CK128-$F128)/(CJ128-$F128),"") ->  | CO128: =IFERROR((CN128-$F128)/(CM128-$F128),"") ->  | CP128: ='AT CdR'!M126 -> 0 | CR128: =IFERROR((CQ128-$F128)/(CP128-$F128),"") ->  | CS128: ='AT CdR'!N126 -> FALSE
A129: ='AT CdR'!A127 -> 8.2 | B129: ='AT CdR'!B127 -> 0 | C129: ='AT CdR'!C154 -> 0 | D129: ='AT CdR'!E154 -> 0 | E129: ='AT CdR'!F154 -> 0 | F129: ='AT CdR'!G154 -> 0 | R129: =IFERROR((Q129-$F129)/(P129-$F129),"") ->  | S129: ='AT CdR'!H127 -> 0 | AH129: ='AT CdR'!I127 -> 0 | AW129: ='AT CdR'!J127 -> 0 | BL129: ='AT CdR'!K127 -> 0 | CA129: ='AT CdR'!L127 -> 0 | CP129: ='AT CdR'!M127 -> 0 | CS129: ='AT CdR'!N127 -> FALSE
A130: ='AT CdR'!A128 -> 8.3 | B130: ='AT CdR'!B128 -> 0 | C130: ='AT CdR'!C155 -> 0 | D130: ='AT CdR'!E155 -> 0 | E130: ='AT CdR'!F155 -> 0 | F130: ='AT CdR'!G155 -> 0 | R130: =IFERROR((Q130-$F130)/(P130-$F130),"") ->  | S130: ='AT CdR'!H128 -> 0 | AH130: ='AT CdR'!I128 -> 0 | AW130: ='AT CdR'!J128 -> 0 | BL130: ='AT CdR'!K128 -> 0 | CA130: ='AT CdR'!L128 -> 0 | CP130: ='AT CdR'!M128 -> 0 | CS130: ='AT CdR'!N128 -> FALSE
A131: ='AT CdR'!A129 -> 8.4 | B131: ='AT CdR'!B129 -> 0 | C131: ='AT CdR'!C156 -> 0 | D131: ='AT CdR'!E156 -> 0 | E131: ='AT CdR'!F156 -> 0 | F131: ='AT CdR'!G156 -> 0 | S131: ='AT CdR'!H129 -> 0 | AH131: ='AT CdR'!I129 -> 0 | AW131: ='AT CdR'!J129 -> 0 | BL131: ='AT CdR'!K129 -> 0 | BN131: =IFERROR((BM131-$F131)/(BL131-$F131),"") ->  | CA131: ='AT CdR'!L129 -> 0 | CP131: ='AT CdR'!M129 -> 0 | CR131: =IFERROR((CQ131-$F131)/(CP131-$F131),"") ->  | CS131: ='AT CdR'!N129 -> FALSE
A132: ='AT CdR'!A130 -> 8.5 | B132: ='AT CdR'!B130 -> 0 | C132: ='AT CdR'!C159 -> 0 | D132: ='AT CdR'!E159 -> 0 | E132: ='AT CdR'!F159 -> 0 | F132: ='AT CdR'!G159 -> 0 | S132: ='AT CdR'!H130 -> 0 | AH132: ='AT CdR'!I130 -> 0 | AW132: ='AT CdR'!J130 -> 0 | BL132: ='AT CdR'!K130 -> 0 | CA132: ='AT CdR'!L130 -> 0 | CP132: ='AT CdR'!M130 -> 0 | CS132: ='AT CdR'!N130 -> FALSE
A133: ='AT CdR'!A131 -> 8.6 | B133: ='AT CdR'!B131 -> 0 | C133: ='AT CdR'!C160 -> 0 | D133: ='AT CdR'!E160 -> 0 | E133: ='AT CdR'!F160 -> 0 | F133: ='AT CdR'!G160 -> 0 | S133: ='AT CdR'!H131 -> 0 | AH133: ='AT CdR'!I131 -> 0 | AW133: ='AT CdR'!J131 -> 0 | BL133: ='AT CdR'!K131 -> 0 | CA133: ='AT CdR'!L131 -> 0 | CP133: ='AT CdR'!M131 -> 0 | CS133: ='AT CdR'!N131 -> FALSE
A134: ='AT CdR'!A132 -> 9. | B134: ='AT CdR'!B132:S132 -> 
A135: ='AT CdR'!A133 -> 9.1 | B135: ='AT CdR'!B133 -> 0 | C135: ='AT CdR'!C160 -> 0 | D135: ='AT CdR'!E160 -> 0 | E135: ='AT CdR'!F160 -> 0 | F135: ='AT CdR'!G160 -> 0 | I135: =IFERROR((H135-$F135)/(G135-$F135),"") ->  | L135: =IFERROR((K135-$F135)/(J135-$F135),"") ->  | O135: =IFERROR((N135-$F135)/(M135-$F135),"") ->  | R135: =IFERROR((Q135-$F135)/(P135-$F135),"") ->  | S135: ='AT CdR'!H133 -> 0 | U135: =IFERROR((T135-$F135)/(S135-$F135),"") ->  | X135: =IFERROR((W135-$F135)/(V135-$F135),"") ->  | AA135: =IFERROR((Z135-$F135)/(Y135-$F135),"") ->  | AD135: =IFERROR((AC135-$F135)/(AB135-$F135),"") ->  | AG135: =IFERROR((AF135-$F135)/(AE135-$F135),"") ->  | AH135: ='AT CdR'!I133 -> 0 | AJ135: =IFERROR((AI135-$F135)/(AH135-$F135),"") ->  | AM135: =IFERROR((AL135-$F135)/(AK135-$F135),"") ->  | AP135: =IFERROR((AO135-$F135)/(AN135-$F135),"") ->  | AS135: =IFERROR((AR135-$F135)/(AQ135-$F135),"") ->  | AV135: =IFERROR((AU135-$F135)/(AT135-$F135),"") ->  | AW135: ='AT CdR'!J133 -> 0 | AY135: =IFERROR((AX135-$F135)/(AW135-$F135),"") ->  | BB135: =IFERROR((BA135-$F135)/(AZ135-$F135),"") ->  | BE135: =IFERROR((BD135-$F135)/(BC135-$F135),"") ->  | BH135: =IFERROR((BG135-$F135)/(BF135-$F135),"") ->  | BK135: =IFERROR((BJ135-$F135)/(BI135-$F135),"") ->  | BL135: ='AT CdR'!K133 -> 0 | BN135: =IFERROR((BM135-$F135)/(BL135-$F135),"") ->  | BQ135: =IFERROR((BP135-$F135)/(BO135-$F135),"") ->  | BT135: =IFERROR((BS135-$F135)/(BR135-$F135),"") ->  | BW135: =IFERROR((BV135-$F135)/(BU135-$F135),"") ->  | BZ135: =IFERROR((BY135-$F135)/(BX135-$F135),"") ->  | CA135: ='AT CdR'!L133 -> 0 | CC135: =IFERROR((CB135-$F135)/(CA135-$F135),"") ->  | CF135: =IFERROR((CE135-$F135)/(CD135-$F135),"") ->  | CI135: =IFERROR((CH135-$F135)/(CG135-$F135),"") ->  | CL135: =IFERROR((CK135-$F135)/(CJ135-$F135),"") ->  | CO135: =IFERROR((CN135-$F135)/(CM135-$F135),"") ->  | CP135: ='AT CdR'!M133 -> 0 | CR135: =IFERROR((CQ135-$F135)/(CP135-$F135),"") ->  | CS135: ='AT CdR'!N133 -> FALSE
A136: ='AT CdR'!A134 -> 9.2 | B136: ='AT CdR'!B134 -> 0 | C136: ='AT CdR'!C161 -> 0 | D136: ='AT CdR'!E161 -> 0 | E136: ='AT CdR'!F161 -> 0 | F136: ='AT CdR'!G161 -> 0 | R136: =IFERROR((Q136-$F136)/(P136-$F136),"") ->  | S136: ='AT CdR'!H134 -> 0 | AH136: ='AT CdR'!I134 -> 0 | AW136: ='AT CdR'!J134 -> 0 | BL136: ='AT CdR'!K134 -> 0 | CA136: ='AT CdR'!L134 -> 0 | CP136: ='AT CdR'!M134 -> 0 | CS136: ='AT CdR'!N134 -> FALSE
A137: ='AT CdR'!A135 -> 9.3 | B137: ='AT CdR'!B135 -> 0 | C137: ='AT CdR'!C162 -> 0 | D137: ='AT CdR'!E162 -> 0 | E137: ='AT CdR'!F162 -> 0 | F137: ='AT CdR'!G162 -> 0 | R137: =IFERROR((Q137-$F137)/(P137-$F137),"") ->  | S137: ='AT CdR'!H135 -> 0 | AH137: ='AT CdR'!I135 -> 0 | AW137: ='AT CdR'!J135 -> 0 | BL137: ='AT CdR'!K135 -> 0 | CA137: ='AT CdR'!L135 -> 0 | CP137: ='AT CdR'!M135 -> 0 | CS137: ='AT CdR'!N135 -> FALSE
A138: ='AT CdR'!A136 -> 9.4 | B138: ='AT CdR'!B136 -> 0 | C138: ='AT CdR'!C163 -> 0 | D138: ='AT CdR'!E163 -> 0 | E138: ='AT CdR'!F163 -> 0 | F138: ='AT CdR'!G163 -> 0 | S138: ='AT CdR'!H136 -> 0 | AH138: ='AT CdR'!I136 -> 0 | AW138: ='AT CdR'!J136 -> 0 | BL138: ='AT CdR'!K136 -> 0 | BN138: =IFERROR((BM138-$F138)/(BL138-$F138),"") ->  | CA138: ='AT CdR'!L136 -> 0 | CP138: ='AT CdR'!M136 -> 0 | CR138: =IFERROR((CQ138-$F138)/(CP138-$F138),"") ->  | CS138: ='AT CdR'!N136 -> FALSE
A139: ='AT CdR'!A137 -> 9.5 | B139: ='AT CdR'!B137 -> 0 | C139: ='AT CdR'!C166 -> 0 | D139: ='AT CdR'!E166 -> 0 | E139: ='AT CdR'!F166 -> 0 | F139: ='AT CdR'!G166 -> 0 | S139: ='AT CdR'!H137 -> 0 | AH139: ='AT CdR'!I137 -> 0 | AW139: ='AT CdR'!J137 -> 0 | BL139: ='AT CdR'!K137 -> 0 | CA139: ='AT CdR'!L137 -> 0 | CP139: ='AT CdR'!M137 -> 0 | CS139: ='AT CdR'!N137 -> FALSE
A140: ='AT CdR'!A138 -> 9.6 | B140: ='AT CdR'!B138 -> 0 | C140: ='AT CdR'!C167 -> 0 | D140: ='AT CdR'!E167 -> 0 | E140: ='AT CdR'!F167 -> 0 | F140: ='AT CdR'!G167 -> 0 | S140: ='AT CdR'!H138 -> 0 | AH140: ='AT CdR'!I138 -> 0 | AW140: ='AT CdR'!J138 -> 0 | BL140: ='AT CdR'!K138 -> 0 | CA140: ='AT CdR'!L138 -> 0 | CP140: ='AT CdR'!M138 -> 0 | CS140: ='AT CdR'!N138 -> FALSE
A141: ='AT CdR'!A139 -> 10. | B141: ='AT CdR'!B139:S139 -> 
A142: ='AT CdR'!A140 -> 10.1 | B142: ='AT CdR'!B140 -> 0 | C142: ='AT CdR'!C167 -> 0 | D142: ='AT CdR'!E167 -> 0 | E142: ='AT CdR'!F167 -> 0 | F142: ='AT CdR'!G167 -> 0 | I142: =IFERROR((H142-$F142)/(G142-$F142),"") ->  | L142: =IFERROR((K142-$F142)/(J142-$F142),"") ->  | O142: =IFERROR((N142-$F142)/(M142-$F142),"") ->  | R142: =IFERROR((Q142-$F142)/(P142-$F142),"") ->  | S142: ='AT CdR'!H140 -> 0 | U142: =IFERROR((T142-$F142)/(S142-$F142),"") ->  | X142: =IFERROR((W142-$F142)/(V142-$F142),"") ->  | AA142: =IFERROR((Z142-$F142)/(Y142-$F142),"") ->  | AD142: =IFERROR((AC142-$F142)/(AB142-$F142),"") ->  | AG142: =IFERROR((AF142-$F142)/(AE142-$F142),"") ->  | AH142: ='AT CdR'!I140 -> 0 | AJ142: =IFERROR((AI142-$F142)/(AH142-$F142),"") ->  | AM142: =IFERROR((AL142-$F142)/(AK142-$F142),"") ->  | AP142: =IFERROR((AO142-$F142)/(AN142-$F142),"") ->  | AS142: =IFERROR((AR142-$F142)/(AQ142-$F142),"") ->  | AV142: =IFERROR((AU142-$F142)/(AT142-$F142),"") ->  | AW142: ='AT CdR'!J140 -> 0 | AY142: =IFERROR((AX142-$F142)/(AW142-$F142),"") ->  | BB142: =IFERROR((BA142-$F142)/(AZ142-$F142),"") ->  | BE142: =IFERROR((BD142-$F142)/(BC142-$F142),"") ->  | BH142: =IFERROR((BG142-$F142)/(BF142-$F142),"") ->  | BK142: =IFERROR((BJ142-$F142)/(BI142-$F142),"") ->  | BL142: ='AT CdR'!K140 -> 0 | BN142: =IFERROR((BM142-$F142)/(BL142-$F142),"") ->  | BQ142: =IFERROR((BP142-$F142)/(BO142-$F142),"") ->  | BT142: =IFERROR((BS142-$F142)/(BR142-$F142),"") ->  | BW142: =IFERROR((BV142-$F142)/(BU142-$F142),"") ->  | BZ142: =IFERROR((BY142-$F142)/(BX142-$F142),"") ->  | CA142: ='AT CdR'!L140 -> 0 | CC142: =IFERROR((CB142-$F142)/(CA142-$F142),"") ->  | CF142: =IFERROR((CE142-$F142)/(CD142-$F142),"") ->  | CI142: =IFERROR((CH142-$F142)/(CG142-$F142),"") ->  | CL142: =IFERROR((CK142-$F142)/(CJ142-$F142),"") ->  | CO142: =IFERROR((CN142-$F142)/(CM142-$F142),"") ->  | CP142: ='AT CdR'!M140 -> 0 | CR142: =IFERROR((CQ142-$F142)/(CP142-$F142),"") ->  | CS142: ='AT CdR'!N140 -> FALSE
A143: ='AT CdR'!A141 -> 10.2 | B143: ='AT CdR'!B141 -> 0 | C143: ='AT CdR'!C168 -> 0 | D143: ='AT CdR'!E168 -> 0 | E143: ='AT CdR'!F168 -> 0 | F143: ='AT CdR'!G168 -> 0 | R143: =IFERROR((Q143-$F143)/(P143-$F143),"") ->  | S143: ='AT CdR'!H141 -> 0 | AH143: ='AT CdR'!I141 -> 0 | AW143: ='AT CdR'!J141 -> 0 | BL143: ='AT CdR'!K141 -> 0 | CA143: ='AT CdR'!L141 -> 0 | CP143: ='AT CdR'!M141 -> 0 | CS143: ='AT CdR'!N141 -> FALSE
A144: ='AT CdR'!A142 -> 10.3 | B144: ='AT CdR'!B142 -> 0 | C144: ='AT CdR'!C169 -> 0 | D144: ='AT CdR'!E169 -> 0 | E144: ='AT CdR'!F169 -> 0 | F144: ='AT CdR'!G169 -> 0 | R144: =IFERROR((Q144-$F144)/(P144-$F144),"") ->  | S144: ='AT CdR'!H142 -> 0 | AH144: ='AT CdR'!I142 -> 0 | AW144: ='AT CdR'!J142 -> 0 | BL144: ='AT CdR'!K142 -> 0 | CA144: ='AT CdR'!L142 -> 0 | CP144: ='AT CdR'!M142 -> 0 | CS144: ='AT CdR'!N142 -> FALSE
A145: ='AT CdR'!A143 -> 10.4 | B145: ='AT CdR'!B143 -> 0 | C145: ='AT CdR'!C170 -> 0 | D145: ='AT CdR'!E170 -> 0 | E145: ='AT CdR'!F170 -> 0 | F145: ='AT CdR'!G170 -> 0 | S145: ='AT CdR'!H143 -> 0 | AH145: ='AT CdR'!I143 -> 0 | AW145: ='AT CdR'!J143 -> 0 | BL145: ='AT CdR'!K143 -> 0 | BN145: =IFERROR((BM145-$F145)/(BL145-$F145),"") ->  | CA145: ='AT CdR'!L143 -> 0 | CP145: ='AT CdR'!M143 -> 0 | CR145: =IFERROR((CQ145-$F145)/(CP145-$F145),"") ->  | CS145: ='AT CdR'!N143 -> FALSE
A146: ='AT CdR'!A144 -> 10.5 | B146: ='AT CdR'!B144 -> 0 | C146: ='AT CdR'!C173 -> 0 | D146: ='AT CdR'!E173 -> 0 | E146: ='AT CdR'!F173 -> 0 | F146: ='AT CdR'!G173 -> 0 | S146: ='AT CdR'!H144 -> 0 | AH146: ='AT CdR'!I144 -> 0 | AW146: ='AT CdR'!J144 -> 0 | BL146: ='AT CdR'!K144 -> 0 | CA146: ='AT CdR'!L144 -> 0 | CP146: ='AT CdR'!M144 -> 0 | CS146: ='AT CdR'!N144 -> FALSE
A147: ='AT CdR'!A145 -> 10.6 | B147: ='AT CdR'!B145 -> 0 | C147: ='AT CdR'!C174 -> 0 | D147: ='AT CdR'!E174 -> 0 | E147: ='AT CdR'!F174 -> 0 | F147: ='AT CdR'!G174 -> 0 | S147: ='AT CdR'!H145 -> 0 | AH147: ='AT CdR'!I145 -> 0 | AW147: ='AT CdR'!J145 -> 0 | BL147: ='AT CdR'!K145 -> 0 | CA147: ='AT CdR'!L145 -> 0 | CP147: ='AT CdR'!M145 -> 0 | CS147: ='AT CdR'!N145 -> FALSE

Sheet CE Projets
A1: Axe stratégique | C1: Compétences | D1: Projet
A2: Axe 2: Compétitivité économique | B2: 1 | C2: Propres | D2: Pôle émergence Cluster Industriel - Reconversion du campus de Tanger
B3: 2 | D3: Pôle émergence Cluster Industriel - Cité Mohammed VI Tanger Tech
B4: 3 | D4: Trois (03) Plateformes de valorisation de l'artisanat
B5: 4 | D5: Zone Industrielle Ksar el Kebir | AA5: Propres
B6: 5 | D6: Réalisation de cinq (05) Plateformes de valorisation agricole
B7: 6 | D7: Deux (02) Plateforme de valorisation des PDM
B8: 7 | D8: Parc des expositions / Palais des congrès
B9: 8 | D9: Créations d’itinéraires culturels et touristiques en milieu rural
B10: 9 | D10: Programme de dynamisation de l’Economie de Proximité
B11: 10 | D11: Dynamisation du littoral - Développement de l’activité Aquaculture dans les 10 VDP / PDA
B12: 1 | C12: Autres | D12: Programme d’aménagements hydriques | AA12: Autres
B13: 2 | D13: Agropole régional
B14: 3
B15: 4
B16: 5
B17: 6
B18: 7
B19: 8
B20: 9
B21: 10

Sheet CE CdR
A1: PDR TTA. Domaine d'intervention: Compétitivité économique . Cadre de résultats
A2: Nº | B2: Résultat | C2: Indicateur de performance | D2: Définition | E2: Type | F2: Unité | G2: Valeur de référence (2016) | H2: Cibles annuelles | N2: Fin du PDR | O2: Responsabilité | Q2: Fréquence | R2: Données: Sources/méthodes | S2: Propriétaire des données | T2: Utilisation
H3: 2017 | I3: 2018 | J3: 2019 | K3: 2020 | L3: 2021 | M3: 2022 | O3: Diffusion | P3: Collecte
A4: COMPETENCES PROPRES
A5: 1. | B5: ='CE Projets'!D2 -> Pôle émergence Cluster Industriel - Reconversion du campus de Tanger
A6: 1.1 | B6: Contribuer à l'amélioration de la compétitivité des entreprises de la région | C6: Part des chefs d'entreprises qui estiment que leur compétitivité est compromise par l'inadéquation "formation Vs emploi" | D6: L'effectif de chefs d'entreprises qui estiment que leur compétitivité est compromise par l'inadéquation "formation Vs emploi" rapporté à l'effectif de chef d'entreprises opérant au niveau de la région | E6: I | F6: % | G6: 100 | M6: 25 | N6: =IF(F6="%",M6,IF(E6="C",M77,IF(E6="I",SUM(H6:M6)))) -> 25 | O6: DESE | P6: RESA | Q6: Une fois (à la fin du PDR) | R6: Etude spécifique | S6: Consultant | T6: La collecte des données dont les sources, la fréquence et les propriétaires ont étés précisées va permettre aux responsables du MENFOP de mesurer, dans quelle mesure la mise en œuvre de l'ensembles des activités prévues pour améliorer l'OE "Primaire" ont-elles permis d'accroitre l'accès à l'enseignement primaire pour le secteur public, les activités ont mieux fonctionnées... Le cas contraire, qu'elles furent les causes qui ont empêché d'atteindre les objectifs escomptés ?? et quelles mesures correctives sont-elles proposés pour rectifier le tir et redresser la situation ??...
A7: 1.2 | B7: L'insertion professionnelles des diplômés du campus universitaire de Tanger est renforcée | C7: Taux de chômage des diplômés | D7: L'effectif des lauréats (Femmes et hommes) du campus universitaire de Tanger qui s'insèrent ou s'auto-sinserent dans la vie active dans un délais de 06 mois, après l'obtention de laur diplôme rapporté au nombre de lauréats campus universitaire de Tanger | E7: I | F7: % | G7: 22 | M7: 9.3 | N7: 9.3 | O7: DESE | P7: RESA | Q7: Trimestrielle à partir de 2022 | R7: Enquête nationale sur l'emploi | S7: Le HCP
A8: 1.3 | B8: Les filières de formation, offertes par le campus de Tanger sont devenus adéquates par rapport aux besoins de l’emploi au sein de la région | C8: La part des filières jugées non adéquates | D8: Le nombre de filières jugées "non adéquates" à la fin du PDR rapporté au nombre de filières enseignées | E8: I | F8: % | G8: 100 | M8: 0 | N8: 0 | O8: DESE | P8: RESA | Q8: Annuelle | R8: Rapports d'activités de l'UAE | S8: L'UAE
A9: 1.4 | N9: FALSE | T9: Idem | Z9: I
A10: 1.5 | N10: FALSE | T10: Idem | Z10: C
A11: 1.6 | N11: FALSE
A12: 2. | B12: ='CE Projets'!D3 -> Pôle émergence Cluster Industriel - Cité Mohammed VI Tanger Tech
A13: 2.1 | B13: Contribuer à la création d'emplois au niveau de la région | C13: Nombre d'emploi | D13: Le cumul du nombre d'emplois directs et indirects crées par les entreprises qui se sont instalées au niveau de la cité Mohamed VI Tanger Tech. | E13: C | F13: 0 | G13: 0 | J13: ?? | K13: 50000 | L13: ?? | M13: 100000 | N13: =IF(F13="%",M13,IF(E13="C",M84,IF(E13="I",SUM(H13:M13)))) -> 70 | O13: DESE | P13: RESA | Q13: Trimestrielle | R13: Rapport d'activité du gestionnaire | S13: Gestionnaire de la cité Med VI Tanger Tech
A14: 2.2 | B14: La cité Mohamed VI Tanger Tech est opérationnelle. | C14: Nombre de compagnies chinoises | D14: Le cumul du nombre d'entreprises chinoises opérant dans la construction automobile, l’industrie aéronautique, le textile ou autre qui se sont instalées au niveau de la cité Mohamed VI Tanger Tech. | E14: C | F14: Compagnie | G14: 0 | J14: ?? | K14: ?? | L14: ?? | M14: ?? | N14: 100 | O14: DESE | P14: RESA | Q14: Trimestrielle | R14: Rapport d'activité du gestionnaire | S14: Gestionnaire de la cité Med VI Tanger Tech
A15: 2.3 | B15: La cité Mohamed VI Tanger Tech est aménagée. | C15: Superficie aménagée | D15: le cumul de la superficie dont le foncier est apuré et est dotée de l'infrastructure et équipements nécessaires en conformité avec les standards internationaux. | E15: C | F15: ha | G15: 0 | I15: ?? | J15: ?? | K15: 500 | L15: ?? | M15: 1000 | O15: DESE | P15: RESA | Q15: Trimestrielle | R15: PV(s) de réception définitive des travaux et équipements | S15: Société́ d’aménagement Tanger Tech
A16: 2.4 | N16: FALSE | T16: Idem
A17: 2.5 | N17: FALSE
A18: 2.6 | N18: FALSE
A19: 3. | B19: ='CE Projets'!D4 -> Trois (03) Plateformes de valorisation de l'artisanat
A20: 3.1 | B20: Contribuer à la création d'emplois au niveau de la région | C20: Nombre d'emploi | D20: Le cumul du nombre d'emplois directs et indirects crées par les entreprises qui se sont instalées au niveau des 03 plateformes d'artisanat | E20: C | F20: 0 | G20: 0 | M20: 3000 | N20: =IF(F20="%",M20,IF(E20="C",M91,IF(E20="I",SUM(H20:M20)))) -> 0 | O20: DESE | P20: DESE | Q20: Annuelle | R20: Etude spécifique | S20: Consultant | T20: Idem
A21: 3.3 | B21: la commercialisation et l'exportation des produits artisanaux de la région de l’artisanat sont renforcées | C21: Part des exportations | D21: Valeur des exportations d'artisanat produit au niveau de la région rapporté à la valeur totale des exportations d'artisanat | E21: I | F21: % | G21: 0.8 | M21: 8 | N21: =IF(F21="%",M21,IF(E21="C",M93,IF(E21="I",SUM(H21:M21)))) -> 8 | R21: statitiques sur les exportations | S21: Secrétariat d'Etat chargé de l'artisanat
A22: 3.4 | B22: des plateformes d'artisanat sont crées | C22: Nombre de plateformes d'artisanat | D22: Espaces adéquats avec infrastructures spécifiques ( Ateliers de travail "Poterie, Bois, Céramique…", showroom, espace "Création & Exposition", salle de réunion, espace de formation) et, services mutualisés (Centrale d’achat, cellule de recherche de débouchés, site d’e-commerce) opérationnels, gérés par un/des gestionnaire/s de sites. | E22: C | F22: plateforme | G22: 0 | L22: 3 | N22: 0 | Q22: Une fois en 2021 | R22: PV(s) de réception définitive des travaux et équipements | S22: Commissions de récéption des travaux et des équipements | T22: Idem
A23: 3.5 | N23: =IF(F23="%",M23,IF(E23="C",M23,IF(E23="I",SUM(H23:M23)))) -> FALSE
A24: 3.6 | N24: =IF(F24="%",M24,IF(E24="C",M23,IF(E24="I",SUM(H24:M24)))) -> FALSE
A25: 4. | B25: ='CE Projets'!D5 -> Zone Industrielle Ksar el Kebir | T25: Idem
A26: 4.1 | B26: Contribution à la création d'emploi au niveau de la région | C26: Nombre d'emploi | D26: Le cumul du nombre d'emplois directs et indirects crées par les entreprises qui se sont instalées au niveau de la zone industrielle de Ksar El Kébir. | E26: C | F26: 0 | G26: 0 | J26: 300 | K26: 500 | L26: 700 | M26: 1000 | N26: =IF(F26="%",M26,IF(E26="C",M26,IF(E26="I",SUM(H26:M26)))) -> 1000 | O26: DESE | P26: RESA | Q26: Trimestrielle | R26: Rapport d'activité du gestionnaire | S26: Gestionnaire de la zone industrielle de Ksar El Kébir
A27: 4.2 | B27: Le positionnement stratégique industriel de la région est renforcé | C27: Effectif d'entreprise | D27: Le nombre cumulé d'entreprises qui s'installent au niveau de la zone industrielle de Ksar El Kébir | E27: C | F27: Entreprise | G27: 0 | J27: 100 | K27: =J27+26 -> 126 | L27: =K27+26 -> 152 | M27: =L27+26 -> 178 | N27: =IF(F27="%",M27,IF(E27="C",M27,IF(E27="I",SUM(H27:M27)))) -> 178 | O27: DESE | P27: RESA | Q27: Trimestrielle | R27: Rapport d'activité du gestionnaire | S27: Gestionnaire de la zone industrielle de Ksar El Kébir | T27: Idem
A28: 4.3 | B28: La zone industrielle Ksar El Kébir est aménagée. | C28: Superficie aménagée | D28: Le cumul de la superficie dont le foncier est apuré et est dotée de l'infrastructure et équipements nécessaires en conformité avec les standards internationaux. | E28: C | F28: ha | G28: 0 | J28: 15 | K28: =J28+4 -> 19 | L28: =K28+4 -> 23 | M28: =L28+7 -> 30 | N28: =IF(F28="%",M28,IF(E28="C",M28,IF(E28="I",SUM(H28:M28)))) -> 30 | O28: DESE | P28: RESA | Q28: Annuelle | R28: PV(s) de réception définitive des travaux et équipements | S28: Commissions de récéption des travaux et des équipements | T28: Idem
A29: 4.4 | N29: FALSE
A30: 4.5 | N30: FALSE
A31: 4.6 | N31: FALSE
A32: 5. | B32: ='CE Projets'!D6 -> Réalisation de cinq (05) Plateformes de valorisation agricole | T32: Idem
A33: 5.1 | B33: Contribution à la création d'emploi au niveau de la région | C33: Nombre d'emploi | D33: Le cumul du nombre d'emplois directs et indirects crées par les entreprises qui se sont instalées au niveau des 05 plateformes de valorisation agricole. | E33: C | F33: emploi | G33: 0 | L33: ?? | M33: 7500 | N33: =IF(F33="%",M33,IF(E33="C",M33,IF(E33="I",SUM(H33:M33)))) -> 7500 | O33: DESE | P33: RESA | Q33: Trimestrielle | R33: Rapport d'activité du gestionnaire | S33: Gestionnaire des plateformes de valorisation agricole | T33: Idem
A34: 5.2 | B34: Les produits agricoles de la région y compris du terroire, sont valorisés | C34: Nombre d'entreprise | D34: Nombre d'entreprises de valorisation des produits agricoles y compris du terroire qui se sont installées au niveau des plateformes de valorisation agricole | E34: C | F34: 0 | G34: 0 | L34: ?? | M34: 210 | N34: =IF(F34="%",M34,IF(E34="C",M34,IF(E34="I",SUM(H34:M34)))) -> 210 | O34: DESE | P34: RESA | Q34: Trimestrielle | R34: Rapport d'activité du gestionnaire | S34: Gestionnaire des plateformes de valorisation agricole
A35: 5.3 | B35: des plateformes de valorisation agricole, sont crées au niveau de la région | C35: Nombre de plateformes | D35: zone amenagée avec infrastructure appropriée et services dédiés | E35: I | F35: 0 | G35: 0 | K35: 5 | N35: 5 | O35: DESE | P35: RESA | Q35: Annuelle (à partir de 2020) | R35: PV(s) de réception définitive des travaux et équipements | S35: Commissions de récéption des travaux et des équipements
A36: 5.4 | N36: FALSE | T36: Idem
A37: 5.5 | N37: FALSE
A38: 5.6 | N38: FALSE
A39: 6. | B39: ='CE Projets'!D7 -> Deux (02) Plateforme de valorisation des PDM | T39: Idem
A40: 6.1 | B40: Contribuer à la création d'emplois au niveau de la région | C40: Nombre d'emploi | D40: Le cumul du nombre d'emplois directs et indirects crées par les entreprises qui se sont instalées au niveau des 02 plateformes de valorisation des PDM | E40: C | F40: 0 | G40: 0 | K40: 2000 | L40: 2000 | M40: 2000 | N40: =IF(F40="%",M40,IF(E40="C",M40,IF(E40="I",SUM(H40:M40)))) -> 2000 | O40: DESE | P40: RESA | Q40: Annuelle | R40: Etude spécifique | S40: Consultant | T40: Idem
A41: 6.2 | B41: L'exportation des produits de la mer de la région s'est renforcée | C41: Part des exportations | D41: Valeur des exportations de produits de pêche valorisés au niveau de la région rapportée à la valeur totale des exportations des produits de l'industrie de la pêche | E41: I | F41: % | G41: TBD | M41: 8 | N41: =IF(F41="%",M41,IF(E41="C",M41,IF(E41="I",SUM(H41:M41)))) -> 8 | O41: DESE | P41: RESA | R41: statitiques sur les exportations | S41: Secrétariat d'Etat chargé de l'artisanat | T41: Idem
A42: 6.3 | B42: Des plateformes de valorisation des PDM sont crées | C42: Nombre de plateformes | D42: Espaces adéquats avec infrastructures et services spécifiques, gérés par un/des gestionnaire/s de sites. | E42: C | F42: plateforme | G42: 0 | J42: 2 | K42: 2 | L42: 2 | M42: 2 | N42: =IF(F42="%",M42,IF(E42="C",M42,IF(E42="I",SUM(H42:M42)))) -> 2 | O42: DESE | P42: RESA | Q42: Annuelle (à partir de 2019) | R42: PV(s) de réception provisoire et définitive des travaux et équipements | S42: Commissions de récéption des travaux et des équipements | T42: Idem
A43: 6.4 | N43: =IF(F43="%",M43,IF(E43="C",M43,IF(E43="I",SUM(H43:M43)))) -> FALSE | T43: Idem
A44: 6.5 | N44: FALSE
A45: 6.6 | N45: FALSE
A46: 7. | B46: ='CE Projets'!D8 -> Parc des expositions / Palais des congrès | T46: Idem
A47: 7.1 | B47: Contribution à la création d'emploi au niveau de la région | C47: Nombre d'emploi | D47: Le cumul du nombre d'emplois directs et indirects crées par le parc des expositions/palais des congrés | E47: C | F47: emploi | G47: 0 | M47: 5000 | N47: =IF(F47="%",M47,IF(E47="C",M47,IF(E47="I",SUM(H47:M47)))) -> 5000 | O47: DESE | P47: DESE | Q47: Annuelle | R47: Etude spécifique | S47: Consultant | T47: Idem
A48: 7.2 | B48: l' émergence industrielle de la région est renforcée par la captation d’événements internationaux dans les secteurs de pointe (automobile, aéronautique, industries vertes, etc.) | C48: Nombre d'évenements | D48: Nombre d'évenements organisés dans les secteurs de pointe (automobile, aéronautique, industries vertes, etc.) | N48: FALSE | T48: Idem
A49: 7.3 | B49: L'infrastructure afférente à la captation d’événements internationaux dans les secteurs de pointe (automobile, aéronautique, industries vertes, etc.) est créee | C49: Nombre d'infrastructure | D49: Construction d'un parc d’exposition et d'un palis ds congrés y compris leurs infrastructures support hors sites | E49: I | F49: infrastructure | G49: 0 | M49: 2 | N49: 2 | Q49: Annuelle (à partir de 2022) | R49: PV(s) de réception provisoire et définitive des travaux et équipements | S49: Commissions de récéption des travaux et des équipements | T49: Idem
A50: 7.4 | N50: FALSE | T50: Idem
A51: 7.5 | N51: FALSE
A52: 7.6 | N52: FALSE
A53: 8. | B53: ='CE Projets'!D9 -> Créations d’itinéraires culturels et touristiques en milieu rural | T53: Idem
A54: 8.1 | B54: Contribution à la création d'emploi au niveau des zoennes concernées par les itinéraires touristiques et culturels | C54: Nombre d'emploi | D54: Le cumul du nombre d'emplois directs et indirects crées parles itinéraires touristiques et culturels | E54: C | F54: emploi | G54: 0 | M54: 600 | N54: =IF(F54="%",M54,IF(E54="C",M54,IF(E54="I",SUM(H54:M54)))) -> 600 | O54: DESE | P54: DESE | Q54: Annuelle | R54: Etude spécifique | S54: Consultant | T54: Idem
A55: 8.2 | B55: L’attractivité touristique de la Région Tanger Tétouan Al Hoceima est renforcée | C55: Durée Moyenne de Séjour | D55: Durée Moyenne de Séjour au niveau des établissements d'hébergement classés | E55: I | F55: Nuitée | G55: 1.9 | M55: 3.5 | N55: 3.5 | R55: Statististiques sur le tourisme au Maroc | S55: Observatoire du tourisme | T55: Idem
A56: 8.3 | B56: De nouveau circuits culturels et touristiques sont crées | C56: Nombre de circuit | D56: trajet à suivre le long d’un chemin pittoresque, axé sur une thématique distinctive et qui relie un certain nombre de sites touristiques évocateurs et ouverts aux visiteurs. On y trouve également une variété de services complémentaires, tels l’hébergement, la restauration, des postes d’essence ainsi que des services d’accueil et d’information touristiques. Si le trajet est en boucle, c’est-à-dire si le départ et l’arrivée se font au même point, il sera appelé « circuit ». Si les points de départ et d’arrivée sont différents, il sera appelé « route » | E56: C | M56: 20 | N56: 20 | Q56: Annuelle (à partir de 2022) | R56: PV(s) de réception provisoire et définitive des travaux et équipements | S56: Commissions de récéption des travaux et des équipements | T56: Idem
A57: 8.4 | N57: FALSE | T57: Idem
A58: 8.5 | N58: FALSE
A59: 8.6 | N59: FALSE
A60: 9. | B60: ='CE Projets'!D10 -> Programme de dynamisation de l’Economie de Proximité | T60: Idem
A61: 9.1 | N61: FALSE | T61: Idem
A62: 9.2 | N62: FALSE | T62: Idem
A63: 9.3 | N63: FALSE | T63: Idem
A64: 9.4 | N64: FALSE | T64: Idem
A65: 9.5 | N65: FALSE
A66: 9.6 | N66: FALSE
A67: 10. | B67: ='CE Projets'!D11 -> Dynamisation du littoral - Développement de l’activité Aquaculture dans les 10 VDP / PDA | T67: Idem
A68: 10.1 | B68: Contribuer à la promotion des métiers d’aquaculture au niveau de la région | C68: Nombre d'emploi | D68: Le cumul du nombre d'emplois directs et indirects crées par les unités d'aquaculture qui se sont instalées au niveau des 03 plateformes d'artisanat | E68: C | F68: 0 | G68: 0 | K68: 1500 | L68: 1500 | M68: 1500 | N68: =IF(F68="%",M68,IF(E68="C",M68,IF(E68="I",SUM(H68:M68)))) -> 1500 | O68: DESE | P68: DESE | Q68: Annuelle | R68: Etude spécifique | S68: Consultant | T68: Idem
A69: 10.2 | B69: Des unités d'aquaculture sont créees | C69: Nombre d'unités | D69: Unité d'élevage et de culture de populations d'espèces d'eau de mer, animales ou végétales, dans des conditions contrôlées. | E69: C | F69: Unité aquacole | J69: =10*3 -> 30 | K69: =10*3 -> 30 | L69: 30 | M69: 30 | N69: =IF(F69="%",M69,IF(E69="C",M69,IF(E69="I",SUM(H69:M69)))) -> 30 | O69: DESE | P69: DESE | Q69: Trimestrielle | R69: la convention de création et d’exploitation de la ferme et engage la procédure pour sa publication au BO. | S69: ANDA | T69: Idem
A70: 10.3 | B70: Des espaces dévolus au développement de l’aquaculture et des sites où implanter des fermes aquacoles sont crées | C70: Nombre de sites | D70: Des espaces dévolus au développement de l’aquaculture et des sites où implanter des fermes aquacoles sont crées | E70: C | F70: Site aquacole | I70: 10 | J70: 10 | K70: 10 | L70: 10 | M70: 10 | N70: =IF(F70="%",M70,IF(E70="C",M70,IF(E70="I",SUM(H70:M70)))) -> 10 | O70: DESE | P70: DESE | Q70: Annuelle (Une fois en 2018) | R70: Plan d’aménagement aquacole | S70: ANDA | T70: Idem
A71: 10.4 | N71: =IF(F71="%",M71,IF(E71="C",M71,IF(E71="I",SUM(H71:M71)))) -> FALSE | T71: Idem
A72: 10.5 | N72: =IF(F72="%",M72,IF(E72="C",M72,IF(E72="I",SUM(H72:M72)))) -> FALSE
A73: 10.6 | N73: =IF(F73="%",M73,IF(E73="C",M145,IF(E73="I",SUM(H73:M73)))) -> FALSE
A74: AUTRES COMPETENCES
A75: 1. | B75: ='CE Projets'!D12 -> Programme d’aménagements hydriques
A76: 1.1 | N76: =IF(F76="%",M76,IF(E76="C",M148,IF(E76="I",SUM(H76:M76)))) -> FALSE
A77: 1.2 | N77: FALSE
A78: 1.3 | N78: FALSE
A79: 1.4 | B79: De nouveaux aménagements hydriques réalisés | C79: superficie en ha | D79: Superficie en ha aménagée et équipée en équipements hydro-agricoles | N79: FALSE | T79: Idem
A80: 1.5 | N80: FALSE
A81: 1.6 | N81: FALSE
A82: 2. | B82: ='CE Projets'!D13 -> Agropole régional
A83: 2.1 | B83: Contribuer à la création d'emplois au niveau de la région | C83: Nombre d'emploi | D83: Le cumul du nombre d'emplois directs et indirects crées par lesPME qui se sont instalées au niveau de l'agropole | E83: C | F83: emploi | G83: 0 | K83: 10500 | L83: 10500 | M83: 10500 | N83: =IF(F83="%",M83,IF(E83="C",M83,IF(E83="I",SUM(H83:M83)))) -> 10500 | O83: DESE | P83: DESE | Q83: Trimestrielle | R83: Rapport d'activité du gestionnaire | S83: Gestionnaire de la cité Med VI Tanger Tech
A84: 2.2 | B84: L'agropole est opérationnel | C84: Nombre de PME | D84: Le cumul du nombre de PME qui se sont instalées au niveau de l'agropole de la région | E84: C | F84: Compagnie | G84: 0 | J84: 70 | K84: 70 | L84: 70 | M84: 70 | N84: =IF(F84="%",M84,IF(E84="C",M84,IF(E84="I",SUM(H84:M84)))) -> 70 | O84: DESE | P84: DESE | Q84: Trimestrielle | R84: Rapport d'activité du gestionnaire | S84: Gestionnaire de la cité Med VI Tanger Tech
A85: 2.3 | B85: L'agropole régional est aménagé | C85: superficie en ha | D85: le cumul de la superficie dont le foncier est apuré et est dotée de l'infrastructure et équipements nécessaires en conformité avec les standards internationaux afférents à l'aménagement des agropoles | E85: C | F85: ha | G85: 0 | J85: 100 | K85: 100 | L85: 100 | M85: 100 | N85: =IF(F85="%",M85,IF(E85="C",M85,IF(E85="I",SUM(H85:M85)))) -> 100 | O85: DESE | P85: DESE | Q85: Trimestrielle | R85: PV(s) de réception définitive des travaux et équipements | S85: Société́ d’aménagement Tanger Tech
A86: 2.4 | E86: C | T86: Idem
A87: 2.5 | N87: =IF(F87="%",M87,IF(E87="C",M159,IF(E87="I",SUM(H87:M87)))) -> FALSE
A88: 2.6 | N88: FALSE
A89: 3. | B89: ='CE Projets'!D14 -> 
A90: 3.1 | N90: =IF(F90="%",M90,IF(E90="C",M162,IF(E90="I",SUM(H90:M90)))) -> FALSE | T90: Idem
A91: 3.2 | N91: FALSE | T91: Idem
A92: 3.3 | N92: FALSE
A93: 3.4 | N93: FALSE | T93: Idem
A94: 3.5 | N94: FALSE
A95: 3.6 | N95: FALSE
A96: 4. | B96: ='CE Projets'!D15 -> 
A97: 4.1 | N97: =IF(F97="%",M97,IF(E97="C",M169,IF(E97="I",SUM(H97:M97)))) -> FALSE | T97: Idem
A98: 4.2 | N98: FALSE
A99: 4.3 | N99: FALSE
A100: 4.4 | N100: FALSE
A101: 4.5 | N101: FALSE
A102: 4.6 | N102: FALSE
A103: 5. | B103: ='CE Projets'!D16 -> 
A104: 5.1 | N104: =IF(F104="%",M104,IF(E104="C",M176,IF(E104="I",SUM(H104:M104)))) -> FALSE | T104: Idem
A105: 5.2 | N105: FALSE | T105: Idem
A106: 5.3 | N106: FALSE
A107: 5.4 | N107: FALSE | T107: Idem
A108: 5.5 | N108: FALSE
A109: 5.6 | N109: FALSE
A110: 6. | B110: ='CE Projets'!D17 ->  | T110: Idem
A111: 6.1 | N111: =IF(F111="%",M111,IF(E111="C",M183,IF(E111="I",SUM(H111:M111)))) -> FALSE | T111: Idem
A112: 6.2 | N112: FALSE | T112: Idem
A113: 6.3 | N113: FALSE | T113: Idem
A114: 6.4 | N114: FALSE | T114: Idem
A115: 6.5 | N115: FALSE
A116: 6.6 | N116: FALSE
A117: 7. | B117: ='CE Projets'!D18 ->  | T117: Idem
A118: 7.1 | N118: =IF(F118="%",M118,IF(E118="C",M190,IF(E118="I",SUM(H118:M118)))) -> FALSE | T118: Idem
A119: 7.2 | N119: FALSE | T119: Idem
A120: 7.3 | N120: FALSE | T120: Idem
A121: 7.4 | N121: FALSE | T121: Idem
A122: 7.5 | N122: FALSE
A123: 7.6 | N123: FALSE
A124: 8. | B124: ='CE Projets'!D19 ->  | T124: Idem
A125: 8.1 | N125: =IF(F125="%",M125,IF(E125="C",M197,IF(E125="I",SUM(H125:M125)))) -> FALSE | T125: Idem
A126: 8.2 | N126: FALSE | T126: Idem
A127: 8.3 | N127: FALSE | T127: Idem
A128: 8.4 | N128: FALSE | T128: Idem
A129: 8.5 | N129: FALSE
A130: 8.6 | N130: FALSE
A131: 9. | B131: ='CE Projets'!D20 ->  | T131: Idem
A132: 9.1 | N132: =IF(F132="%",M132,IF(E132="C",M204,IF(E132="I",SUM(H132:M132)))) -> FALSE | T132: Idem
A133: 9.2 | N133: FALSE | T133: Idem
A134: 9.3 | N134: FALSE | T134: Idem
A135: 9.4 | N135: FALSE | T135: Idem
A136: 9.5 | N136: FALSE
A137: 9.6 | N137: FALSE
A138: 10. | B138: ='CE Projets'!D21 ->  | T138: Idem
A139: 10.1 | N139: =IF(F139="%",M139,IF(E139="C",M211,IF(E139="I",SUM(H139:M139)))) -> FALSE | T139: Idem
A140: 10.2 | N140: FALSE | T140: Idem
A141: 10.3 | N141: FALSE | T141: Idem
A142: 10.4 | N142: FALSE | T142: Idem
A143: 10.5 | N143: FALSE
A144: 10.6 | N144: FALSE

Sheet CE Itt
A1: PDR. D. Attractivité du territoire | G1: Valeurs trimestrielles prevues, réalisées et performance | S1: Valeurs annuelles prevues, réalisées et performance. | V1: Valeurs trimestrielles prevues, réalisées et performance | AH1: Valeurs annuelles prevues, réalisées et performance. | AK1: Valeurs trimestrielles prevues, réalisées et performance | AW1: Valeurs annuelles prevues, réalisées et performance. | AZ1: Valeurs trimestrielles prevues, réalisées et performance | BL1: Valeurs annuelles prevues, réalisées et performance. | BO1: =AZ1 -> Valeurs trimestrielles prevues, réalisées et performance | CA1: Valeurs annuelles prevues, réalisées et performance. | CD1: =BO1 -> Valeurs trimestrielles prevues, réalisées et performance | CP1: Valeurs annuelles prevues, réalisées et performance. | CS1: Valeurs terminales prevues, réalisées et performance.
A2: Nº R. | B2: Résultats | C2: Indicateur | D2: Type | E2: Unité | F2: Baseline | G2: 2017 | S2: 2017 | V2: 2018 | AH2: 2018 | AK2: 2019 | AW2: 2019 | AZ2: 2020 | BL2: 2020 | BO2: 2021 | CA2: 2021 | CD2: 2022 | CP2: 2022 | CS2: FIN du PDR
G3: S1 | M3: S2 | S3: P | T3: R | U3: Perf. | V3: S1 | AB3: S2 | AH3: P | AI3: R | AJ3: Perf. | AK3: S1 | AQ3: S2 | AW3: P | AX3: R | AY3: Perf. | AZ3: S1 | BF3: S2 | BL3: P | BM3: R | BN3: Perf. | BO3: S1 | BU3: S2 | CA3: P | CB3: R | CC3: Perf. | CD3: S1 | CJ3: S2 | CP3: P | CQ3: R | CR3: Perf.
G4: TM1 | J4: TM2 | M4: TM3 | P4: TM4 | V4: TM1 | Y4: TM2 | AB4: TM3 | AE4: TM4 | AK4: TM1 | AN4: TM2 | AQ4: TM3 | AT4: TM4 | AZ4: TM1 | BC4: TM2 | BF4: TM3 | BI4: TM4 | BO4: TM1 | BR4: TM2 | BU4: TM3 | BX4: TM4 | CD4: TM1 | CG4: TM2 | CJ4: TM3 | CM4: TM4
G5: P | H5: R | I5: Perf. | J5: P | K5: R | L5: Perf. | M5: P | N5: R | O5: Perf. | P5: P | Q5: R | R5: Perf. | V5: P | W5: R | X5: Perf. | Y5: P | Z5: R | AA5: Perf. | AB5: P | AC5: R | AD5: Perf. | AE5: P | AF5: R | AG5: Perf. | AK5: P | AL5: R | AM5: Perf. | AN5: P | AO5: R | AP5: Perf. | AQ5: P | AR5: R | AS5: Perf. | AT5: P | AU5: R | AV5: Perf. | AZ5: P | BA5: R | BB5: Perf. | BC5: P | BD5: R | BE5: Perf. | BF5: P | BG5: R | BH5: Perf. | BI5: P | BJ5: R | BK5: Perf. | BO5: P | BP5: R | BQ5: Perf. | BR5: P | BS5: R | BT5: Perf. | BU5: P | BV5: R | BW5: Perf. | BX5: P | BY5: R | BZ5: Perf. | CD5: P | CE5: R | CF5: Perf. | CG5: P | CH5: R | CI5: Perf. | CJ5: P | CK5: R | CL5: Perf. | CM5: P | CN5: R | CO5: Perf.
A6: ='CE CdR'!A4 -> COMPETENCES PROPRES
A7: ='CE CdR'!A5 -> 1. | B7: ='CE CdR'!B5:S5 -> Pôle émergence Cluster Industriel - Reconversion du campus de Tanger
A8: ='CE CdR'!A6 -> 1.1 | B8: ='CE CdR'!B6 -> Contribuer à l'amélioration de la compétitivité des entreprises de la région | C8: ='CE CdR'!C6 -> Part des chefs d'entreprises qui estiment que leur compétitivité est compromise par l'inadéquation "formation Vs emploi" | D8: ='CE CdR'!E6 -> I | E8: ='CE CdR'!F6 -> % | F8: ='CE CdR'!G6 -> 100 | I8: =IFERROR((H8-$F8)/(G8-$F8),"") ->  | L8: =IFERROR((K8-$F8)/(J8-$F8),"") ->  | O8: =IFERROR((N8-$F8)/(M8-$F8),"") ->  | R8: =IFERROR((Q8-$F8)/(P8-$F8),"") ->  | S8: ='CE CdR'!H6 -> 0 | U8: =IFERROR((T8-$F8)/(S8-$F8),"") ->  | X8: =IFERROR((W8-$F8)/(V8-$F8),"") ->  | AA8: =IFERROR((Z8-$F8)/(Y8-$F8),"") ->  | AD8: =IFERROR((AC8-$F8)/(AB8-$F8),"") ->  | AG8: =IFERROR((AF8-$F8)/(AE8-$F8),"") ->  | AH8: ='CE CdR'!I6 -> 0 | AJ8: =IFERROR((AI8-$F8)/(AH8-$F8),"") ->  | AM8: =IFERROR((AL8-$F8)/(AK8-$F8),"") ->  | AP8: =IFERROR((AO8-$F8)/(AN8-$F8),"") ->  | AS8: =IFERROR((AR8-$F8)/(AQ8-$F8),"") ->  | AV8: =IFERROR((AU8-$F8)/(AT8-$F8),"") ->  | AW8: ='CE CdR'!J6 -> 0 | AY8: =IFERROR((AX8-$F8)/(AW8-$F8),"") ->  | BB8: =IFERROR((BA8-$F8)/(AZ8-$F8),"") ->  | BE8: =IFERROR((BD8-$F8)/(BC8-$F8),"") ->  | BH8: =IFERROR((BG8-$F8)/(BF8-$F8),"") ->  | BK8: =IFERROR((BJ8-$F8)/(BI8-$F8),"") ->  | BL8: ='CE CdR'!K6 -> 0 | BN8: =IFERROR((BM8-$F8)/(BL8-$F8),"") ->  | BQ8: =IFERROR((BP8-$F8)/(BO8-$F8),"") ->  | BT8: =IFERROR((BS8-$F8)/(BR8-$F8),"") ->  | BW8: =IFERROR((BV8-$F8)/(BU8-$F8),"") ->  | BZ8: =IFERROR((BY8-$F8)/(BX8-$F8),"") ->  | CA8: ='CE CdR'!L6 -> 0 | CC8: =IFERROR((CB8-$F8)/(CA8-$F8),"") ->  | CF8: =IFERROR((CE8-$F8)/(CD8-$F8),"") ->  | CI8: =IFERROR((CH8-$F8)/(CG8-$F8),"") ->  | CL8: =IFERROR((CK8-$F8)/(CJ8-$F8),"") ->  | CO8: =IFERROR((CN8-$F8)/(CM8-$F8),"") ->  | CP8: ='CE CdR'!M6 -> 25 | CR8: =IFERROR((CQ8-$F8)/(CP8-$F8),"") ->  | CS8: ='CE CdR'!N6 -> 25
A9: ='CE CdR'!A7 -> 1.2 | B9: ='CE CdR'!B7 -> L'insertion professionnelles des diplômés du campus universitaire de Tanger est renforcée | C9: ='CE CdR'!C7 -> Taux de chômage des diplômés | D9: ='CE CdR'!E7 -> I | E9: ='CE CdR'!F7 -> % | F9: ='CE CdR'!G7 -> 22 | R9: =IFERROR((Q9-$F9)/(P9-$F9),"") ->  | S9: ='CE CdR'!H7 -> 0 | AH9: ='CE CdR'!I7 -> 0 | AW9: ='CE CdR'!J7 -> 0 | BL9: ='CE CdR'!K7 -> 0 | CA9: ='CE CdR'!L7 -> 0 | CP9: ='CE CdR'!M7 -> 9.3 | CS9: ='CE CdR'!N7 -> 9.3
A10: ='CE CdR'!A8 -> 1.3 | B10: ='CE CdR'!B8 -> Les filières de formation, offertes par le campus de Tanger sont devenus adéquates par rapport aux besoins de l’emploi au sein de la région | C10: ='CE CdR'!C8 -> La part des filières jugées non adéquates | D10: ='CE CdR'!E8 -> I | E10: ='CE CdR'!F8 -> % | F10: ='CE CdR'!G8 -> 100 | R10: =IFERROR((Q10-$F10)/(P10-$F10),"") ->  | S10: ='CE CdR'!H8 -> 0 | AH10: ='CE CdR'!I8 -> 0 | AW10: ='CE CdR'!J8 -> 0 | BL10: ='CE CdR'!K8 -> 0 | CA10: ='CE CdR'!L8 -> 0 | CP10: ='CE CdR'!M8 -> 0 | CS10: ='CE CdR'!N8 -> 0
A11: ='CE CdR'!A9 -> 1.4 | B11: ='CE CdR'!B9 -> 0 | C11: ='CE CdR'!C9 -> 0 | D11: ='CE CdR'!E9 -> 0 | E11: ='CE CdR'!F9 -> 0 | F11: ='CE CdR'!G9 -> 0 | S11: ='CE CdR'!H9 -> 0 | AH11: ='CE CdR'!I9 -> 0 | AW11: ='CE CdR'!J9 -> 0 | BL11: ='CE CdR'!K9 -> 0 | CA11: ='CE CdR'!L9 -> 0 | CP11: ='CE CdR'!M9 -> 0 | CS11: ='CE CdR'!N9 -> FALSE
A12: ='CE CdR'!A10 -> 1.5 | B12: ='CE CdR'!B10 -> 0 | C12: ='CE CdR'!C10 -> 0 | D12: ='CE CdR'!E10 -> 0 | E12: ='CE CdR'!F10 -> 0 | F12: ='CE CdR'!G10 -> 0 | S12: ='CE CdR'!H10 -> 0 | AH12: ='CE CdR'!I10 -> 0 | AW12: ='CE CdR'!J10 -> 0 | BL12: ='CE CdR'!K10 -> 0 | CA12: ='CE CdR'!L10 -> 0 | CP12: ='CE CdR'!M10 -> 0 | CS12: ='CE CdR'!N10 -> FALSE
A13: ='CE CdR'!A11 -> 1.6 | B13: ='CE CdR'!B11 -> 0 | C13: ='CE CdR'!C11 -> 0 | D13: ='CE CdR'!E11 -> 0 | E13: ='CE CdR'!F11 -> 0 | F13: ='CE CdR'!G11 -> 0 | S13: ='CE CdR'!H11 -> 0 | AH13: ='CE CdR'!I11 -> 0 | AW13: ='CE CdR'!J11 -> 0 | BL13: ='CE CdR'!K11 -> 0 | CA13: ='CE CdR'!L11 -> 0 | CP13: ='CE CdR'!M11 -> 0 | CS13: ='CE CdR'!N11 -> FALSE
A14: ='CE CdR'!A12 -> 2. | B14: ='CE CdR'!B12:S12 -> Pôle émergence Cluster Industriel - Cité Mohammed VI Tanger Tech
A15: ='CE CdR'!A13 -> 2.1 | B15: ='CE CdR'!B13 -> Contribuer à la création d'emplois au niveau de la région | C15: ='CE CdR'!C13 -> Nombre d'emploi | D15: ='CE CdR'!E13 -> C | E15: ='CE CdR'!F13 -> 0 | F15: ='CE CdR'!G13 -> 0 | I15: =IFERROR((H15-$F15)/(G15-$F15),"") ->  | L15: =IFERROR((K15-$F15)/(J15-$F15),"") ->  | O15: =IFERROR((N15-$F15)/(M15-$F15),"") ->  | R15: =IFERROR((Q15-$F15)/(P15-$F15),"") ->  | S15: ='CE CdR'!H13 -> 0 | U15: =IFERROR((T15-$F15)/(S15-$F15),"") ->  | X15: =IFERROR((W15-$F15)/(V15-$F15),"") ->  | AA15: =IFERROR((Z15-$F15)/(Y15-$F15),"") ->  | AD15: =IFERROR((AC15-$F15)/(AB15-$F15),"") ->  | AG15: =IFERROR((AF15-$F15)/(AE15-$F15),"") ->  | AH15: ='CE CdR'!I13 -> 0 | AJ15: =IFERROR((AI15-$F15)/(AH15-$F15),"") ->  | AM15: =IFERROR((AL15-$F15)/(AK15-$F15),"") ->  | AP15: =IFERROR((AO15-$F15)/(AN15-$F15),"") ->  | AS15: =IFERROR((AR15-$F15)/(AQ15-$F15),"") ->  | AV15: =IFERROR((AU15-$F15)/(AT15-$F15),"") ->  | AW15: ='CE CdR'!J13 -> ?? | AY15: =IFERROR((AX15-$F15)/(AW15-$F15),"") ->  | BB15: =IFERROR((BA15-$F15)/(AZ15-$F15),"") ->  | BE15: =IFERROR((BD15-$F15)/(BC15-$F15),"") ->  | BH15: =IFERROR((BG15-$F15)/(BF15-$F15),"") ->  | BK15: =IFERROR((BJ15-$F15)/(BI15-$F15),"") ->  | BL15: ='CE CdR'!K13 -> 50000 | BN15: =IFERROR((BM15-$F15)/(BL15-$F15),"") ->  | BQ15: =IFERROR((BP15-$F15)/(BO15-$F15),"") ->  | BT15: =IFERROR((BS15-$F15)/(BR15-$F15),"") ->  | BW15: =IFERROR((BV15-$F15)/(BU15-$F15),"") ->  | BZ15: =IFERROR((BY15-$F15)/(BX15-$F15),"") ->  | CA15: ='CE CdR'!L13 -> ?? | CC15: =IFERROR((CB15-$F15)/(CA15-$F15),"") ->  | CF15: =IFERROR((CE15-$F15)/(CD15-$F15),"") ->  | CI15: =IFERROR((CH15-$F15)/(CG15-$F15),"") ->  | CL15: =IFERROR((CK15-$F15)/(CJ15-$F15),"") ->  | CO15: =IFERROR((CN15-$F15)/(CM15-$F15),"") ->  | CP15: ='CE CdR'!M13 -> 100000 | CR15: =IFERROR((CQ15-$F15)/(CP15-$F15),"") ->  | CS15: ='CE CdR'!N13 -> 70
A16: ='CE CdR'!A14 -> 2.2 | B16: ='CE CdR'!B14 -> La cité Mohamed VI Tanger Tech est opérationnelle. | C16: ='CE CdR'!C14 -> Nombre de compagnies chinoises | D16: ='CE CdR'!E14 -> C | E16: ='CE CdR'!F14 -> Compagnie | F16: ='CE CdR'!G14 -> 0 | R16: =IFERROR((Q16-$F16)/(P16-$F16),"") ->  | S16: ='CE CdR'!H14 -> 0 | AH16: ='CE CdR'!I14 -> 0 | AW16: ='CE CdR'!J14 -> ?? | BL16: ='CE CdR'!K14 -> ?? | CA16: ='CE CdR'!L14 -> ?? | CP16: ='CE CdR'!M14 -> ?? | CS16: ='CE CdR'!N14 -> 100
A17: ='CE CdR'!A15 -> 2.3 | B17: ='CE CdR'!B15 -> La cité Mohamed VI Tanger Tech est aménagée. | C17: ='CE CdR'!C15 -> Superficie aménagée | D17: ='CE CdR'!E15 -> C | E17: ='CE CdR'!F15 -> ha | F17: ='CE CdR'!G15 -> 0 | R17: =IFERROR((Q17-$F17)/(P17-$F17),"") ->  | S17: ='CE CdR'!H15 -> 0 | AH17: ='CE CdR'!I15 -> ?? | AW17: ='CE CdR'!J15 -> ?? | BL17: ='CE CdR'!K15 -> 500 | CA17: ='CE CdR'!L15 -> ?? | CP17: ='CE CdR'!M15 -> 1000 | CS17: ='CE CdR'!N15 -> 
A18: ='CE CdR'!A16 -> 2.4 | B18: ='CE CdR'!B16 ->  | C18: ='CE CdR'!C16 -> 0 | D18: ='CE CdR'!E16 -> 0 | E18: ='CE CdR'!F16 -> 0 | F18: ='CE CdR'!G16 -> 0 | S18: ='CE CdR'!H16 -> 0 | AH18: ='CE CdR'!I16 -> 0 | AW18: ='CE CdR'!J16 -> 0 | BL18: ='CE CdR'!K16 -> 0 | BN18: =IFERROR((BM18-$F18)/(BL18-$F18),"") ->  | CA18: ='CE CdR'!L16 -> 0 | CP18: ='CE CdR'!M16 -> 0 | CR18: =IFERROR((CQ18-$F18)/(CP18-$F18),"") ->  | CS18: ='CE CdR'!N16 -> FALSE
A19: ='CE CdR'!A17 -> 2.5 | B19: ='CE CdR'!B17 -> 0 | C19: ='CE CdR'!C17 -> 0 | D19: ='CE CdR'!E17 -> 0 | E19: ='CE CdR'!F17 -> 0 | F19: ='CE CdR'!G17 -> 0 | S19: ='CE CdR'!H17 -> 0 | AH19: ='CE CdR'!I17 -> 0 | AW19: ='CE CdR'!J17 -> 0 | BL19: ='CE CdR'!K17 -> 0 | CA19: ='CE CdR'!L17 -> 0 | CP19: ='CE CdR'!M17 -> 0 | CS19: ='CE CdR'!N17 -> FALSE
A20: ='CE CdR'!A18 -> 2.6 | B20: ='CE CdR'!B18 -> 0 | C20: ='CE CdR'!C18 -> 0 | D20: ='CE CdR'!E18 -> 0 | E20: ='CE CdR'!F18 -> 0 | F20: ='CE CdR'!G18 -> 0 | S20: ='CE CdR'!H18 -> 0 | AH20: ='CE CdR'!I18 -> 0 | AW20: ='CE CdR'!J18 -> 0 | BL20: ='CE CdR'!K18 -> 0 | CA20: ='CE CdR'!L18 -> 0 | CP20: ='CE CdR'!M18 -> 0 | CS20: ='CE CdR'!N18 -> FALSE
A21: ='CE CdR'!A19 -> 3. | B21: ='CE CdR'!B19:S19 -> Trois (03) Plateformes de valorisation de l'artisanat
A22: ='CE CdR'!A20 -> 3.1 | B22: ='CE CdR'!B20 -> Contribuer à la création d'emplois au niveau de la région | C22: ='CE CdR'!C20 -> Nombre d'emploi | D22: ='CE CdR'!E20 -> C | E22: ='CE CdR'!F20 -> 0 | F22: ='CE CdR'!G20 -> 0 | I22: =IFERROR((H22-$F22)/(G22-$F22),"") ->  | L22: =IFERROR((K22-$F22)/(J22-$F22),"") ->  | O22: =IFERROR((N22-$F22)/(M22-$F22),"") ->  | R22: =IFERROR((Q22-$F22)/(P22-$F22),"") ->  | S22: ='CE CdR'!H20 -> 0 | U22: =IFERROR((T22-$F22)/(S22-$F22),"") ->  | X22: =IFERROR((W22-$F22)/(V22-$F22),"") ->  | AA22: =IFERROR((Z22-$F22)/(Y22-$F22),"") ->  | AD22: =IFERROR((AC22-$F22)/(AB22-$F22),"") ->  | AG22: =IFERROR((AF22-$F22)/(AE22-$F22),"") ->  | AH22: ='CE CdR'!I20 -> 0 | AJ22: =IFERROR((AI22-$F22)/(AH22-$F22),"") ->  | AM22: =IFERROR((AL22-$F22)/(AK22-$F22),"") ->  | AP22: =IFERROR((AO22-$F22)/(AN22-$F22),"") ->  | AS22: =IFERROR((AR22-$F22)/(AQ22-$F22),"") ->  | AV22: =IFERROR((AU22-$F22)/(AT22-$F22),"") ->  | AW22: ='CE CdR'!J20 ->  | AY22: =IFERROR((AX22-$F22)/(AW22-$F22),"") ->  | BB22: =IFERROR((BA22-$F22)/(AZ22-$F22),"") ->  | BE22: =IFERROR((BD22-$F22)/(BC22-$F22),"") ->  | BH22: =IFERROR((BG22-$F22)/(BF22-$F22),"") ->  | BK22: =IFERROR((BJ22-$F22)/(BI22-$F22),"") ->  | BL22: ='CE CdR'!K20 ->  | BN22: =IFERROR((BM22-$F22)/(BL22-$F22),"") ->  | BQ22: =IFERROR((BP22-$F22)/(BO22-$F22),"") ->  | BT22: =IFERROR((BS22-$F22)/(BR22-$F22),"") ->  | BW22: =IFERROR((BV22-$F22)/(BU22-$F22),"") ->  | BZ22: =IFERROR((BY22-$F22)/(BX22-$F22),"") ->  | CA22: ='CE CdR'!L20 ->  | CC22: =IFERROR((CB22-$F22)/(CA22-$F22),"") ->  | CF22: =IFERROR((CE22-$F22)/(CD22-$F22),"") ->  | CI22: =IFERROR((CH22-$F22)/(CG22-$F22),"") ->  | CL22: =IFERROR((CK22-$F22)/(CJ22-$F22),"") ->  | CO22: =IFERROR((CN22-$F22)/(CM22-$F22),"") ->  | CP22: ='CE CdR'!M20 -> 3000 | CR22: =IFERROR((CQ22-$F22)/(CP22-$F22),"") ->  | CS22: ='CE CdR'!N20 -> 0
A23: ='CE CdR'!#REF! ->  | B23: ='CE CdR'!#REF! ->  | C23: ='CE CdR'!#REF! ->  | D23: ='CE CdR'!#REF! ->  | E23: ='CE CdR'!#REF! ->  | F23: ='CE CdR'!#REF! ->  | R23: =IFERROR((Q23-$F23)/(P23-$F23),"") ->  | S23: ='CE CdR'!#REF! ->  | AH23: ='CE CdR'!#REF! ->  | AW23: ='CE CdR'!#REF! ->  | BL23: ='CE CdR'!#REF! ->  | CA23: ='CE CdR'!#REF! ->  | CP23: ='CE CdR'!#REF! ->  | CS23: ='CE CdR'!#REF! -> 
A24: ='CE CdR'!A21 -> 3.3 | B24: ='CE CdR'!B21 -> la commercialisation et l'exportation des produits artisanaux de la région de l’artisanat sont renforcées | C24: ='CE CdR'!C21 -> Part des exportations | D24: ='CE CdR'!E21 -> I | E24: ='CE CdR'!F21 -> % | F24: ='CE CdR'!G21 -> 0.8 | R24: =IFERROR((Q24-$F24)/(P24-$F24),"") ->  | S24: ='CE CdR'!H21 -> 0 | AH24: ='CE CdR'!I21 -> 0 | AW24: ='CE CdR'!J21 -> 0 | BL24: ='CE CdR'!K21 -> 0 | CA24: ='CE CdR'!L21 -> 0 | CP24: ='CE CdR'!M21 -> 8 | CS24: ='CE CdR'!N21 -> 8
A25: ='CE CdR'!A22 -> 3.4 | B25: ='CE CdR'!B22 -> des plateformes d'artisanat sont crées | C25: ='CE CdR'!C22 -> Nombre de plateformes d'artisanat | D25: ='CE CdR'!E22 -> C | E25: ='CE CdR'!F22 -> plateforme | F25: ='CE CdR'!G22 -> 0 | S25: ='CE CdR'!H22 -> 0 | AH25: ='CE CdR'!I22 -> 0 | AW25: ='CE CdR'!J22 -> 0 | BL25: ='CE CdR'!K22 -> 0 | BN25: =IFERROR((BM25-$F25)/(BL25-$F25),"") ->  | CA25: ='CE CdR'!L22 -> 3 | CC25: 0 | CP25: ='CE CdR'!M22 -> 0 | CR25: =IFERROR((CQ25-$F25)/(CP25-$F25),"") ->  | CS25: ='CE CdR'!N22 -> 0
A26: ='CE CdR'!A23 -> 3.5 | B26: ='CE CdR'!B23 -> 0 | C26: ='CE CdR'!C23 -> 0 | D26: ='CE CdR'!E23 -> 0 | E26: ='CE CdR'!F23 -> 0 | F26: ='CE CdR'!G23 -> 0 | S26: ='CE CdR'!H23 -> 0 | AH26: ='CE CdR'!I23 -> 0 | AW26: ='CE CdR'!J23 -> 0 | BL26: ='CE CdR'!K23 -> 0 | CA26: ='CE CdR'!L23 -> 0 | CP26: ='CE CdR'!M23 -> 0 | CS26: ='CE CdR'!N23 -> FALSE
A27: ='CE CdR'!A24 -> 3.6 | B27: ='CE CdR'!B24 -> 0 | C27: ='CE CdR'!C24 -> 0 | D27: ='CE CdR'!E24 -> 0 | E27: ='CE CdR'!F24 -> 0 | F27: ='CE CdR'!G24 -> 0 | S27: ='CE CdR'!H24 -> 0 | AH27: ='CE CdR'!I24 -> 0 | AW27: ='CE CdR'!J24 -> 0 | BL27: ='CE CdR'!K24 -> 0 | CA27: ='CE CdR'!L24 -> 0 | CP27: ='CE CdR'!M24 -> 0 | CS27: ='CE CdR'!N24 -> FALSE
A28: ='CE CdR'!A25 -> 4. | B28: ='CE CdR'!B25:S25 -> Zone Industrielle Ksar el Kebir
A29: ='CE CdR'!A26 -> 4.1 | B29: ='CE CdR'!B26 -> Contribution à la création d'emploi au niveau de la région | C29: ='CE CdR'!C26 -> Nombre d'emploi | D29: ='CE CdR'!E26 -> C | E29: ='CE CdR'!F26 -> 0 | F29: ='CE CdR'!G26 -> 0 | I29: =IFERROR((H29-$F29)/(G29-$F29),"") ->  | L29: =IFERROR((K29-$F29)/(J29-$F29),"") ->  | O29: =IFERROR((N29-$F29)/(M29-$F29),"") ->  | R29: =IFERROR((Q29-$F29)/(P29-$F29),"") ->  | S29: ='CE CdR'!H26 -> 0 | U29: =IFERROR((T29-$F29)/(S29-$F29),"") ->  | X29: =IFERROR((W29-$F29)/(V29-$F29),"") ->  | AA29: =IFERROR((Z29-$F29)/(Y29-$F29),"") ->  | AD29: =IFERROR((AC29-$F29)/(AB29-$F29),"") ->  | AG29: =IFERROR((AF29-$F29)/(AE29-$F29),"") ->  | AH29: ='CE CdR'!I26 -> 0 | AJ29: =IFERROR((AI29-$F29)/(AH29-$F29),"") ->  | AM29: =IFERROR((AL29-$F29)/(AK29-$F29),"") ->  | AP29: =IFERROR((AO29-$F29)/(AN29-$F29),"") ->  | AS29: =IFERROR((AR29-$F29)/(AQ29-$F29),"") ->  | AV29: =IFERROR((AU29-$F29)/(AT29-$F29),"") ->  | AW29: ='CE CdR'!J26 -> 300 | AY29: =IFERROR((AX29-$F29)/(AW29-$F29),"") ->  | BB29: =IFERROR((BA29-$F29)/(AZ29-$F29),"") ->  | BE29: =IFERROR((BD29-$F29)/(BC29-$F29),"") ->  | BH29: =IFERROR((BG29-$F29)/(BF29-$F29),"") ->  | BK29: =IFERROR((BJ29-$F29)/(BI29-$F29),"") ->  | BL29: ='CE CdR'!K26 -> 500 | BN29: =IFERROR((BM29-$F29)/(BL29-$F29),"") ->  | BQ29: =IFERROR((BP29-$F29)/(BO29-$F29),"") ->  | BT29: =IFERROR((BS29-$F29)/(BR29-$F29),"") ->  | BW29: =IFERROR((BV29-$F29)/(BU29-$F29),"") ->  | BZ29: =IFERROR((BY29-$F29)/(BX29-$F29),"") ->  | CA29: ='CE CdR'!L26 -> 700 | CC29: =IFERROR((CB29-$F29)/(CA29-$F29),"") ->  | CF29: =IFERROR((CE29-$F29)/(CD29-$F29),"") ->  | CI29: =IFERROR((CH29-$F29)/(CG29-$F29),"") ->  | CL29: =IFERROR((CK29-$F29)/(CJ29-$F29),"") ->  | CO29: =IFERROR((CN29-$F29)/(CM29-$F29),"") ->  | CP29: ='CE CdR'!M26 -> 1000 | CR29: =IFERROR((CQ29-$F29)/(CP29-$F29),"") ->  | CS29: ='CE CdR'!N26 -> 1000
A30: ='CE CdR'!A27 -> 4.2 | B30: ='CE CdR'!B27 -> Le positionnement stratégique industriel de la région est renforcé | C30: ='CE CdR'!C27 -> Effectif d'entreprise | D30: ='CE CdR'!E27 -> C | E30: ='CE CdR'!F27 -> Entreprise | F30: ='CE CdR'!G27 -> 0 | R30: =IFERROR((Q30-$F30)/(P30-$F30),"") ->  | S30: ='CE CdR'!H27 -> 0 | AH30: ='CE CdR'!I27 -> 0 | AW30: ='CE CdR'!J27 -> 100 | BL30: ='CE CdR'!K27 -> 126 | CA30: ='CE CdR'!L27 -> 152 | CP30: ='CE CdR'!M27 -> 178 | CS30: ='CE CdR'!N27 -> 178
A31: ='CE CdR'!A28 -> 4.3 | B31: ='CE CdR'!B28 -> La zone industrielle Ksar El Kébir est aménagée. | C31: ='CE CdR'!C28 -> Superficie aménagée | D31: ='CE CdR'!E28 -> C | E31: ='CE CdR'!F28 -> ha | F31: ='CE CdR'!G28 -> 0 | R31: =IFERROR((Q31-$F31)/(P31-$F31),"") ->  | S31: ='CE CdR'!H28 -> 0 | AH31: ='CE CdR'!I28 -> 0 | AW31: ='CE CdR'!J28 -> 15 | BL31: ='CE CdR'!K28 -> 19 | CA31: ='CE CdR'!L28 -> 23 | CP31: ='CE CdR'!M28 -> 30 | CS31: ='CE CdR'!N28 -> 30
A32: ='CE CdR'!A29 -> 4.4 | B32: ='CE CdR'!B29 -> 0 | C32: ='CE CdR'!C29 -> 0 | D32: ='CE CdR'!E29 -> 0 | E32: ='CE CdR'!F29 -> 0 | F32: ='CE CdR'!G29 -> 0 | S32: ='CE CdR'!H29 -> 0 | AH32: ='CE CdR'!I29 -> 0 | AW32: ='CE CdR'!J29 -> 0 | BL32: ='CE CdR'!K29 -> 0 | BN32: =IFERROR((BM32-$F32)/(BL32-$F32),"") ->  | CA32: ='CE CdR'!L29 -> 0 | CP32: ='CE CdR'!M29 -> 0 | CR32: =IFERROR((CQ32-$F32)/(CP32-$F32),"") ->  | CS32: ='CE CdR'!N29 -> FALSE
A33: ='CE CdR'!A30 -> 4.5 | B33: ='CE CdR'!B30 -> 0 | C33: ='CE CdR'!C30 -> 0 | D33: ='CE CdR'!E30 -> 0 | E33: ='CE CdR'!F30 -> 0 | F33: ='CE CdR'!G30 -> 0 | S33: ='CE CdR'!H30 -> 0 | AH33: ='CE CdR'!I30 -> 0 | AW33: ='CE CdR'!J30 -> 0 | BL33: ='CE CdR'!K30 -> 0 | CA33: ='CE CdR'!L30 -> 0 | CP33: ='CE CdR'!M30 -> 0 | CS33: ='CE CdR'!N30 -> FALSE
A34: ='CE CdR'!A31 -> 4.6 | B34: ='CE CdR'!B31 -> 0 | C34: ='CE CdR'!C31 -> 0 | D34: ='CE CdR'!E31 -> 0 | E34: ='CE CdR'!F31 -> 0 | F34: ='CE CdR'!G31 -> 0 | S34: ='CE CdR'!H31 -> 0 | AH34: ='CE CdR'!I31 -> 0 | AW34: ='CE CdR'!J31 -> 0 | BL34: ='CE CdR'!K31 -> 0 | CA34: ='CE CdR'!L31 -> 0 | CP34: ='CE CdR'!M31 -> 0 | CS34: ='CE CdR'!N31 -> FALSE
A35: ='CE CdR'!A32 -> 5. | B35: ='CE CdR'!B32:S32 -> Réalisation de cinq (05) Plateformes de valorisation agricole
A36: ='CE CdR'!A33 -> 5.1 | B36: ='CE CdR'!B33 -> Contribution à la création d'emploi au niveau de la région | C36: ='CE CdR'!C33 -> Nombre d'emploi | D36: ='CE CdR'!E33 -> C | E36: ='CE CdR'!F33 -> emploi | F36: ='CE CdR'!G33 -> 0 | I36: =IFERROR((H36-$F36)/(G36-$F36),"") ->  | L36: =IFERROR((K36-$F36)/(J36-$F36),"") ->  | O36: =IFERROR((N36-$F36)/(M36-$F36),"") ->  | R36: =IFERROR((Q36-$F36)/(P36-$F36),"") ->  | S36: ='CE CdR'!H33 -> 0 | U36: =IFERROR((T36-$F36)/(S36-$F36),"") ->  | X36: =IFERROR((W36-$F36)/(V36-$F36),"") ->  | AA36: =IFERROR((Z36-$F36)/(Y36-$F36),"") ->  | AD36: =IFERROR((AC36-$F36)/(AB36-$F36),"") ->  | AG36: =IFERROR((AF36-$F36)/(AE36-$F36),"") ->  | AH36: ='CE CdR'!I33 -> 0 | AJ36: =IFERROR((AI36-$F36)/(AH36-$F36),"") ->  | AM36: =IFERROR((AL36-$F36)/(AK36-$F36),"") ->  | AP36: =IFERROR((AO36-$F36)/(AN36-$F36),"") ->  | AS36: =IFERROR((AR36-$F36)/(AQ36-$F36),"") ->  | AV36: =IFERROR((AU36-$F36)/(AT36-$F36),"") ->  | AW36: ='CE CdR'!J33 ->  | AY36: =IFERROR((AX36-$F36)/(AW36-$F36),"") ->  | BB36: =IFERROR((BA36-$F36)/(AZ36-$F36),"") ->  | BE36: =IFERROR((BD36-$F36)/(BC36-$F36),"") ->  | BH36: =IFERROR((BG36-$F36)/(BF36-$F36),"") ->  | BK36: =IFERROR((BJ36-$F36)/(BI36-$F36),"") ->  | BL36: ='CE CdR'!K33 ->  | BN36: =IFERROR((BM36-$F36)/(BL36-$F36),"") ->  | BQ36: =IFERROR((BP36-$F36)/(BO36-$F36),"") ->  | BT36: =IFERROR((BS36-$F36)/(BR36-$F36),"") ->  | BW36: =IFERROR((BV36-$F36)/(BU36-$F36),"") ->  | BZ36: =IFERROR((BY36-$F36)/(BX36-$F36),"") ->  | CA36: ='CE CdR'!L33 -> ?? | CC36: =IFERROR((CB36-$F36)/(CA36-$F36),"") ->  | CF36: =IFERROR((CE36-$F36)/(CD36-$F36),"") ->  | CI36: =IFERROR((CH36-$F36)/(CG36-$F36),"") ->  | CL36: =IFERROR((CK36-$F36)/(CJ36-$F36),"") ->  | CO36: =IFERROR((CN36-$F36)/(CM36-$F36),"") ->  | CP36: ='CE CdR'!M33 -> 7500 | CR36: =IFERROR((CQ36-$F36)/(CP36-$F36),"") ->  | CS36: ='CE CdR'!N33 -> 7500
A37: ='CE CdR'!A34 -> 5.2 | B37: ='CE CdR'!B34 -> Les produits agricoles de la région y compris du terroire, sont valorisés | C37: ='CE CdR'!C34 -> Nombre d'entreprise | D37: ='CE CdR'!E34 -> C | E37: ='CE CdR'!F34 -> 0 | F37: ='CE CdR'!G34 -> 0 | R37: =IFERROR((Q37-$F37)/(P37-$F37),"") ->  | S37: ='CE CdR'!H34 -> 0 | AH37: ='CE CdR'!I34 -> 0 | AW37: ='CE CdR'!J34 -> 0 | BL37: ='CE CdR'!K34 -> 0 | CA37: ='CE CdR'!L34 -> ?? | CP37: ='CE CdR'!M34 -> 210 | CS37: ='CE CdR'!N34 -> 210
A38: ='CE CdR'!A35 -> 5.3 | B38: ='CE CdR'!B35 -> des plateformes de valorisation agricole, sont crées au niveau de la région | C38: ='CE CdR'!C35 -> Nombre de plateformes | D38: ='CE CdR'!E35 -> I | E38: ='CE CdR'!F35 -> 0 | F38: ='CE CdR'!G35 -> 0 | R38: =IFERROR((Q38-$F38)/(P38-$F38),"") ->  | S38: ='CE CdR'!H35 -> 0 | AH38: ='CE CdR'!I35 -> 0 | AW38: ='CE CdR'!J35 -> 0 | BL38: ='CE CdR'!K35 -> 5 | CA38: ='CE CdR'!L35 -> 0 | CP38: ='CE CdR'!M35 -> 0 | CS38: ='CE CdR'!N35 -> 5
A39: ='CE CdR'!A36 -> 5.4 | B39: ='CE CdR'!B36 ->  | C39: ='CE CdR'!C36 ->  | D39: ='CE CdR'!E36 ->  | E39: ='CE CdR'!F36 ->  | F39: ='CE CdR'!G36 -> 0 | S39: ='CE CdR'!H36 -> 0 | AH39: ='CE CdR'!I36 -> 0 | AW39: ='CE CdR'!J36 -> 0 | BL39: ='CE CdR'!K36 ->  | BN39: =IFERROR((BM39-$F39)/(BL39-$F39),"") ->  | CA39: ='CE CdR'!L36 -> 0 | CP39: ='CE CdR'!M36 -> 0 | CR39: =IFERROR((CQ39-$F39)/(CP39-$F39),"") ->  | CS39: ='CE CdR'!N36 -> FALSE
A40: ='CE CdR'!A37 -> 5.5 | B40: ='CE CdR'!B37 -> 0 | C40: ='CE CdR'!C37 -> 0 | D40: ='CE CdR'!E37 -> 0 | E40: ='CE CdR'!F37 -> 0 | F40: ='CE CdR'!G37 -> 0 | S40: ='CE CdR'!H37 -> 0 | AH40: ='CE CdR'!I37 -> 0 | AW40: ='CE CdR'!J37 -> 0 | BL40: ='CE CdR'!K37 -> 0 | CA40: ='CE CdR'!L37 -> 0 | CP40: ='CE CdR'!M37 -> 0 | CS40: ='CE CdR'!N37 -> FALSE
A41: ='CE CdR'!A38 -> 5.6 | B41: ='CE CdR'!B38 -> 0 | C41: ='CE CdR'!C38 -> 0 | D41: ='CE CdR'!E38 -> 0 | E41: ='CE CdR'!F38 -> 0 | F41: ='CE CdR'!G38 -> 0 | S41: ='CE CdR'!H38 -> 0 | AH41: ='CE CdR'!I38 -> 0 | AW41: ='CE CdR'!J38 -> 0 | BL41: ='CE CdR'!K38 -> 0 | CA41: ='CE CdR'!L38 -> 0 | CP41: ='CE CdR'!M38 -> 0 | CS41: ='CE CdR'!N38 -> FALSE
A42: ='CE CdR'!A39 -> 6. | B42: ='CE CdR'!B39:S39 -> Deux (02) Plateforme de valorisation des PDM
A43: ='CE CdR'!A40 -> 6.1 | B43: ='CE CdR'!B40 -> Contribuer à la création d'emplois au niveau de la région | C43: ='CE CdR'!C40 -> Nombre d'emploi | D43: ='CE CdR'!E40 -> C | E43: ='CE CdR'!F40 -> 0 | F43: ='CE CdR'!G40 -> 0 | I43: =IFERROR((H43-$F43)/(G43-$F43),"") ->  | L43: =IFERROR((K43-$F43)/(J43-$F43),"") ->  | O43: =IFERROR((N43-$F43)/(M43-$F43),"") ->  | R43: =IFERROR((Q43-$F43)/(P43-$F43),"") ->  | S43: ='CE CdR'!H40 -> 0 | U43: =IFERROR((T43-$F43)/(S43-$F43),"") ->  | X43: =IFERROR((W43-$F43)/(V43-$F43),"") ->  | AA43: =IFERROR((Z43-$F43)/(Y43-$F43),"") ->  | AD43: =IFERROR((AC43-$F43)/(AB43-$F43),"") ->  | AG43: =IFERROR((AF43-$F43)/(AE43-$F43),"") ->  | AH43: ='CE CdR'!I40 -> 0 | AJ43: =IFERROR((AI43-$F43)/(AH43-$F43),"") ->  | AM43: =IFERROR((AL43-$F43)/(AK43-$F43),"") ->  | AP43: =IFERROR((AO43-$F43)/(AN43-$F43),"") ->  | AS43: =IFERROR((AR43-$F43)/(AQ43-$F43),"") ->  | AV43: =IFERROR((AU43-$F43)/(AT43-$F43),"") ->  | AW43: ='CE CdR'!J40 ->  | AY43: =IFERROR((AX43-$F43)/(AW43-$F43),"") ->  | BB43: =IFERROR((BA43-$F43)/(AZ43-$F43),"") ->  | BE43: =IFERROR((BD43-$F43)/(BC43-$F43),"") ->  | BH43: =IFERROR((BG43-$F43)/(BF43-$F43),"") ->  | BK43: =IFERROR((BJ43-$F43)/(BI43-$F43),"") ->  | BL43: ='CE CdR'!K40 -> 2000 | BN43: =IFERROR((BM43-$F43)/(BL43-$F43),"") ->  | BQ43: =IFERROR((BP43-$F43)/(BO43-$F43),"") ->  | BT43: =IFERROR((BS43-$F43)/(BR43-$F43),"") ->  | BW43: =IFERROR((BV43-$F43)/(BU43-$F43),"") ->  | BZ43: =IFERROR((BY43-$F43)/(BX43-$F43),"") ->  | CA43: ='CE CdR'!L40 -> 2000 | CC43: =IFERROR((CB43-$F43)/(CA43-$F43),"") ->  | CF43: =IFERROR((CE43-$F43)/(CD43-$F43),"") ->  | CI43: =IFERROR((CH43-$F43)/(CG43-$F43),"") ->  | CL43: =IFERROR((CK43-$F43)/(CJ43-$F43),"") ->  | CO43: =IFERROR((CN43-$F43)/(CM43-$F43),"") ->  | CP43: ='CE CdR'!M40 -> 2000 | CR43: =IFERROR((CQ43-$F43)/(CP43-$F43),"") ->  | CS43: ='CE CdR'!N40 -> 2000
A44: ='CE CdR'!A41 -> 6.2 | B44: ='CE CdR'!B41 -> L'exportation des produits de la mer de la région s'est renforcée | C44: ='CE CdR'!C41 -> Part des exportations | D44: ='CE CdR'!E41 -> I | E44: ='CE CdR'!F41 -> % | F44: ='CE CdR'!G41 -> TBD | R44: =IFERROR((Q44-$F44)/(P44-$F44),"") ->  | S44: ='CE CdR'!H41 -> 0 | AH44: ='CE CdR'!I41 -> 0 | AW44: ='CE CdR'!J41 -> 0 | BL44: ='CE CdR'!K41 -> 0 | CA44: ='CE CdR'!L41 -> 0 | CP44: ='CE CdR'!M41 -> 8 | CS44: ='CE CdR'!N41 -> 8
A45: ='CE CdR'!A42 -> 6.3 | B45: ='CE CdR'!B42 -> Des plateformes de valorisation des PDM sont crées | C45: ='CE CdR'!C42 -> Nombre de plateformes | D45: ='CE CdR'!E42 -> C | E45: ='CE CdR'!F42 -> plateforme | F45: ='CE CdR'!G42 -> 0 | R45: =IFERROR((Q45-$F45)/(P45-$F45),"") ->  | S45: ='CE CdR'!H42 -> 0 | AH45: ='CE CdR'!I42 -> 0 | AW45: ='CE CdR'!J42 -> 2 | BL45: ='CE CdR'!K42 -> 2 | CA45: ='CE CdR'!L42 -> 2 | CP45: ='CE CdR'!M42 -> 2 | CS45: ='CE CdR'!N42 -> 2
A46: ='CE CdR'!A43 -> 6.4 | B46: ='CE CdR'!B43 -> 0 | C46: ='CE CdR'!C43 -> 0 | D46: ='CE CdR'!E43 -> 0 | E46: ='CE CdR'!F43 -> 0 | F46: ='CE CdR'!G43 -> 0 | S46: ='CE CdR'!H43 -> 0 | AH46: ='CE CdR'!I43 -> 0 | AW46: ='CE CdR'!J43 -> 0 | BL46: ='CE CdR'!K43 -> 0 | BN46: =IFERROR((BM46-$F46)/(BL46-$F46),"") ->  | CA46: ='CE CdR'!L43 -> 0 | CP46: ='CE CdR'!M43 -> 0 | CR46: =IFERROR((CQ46-$F46)/(CP46-$F46),"") ->  | CS46: ='CE CdR'!N43 -> FALSE
A47: ='CE CdR'!A44 -> 6.5 | B47: ='CE CdR'!B44 -> 0 | C47: ='CE CdR'!C44 -> 0 | D47: ='CE CdR'!E44 -> 0 | E47: ='CE CdR'!F44 -> 0 | F47: ='CE CdR'!G44 -> 0 | S47: ='CE CdR'!H44 -> 0 | AH47: ='CE CdR'!I44 -> 0 | AW47: ='CE CdR'!J44 -> 0 | BL47: ='CE CdR'!K44 -> 0 | CA47: ='CE CdR'!L44 -> 0 | CP47: ='CE CdR'!M44 -> 0 | CS47: ='CE CdR'!N44 -> FALSE
A48: ='CE CdR'!A45 -> 6.6 | B48: ='CE CdR'!B45 -> 0 | C48: ='CE CdR'!C45 -> 0 | D48: ='CE CdR'!E45 -> 0 | E48: ='CE CdR'!F45 -> 0 | F48: ='CE CdR'!G45 -> 0 | S48: ='CE CdR'!H45 -> 0 | AH48: ='CE CdR'!I45 -> 0 | AW48: ='CE CdR'!J45 -> 0 | BL48: ='CE CdR'!K45 -> 0 | CA48: ='CE CdR'!L45 -> 0 | CP48: ='CE CdR'!M45 -> 0 | CS48: ='CE CdR'!N45 -> FALSE
A49: ='CE CdR'!A46 -> 7. | B49: ='CE CdR'!B46:S46 -> Parc des expositions / Palais des congrès
A50: ='CE CdR'!A47 -> 7.1 | B50: ='CE CdR'!B47 -> Contribution à la création d'emploi au niveau de la région | C50: ='CE CdR'!C47 -> Nombre d'emploi | D50: ='CE CdR'!E47 -> C | E50: ='CE CdR'!F47 -> emploi | F50: ='CE CdR'!G47 -> 0 | I50: =IFERROR((H50-$F50)/(G50-$F50),"") ->  | L50: =IFERROR((K50-$F50)/(J50-$F50),"") ->  | O50: =IFERROR((N50-$F50)/(M50-$F50),"") ->  | R50: =IFERROR((Q50-$F50)/(P50-$F50),"") ->  | S50: ='CE CdR'!H47 -> 0 | U50: =IFERROR((T50-$F50)/(S50-$F50),"") ->  | X50: =IFERROR((W50-$F50)/(V50-$F50),"") ->  | AA50: =IFERROR((Z50-$F50)/(Y50-$F50),"") ->  | AD50: =IFERROR((AC50-$F50)/(AB50-$F50),"") ->  | AG50: =IFERROR((AF50-$F50)/(AE50-$F50),"") ->  | AH50: ='CE CdR'!I47 -> 0 | AJ50: =IFERROR((AI50-$F50)/(AH50-$F50),"") ->  | AM50: =IFERROR((AL50-$F50)/(AK50-$F50),"") ->  | AP50: =IFERROR((AO50-$F50)/(AN50-$F50),"") ->  | AS50: =IFERROR((AR50-$F50)/(AQ50-$F50),"") ->  | AV50: =IFERROR((AU50-$F50)/(AT50-$F50),"") ->  | AW50: ='CE CdR'!J47 -> 0 | AY50: =IFERROR((AX50-$F50)/(AW50-$F50),"") ->  | BB50: =IFERROR((BA50-$F50)/(AZ50-$F50),"") ->  | BE50: =IFERROR((BD50-$F50)/(BC50-$F50),"") ->  | BH50: =IFERROR((BG50-$F50)/(BF50-$F50),"") ->  | BK50: =IFERROR((BJ50-$F50)/(BI50-$F50),"") ->  | BL50: ='CE CdR'!K47 -> 0 | BN50: =IFERROR((BM50-$F50)/(BL50-$F50),"") ->  | BQ50: =IFERROR((BP50-$F50)/(BO50-$F50),"") ->  | BT50: =IFERROR((BS50-$F50)/(BR50-$F50),"") ->  | BW50: =IFERROR((BV50-$F50)/(BU50-$F50),"") ->  | BZ50: =IFERROR((BY50-$F50)/(BX50-$F50),"") ->  | CA50: ='CE CdR'!L47 -> 0 | CC50: =IFERROR((CB50-$F50)/(CA50-$F50),"") ->  | CF50: =IFERROR((CE50-$F50)/(CD50-$F50),"") ->  | CI50: =IFERROR((CH50-$F50)/(CG50-$F50),"") ->  | CL50: =IFERROR((CK50-$F50)/(CJ50-$F50),"") ->  | CO50: =IFERROR((CN50-$F50)/(CM50-$F50),"") ->  | CP50: ='CE CdR'!M47 -> 5000 | CR50: =IFERROR((CQ50-$F50)/(CP50-$F50),"") ->  | CS50: ='CE CdR'!N47 -> 5000
A51: ='CE CdR'!A48 -> 7.2 | B51: ='CE CdR'!B48 -> l' émergence industrielle de la région est renforcée par la captation d’événements internationaux dans les secteurs de pointe (automobile, aéronautique, industries vertes, etc.) | C51: ='CE CdR'!C48 -> Nombre d'évenements | D51: ='CE CdR'!E48 -> 0 | E51: ='CE CdR'!F48 -> 0 | F51: ='CE CdR'!G48 -> 0 | R51: =IFERROR((Q51-$F51)/(P51-$F51),"") ->  | S51: ='CE CdR'!H48 -> 0 | AH51: ='CE CdR'!I48 -> 0 | AW51: ='CE CdR'!J48 -> 0 | BL51: ='CE CdR'!K48 -> 0 | CA51: ='CE CdR'!L48 -> 0 | CP51: ='CE CdR'!M48 -> 0 | CS51: ='CE CdR'!N48 -> FALSE
A52: ='CE CdR'!A49 -> 7.3 | B52: ='CE CdR'!B49 -> L'infrastructure afférente à la captation d’événements internationaux dans les secteurs de pointe (automobile, aéronautique, industries vertes, etc.) est créee | C52: ='CE CdR'!C49 -> Nombre d'infrastructure | D52: ='CE CdR'!E49 -> I | E52: ='CE CdR'!F49 -> infrastructure | F52: ='CE CdR'!G49 -> 0 | R52: =IFERROR((Q52-$F52)/(P52-$F52),"") ->  | S52: ='CE CdR'!H49 -> 0 | AH52: ='CE CdR'!I49 -> 0 | AW52: ='CE CdR'!J49 -> 0 | BL52: ='CE CdR'!K49 -> 0 | CA52: ='CE CdR'!L49 -> 0 | CP52: ='CE CdR'!M49 -> 2 | CS52: ='CE CdR'!N49 -> 2
A53: ='CE CdR'!A50 -> 7.4 | B53: ='CE CdR'!B50 -> 0 | C53: ='CE CdR'!C50 -> 0 | D53: ='CE CdR'!E50 -> 0 | E53: ='CE CdR'!F50 -> 0 | F53: ='CE CdR'!G50 -> 0 | S53: ='CE CdR'!H50 -> 0 | AH53: ='CE CdR'!I50 -> 0 | AW53: ='CE CdR'!J50 -> 0 | BL53: ='CE CdR'!K50 -> 0 | BN53: =IFERROR((BM53-$F53)/(BL53-$F53),"") ->  | CA53: ='CE CdR'!L50 -> 0 | CP53: ='CE CdR'!M50 -> 0 | CR53: =IFERROR((CQ53-$F53)/(CP53-$F53),"") ->  | CS53: ='CE CdR'!N50 -> FALSE
A54: ='CE CdR'!A51 -> 7.5 | B54: ='CE CdR'!B51 -> 0 | C54: ='CE CdR'!C51 -> 0 | D54: ='CE CdR'!E51 -> 0 | E54: ='CE CdR'!F51 -> 0 | F54: ='CE CdR'!G51 -> 0 | S54: ='CE CdR'!H51 -> 0 | AH54: ='CE CdR'!I51 -> 0 | AW54: ='CE CdR'!J51 -> 0 | BL54: ='CE CdR'!K51 -> 0 | CA54: ='CE CdR'!L51 -> 0 | CP54: ='CE CdR'!M51 -> 0 | CS54: ='CE CdR'!N51 -> FALSE
A55: ='CE CdR'!A52 -> 7.6 | B55: ='CE CdR'!B52 -> 0 | C55: ='CE CdR'!C52 -> 0 | D55: ='CE CdR'!E52 -> 0 | E55: ='CE CdR'!F52 -> 0 | F55: ='CE CdR'!G52 -> 0 | S55: ='CE CdR'!H52 -> 0 | AH55: ='CE CdR'!I52 -> 0 | AW55: ='CE CdR'!J52 -> 0 | BL55: ='CE CdR'!K52 -> 0 | CA55: ='CE CdR'!L52 -> 0 | CP55: ='CE CdR'!M52 -> 0 | CS55: ='CE CdR'!N52 -> FALSE
A56: ='CE CdR'!A53 -> 8. | B56: ='CE CdR'!B53:S53 -> Créations d’itinéraires culturels et touristiques en milieu rural
A57: ='CE CdR'!A54 -> 8.1 | B57: ='CE CdR'!B54 -> Contribution à la création d'emploi au niveau des zoennes concernées par les itinéraires touristiques et culturels | C57: ='CE CdR'!C54 -> Nombre d'emploi | D57: ='CE CdR'!E54 -> C | E57: ='CE CdR'!F54 -> emploi | F57: ='CE CdR'!G54 -> 0 | I57: =IFERROR((H57-$F57)/(G57-$F57),"") ->  | L57: =IFERROR((K57-$F57)/(J57-$F57),"") ->  | O57: =IFERROR((N57-$F57)/(M57-$F57),"") ->  | R57: =IFERROR((Q57-$F57)/(P57-$F57),"") ->  | S57: ='CE CdR'!H54 -> 0 | U57: =IFERROR((T57-$F57)/(S57-$F57),"") ->  | X57: =IFERROR((W57-$F57)/(V57-$F57),"") ->  | AA57: =IFERROR((Z57-$F57)/(Y57-$F57),"") ->  | AD57: =IFERROR((AC57-$F57)/(AB57-$F57),"") ->  | AG57: =IFERROR((AF57-$F57)/(AE57-$F57),"") ->  | AH57: ='CE CdR'!I54 -> 0 | AJ57: =IFERROR((AI57-$F57)/(AH57-$F57),"") ->  | AM57: =IFERROR((AL57-$F57)/(AK57-$F57),"") ->  | AP57: =IFERROR((AO57-$F57)/(AN57-$F57),"") ->  | AS57: =IFERROR((AR57-$F57)/(AQ57-$F57),"") ->  | AV57: =IFERROR((AU57-$F57)/(AT57-$F57),"") ->  | AW57: ='CE CdR'!J54 -> 0 | AY57: =IFERROR((AX57-$F57)/(AW57-$F57),"") ->  | BB57: =IFERROR((BA57-$F57)/(AZ57-$F57),"") ->  | BE57: =IFERROR((BD57-$F57)/(BC57-$F57),"") ->  | BH57: =IFERROR((BG57-$F57)/(BF57-$F57),"") ->  | BK57: =IFERROR((BJ57-$F57)/(BI57-$F57),"") ->  | BL57: ='CE CdR'!K54 -> 0 | BN57: =IFERROR((BM57-$F57)/(BL57-$F57),"") ->  | BQ57: =IFERROR((BP57-$F57)/(BO57-$F57),"") ->  | BT57: =IFERROR((BS57-$F57)/(BR57-$F57),"") ->  | BW57: =IFERROR((BV57-$F57)/(BU57-$F57),"") ->  | BZ57: =IFERROR((BY57-$F57)/(BX57-$F57),"") ->  | CA57: ='CE CdR'!L54 -> 0 | CC57: =IFERROR((CB57-$F57)/(CA57-$F57),"") ->  | CF57: =IFERROR((CE57-$F57)/(CD57-$F57),"") ->  | CI57: =IFERROR((CH57-$F57)/(CG57-$F57),"") ->  | CL57: =IFERROR((CK57-$F57)/(CJ57-$F57),"") ->  | CO57: =IFERROR((CN57-$F57)/(CM57-$F57),"") ->  | CP57: ='CE CdR'!M54 -> 600 | CR57: =IFERROR((CQ57-$F57)/(CP57-$F57),"") ->  | CS57: ='CE CdR'!N54 -> 600
A58: ='CE CdR'!A55 -> 8.2 | B58: ='CE CdR'!B55 -> L’attractivité touristique de la Région Tanger Tétouan Al Hoceima est renforcée | C58: ='CE CdR'!C55 -> Durée Moyenne de Séjour | D58: ='CE CdR'!E55 -> I | E58: ='CE CdR'!F55 -> Nuitée | F58: ='CE CdR'!G55 -> 1.9 | R58: =IFERROR((Q58-$F58)/(P58-$F58),"") ->  | S58: ='CE CdR'!H55 ->  | AH58: ='CE CdR'!I55 ->  | AW58: ='CE CdR'!J55 ->  | BL58: ='CE CdR'!K55 ->  | CA58: ='CE CdR'!L55 ->  | CP58: ='CE CdR'!M55 -> 3.5 | CS58: ='CE CdR'!N55 -> 3.5
A59: ='CE CdR'!A56 -> 8.3 | B59: ='CE CdR'!B56 -> De nouveau circuits culturels et touristiques sont crées | C59: ='CE CdR'!C56 -> Nombre de circuit | D59: ='CE CdR'!E56 -> C | E59: ='CE CdR'!F56 -> 0 | F59: ='CE CdR'!G56 -> 0 | R59: =IFERROR((Q59-$F59)/(P59-$F59),"") ->  | S59: ='CE CdR'!H56 -> 0 | AH59: ='CE CdR'!I56 -> 0 | AW59: ='CE CdR'!J56 -> 0 | BL59: ='CE CdR'!K56 -> 0 | CA59: ='CE CdR'!L56 -> 0 | CP59: ='CE CdR'!M56 -> 20 | CS59: ='CE CdR'!N56 -> 20
A60: ='CE CdR'!A57 -> 8.4 | B60: ='CE CdR'!B57 -> 0 | C60: ='CE CdR'!C57 -> 0 | D60: ='CE CdR'!E57 -> 0 | E60: ='CE CdR'!F57 -> 0 | F60: ='CE CdR'!G57 -> 0 | S60: ='CE CdR'!H57 -> 0 | AH60: ='CE CdR'!I57 -> 0 | AW60: ='CE CdR'!J57 -> 0 | BL60: ='CE CdR'!K57 -> 0 | BN60: =IFERROR((BM60-$F60)/(BL60-$F60),"") ->  | CA60: ='CE CdR'!L57 -> 0 | CP60: ='CE CdR'!M57 -> 0 | CR60: =IFERROR((CQ60-$F60)/(CP60-$F60),"") ->  | CS60: ='CE CdR'!N57 -> FALSE
A61: ='CE CdR'!A58 -> 8.5 | B61: ='CE CdR'!B58 -> 0 | C61: ='CE CdR'!C58 -> 0 | D61: ='CE CdR'!E58 -> 0 | E61: ='CE CdR'!F58 -> 0 | F61: ='CE CdR'!G58 -> 0 | S61: ='CE CdR'!H58 -> 0 | AH61: ='CE CdR'!I58 -> 0 | AW61: ='CE CdR'!J58 -> 0 | BL61: ='CE CdR'!K58 -> 0 | CA61: ='CE CdR'!L58 -> 0 | CP61: ='CE CdR'!M58 -> 0 | CS61: ='CE CdR'!N58 -> FALSE
A62: ='CE CdR'!A59 -> 8.6 | B62: ='CE CdR'!B59 -> 0 | C62: ='CE CdR'!C59 -> 0 | D62: ='CE CdR'!E59 -> 0 | E62: ='CE CdR'!F59 -> 0 | F62: ='CE CdR'!G59 -> 0 | S62: ='CE CdR'!H59 -> 0 | AH62: ='CE CdR'!I59 -> 0 | AW62: ='CE CdR'!J59 -> 0 | BL62: ='CE CdR'!K59 -> 0 | CA62: ='CE CdR'!L59 -> 0 | CP62: ='CE CdR'!M59 -> 0 | CS62: ='CE CdR'!N59 -> FALSE
A63: ='CE CdR'!A60 -> 9. | B63: ='CE CdR'!B60:S60 -> Programme de dynamisation de l’Economie de Proximité
A64: ='CE CdR'!A61 -> 9.1 | B64: ='CE CdR'!B61 -> 0 | C64: ='CE CdR'!C61 -> 0 | D64: ='CE CdR'!E61 -> 0 | E64: ='CE CdR'!F61 -> 0 | F64: ='CE CdR'!G61 -> 0 | I64: =IFERROR((H64-$F64)/(G64-$F64),"") ->  | L64: =IFERROR((K64-$F64)/(J64-$F64),"") ->  | O64: =IFERROR((N64-$F64)/(M64-$F64),"") ->  | R64: =IFERROR((Q64-$F64)/(P64-$F64),"") ->  | S64: ='CE CdR'!H61 -> 0 | U64: =IFERROR((T64-$F64)/(S64-$F64),"") ->  | X64: =IFERROR((W64-$F64)/(V64-$F64),"") ->  | AA64: =IFERROR((Z64-$F64)/(Y64-$F64),"") ->  | AD64: =IFERROR((AC64-$F64)/(AB64-$F64),"") ->  | AG64: =IFERROR((AF64-$F64)/(AE64-$F64),"") ->  | AH64: ='CE CdR'!I61 -> 0 | AJ64: =IFERROR((AI64-$F64)/(AH64-$F64),"") ->  | AM64: =IFERROR((AL64-$F64)/(AK64-$F64),"") ->  | AP64: =IFERROR((AO64-$F64)/(AN64-$F64),"") ->  | AS64: =IFERROR((AR64-$F64)/(AQ64-$F64),"") ->  | AV64: =IFERROR((AU64-$F64)/(AT64-$F64),"") ->  | AW64: ='CE CdR'!J61 -> 0 | AY64: =IFERROR((AX64-$F64)/(AW64-$F64),"") ->  | BB64: =IFERROR((BA64-$F64)/(AZ64-$F64),"") ->  | BE64: =IFERROR((BD64-$F64)/(BC64-$F64),"") ->  | BH64: =IFERROR((BG64-$F64)/(BF64-$F64),"") ->  | BK64: =IFERROR((BJ64-$F64)/(BI64-$F64),"") ->  | BL64: ='CE CdR'!K61 -> 0 | BN64: =IFERROR((BM64-$F64)/(BL64-$F64),"") ->  | BQ64: =IFERROR((BP64-$F64)/(BO64-$F64),"") ->  | BT64: =IFERROR((BS64-$F64)/(BR64-$F64),"") ->  | BW64: =IFERROR((BV64-$F64)/(BU64-$F64),"") ->  | BZ64: =IFERROR((BY64-$F64)/(BX64-$F64),"") ->  | CA64: ='CE CdR'!L61 -> 0 | CC64: =IFERROR((CB64-$F64)/(CA64-$F64),"") ->  | CF64: =IFERROR((CE64-$F64)/(CD64-$F64),"") ->  | CI64: =IFERROR((CH64-$F64)/(CG64-$F64),"") ->  | CL64: =IFERROR((CK64-$F64)/(CJ64-$F64),"") ->  | CO64: =IFERROR((CN64-$F64)/(CM64-$F64),"") ->  | CP64: ='CE CdR'!M61 -> 0 | CR64: =IFERROR((CQ64-$F64)/(CP64-$F64),"") ->  | CS64: ='CE CdR'!N61 -> FALSE
A65: ='CE CdR'!A62 -> 9.2 | B65: ='CE CdR'!B62 -> 0 | C65: ='CE CdR'!C62 -> 0 | D65: ='CE CdR'!E62 -> 0 | E65: ='CE CdR'!F62 -> 0 | F65: ='CE CdR'!G62 -> 0 | R65: =IFERROR((Q65-$F65)/(P65-$F65),"") ->  | S65: ='CE CdR'!H62 -> 0 | AH65: ='CE CdR'!I62 -> 0 | AW65: ='CE CdR'!J62 -> 0 | BL65: ='CE CdR'!K62 -> 0 | CA65: ='CE CdR'!L62 -> 0 | CP65: ='CE CdR'!M62 -> 0 | CS65: ='CE CdR'!N62 -> FALSE
A66: ='CE CdR'!A63 -> 9.3 | B66: ='CE CdR'!B63 -> 0 | C66: ='CE CdR'!C63 -> 0 | D66: ='CE CdR'!E63 -> 0 | E66: ='CE CdR'!F63 -> 0 | F66: ='CE CdR'!G63 -> 0 | R66: =IFERROR((Q66-$F66)/(P66-$F66),"") ->  | S66: ='CE CdR'!H63 -> 0 | AH66: ='CE CdR'!I63 -> 0 | AW66: ='CE CdR'!J63 -> 0 | BL66: ='CE CdR'!K63 -> 0 | CA66: ='CE CdR'!L63 -> 0 | CP66: ='CE CdR'!M63 -> 0 | CS66: ='CE CdR'!N63 -> FALSE
A67: ='CE CdR'!A64 -> 9.4 | B67: ='CE CdR'!B64 -> 0 | C67: ='CE CdR'!C64 -> 0 | D67: ='CE CdR'!E64 -> 0 | E67: ='CE CdR'!F64 -> 0 | F67: ='CE CdR'!G64 -> 0 | S67: ='CE CdR'!H64 -> 0 | AH67: ='CE CdR'!I64 -> 0 | AW67: ='CE CdR'!J64 -> 0 | BL67: ='CE CdR'!K64 -> 0 | BN67: =IFERROR((BM67-$F67)/(BL67-$F67),"") ->  | CA67: ='CE CdR'!L64 -> 0 | CP67: ='CE CdR'!M64 -> 0 | CR67: =IFERROR((CQ67-$F67)/(CP67-$F67),"") ->  | CS67: ='CE CdR'!N64 -> FALSE
A68: ='CE CdR'!A65 -> 9.5 | B68: ='CE CdR'!B65 -> 0 | C68: ='CE CdR'!C65 -> 0 | D68: ='CE CdR'!E65 -> 0 | E68: ='CE CdR'!F65 -> 0 | F68: ='CE CdR'!G65 -> 0 | S68: ='CE CdR'!H65 -> 0 | AH68: ='CE CdR'!I65 -> 0 | AW68: ='CE CdR'!J65 -> 0 | BL68: ='CE CdR'!K65 -> 0 | CA68: ='CE CdR'!L65 -> 0 | CP68: ='CE CdR'!M65 -> 0 | CS68: ='CE CdR'!N65 -> FALSE
A69: ='CE CdR'!A66 -> 9.6 | B69: ='CE CdR'!B66 -> 0 | C69: ='CE CdR'!C66 -> 0 | D69: ='CE CdR'!E66 -> 0 | E69: ='CE CdR'!F66 -> 0 | F69: ='CE CdR'!G66 -> 0 | S69: ='CE CdR'!H66 -> 0 | AH69: ='CE CdR'!I66 -> 0 | AW69: ='CE CdR'!J66 -> 0 | BL69: ='CE CdR'!K66 -> 0 | CA69: ='CE CdR'!L66 -> 0 | CP69: ='CE CdR'!M66 -> 0 | CS69: ='CE CdR'!N66 -> FALSE
A70: ='CE CdR'!A67 -> 10. | B70: ='CE CdR'!B67:S67 -> Dynamisation du littoral - Développement de l’activité Aquaculture dans les 10 VDP / PDA
A71: ='CE CdR'!A68 -> 10.1 | B71: ='CE CdR'!B68 -> Contribuer à la promotion des métiers d’aquaculture au niveau de la région | C71: ='CE CdR'!C68 -> Nombre d'emploi | D71: ='CE CdR'!E68 -> C | E71: ='CE CdR'!F68 -> 0 | F71: ='CE CdR'!G68 -> 0 | I71: =IFERROR((H71-$F71)/(G71-$F71),"") ->  | L71: =IFERROR((K71-$F71)/(J71-$F71),"") ->  | O71: =IFERROR((N71-$F71)/(M71-$F71),"") ->  | R71: =IFERROR((Q71-$F71)/(P71-$F71),"") ->  | S71: ='CE CdR'!H68 -> 0 | U71: =IFERROR((T71-$F71)/(S71-$F71),"") ->  | X71: =IFERROR((W71-$F71)/(V71-$F71),"") ->  | AA71: =IFERROR((Z71-$F71)/(Y71-$F71),"") ->  | AD71: =IFERROR((AC71-$F71)/(AB71-$F71),"") ->  | AG71: =IFERROR((AF71-$F71)/(AE71-$F71),"") ->  | AH71: ='CE CdR'!I68 -> 0 | AJ71: =IFERROR((AI71-$F71)/(AH71-$F71),"") ->  | AM71: =IFERROR((AL71-$F71)/(AK71-$F71),"") ->  | AP71: =IFERROR((AO71-$F71)/(AN71-$F71),"") ->  | AS71: =IFERROR((AR71-$F71)/(AQ71-$F71),"") ->  | AV71: =IFERROR((AU71-$F71)/(AT71-$F71),"") ->  | AW71: ='CE CdR'!J68 ->  | AY71: =IFERROR((AX71-$F71)/(AW71-$F71),"") ->  | BB71: =IFERROR((BA71-$F71)/(AZ71-$F71),"") ->  | BE71: =IFERROR((BD71-$F71)/(BC71-$F71),"") ->  | BH71: =IFERROR((BG71-$F71)/(BF71-$F71),"") ->  | BK71: =IFERROR((BJ71-$F71)/(BI71-$F71),"") ->  | BL71: ='CE CdR'!K68 -> 1500 | BN71: =IFERROR((BM71-$F71)/(BL71-$F71),"") ->  | BQ71: =IFERROR((BP71-$F71)/(BO71-$F71),"") ->  | BT71: =IFERROR((BS71-$F71)/(BR71-$F71),"") ->  | BW71: =IFERROR((BV71-$F71)/(BU71-$F71),"") ->  | BZ71: =IFERROR((BY71-$F71)/(BX71-$F71),"") ->  | CA71: ='CE CdR'!L68 -> 1500 | CC71: =IFERROR((CB71-$F71)/(CA71-$F71),"") ->  | CF71: =IFERROR((CE71-$F71)/(CD71-$F71),"") ->  | CI71: =IFERROR((CH71-$F71)/(CG71-$F71),"") ->  | CL71: =IFERROR((CK71-$F71)/(CJ71-$F71),"") ->  | CO71: =IFERROR((CN71-$F71)/(CM71-$F71),"") ->  | CP71: ='CE CdR'!M68 -> 1500 | CR71: =IFERROR((CQ71-$F71)/(CP71-$F71),"") ->  | CS71: ='CE CdR'!N68 -> 1500
A72: ='CE CdR'!A69 -> 10.2 | B72: ='CE CdR'!B69 -> Des unités d'aquaculture sont créees | C72: ='CE CdR'!C69 -> Nombre d'unités | D72: ='CE CdR'!E69 -> C | E72: ='CE CdR'!F69 -> Unité aquacole | F72: ='CE CdR'!G69 -> 0 | R72: =IFERROR((Q72-$F72)/(P72-$F72),"") ->  | S72: ='CE CdR'!H69 -> 0 | AH72: ='CE CdR'!I69 -> 0 | AW72: ='CE CdR'!J69 -> 30 | BL72: ='CE CdR'!K69 -> 30 | CA72: ='CE CdR'!L69 -> 30 | CP72: ='CE CdR'!M69 -> 30 | CS72: ='CE CdR'!N69 -> 30
A73: ='CE CdR'!A70 -> 10.3 | B73: ='CE CdR'!B70 -> Des espaces dévolus au développement de l’aquaculture et des sites où implanter des fermes aquacoles sont crées | C73: ='CE CdR'!C70 -> Nombre de sites | D73: ='CE CdR'!E70 -> C | E73: ='CE CdR'!F70 -> Site aquacole | F73: ='CE CdR'!G70 -> 0 | R73: =IFERROR((Q73-$F73)/(P73-$F73),"") ->  | S73: ='CE CdR'!H70 -> 0 | AH73: ='CE CdR'!I70 -> 10 | AW73: ='CE CdR'!J70 -> 10 | BL73: ='CE CdR'!K70 -> 10 | CA73: ='CE CdR'!L70 -> 10 | CP73: ='CE CdR'!M70 -> 10 | CS73: ='CE CdR'!N70 -> 10
A74: ='CE CdR'!A71 -> 10.4 | B74: ='CE CdR'!B71 -> 0 | C74: ='CE CdR'!C71 -> 0 | D74: ='CE CdR'!E71 -> 0 | E74: ='CE CdR'!F71 -> 0 | F74: ='CE CdR'!G71 -> 0 | S74: ='CE CdR'!H71 -> 0 | AH74: ='CE CdR'!I71 -> 0 | AW74: ='CE CdR'!J71 -> 0 | BL74: ='CE CdR'!K71 -> 0 | BN74: =IFERROR((BM74-$F74)/(BL74-$F74),"") ->  | CA74: ='CE CdR'!L71 -> 0 | CP74: ='CE CdR'!M71 -> 0 | CR74: =IFERROR((CQ74-$F74)/(CP74-$F74),"") ->  | CS74: ='CE CdR'!N71 -> FALSE
A75: ='CE CdR'!A72 -> 10.5 | B75: ='CE CdR'!B72 -> 0 | C75: ='CE CdR'!C72 -> 0 | D75: ='CE CdR'!E72 -> 0 | E75: ='CE CdR'!F72 -> 0 | F75: ='CE CdR'!G72 -> 0 | S75: ='CE CdR'!H72 -> 0 | AH75: ='CE CdR'!I72 -> 0 | AW75: ='CE CdR'!J72 -> 0 | BL75: ='CE CdR'!K72 -> 0 | CA75: ='CE CdR'!L72 -> 0 | CP75: ='CE CdR'!M72 -> 0 | CS75: ='CE CdR'!N72 -> FALSE
A76: ='CE CdR'!A73 -> 10.6 | B76: ='CE CdR'!B73 -> 0 | C76: ='CE CdR'!C73 -> 0 | D76: ='CE CdR'!E73 -> 0 | E76: ='CE CdR'!F73 -> 0 | F76: ='CE CdR'!G73 -> 0 | S76: ='CE CdR'!H73 -> 0 | AH76: ='CE CdR'!I73 -> 0 | AW76: ='CE CdR'!J73 -> 0 | BL76: ='CE CdR'!K73 -> 0 | CA76: ='CE CdR'!L73 -> 0 | CP76: ='CE CdR'!M73 -> 0 | CS76: ='CE CdR'!N73 -> FALSE
A77: ='CE CdR'!A74 -> AUTRES COMPETENCES
A78: ='CE CdR'!A75 -> 1. | B78: ='CE CdR'!B75:S75 -> Programme d’aménagements hydriques
A79: ='CE CdR'!A76 -> 1.1 | B79: ='CE CdR'!B76 ->  | C79: ='CE CdR'!C76 -> 0 | D79: ='CE CdR'!E76 -> 0 | E79: ='CE CdR'!F76 -> 0 | F79: ='CE CdR'!G76 -> 0 | I79: =IFERROR((H79-$F79)/(G79-$F79),"") ->  | L79: =IFERROR((K79-$F79)/(J79-$F79),"") ->  | O79: =IFERROR((N79-$F79)/(M79-$F79),"") ->  | R79: =IFERROR((Q79-$F79)/(P79-$F79),"") ->  | S79: ='CE CdR'!H76 -> 0 | U79: =IFERROR((T79-$F79)/(S79-$F79),"") ->  | X79: =IFERROR((W79-$F79)/(V79-$F79),"") ->  | AA79: =IFERROR((Z79-$F79)/(Y79-$F79),"") ->  | AD79: =IFERROR((AC79-$F79)/(AB79-$F79),"") ->  | AG79: =IFERROR((AF79-$F79)/(AE79-$F79),"") ->  | AH79: ='CE CdR'!I76 -> 0 | AJ79: =IFERROR((AI79-$F79)/(AH79-$F79),"") ->  | AM79: =IFERROR((AL79-$F79)/(AK79-$F79),"") ->  | AP79: =IFERROR((AO79-$F79)/(AN79-$F79),"") ->  | AS79: =IFERROR((AR79-$F79)/(AQ79-$F79),"") ->  | AV79: =IFERROR((AU79-$F79)/(AT79-$F79),"") ->  | AW79: ='CE CdR'!J76 -> 0 | AY79: =IFERROR((AX79-$F79)/(AW79-$F79),"") ->  | BB79: =IFERROR((BA79-$F79)/(AZ79-$F79),"") ->  | BE79: =IFERROR((BD79-$F79)/(BC79-$F79),"") ->  | BH79: =IFERROR((BG79-$F79)/(BF79-$F79),"") ->  | BK79: =IFERROR((BJ79-$F79)/(BI79-$F79),"") ->  | BL79: ='CE CdR'!K76 -> 0 | BN79: =IFERROR((BM79-$F79)/(BL79-$F79),"") ->  | BQ79: =IFERROR((BP79-$F79)/(BO79-$F79),"") ->  | BT79: =IFERROR((BS79-$F79)/(BR79-$F79),"") ->  | BW79: =IFERROR((BV79-$F79)/(BU79-$F79),"") ->  | BZ79: =IFERROR((BY79-$F79)/(BX79-$F79),"") ->  | CA79: ='CE CdR'!L76 -> 0 | CC79: =IFERROR((CB79-$F79)/(CA79-$F79),"") ->  | CF79: =IFERROR((CE79-$F79)/(CD79-$F79),"") ->  | CI79: =IFERROR((CH79-$F79)/(CG79-$F79),"") ->  | CL79: =IFERROR((CK79-$F79)/(CJ79-$F79),"") ->  | CO79: =IFERROR((CN79-$F79)/(CM79-$F79),"") ->  | CP79: ='CE CdR'!M76 -> 0 | CR79: =IFERROR((CQ79-$F79)/(CP79-$F79),"") ->  | CS79: ='CE CdR'!N76 -> FALSE
A80: ='CE CdR'!A77 -> 1.2 | B80: ='CE CdR'!B77 ->  | C80: ='CE CdR'!C77 -> 0 | D80: ='CE CdR'!E77 -> 0 | E80: ='CE CdR'!F77 -> 0 | F80: ='CE CdR'!G77 -> 0 | R80: =IFERROR((Q80-$F80)/(P80-$F80),"") ->  | S80: ='CE CdR'!H77 -> 0 | AH80: ='CE CdR'!I77 -> 0 | AW80: ='CE CdR'!J77 -> 0 | BL80: ='CE CdR'!K77 -> 0 | CA80: ='CE CdR'!L77 -> 0 | CP80: ='CE CdR'!M77 -> 0 | CS80: ='CE CdR'!N77 -> FALSE
A81: ='CE CdR'!A78 -> 1.3 | B81: ='CE CdR'!B78 ->  | C81: ='CE CdR'!C78 -> 0 | D81: ='CE CdR'!E78 -> 0 | E81: ='CE CdR'!F78 -> 0 | F81: ='CE CdR'!G78 -> 0 | R81: =IFERROR((Q81-$F81)/(P81-$F81),"") ->  | S81: ='CE CdR'!H78 -> 0 | AH81: ='CE CdR'!I78 -> 0 | AW81: ='CE CdR'!J78 -> 0 | BL81: ='CE CdR'!K78 -> 0 | CA81: ='CE CdR'!L78 -> 0 | CP81: ='CE CdR'!M78 -> 0 | CS81: ='CE CdR'!N78 -> FALSE
A82: ='CE CdR'!A79 -> 1.4 | B82: ='CE CdR'!B79 -> De nouveaux aménagements hydriques réalisés | C82: ='CE CdR'!C79 -> superficie en ha | D82: ='CE CdR'!E79 -> 0 | E82: ='CE CdR'!F79 -> 0 | F82: ='CE CdR'!G79 -> 0 | S82: ='CE CdR'!H79 -> 0 | AH82: ='CE CdR'!I79 -> 0 | AW82: ='CE CdR'!J79 -> 0 | BL82: ='CE CdR'!K79 -> 0 | BN82: =IFERROR((BM82-$F82)/(BL82-$F82),"") ->  | CA82: ='CE CdR'!L79 -> 0 | CP82: ='CE CdR'!M79 -> 0 | CR82: =IFERROR((CQ82-$F82)/(CP82-$F82),"") ->  | CS82: ='CE CdR'!N79 -> FALSE
A83: ='CE CdR'!A80 -> 1.5 | B83: ='CE CdR'!B80 -> 0 | C83: ='CE CdR'!C80 -> 0 | D83: ='CE CdR'!E80 -> 0 | E83: ='CE CdR'!F80 -> 0 | F83: ='CE CdR'!G80 -> 0 | S83: ='CE CdR'!H80 -> 0 | AH83: ='CE CdR'!I80 -> 0 | AW83: ='CE CdR'!J80 -> 0 | BL83: ='CE CdR'!K80 -> 0 | CA83: ='CE CdR'!L80 -> 0 | CP83: ='CE CdR'!M80 -> 0 | CS83: ='CE CdR'!N80 -> FALSE
A84: ='CE CdR'!A81 -> 1.6 | B84: ='CE CdR'!B81 -> 0 | C84: ='CE CdR'!C81 -> 0 | D84: ='CE CdR'!E81 -> 0 | E84: ='CE CdR'!F81 -> 0 | F84: ='CE CdR'!G81 -> 0 | S84: ='CE CdR'!H81 -> 0 | AH84: ='CE CdR'!I81 -> 0 | AW84: ='CE CdR'!J81 -> 0 | BL84: ='CE CdR'!K81 -> 0 | CA84: ='CE CdR'!L81 -> 0 | CP84: ='CE CdR'!M81 -> 0 | CS84: ='CE CdR'!N81 -> FALSE
A85: ='CE CdR'!A82 -> 2. | B85: ='CE CdR'!B82:S82 -> Agropole régional
A86: ='CE CdR'!A83 -> 2.1 | B86: ='CE CdR'!B83 -> Contribuer à la création d'emplois au niveau de la région | C86: ='CE CdR'!C83 -> Nombre d'emploi | D86: ='CE CdR'!E83 -> C | E86: ='CE CdR'!F83 -> emploi | F86: ='CE CdR'!G83 -> 0 | I86: =IFERROR((H86-$F86)/(G86-$F86),"") ->  | L86: =IFERROR((K86-$F86)/(J86-$F86),"") ->  | O86: =IFERROR((N86-$F86)/(M86-$F86),"") ->  | R86: =IFERROR((Q86-$F86)/(P86-$F86),"") ->  | S86: ='CE CdR'!H83 -> 0 | U86: =IFERROR((T86-$F86)/(S86-$F86),"") ->  | X86: =IFERROR((W86-$F86)/(V86-$F86),"") ->  | AA86: =IFERROR((Z86-$F86)/(Y86-$F86),"") ->  | AD86: =IFERROR((AC86-$F86)/(AB86-$F86),"") ->  | AG86: =IFERROR((AF86-$F86)/(AE86-$F86),"") ->  | AH86: ='CE CdR'!I83 -> 0 | AJ86: =IFERROR((AI86-$F86)/(AH86-$F86),"") ->  | AM86: =IFERROR((AL86-$F86)/(AK86-$F86),"") ->  | AP86: =IFERROR((AO86-$F86)/(AN86-$F86),"") ->  | AS86: =IFERROR((AR86-$F86)/(AQ86-$F86),"") ->  | AV86: =IFERROR((AU86-$F86)/(AT86-$F86),"") ->  | AW86: ='CE CdR'!J83 ->  | AY86: =IFERROR((AX86-$F86)/(AW86-$F86),"") ->  | BB86: =IFERROR((BA86-$F86)/(AZ86-$F86),"") ->  | BE86: =IFERROR((BD86-$F86)/(BC86-$F86),"") ->  | BH86: =IFERROR((BG86-$F86)/(BF86-$F86),"") ->  | BK86: =IFERROR((BJ86-$F86)/(BI86-$F86),"") ->  | BL86: ='CE CdR'!K83 -> 10500 | BN86: =IFERROR((BM86-$F86)/(BL86-$F86),"") ->  | BQ86: =IFERROR((BP86-$F86)/(BO86-$F86),"") ->  | BT86: =IFERROR((BS86-$F86)/(BR86-$F86),"") ->  | BW86: =IFERROR((BV86-$F86)/(BU86-$F86),"") ->  | BZ86: =IFERROR((BY86-$F86)/(BX86-$F86),"") ->  | CA86: ='CE CdR'!L83 -> 10500 | CC86: =IFERROR((CB86-$F86)/(CA86-$F86),"") ->  | CF86: =IFERROR((CE86-$F86)/(CD86-$F86),"") ->  | CI86: =IFERROR((CH86-$F86)/(CG86-$F86),"") ->  | CL86: =IFERROR((CK86-$F86)/(CJ86-$F86),"") ->  | CO86: =IFERROR((CN86-$F86)/(CM86-$F86),"") ->  | CP86: ='CE CdR'!M83 -> 10500 | CR86: =IFERROR((CQ86-$F86)/(CP86-$F86),"") ->  | CS86: ='CE CdR'!N83 -> 10500
A87: ='CE CdR'!A84 -> 2.2 | B87: ='CE CdR'!B84 -> L'agropole est opérationnel | C87: ='CE CdR'!C84 -> Nombre de PME | D87: ='CE CdR'!E84 -> C | E87: ='CE CdR'!F84 -> Compagnie | F87: ='CE CdR'!G84 -> 0 | R87: =IFERROR((Q87-$F87)/(P87-$F87),"") ->  | S87: ='CE CdR'!H84 -> 0 | AH87: ='CE CdR'!I84 -> 0 | AW87: ='CE CdR'!J84 -> 70 | BL87: ='CE CdR'!K84 -> 70 | CA87: ='CE CdR'!L84 -> 70 | CP87: ='CE CdR'!M84 -> 70 | CS87: ='CE CdR'!N84 -> 70
A88: ='CE CdR'!A85 -> 2.3 | B88: ='CE CdR'!B85 -> L'agropole régional est aménagé | C88: ='CE CdR'!C85 -> superficie en ha | D88: ='CE CdR'!E85 -> C | E88: ='CE CdR'!F85 -> ha | F88: ='CE CdR'!G85 -> 0 | R88: =IFERROR((Q88-$F88)/(P88-$F88),"") ->  | S88: ='CE CdR'!H85 -> 0 | AH88: ='CE CdR'!I85 -> 0 | AW88: ='CE CdR'!J85 -> 100 | BL88: ='CE CdR'!K85 -> 100 | CA88: ='CE CdR'!L85 -> 100 | CP88: ='CE CdR'!M85 -> 100 | CS88: ='CE CdR'!N85 -> 100
A89: ='CE CdR'!A86 -> 2.4 | B89: ='CE CdR'!B86 ->  | C89: ='CE CdR'!C86 ->  | D89: ='CE CdR'!E86 -> C | E89: ='CE CdR'!F86 ->  | F89: ='CE CdR'!G86 -> 0 | S89: ='CE CdR'!H86 -> 0 | AH89: ='CE CdR'!I86 -> 0 | AW89: ='CE CdR'!J86 ->  | BL89: ='CE CdR'!K86 ->  | BN89: =IFERROR((BM89-$F89)/(BL89-$F89),"") ->  | CA89: ='CE CdR'!L86 ->  | CP89: ='CE CdR'!M86 ->  | CR89: =IFERROR((CQ89-$F89)/(CP89-$F89),"") ->  | CS89: ='CE CdR'!N86 -> 
A90: ='CE CdR'!A87 -> 2.5 | B90: ='CE CdR'!B87 -> 0 | C90: ='CE CdR'!C87 -> 0 | D90: ='CE CdR'!E87 -> 0 | E90: ='CE CdR'!F87 -> 0 | F90: ='CE CdR'!G87 -> 0 | S90: ='CE CdR'!H87 -> 0 | AH90: ='CE CdR'!I87 -> 0 | AW90: ='CE CdR'!J87 -> 0 | BL90: ='CE CdR'!K87 -> 0 | CA90: ='CE CdR'!L87 -> 0 | CP90: ='CE CdR'!M87 -> 0 | CS90: ='CE CdR'!N87 -> FALSE
A91: ='CE CdR'!A88 -> 2.6 | B91: ='CE CdR'!B88 -> 0 | C91: ='CE CdR'!C88 -> 0 | D91: ='CE CdR'!E88 -> 0 | E91: ='CE CdR'!F88 -> 0 | F91: ='CE CdR'!G88 -> 0 | S91: ='CE CdR'!H88 -> 0 | AH91: ='CE CdR'!I88 -> 0 | AW91: ='CE CdR'!J88 -> 0 | BL91: ='CE CdR'!K88 -> 0 | CA91: ='CE CdR'!L88 -> 0 | CP91: ='CE CdR'!M88 -> 0 | CS91: ='CE CdR'!N88 -> FALSE
A92: ='CE CdR'!A89 -> 3. | B92: ='CE CdR'!B89:S89 -> 
A93: ='CE CdR'!A90 -> 3.1 | B93: ='CE CdR'!B90 -> 0 | C93: ='CE CdR'!C90 -> 0 | D93: ='CE CdR'!E90 -> 0 | E93: ='CE CdR'!F90 -> 0 | F93: ='CE CdR'!G90 -> 0 | I93: =IFERROR((H93-$F93)/(G93-$F93),"") ->  | L93: =IFERROR((K93-$F93)/(J93-$F93),"") ->  | O93: =IFERROR((N93-$F93)/(M93-$F93),"") ->  | R93: =IFERROR((Q93-$F93)/(P93-$F93),"") ->  | S93: ='CE CdR'!H90 -> 0 | U93: =IFERROR((T93-$F93)/(S93-$F93),"") ->  | X93: =IFERROR((W93-$F93)/(V93-$F93),"") ->  | AA93: =IFERROR((Z93-$F93)/(Y93-$F93),"") ->  | AD93: =IFERROR((AC93-$F93)/(AB93-$F93),"") ->  | AG93: =IFERROR((AF93-$F93)/(AE93-$F93),"") ->  | AH93: ='CE CdR'!I90 -> 0 | AJ93: =IFERROR((AI93-$F93)/(AH93-$F93),"") ->  | AM93: =IFERROR((AL93-$F93)/(AK93-$F93),"") ->  | AP93: =IFERROR((AO93-$F93)/(AN93-$F93),"") ->  | AS93: =IFERROR((AR93-$F93)/(AQ93-$F93),"") ->  | AV93: =IFERROR((AU93-$F93)/(AT93-$F93),"") ->  | AW93: ='CE CdR'!J90 -> 0 | AY93: =IFERROR((AX93-$F93)/(AW93-$F93),"") ->  | BB93: =IFERROR((BA93-$F93)/(AZ93-$F93),"") ->  | BE93: =IFERROR((BD93-$F93)/(BC93-$F93),"") ->  | BH93: =IFERROR((BG93-$F93)/(BF93-$F93),"") ->  | BK93: =IFERROR((BJ93-$F93)/(BI93-$F93),"") ->  | BL93: ='CE CdR'!K90 -> 0 | BN93: =IFERROR((BM93-$F93)/(BL93-$F93),"") ->  | BQ93: =IFERROR((BP93-$F93)/(BO93-$F93),"") ->  | BT93: =IFERROR((BS93-$F93)/(BR93-$F93),"") ->  | BW93: =IFERROR((BV93-$F93)/(BU93-$F93),"") ->  | BZ93: =IFERROR((BY93-$F93)/(BX93-$F93),"") ->  | CA93: ='CE CdR'!L90 -> 0 | CC93: =IFERROR((CB93-$F93)/(CA93-$F93),"") ->  | CF93: =IFERROR((CE93-$F93)/(CD93-$F93),"") ->  | CI93: =IFERROR((CH93-$F93)/(CG93-$F93),"") ->  | CL93: =IFERROR((CK93-$F93)/(CJ93-$F93),"") ->  | CO93: =IFERROR((CN93-$F93)/(CM93-$F93),"") ->  | CP93: ='CE CdR'!M90 -> 0 | CR93: =IFERROR((CQ93-$F93)/(CP93-$F93),"") ->  | CS93: ='CE CdR'!N90 -> FALSE
A94: ='CE CdR'!A91 -> 3.2 | B94: ='CE CdR'!B91 -> 0 | C94: ='CE CdR'!C91 -> 0 | D94: ='CE CdR'!E91 -> 0 | E94: ='CE CdR'!F91 -> 0 | F94: ='CE CdR'!G91 -> 0 | R94: =IFERROR((Q94-$F94)/(P94-$F94),"") ->  | S94: ='CE CdR'!H91 -> 0 | AH94: ='CE CdR'!I91 -> 0 | AW94: ='CE CdR'!J91 -> 0 | BL94: ='CE CdR'!K91 -> 0 | CA94: ='CE CdR'!L91 -> 0 | CP94: ='CE CdR'!M91 -> 0 | CS94: ='CE CdR'!N91 -> FALSE
A95: ='CE CdR'!A92 -> 3.3 | B95: ='CE CdR'!B92 -> 0 | C95: ='CE CdR'!C92 -> 0 | D95: ='CE CdR'!E92 -> 0 | E95: ='CE CdR'!F92 -> 0 | F95: ='CE CdR'!G92 -> 0 | R95: =IFERROR((Q95-$F95)/(P95-$F95),"") ->  | S95: ='CE CdR'!H92 -> 0 | AH95: ='CE CdR'!I92 -> 0 | AW95: ='CE CdR'!J92 -> 0 | BL95: ='CE CdR'!K92 -> 0 | CA95: ='CE CdR'!L92 -> 0 | CP95: ='CE CdR'!M92 -> 0 | CS95: ='CE CdR'!N92 -> FALSE
A96: ='CE CdR'!A93 -> 3.4 | B96: ='CE CdR'!B93 -> 0 | C96: ='CE CdR'!C93 -> 0 | D96: ='CE CdR'!E93 -> 0 | E96: ='CE CdR'!F93 -> 0 | F96: ='CE CdR'!G93 -> 0 | S96: ='CE CdR'!H93 -> 0 | AH96: ='CE CdR'!I93 -> 0 | AW96: ='CE CdR'!J93 -> 0 | BL96: ='CE CdR'!K93 -> 0 | BN96: =IFERROR((BM96-$F96)/(BL96-$F96),"") ->  | CA96: ='CE CdR'!L93 -> 0 | CP96: ='CE CdR'!M93 -> 0 | CR96: =IFERROR((CQ96-$F96)/(CP96-$F96),"") ->  | CS96: ='CE CdR'!N93 -> FALSE
A97: ='CE CdR'!A94 -> 3.5 | B97: ='CE CdR'!B94 -> 0 | C97: ='CE CdR'!C94 -> 0 | D97: ='CE CdR'!E94 -> 0 | E97: ='CE CdR'!F94 -> 0 | F97: ='CE CdR'!G94 -> 0 | S97: ='CE CdR'!H94 -> 0 | AH97: ='CE CdR'!I94 -> 0 | AW97: ='CE CdR'!J94 -> 0 | BL97: ='CE CdR'!K94 -> 0 | CA97: ='CE CdR'!L94 -> 0 | CP97: ='CE CdR'!M94 -> 0 | CS97: ='CE CdR'!N94 -> FALSE
A98: ='CE CdR'!A95 -> 3.6 | B98: ='CE CdR'!B95 -> 0 | C98: ='CE CdR'!C95 -> 0 | D98: ='CE CdR'!E95 -> 0 | E98: ='CE CdR'!F95 -> 0 | F98: ='CE CdR'!G95 -> 0 | S98: ='CE CdR'!H95 -> 0 | AH98: ='CE CdR'!I95 -> 0 | AW98: ='CE CdR'!J95 -> 0 | BL98: ='CE CdR'!K95 -> 0 | CA98: ='CE CdR'!L95 -> 0 | CP98: ='CE CdR'!M95 -> 0 | CS98: ='CE CdR'!N95 -> FALSE
A99: ='CE CdR'!A96 -> 4. | B99: ='CE CdR'!B96:S96 -> 
A100: ='CE CdR'!A97 -> 4.1 | B100: ='CE CdR'!B97 -> 0 | C100: ='CE CdR'!C97 -> 0 | D100: ='CE CdR'!E97 -> 0 | E100: ='CE CdR'!F97 -> 0 | F100: ='CE CdR'!G97 -> 0 | I100: =IFERROR((H100-$F100)/(G100-$F100),"") ->  | L100: =IFERROR((K100-$F100)/(J100-$F100),"") ->  | O100: =IFERROR((N100-$F100)/(M100-$F100),"") ->  | R100: =IFERROR((Q100-$F100)/(P100-$F100),"") ->  | S100: ='CE CdR'!H97 -> 0 | U100: =IFERROR((T100-$F100)/(S100-$F100),"") ->  | X100: =IFERROR((W100-$F100)/(V100-$F100),"") ->  | AA100: =IFERROR((Z100-$F100)/(Y100-$F100),"") ->  | AD100: =IFERROR((AC100-$F100)/(AB100-$F100),"") ->  | AG100: =IFERROR((AF100-$F100)/(AE100-$F100),"") ->  | AH100: ='CE CdR'!I97 -> 0 | AJ100: =IFERROR((AI100-$F100)/(AH100-$F100),"") ->  | AM100: =IFERROR((AL100-$F100)/(AK100-$F100),"") ->  | AP100: =IFERROR((AO100-$F100)/(AN100-$F100),"") ->  | AS100: =IFERROR((AR100-$F100)/(AQ100-$F100),"") ->  | AV100: =IFERROR((AU100-$F100)/(AT100-$F100),"") ->  | AW100: ='CE CdR'!J97 -> 0 | AY100: =IFERROR((AX100-$F100)/(AW100-$F100),"") ->  | BB100: =IFERROR((BA100-$F100)/(AZ100-$F100),"") ->  | BE100: =IFERROR((BD100-$F100)/(BC100-$F100),"") ->  | BH100: =IFERROR((BG100-$F100)/(BF100-$F100),"") ->  | BK100: =IFERROR((BJ100-$F100)/(BI100-$F100),"") ->  | BL100: ='CE CdR'!K97 -> 0 | BN100: =IFERROR((BM100-$F100)/(BL100-$F100),"") ->  | BQ100: =IFERROR((BP100-$F100)/(BO100-$F100),"") ->  | BT100: =IFERROR((BS100-$F100)/(BR100-$F100),"") ->  | BW100: =IFERROR((BV100-$F100)/(BU100-$F100),"") ->  | BZ100: =IFERROR((BY100-$F100)/(BX100-$F100),"") ->  | CA100: ='CE CdR'!L97 -> 0 | CC100: =IFERROR((CB100-$F100)/(CA100-$F100),"") ->  | CF100: =IFERROR((CE100-$F100)/(CD100-$F100),"") ->  | CI100: =IFERROR((CH100-$F100)/(CG100-$F100),"") ->  | CL100: =IFERROR((CK100-$F100)/(CJ100-$F100),"") ->  | CO100: =IFERROR((CN100-$F100)/(CM100-$F100),"") ->  | CP100: ='CE CdR'!M97 -> 0 | CR100: =IFERROR((CQ100-$F100)/(CP100-$F100),"") ->  | CS100: ='CE CdR'!N97 -> FALSE
A101: ='CE CdR'!A98 -> 4.2 | B101: ='CE CdR'!B98 -> 0 | C101: ='CE CdR'!C98 -> 0 | D101: ='CE CdR'!E98 -> 0 | E101: ='CE CdR'!F98 -> 0 | F101: ='CE CdR'!G98 -> 0 | R101: =IFERROR((Q101-$F101)/(P101-$F101),"") ->  | S101: ='CE CdR'!H98 -> 0 | AH101: ='CE CdR'!I98 -> 0 | AW101: ='CE CdR'!J98 -> 0 | BL101: ='CE CdR'!K98 -> 0 | CA101: ='CE CdR'!L98 -> 0 | CP101: ='CE CdR'!M98 -> 0 | CS101: ='CE CdR'!N98 -> FALSE
A102: ='CE CdR'!A99 -> 4.3 | B102: ='CE CdR'!B99 -> 0 | C102: ='CE CdR'!C99 -> 0 | D102: ='CE CdR'!E99 -> 0 | E102: ='CE CdR'!F99 -> 0 | F102: ='CE CdR'!G99 -> 0 | R102: =IFERROR((Q102-$F102)/(P102-$F102),"") ->  | S102: ='CE CdR'!H99 -> 0 | AH102: ='CE CdR'!I99 -> 0 | AW102: ='CE CdR'!J99 -> 0 | BL102: ='CE CdR'!K99 -> 0 | CA102: ='CE CdR'!L99 -> 0 | CP102: ='CE CdR'!M99 -> 0 | CS102: ='CE CdR'!N99 -> FALSE
A103: ='CE CdR'!A100 -> 4.4 | B103: ='CE CdR'!B100 -> 0 | C103: ='CE CdR'!C100 -> 0 | D103: ='CE CdR'!E100 -> 0 | E103: ='CE CdR'!F100 -> 0 | F103: ='CE CdR'!G100 -> 0 | S103: ='CE CdR'!H100 -> 0 | AH103: ='CE CdR'!I100 -> 0 | AW103: ='CE CdR'!J100 -> 0 | BL103: ='CE CdR'!K100 -> 0 | BN103: =IFERROR((BM103-$F103)/(BL103-$F103),"") ->  | CA103: ='CE CdR'!L100 -> 0 | CP103: ='CE CdR'!M100 -> 0 | CR103: =IFERROR((CQ103-$F103)/(CP103-$F103),"") ->  | CS103: ='CE CdR'!N100 -> FALSE
A104: ='CE CdR'!A101 -> 4.5 | B104: ='CE CdR'!B101 -> 0 | C104: ='CE CdR'!C101 -> 0 | D104: ='CE CdR'!E101 -> 0 | E104: ='CE CdR'!F101 -> 0 | F104: ='CE CdR'!G101 -> 0 | S104: ='CE CdR'!H101 -> 0 | AH104: ='CE CdR'!I101 -> 0 | AW104: ='CE CdR'!J101 -> 0 | BL104: ='CE CdR'!K101 -> 0 | CA104: ='CE CdR'!L101 -> 0 | CP104: ='CE CdR'!M101 -> 0 | CS104: ='CE CdR'!N101 -> FALSE
A105: ='CE CdR'!A102 -> 4.6 | B105: ='CE CdR'!B102 -> 0 | C105: ='CE CdR'!C102 -> 0 | D105: ='CE CdR'!E102 -> 0 | E105: ='CE CdR'!F102 -> 0 | F105: ='CE CdR'!G102 -> 0 | S105: ='CE CdR'!H102 -> 0 | AH105: ='CE CdR'!I102 -> 0 | AW105: ='CE CdR'!J102 -> 0 | BL105: ='CE CdR'!K102 -> 0 | CA105: ='CE CdR'!L102 -> 0 | CP105: ='CE CdR'!M102 -> 0 | CS105: ='CE CdR'!N102 -> FALSE
A106: ='CE CdR'!A103 -> 5. | B106: ='CE CdR'!B103:S103 -> 
A107: ='CE CdR'!A104 -> 5.1 | B107: ='CE CdR'!B104 -> 0 | C107: ='CE CdR'!C104 -> 0 | D107: ='CE CdR'!E104 -> 0 | E107: ='CE CdR'!F104 -> 0 | F107: ='CE CdR'!G104 -> 0 | I107: =IFERROR((H107-$F107)/(G107-$F107),"") ->  | L107: =IFERROR((K107-$F107)/(J107-$F107),"") ->  | O107: =IFERROR((N107-$F107)/(M107-$F107),"") ->  | R107: =IFERROR((Q107-$F107)/(P107-$F107),"") ->  | S107: ='CE CdR'!H104 -> 0 | U107: =IFERROR((T107-$F107)/(S107-$F107),"") ->  | X107: =IFERROR((W107-$F107)/(V107-$F107),"") ->  | AA107: =IFERROR((Z107-$F107)/(Y107-$F107),"") ->  | AD107: =IFERROR((AC107-$F107)/(AB107-$F107),"") ->  | AG107: =IFERROR((AF107-$F107)/(AE107-$F107),"") ->  | AH107: ='CE CdR'!I104 -> 0 | AJ107: =IFERROR((AI107-$F107)/(AH107-$F107),"") ->  | AM107: =IFERROR((AL107-$F107)/(AK107-$F107),"") ->  | AP107: =IFERROR((AO107-$F107)/(AN107-$F107),"") ->  | AS107: =IFERROR((AR107-$F107)/(AQ107-$F107),"") ->  | AV107: =IFERROR((AU107-$F107)/(AT107-$F107),"") ->  | AW107: ='CE CdR'!J104 -> 0 | AY107: =IFERROR((AX107-$F107)/(AW107-$F107),"") ->  | BB107: =IFERROR((BA107-$F107)/(AZ107-$F107),"") ->  | BE107: =IFERROR((BD107-$F107)/(BC107-$F107),"") ->  | BH107: =IFERROR((BG107-$F107)/(BF107-$F107),"") ->  | BK107: =IFERROR((BJ107-$F107)/(BI107-$F107),"") ->  | BL107: ='CE CdR'!K104 -> 0 | BN107: =IFERROR((BM107-$F107)/(BL107-$F107),"") ->  | BQ107: =IFERROR((BP107-$F107)/(BO107-$F107),"") ->  | BT107: =IFERROR((BS107-$F107)/(BR107-$F107),"") ->  | BW107: =IFERROR((BV107-$F107)/(BU107-$F107),"") ->  | BZ107: =IFERROR((BY107-$F107)/(BX107-$F107),"") ->  | CA107: ='CE CdR'!L104 -> 0 | CC107: =IFERROR((CB107-$F107)/(CA107-$F107),"") ->  | CF107: =IFERROR((CE107-$F107)/(CD107-$F107),"") ->  | CI107: =IFERROR((CH107-$F107)/(CG107-$F107),"") ->  | CL107: =IFERROR((CK107-$F107)/(CJ107-$F107),"") ->  | CO107: =IFERROR((CN107-$F107)/(CM107-$F107),"") ->  | CP107: ='CE CdR'!M104 -> 0 | CR107: =IFERROR((CQ107-$F107)/(CP107-$F107),"") ->  | CS107: ='CE CdR'!N104 -> FALSE
A108: ='CE CdR'!A105 -> 5.2 | B108: ='CE CdR'!B105 -> 0 | C108: ='CE CdR'!C105 -> 0 | D108: ='CE CdR'!E105 -> 0 | E108: ='CE CdR'!F105 -> 0 | F108: ='CE CdR'!G105 -> 0 | R108: =IFERROR((Q108-$F108)/(P108-$F108),"") ->  | S108: ='CE CdR'!H105 -> 0 | AH108: ='CE CdR'!I105 -> 0 | AW108: ='CE CdR'!J105 -> 0 | BL108: ='CE CdR'!K105 -> 0 | CA108: ='CE CdR'!L105 -> 0 | CP108: ='CE CdR'!M105 -> 0 | CS108: ='CE CdR'!N105 -> FALSE
A109: ='CE CdR'!A106 -> 5.3 | B109: ='CE CdR'!B106 -> 0 | C109: ='CE CdR'!C106 -> 0 | D109: ='CE CdR'!E106 -> 0 | E109: ='CE CdR'!F106 -> 0 | F109: ='CE CdR'!G106 -> 0 | R109: =IFERROR((Q109-$F109)/(P109-$F109),"") ->  | S109: ='CE CdR'!H106 -> 0 | AH109: ='CE CdR'!I106 -> 0 | AW109: ='CE CdR'!J106 -> 0 | BL109: ='CE CdR'!K106 -> 0 | CA109: ='CE CdR'!L106 -> 0 | CP109: ='CE CdR'!M106 -> 0 | CS109: ='CE CdR'!N106 -> FALSE
A110: ='CE CdR'!A107 -> 5.4 | B110: ='CE CdR'!B107 -> 0 | C110: ='CE CdR'!C107 -> 0 | D110: ='CE CdR'!E107 -> 0 | E110: ='CE CdR'!F107 -> 0 | F110: ='CE CdR'!G107 -> 0 | S110: ='CE CdR'!H107 -> 0 | AH110: ='CE CdR'!I107 -> 0 | AW110: ='CE CdR'!J107 -> 0 | BL110: ='CE CdR'!K107 -> 0 | BN110: =IFERROR((BM110-$F110)/(BL110-$F110),"") ->  | CA110: ='CE CdR'!L107 -> 0 | CP110: ='CE CdR'!M107 -> 0 | CR110: =IFERROR((CQ110-$F110)/(CP110-$F110),"") ->  | CS110: ='CE CdR'!N107 -> FALSE
A111: ='CE CdR'!A108 -> 5.5 | B111: ='CE CdR'!B108 -> 0 | C111: ='CE CdR'!C108 -> 0 | D111: ='CE CdR'!E108 -> 0 | E111: ='CE CdR'!F108 -> 0 | F111: ='CE CdR'!G108 -> 0 | S111: ='CE CdR'!H108 -> 0 | AH111: ='CE CdR'!I108 -> 0 | AW111: ='CE CdR'!J108 -> 0 | BL111: ='CE CdR'!K108 -> 0 | CA111: ='CE CdR'!L108 -> 0 | CP111: ='CE CdR'!M108 -> 0 | CS111: ='CE CdR'!N108 -> FALSE
A112: ='CE CdR'!A109 -> 5.6 | B112: ='CE CdR'!B109 -> 0 | C112: ='CE CdR'!C109 -> 0 | D112: ='CE CdR'!E109 -> 0 | E112: ='CE CdR'!F109 -> 0 | F112: ='CE CdR'!G109 -> 0 | S112: ='CE CdR'!H109 -> 0 | AH112: ='CE CdR'!I109 -> 0 | AW112: ='CE CdR'!J109 -> 0 | BL112: ='CE CdR'!K109 -> 0 | CA112: ='CE CdR'!L109 -> 0 | CP112: ='CE CdR'!M109 -> 0 | CS112: ='CE CdR'!N109 -> FALSE
A113: ='CE CdR'!A110 -> 6. | B113: ='CE CdR'!B110:S110 -> 
A114: ='CE CdR'!A111 -> 6.1 | B114: ='CE CdR'!B111 -> 0 | C114: ='CE CdR'!C111 -> 0 | D114: ='CE CdR'!E111 -> 0 | E114: ='CE CdR'!F111 -> 0 | F114: ='CE CdR'!G111 -> 0 | I114: =IFERROR((H114-$F114)/(G114-$F114),"") ->  | L114: =IFERROR((K114-$F114)/(J114-$F114),"") ->  | O114: =IFERROR((N114-$F114)/(M114-$F114),"") ->  | R114: =IFERROR((Q114-$F114)/(P114-$F114),"") ->  | S114: ='CE CdR'!H111 -> 0 | U114: =IFERROR((T114-$F114)/(S114-$F114),"") ->  | X114: =IFERROR((W114-$F114)/(V114-$F114),"") ->  | AA114: =IFERROR((Z114-$F114)/(Y114-$F114),"") ->  | AD114: =IFERROR((AC114-$F114)/(AB114-$F114),"") ->  | AG114: =IFERROR((AF114-$F114)/(AE114-$F114),"") ->  | AH114: ='CE CdR'!I111 -> 0 | AJ114: =IFERROR((AI114-$F114)/(AH114-$F114),"") ->  | AM114: =IFERROR((AL114-$F114)/(AK114-$F114),"") ->  | AP114: =IFERROR((AO114-$F114)/(AN114-$F114),"") ->  | AS114: =IFERROR((AR114-$F114)/(AQ114-$F114),"") ->  | AV114: =IFERROR((AU114-$F114)/(AT114-$F114),"") ->  | AW114: ='CE CdR'!J111 -> 0 | AY114: =IFERROR((AX114-$F114)/(AW114-$F114),"") ->  | BB114: =IFERROR((BA114-$F114)/(AZ114-$F114),"") ->  | BE114: =IFERROR((BD114-$F114)/(BC114-$F114),"") ->  | BH114: =IFERROR((BG114-$F114)/(BF114-$F114),"") ->  | BK114: =IFERROR((BJ114-$F114)/(BI114-$F114),"") ->  | BL114: ='CE CdR'!K111 -> 0 | BN114: =IFERROR((BM114-$F114)/(BL114-$F114),"") ->  | BQ114: =IFERROR((BP114-$F114)/(BO114-$F114),"") ->  | BT114: =IFERROR((BS114-$F114)/(BR114-$F114),"") ->  | BW114: =IFERROR((BV114-$F114)/(BU114-$F114),"") ->  | BZ114: =IFERROR((BY114-$F114)/(BX114-$F114),"") ->  | CA114: ='CE CdR'!L111 -> 0 | CC114: =IFERROR((CB114-$F114)/(CA114-$F114),"") ->  | CF114: =IFERROR((CE114-$F114)/(CD114-$F114),"") ->  | CI114: =IFERROR((CH114-$F114)/(CG114-$F114),"") ->  | CL114: =IFERROR((CK114-$F114)/(CJ114-$F114),"") ->  | CO114: =IFERROR((CN114-$F114)/(CM114-$F114),"") ->  | CP114: ='CE CdR'!M111 -> 0 | CR114: =IFERROR((CQ114-$F114)/(CP114-$F114),"") ->  | CS114: ='CE CdR'!N111 -> FALSE
A115: ='CE CdR'!A112 -> 6.2 | B115: ='CE CdR'!B112 -> 0 | C115: ='CE CdR'!C112 -> 0 | D115: ='CE CdR'!E112 -> 0 | E115: ='CE CdR'!F112 -> 0 | F115: ='CE CdR'!G112 -> 0 | R115: =IFERROR((Q115-$F115)/(P115-$F115),"") ->  | S115: ='CE CdR'!H112 -> 0 | AH115: ='CE CdR'!I112 -> 0 | AW115: ='CE CdR'!J112 -> 0 | BL115: ='CE CdR'!K112 -> 0 | CA115: ='CE CdR'!L112 -> 0 | CP115: ='CE CdR'!M112 -> 0 | CS115: ='CE CdR'!N112 -> FALSE
A116: ='CE CdR'!A113 -> 6.3 | B116: ='CE CdR'!B113 -> 0 | C116: ='CE CdR'!C113 -> 0 | D116: ='CE CdR'!E113 -> 0 | E116: ='CE CdR'!F113 -> 0 | F116: ='CE CdR'!G113 -> 0 | R116: =IFERROR((Q116-$F116)/(P116-$F116),"") ->  | S116: ='CE CdR'!H113 -> 0 | AH116: ='CE CdR'!I113 -> 0 | AW116: ='CE CdR'!J113 -> 0 | BL116: ='CE CdR'!K113 -> 0 | CA116: ='CE CdR'!L113 -> 0 | CP116: ='CE CdR'!M113 -> 0 | CS116: ='CE CdR'!N113 -> FALSE
A117: ='CE CdR'!A114 -> 6.4 | B117: ='CE CdR'!B114 -> 0 | C117: ='CE CdR'!C114 -> 0 | D117: ='CE CdR'!E114 -> 0 | E117: ='CE CdR'!F114 -> 0 | F117: ='CE CdR'!G114 -> 0 | S117: ='CE CdR'!H114 -> 0 | AH117: ='CE CdR'!I114 -> 0 | AW117: ='CE CdR'!J114 -> 0 | BL117: ='CE CdR'!K114 -> 0 | BN117: =IFERROR((BM117-$F117)/(BL117-$F117),"") ->  | CA117: ='CE CdR'!L114 -> 0 | CP117: ='CE CdR'!M114 -> 0 | CR117: =IFERROR((CQ117-$F117)/(CP117-$F117),"") ->  | CS117: ='CE CdR'!N114 -> FALSE
A118: ='CE CdR'!A115 -> 6.5 | B118: ='CE CdR'!B115 -> 0 | C118: ='CE CdR'!C115 -> 0 | D118: ='CE CdR'!E115 -> 0 | E118: ='CE CdR'!F115 -> 0 | F118: ='CE CdR'!G115 -> 0 | S118: ='CE CdR'!H115 -> 0 | AH118: ='CE CdR'!I115 -> 0 | AW118: ='CE CdR'!J115 -> 0 | BL118: ='CE CdR'!K115 -> 0 | CA118: ='CE CdR'!L115 -> 0 | CP118: ='CE CdR'!M115 -> 0 | CS118: ='CE CdR'!N115 -> FALSE
A119: ='CE CdR'!A116 -> 6.6 | B119: ='CE CdR'!B116 -> 0 | C119: ='CE CdR'!C116 -> 0 | D119: ='CE CdR'!E116 -> 0 | E119: ='CE CdR'!F116 -> 0 | F119: ='CE CdR'!G116 -> 0 | S119: ='CE CdR'!H116 -> 0 | AH119: ='CE CdR'!I116 -> 0 | AW119: ='CE CdR'!J116 -> 0 | BL119: ='CE CdR'!K116 -> 0 | CA119: ='CE CdR'!L116 -> 0 | CP119: ='CE CdR'!M116 -> 0 | CS119: ='CE CdR'!N116 -> FALSE
A120: ='CE CdR'!A117 -> 7. | B120: ='CE CdR'!B117:S117 -> 
A121: ='CE CdR'!A118 -> 7.1 | B121: ='CE CdR'!B118 -> 0 | C121: ='CE CdR'!C118 -> 0 | D121: ='CE CdR'!E118 -> 0 | E121: ='CE CdR'!F118 -> 0 | F121: ='CE CdR'!G118 -> 0 | I121: =IFERROR((H121-$F121)/(G121-$F121),"") ->  | L121: =IFERROR((K121-$F121)/(J121-$F121),"") ->  | O121: =IFERROR((N121-$F121)/(M121-$F121),"") ->  | R121: =IFERROR((Q121-$F121)/(P121-$F121),"") ->  | S121: ='CE CdR'!H118 -> 0 | U121: =IFERROR((T121-$F121)/(S121-$F121),"") ->  | X121: =IFERROR((W121-$F121)/(V121-$F121),"") ->  | AA121: =IFERROR((Z121-$F121)/(Y121-$F121),"") ->  | AD121: =IFERROR((AC121-$F121)/(AB121-$F121),"") ->  | AG121: =IFERROR((AF121-$F121)/(AE121-$F121),"") ->  | AH121: ='CE CdR'!I118 -> 0 | AJ121: =IFERROR((AI121-$F121)/(AH121-$F121),"") ->  | AM121: =IFERROR((AL121-$F121)/(AK121-$F121),"") ->  | AP121: =IFERROR((AO121-$F121)/(AN121-$F121),"") ->  | AS121: =IFERROR((AR121-$F121)/(AQ121-$F121),"") ->  | AV121: =IFERROR((AU121-$F121)/(AT121-$F121),"") ->  | AW121: ='CE CdR'!J118 -> 0 | AY121: =IFERROR((AX121-$F121)/(AW121-$F121),"") ->  | BB121: =IFERROR((BA121-$F121)/(AZ121-$F121),"") ->  | BE121: =IFERROR((BD121-$F121)/(BC121-$F121),"") ->  | BH121: =IFERROR((BG121-$F121)/(BF121-$F121),"") ->  | BK121: =IFERROR((BJ121-$F121)/(BI121-$F121),"") ->  | BL121: ='CE CdR'!K118 -> 0 | BN121: =IFERROR((BM121-$F121)/(BL121-$F121),"") ->  | BQ121: =IFERROR((BP121-$F121)/(BO121-$F121),"") ->  | BT121: =IFERROR((BS121-$F121)/(BR121-$F121),"") ->  | BW121: =IFERROR((BV121-$F121)/(BU121-$F121),"") ->  | BZ121: =IFERROR((BY121-$F121)/(BX121-$F121),"") ->  | CA121: ='CE CdR'!L118 -> 0 | CC121: =IFERROR((CB121-$F121)/(CA121-$F121),"") ->  | CF121: =IFERROR((CE121-$F121)/(CD121-$F121),"") ->  | CI121: =IFERROR((CH121-$F121)/(CG121-$F121),"") ->  | CL121: =IFERROR((CK121-$F121)/(CJ121-$F121),"") ->  | CO121: =IFERROR((CN121-$F121)/(CM121-$F121),"") ->  | CP121: ='CE CdR'!M118 -> 0 | CR121: =IFERROR((CQ121-$F121)/(CP121-$F121),"") ->  | CS121: ='CE CdR'!N118 -> FALSE
A122: ='CE CdR'!A119 -> 7.2 | B122: ='CE CdR'!B119 -> 0 | C122: ='CE CdR'!C119 -> 0 | D122: ='CE CdR'!E119 -> 0 | E122: ='CE CdR'!F119 -> 0 | F122: ='CE CdR'!G119 -> 0 | R122: =IFERROR((Q122-$F122)/(P122-$F122),"") ->  | S122: ='CE CdR'!H119 -> 0 | AH122: ='CE CdR'!I119 -> 0 | AW122: ='CE CdR'!J119 -> 0 | BL122: ='CE CdR'!K119 -> 0 | CA122: ='CE CdR'!L119 -> 0 | CP122: ='CE CdR'!M119 -> 0 | CS122: ='CE CdR'!N119 -> FALSE
A123: ='CE CdR'!A120 -> 7.3 | B123: ='CE CdR'!B120 -> 0 | C123: ='CE CdR'!C120 -> 0 | D123: ='CE CdR'!E120 -> 0 | E123: ='CE CdR'!F120 -> 0 | F123: ='CE CdR'!G120 -> 0 | R123: =IFERROR((Q123-$F123)/(P123-$F123),"") ->  | S123: ='CE CdR'!H120 -> 0 | AH123: ='CE CdR'!I120 -> 0 | AW123: ='CE CdR'!J120 -> 0 | BL123: ='CE CdR'!K120 -> 0 | CA123: ='CE CdR'!L120 -> 0 | CP123: ='CE CdR'!M120 -> 0 | CS123: ='CE CdR'!N120 -> FALSE
A124: ='CE CdR'!A121 -> 7.4 | B124: ='CE CdR'!B121 -> 0 | C124: ='CE CdR'!C121 -> 0 | D124: ='CE CdR'!E121 -> 0 | E124: ='CE CdR'!F121 -> 0 | F124: ='CE CdR'!G121 -> 0 | S124: ='CE CdR'!H121 -> 0 | AH124: ='CE CdR'!I121 -> 0 | AW124: ='CE CdR'!J121 -> 0 | BL124: ='CE CdR'!K121 -> 0 | BN124: =IFERROR((BM124-$F124)/(BL124-$F124),"") ->  | CA124: ='CE CdR'!L121 -> 0 | CP124: ='CE CdR'!M121 -> 0 | CR124: =IFERROR((CQ124-$F124)/(CP124-$F124),"") ->  | CS124: ='CE CdR'!N121 -> FALSE
A125: ='CE CdR'!A122 -> 7.5 | B125: ='CE CdR'!B122 -> 0 | C125: ='CE CdR'!C122 -> 0 | D125: ='CE CdR'!E122 -> 0 | E125: ='CE CdR'!F122 -> 0 | F125: ='CE CdR'!G122 -> 0 | S125: ='CE CdR'!H122 -> 0 | AH125: ='CE CdR'!I122 -> 0 | AW125: ='CE CdR'!J122 -> 0 | BL125: ='CE CdR'!K122 -> 0 | CA125: ='CE CdR'!L122 -> 0 | CP125: ='CE CdR'!M122 -> 0 | CS125: ='CE CdR'!N122 -> FALSE
A126: ='CE CdR'!A123 -> 7.6 | B126: ='CE CdR'!B123 -> 0 | C126: ='CE CdR'!C123 -> 0 | D126: ='CE CdR'!E123 -> 0 | E126: ='CE CdR'!F123 -> 0 | F126: ='CE CdR'!G123 -> 0 | S126: ='CE CdR'!H123 -> 0 | AH126: ='CE CdR'!I123 -> 0 | AW126: ='CE CdR'!J123 -> 0 | BL126: ='CE CdR'!K123 -> 0 | CA126: ='CE CdR'!L123 -> 0 | CP126: ='CE CdR'!M123 -> 0 | CS126: ='CE CdR'!N123 -> FALSE
A127: ='CE CdR'!A124 -> 8. | B127: ='CE CdR'!B124:S124 -> 
A128: ='CE CdR'!A125 -> 8.1 | B128: ='CE CdR'!B125 -> 0 | C128: ='CE CdR'!C125 -> 0 | D128: ='CE CdR'!E125 -> 0 | E128: ='CE CdR'!F125 -> 0 | F128: ='CE CdR'!G125 -> 0 | I128: =IFERROR((H128-$F128)/(G128-$F128),"") ->  | L128: =IFERROR((K128-$F128)/(J128-$F128),"") ->  | O128: =IFERROR((N128-$F128)/(M128-$F128),"") ->  | R128: =IFERROR((Q128-$F128)/(P128-$F128),"") ->  | S128: ='CE CdR'!H125 -> 0 | U128: =IFERROR((T128-$F128)/(S128-$F128),"") ->  | X128: =IFERROR((W128-$F128)/(V128-$F128),"") ->  | AA128: =IFERROR((Z128-$F128)/(Y128-$F128),"") ->  | AD128: =IFERROR((AC128-$F128)/(AB128-$F128),"") ->  | AG128: =IFERROR((AF128-$F128)/(AE128-$F128),"") ->  | AH128: ='CE CdR'!I125 -> 0 | AJ128: =IFERROR((AI128-$F128)/(AH128-$F128),"") ->  | AM128: =IFERROR((AL128-$F128)/(AK128-$F128),"") ->  | AP128: =IFERROR((AO128-$F128)/(AN128-$F128),"") ->  | AS128: =IFERROR((AR128-$F128)/(AQ128-$F128),"") ->  | AV128: =IFERROR((AU128-$F128)/(AT128-$F128),"") ->  | AW128: ='CE CdR'!J125 -> 0 | AY128: =IFERROR((AX128-$F128)/(AW128-$F128),"") ->  | BB128: =IFERROR((BA128-$F128)/(AZ128-$F128),"") ->  | BE128: =IFERROR((BD128-$F128)/(BC128-$F128),"") ->  | BH128: =IFERROR((BG128-$F128)/(BF128-$F128),"") ->  | BK128: =IFERROR((BJ128-$F128)/(BI128-$F128),"") ->  | BL128: ='CE CdR'!K125 -> 0 | BN128: =IFERROR((BM128-$F128)/(BL128-$F128),"") ->  | BQ128: =IFERROR((BP128-$F128)/(BO128-$F128),"") ->  | BT128: =IFERROR((BS128-$F128)/(BR128-$F128),"") ->  | BW128: =IFERROR((BV128-$F128)/(BU128-$F128),"") ->  | BZ128: =IFERROR((BY128-$F128)/(BX128-$F128),"") ->  | CA128: ='CE CdR'!L125 -> 0 | CC128: =IFERROR((CB128-$F128)/(CA128-$F128),"") ->  | CF128: =IFERROR((CE128-$F128)/(CD128-$F128),"") ->  | CI128: =IFERROR((CH128-$F128)/(CG128-$F128),"") ->  | CL128: =IFERROR((CK128-$F128)/(CJ128-$F128),"") ->  | CO128: =IFERROR((CN128-$F128)/(CM128-$F128),"") ->  | CP128: ='CE CdR'!M125 -> 0 | CR128: =IFERROR((CQ128-$F128)/(CP128-$F128),"") ->  | CS128: ='CE CdR'!N125 -> FALSE
A129: ='CE CdR'!A126 -> 8.2 | B129: ='CE CdR'!B126 -> 0 | C129: ='CE CdR'!C126 -> 0 | D129: ='CE CdR'!E126 -> 0 | E129: ='CE CdR'!F126 -> 0 | F129: ='CE CdR'!G126 -> 0 | R129: =IFERROR((Q129-$F129)/(P129-$F129),"") ->  | S129: ='CE CdR'!H126 -> 0 | AH129: ='CE CdR'!I126 -> 0 | AW129: ='CE CdR'!J126 -> 0 | BL129: ='CE CdR'!K126 -> 0 | CA129: ='CE CdR'!L126 -> 0 | CP129: ='CE CdR'!M126 -> 0 | CS129: ='CE CdR'!N126 -> FALSE
A130: ='CE CdR'!A127 -> 8.3 | B130: ='CE CdR'!B127 -> 0 | C130: ='CE CdR'!C127 -> 0 | D130: ='CE CdR'!E127 -> 0 | E130: ='CE CdR'!F127 -> 0 | F130: ='CE CdR'!G127 -> 0 | R130: =IFERROR((Q130-$F130)/(P130-$F130),"") ->  | S130: ='CE CdR'!H127 -> 0 | AH130: ='CE CdR'!I127 -> 0 | AW130: ='CE CdR'!J127 -> 0 | BL130: ='CE CdR'!K127 -> 0 | CA130: ='CE CdR'!L127 -> 0 | CP130: ='CE CdR'!M127 -> 0 | CS130: ='CE CdR'!N127 -> FALSE
A131: ='CE CdR'!A128 -> 8.4 | B131: ='CE CdR'!B128 -> 0 | C131: ='CE CdR'!C128 -> 0 | D131: ='CE CdR'!E128 -> 0 | E131: ='CE CdR'!F128 -> 0 | F131: ='CE CdR'!G128 -> 0 | S131: ='CE CdR'!H128 -> 0 | AH131: ='CE CdR'!I128 -> 0 | AW131: ='CE CdR'!J128 -> 0 | BL131: ='CE CdR'!K128 -> 0 | BN131: =IFERROR((BM131-$F131)/(BL131-$F131),"") ->  | CA131: ='CE CdR'!L128 -> 0 | CP131: ='CE CdR'!M128 -> 0 | CR131: =IFERROR((CQ131-$F131)/(CP131-$F131),"") ->  | CS131: ='CE CdR'!N128 -> FALSE
A132: ='CE CdR'!A129 -> 8.5 | B132: ='CE CdR'!B129 -> 0 | C132: ='CE CdR'!C129 -> 0 | D132: ='CE CdR'!E129 -> 0 | E132: ='CE CdR'!F129 -> 0 | F132: ='CE CdR'!G129 -> 0 | S132: ='CE CdR'!H129 -> 0 | AH132: ='CE CdR'!I129 -> 0 | AW132: ='CE CdR'!J129 -> 0 | BL132: ='CE CdR'!K129 -> 0 | CA132: ='CE CdR'!L129 -> 0 | CP132: ='CE CdR'!M129 -> 0 | CS132: ='CE CdR'!N129 -> FALSE
A133: ='CE CdR'!A130 -> 8.6 | B133: ='CE CdR'!B130 -> 0 | C133: ='CE CdR'!C130 -> 0 | D133: ='CE CdR'!E130 -> 0 | E133: ='CE CdR'!F130 -> 0 | F133: ='CE CdR'!G130 -> 0 | S133: ='CE CdR'!H130 -> 0 | AH133: ='CE CdR'!I130 -> 0 | AW133: ='CE CdR'!J130 -> 0 | BL133: ='CE CdR'!K130 -> 0 | CA133: ='CE CdR'!L130 -> 0 | CP133: ='CE CdR'!M130 -> 0 | CS133: ='CE CdR'!N130 -> FALSE
A134: ='CE CdR'!A131 -> 9. | B134: ='CE CdR'!B131:S131 -> 
A135: ='CE CdR'!A132 -> 9.1 | B135: ='CE CdR'!B132 -> 0 | C135: ='CE CdR'!C132 -> 0 | D135: ='CE CdR'!E132 -> 0 | E135: ='CE CdR'!F132 -> 0 | F135: ='CE CdR'!G132 -> 0 | I135: =IFERROR((H135-$F135)/(G135-$F135),"") ->  | L135: =IFERROR((K135-$F135)/(J135-$F135),"") ->  | O135: =IFERROR((N135-$F135)/(M135-$F135),"") ->  | R135: =IFERROR((Q135-$F135)/(P135-$F135),"") ->  | S135: ='CE CdR'!H132 -> 0 | U135: =IFERROR((T135-$F135)/(S135-$F135),"") ->  | X135: =IFERROR((W135-$F135)/(V135-$F135),"") ->  | AA135: =IFERROR((Z135-$F135)/(Y135-$F135),"") ->  | AD135: =IFERROR((AC135-$F135)/(AB135-$F135),"") ->  | AG135: =IFERROR((AF135-$F135)/(AE135-$F135),"") ->  | AH135: ='CE CdR'!I132 -> 0 | AJ135: =IFERROR((AI135-$F135)/(AH135-$F135),"") ->  | AM135: =IFERROR((AL135-$F135)/(AK135-$F135),"") ->  | AP135: =IFERROR((AO135-$F135)/(AN135-$F135),"") ->  | AS135: =IFERROR((AR135-$F135)/(AQ135-$F135),"") ->  | AV135: =IFERROR((AU135-$F135)/(AT135-$F135),"") ->  | AW135: ='CE CdR'!J132 -> 0 | AY135: =IFERROR((AX135-$F135)/(AW135-$F135),"") ->  | BB135: =IFERROR((BA135-$F135)/(AZ135-$F135),"") ->  | BE135: =IFERROR((BD135-$F135)/(BC135-$F135),"") ->  | BH135: =IFERROR((BG135-$F135)/(BF135-$F135),"") ->  | BK135: =IFERROR((BJ135-$F135)/(BI135-$F135),"") ->  | BL135: ='CE CdR'!K132 -> 0 | BN135: =IFERROR((BM135-$F135)/(BL135-$F135),"") ->  | BQ135: =IFERROR((BP135-$F135)/(BO135-$F135),"") ->  | BT135: =IFERROR((BS135-$F135)/(BR135-$F135),"") ->  | BW135: =IFERROR((BV135-$F135)/(BU135-$F135),"") ->  | BZ135: =IFERROR((BY135-$F135)/(BX135-$F135),"") ->  | CA135: ='CE CdR'!L132 -> 0 | CC135: =IFERROR((CB135-$F135)/(CA135-$F135),"") ->  | CF135: =IFERROR((CE135-$F135)/(CD135-$F135),"") ->  | CI135: =IFERROR((CH135-$F135)/(CG135-$F135),"") ->  | CL135: =IFERROR((CK135-$F135)/(CJ135-$F135),"") ->  | CO135: =IFERROR((CN135-$F135)/(CM135-$F135),"") ->  | CP135: ='CE CdR'!M132 -> 0 | CR135: =IFERROR((CQ135-$F135)/(CP135-$F135),"") ->  | CS135: ='CE CdR'!N132 -> FALSE
A136: ='CE CdR'!A133 -> 9.2 | B136: ='CE CdR'!B133 -> 0 | C136: ='CE CdR'!C133 -> 0 | D136: ='CE CdR'!E133 -> 0 | E136: ='CE CdR'!F133 -> 0 | F136: ='CE CdR'!G133 -> 0 | R136: =IFERROR((Q136-$F136)/(P136-$F136),"") ->  | S136: ='CE CdR'!H133 -> 0 | AH136: ='CE CdR'!I133 -> 0 | AW136: ='CE CdR'!J133 -> 0 | BL136: ='CE CdR'!K133 -> 0 | CA136: ='CE CdR'!L133 -> 0 | CP136: ='CE CdR'!M133 -> 0 | CS136: ='CE CdR'!N133 -> FALSE
A137: ='CE CdR'!A134 -> 9.3 | B137: ='CE CdR'!B134 -> 0 | C137: ='CE CdR'!C134 -> 0 | D137: ='CE CdR'!E134 -> 0 | E137: ='CE CdR'!F134 -> 0 | F137: ='CE CdR'!G134 -> 0 | R137: =IFERROR((Q137-$F137)/(P137-$F137),"") ->  | S137: ='CE CdR'!H134 -> 0 | AH137: ='CE CdR'!I134 -> 0 | AW137: ='CE CdR'!J134 -> 0 | BL137: ='CE CdR'!K134 -> 0 | CA137: ='CE CdR'!L134 -> 0 | CP137: ='CE CdR'!M134 -> 0 | CS137: ='CE CdR'!N134 -> FALSE
A138: ='CE CdR'!A135 -> 9.4 | B138: ='CE CdR'!B135 -> 0 | C138: ='CE CdR'!C135 -> 0 | D138: ='CE CdR'!E135 -> 0 | E138: ='CE CdR'!F135 -> 0 | F138: ='CE CdR'!G135 -> 0 | S138: ='CE CdR'!H135 -> 0 | AH138: ='CE CdR'!I135 -> 0 | AW138: ='CE CdR'!J135 -> 0 | BL138: ='CE CdR'!K135 -> 0 | BN138: =IFERROR((BM138-$F138)/(BL138-$F138),"") ->  | CA138: ='CE CdR'!L135 -> 0 | CP138: ='CE CdR'!M135 -> 0 | CR138: =IFERROR((CQ138-$F138)/(CP138-$F138),"") ->  | CS138: ='CE CdR'!N135 -> FALSE
A139: ='CE CdR'!A136 -> 9.5 | B139: ='CE CdR'!B136 -> 0 | C139: ='CE CdR'!C136 -> 0 | D139: ='CE CdR'!E136 -> 0 | E139: ='CE CdR'!F136 -> 0 | F139: ='CE CdR'!G136 -> 0 | S139: ='CE CdR'!H136 -> 0 | AH139: ='CE CdR'!I136 -> 0 | AW139: ='CE CdR'!J136 -> 0 | BL139: ='CE CdR'!K136 -> 0 | CA139: ='CE CdR'!L136 -> 0 | CP139: ='CE CdR'!M136 -> 0 | CS139: ='CE CdR'!N136 -> FALSE
A140: ='CE CdR'!A137 -> 9.6 | B140: ='CE CdR'!B137 -> 0 | C140: ='CE CdR'!C137 -> 0 | D140: ='CE CdR'!E137 -> 0 | E140: ='CE CdR'!F137 -> 0 | F140: ='CE CdR'!G137 -> 0 | S140: ='CE CdR'!H137 -> 0 | AH140: ='CE CdR'!I137 -> 0 | AW140: ='CE CdR'!J137 -> 0 | BL140: ='CE CdR'!K137 -> 0 | CA140: ='CE CdR'!L137 -> 0 | CP140: ='CE CdR'!M137 -> 0 | CS140: ='CE CdR'!N137 -> FALSE
A141: ='CE CdR'!A138 -> 10. | B141: ='CE CdR'!B138:S138 -> 
A142: ='CE CdR'!A139 -> 10.1 | B142: ='CE CdR'!B139 -> 0 | C142: ='CE CdR'!C139 -> 0 | D142: ='CE CdR'!E139 -> 0 | E142: ='CE CdR'!F139 -> 0 | F142: ='CE CdR'!G139 -> 0 | I142: =IFERROR((H142-$F142)/(G142-$F142),"") ->  | L142: =IFERROR((K142-$F142)/(J142-$F142),"") ->  | O142: =IFERROR((N142-$F142)/(M142-$F142),"") ->  | R142: =IFERROR((Q142-$F142)/(P142-$F142),"") ->  | S142: ='CE CdR'!H139 -> 0 | U142: =IFERROR((T142-$F142)/(S142-$F142),"") ->  | X142: =IFERROR((W142-$F142)/(V142-$F142),"") ->  | AA142: =IFERROR((Z142-$F142)/(Y142-$F142),"") ->  | AD142: =IFERROR((AC142-$F142)/(AB142-$F142),"") ->  | AG142: =IFERROR((AF142-$F142)/(AE142-$F142),"") ->  | AH142: ='CE CdR'!I139 -> 0 | AJ142: =IFERROR((AI142-$F142)/(AH142-$F142),"") ->  | AM142: =IFERROR((AL142-$F142)/(AK142-$F142),"") ->  | AP142: =IFERROR((AO142-$F142)/(AN142-$F142),"") ->  | AS142: =IFERROR((AR142-$F142)/(AQ142-$F142),"") ->  | AV142: =IFERROR((AU142-$F142)/(AT142-$F142),"") ->  | AW142: ='CE CdR'!J139 -> 0 | AY142: =IFERROR((AX142-$F142)/(AW142-$F142),"") ->  | BB142: =IFERROR((BA142-$F142)/(AZ142-$F142),"") ->  | BE142: =IFERROR((BD142-$F142)/(BC142-$F142),"") ->  | BH142: =IFERROR((BG142-$F142)/(BF142-$F142),"") ->  | BK142: =IFERROR((BJ142-$F142)/(BI142-$F142),"") ->  | BL142: ='CE CdR'!K139 -> 0 | BN142: =IFERROR((BM142-$F142)/(BL142-$F142),"") ->  | BQ142: =IFERROR((BP142-$F142)/(BO142-$F142),"") ->  | BT142: =IFERROR((BS142-$F142)/(BR142-$F142),"") ->  | BW142: =IFERROR((BV142-$F142)/(BU142-$F142),"") ->  | BZ142: =IFERROR((BY142-$F142)/(BX142-$F142),"") ->  | CA142: ='CE CdR'!L139 -> 0 | CC142: =IFERROR((CB142-$F142)/(CA142-$F142),"") ->  | CF142: =IFERROR((CE142-$F142)/(CD142-$F142),"") ->  | CI142: =IFERROR((CH142-$F142)/(CG142-$F142),"") ->  | CL142: =IFERROR((CK142-$F142)/(CJ142-$F142),"") ->  | CO142: =IFERROR((CN142-$F142)/(CM142-$F142),"") ->  | CP142: ='CE CdR'!M139 -> 0 | CR142: =IFERROR((CQ142-$F142)/(CP142-$F142),"") ->  | CS142: ='CE CdR'!N139 -> FALSE
A143: ='CE CdR'!A140 -> 10.2 | B143: ='CE CdR'!B140 -> 0 | C143: ='CE CdR'!C140 -> 0 | D143: ='CE CdR'!E140 -> 0 | E143: ='CE CdR'!F140 -> 0 | F143: ='CE CdR'!G140 -> 0 | R143: =IFERROR((Q143-$F143)/(P143-$F143),"") ->  | S143: ='CE CdR'!H140 -> 0 | AH143: ='CE CdR'!I140 -> 0 | AW143: ='CE CdR'!J140 -> 0 | BL143: ='CE CdR'!K140 -> 0 | CA143: ='CE CdR'!L140 -> 0 | CP143: ='CE CdR'!M140 -> 0 | CS143: ='CE CdR'!N140 -> FALSE
A144: ='CE CdR'!A141 -> 10.3 | B144: ='CE CdR'!B141 -> 0 | C144: ='CE CdR'!C141 -> 0 | D144: ='CE CdR'!E141 -> 0 | E144: ='CE CdR'!F141 -> 0 | F144: ='CE CdR'!G141 -> 0 | R144: =IFERROR((Q144-$F144)/(P144-$F144),"") ->  | S144: ='CE CdR'!H141 -> 0 | AH144: ='CE CdR'!I141 -> 0 | AW144: ='CE CdR'!J141 -> 0 | BL144: ='CE CdR'!K141 -> 0 | CA144: ='CE CdR'!L141 -> 0 | CP144: ='CE CdR'!M141 -> 0 | CS144: ='CE CdR'!N141 -> FALSE
A145: ='CE CdR'!A142 -> 10.4 | B145: ='CE CdR'!B142 -> 0 | C145: ='CE CdR'!C142 -> 0 | D145: ='CE CdR'!E142 -> 0 | E145: ='CE CdR'!F142 -> 0 | F145: ='CE CdR'!G142 -> 0 | S145: ='CE CdR'!H142 -> 0 | AH145: ='CE CdR'!I142 -> 0 | AW145: ='CE CdR'!J142 -> 0 | BL145: ='CE CdR'!K142 -> 0 | BN145: =IFERROR((BM145-$F145)/(BL145-$F145),"") ->  | CA145: ='CE CdR'!L142 -> 0 | CP145: ='CE CdR'!M142 -> 0 | CR145: =IFERROR((CQ145-$F145)/(CP145-$F145),"") ->  | CS145: ='CE CdR'!N142 -> FALSE
A146: ='CE CdR'!A143 -> 10.5 | B146: ='CE CdR'!B143 -> 0 | C146: ='CE CdR'!C143 -> 0 | D146: ='CE CdR'!E143 -> 0 | E146: ='CE CdR'!F143 -> 0 | F146: ='CE CdR'!G143 -> 0 | S146: ='CE CdR'!H143 -> 0 | AH146: ='CE CdR'!I143 -> 0 | AW146: ='CE CdR'!J143 -> 0 | BL146: ='CE CdR'!K143 -> 0 | CA146: ='CE CdR'!L143 -> 0 | CP146: ='CE CdR'!M143 -> 0 | CS146: ='CE CdR'!N143 -> FALSE
A147: ='CE CdR'!A144 -> 10.6 | B147: ='CE CdR'!B144 -> 0 | C147: ='CE CdR'!C144 -> 0 | D147: ='CE CdR'!E144 -> 0 | E147: ='CE CdR'!F144 -> 0 | F147: ='CE CdR'!G144 -> 0 | S147: ='CE CdR'!H144 -> 0 | AH147: ='CE CdR'!I144 -> 0 | AW147: ='CE CdR'!J144 -> 0 | BL147: ='CE CdR'!K144 -> 0 | CA147: ='CE CdR'!L144 -> 0 | CP147: ='CE CdR'!M144 -> 0 | CS147: ='CE CdR'!N144 -> FALSE

Sheet VCMI Projets
A1: Axe stratégique | C1: Compétences | D1: Projet
A2: Axe 3 : Valorisation du capital matériel et immatériel | B2: 1 | C2: Propres | D2: Programme de valorisation du patrimoine culturel
B3: 2
B4: 3
B5: 4 | AA5: Propres
B6: 5
B7: 6
B8: 7
B9: 8
B10: 9
B11: 10
B12: 1 | C12: Autres | D12: Programme de gestion des menaces du changement climatique | AA12: Autres
B13: 2 | D13: Programme de valorisation du patrimoine historique
B14: 3
B15: 4
B16: 5
B17: 6
B18: 7
B19: 8
B20: 9
B21: 10

Sheet VCMI CdR
A1: PDR TTA. Domaine d'intervention: Valorisation du capital materièl et immaterièl . Cadre de résultats
A2: Nº | B2: Résultat | C2: Indicateur de performance | D2: Définition | E2: Type | F2: Unité | G2: Valeur de référence (2016) | H2: Cibles annuelles | N2: Fin du PDR | O2: Responsabilité | Q2: Fréquence | R2: Données: Sources/méthodes | S2: Propriétaire des données | T2: Utilisation
H3: 2017 | I3: 2018 | J3: 2019 | K3: 2020 | L3: 2021 | M3: 2022 | O3: Diffusion | P3: Collecte
A4: COMPETENCES PROPRES
A5: 1. | B5: ='VCMI Projets'!D2 -> Programme de valorisation du patrimoine culturel
A6: 1.1 | B6: Contribuer à la création d'emplois au niveau de la région | C6: Nombre d'emploi | D6: Le cumul du nombre d'emplois directs et indirects crées par la valorisation du patrimoine culturel de la région | E6: C | F6: poste | G6: 0 | M6: 5000 | N6: =IF(F6="%",M6,IF(E6="C",M6,IF(E6="I",SUM(H6:M6)))) -> 5000 | O6: DESE | P6: DESE | Q6: Une fois (à la fin du PDR) | R6: Evaluation terminale du PDR | S6: Consultant | T6: La collecte des données dont les sources, la fréquence et les propriétaires ont étés précisées va permettre aux responsables du MENFOP de mesurer, dans quelle mesure la mise en œuvre de l'ensembles des activités prévues pour améliorer l'OE "Primaire" ont-elles permis d'accroitre l'accès à l'enseignement primaire pour le secteur public, les activités ont mieux fonctionnées... Le cas contraire, qu'elles furent les causes qui ont empêché d'atteindre les objectifs escomptés ?? et quelles mesures correctives sont-elles proposés pour rectifier le tir et redresser la situation ??...
A7: 1.2 | B7: Contribuer au renforcement de l’attractivité touristique de la région | C7: Durée Moyenne de Séjour | D7: Durée Moyenne de Séjour au niveau des établissements d'hébergement classés | E7: I | F7: Nuitée | G7: 1.9 | M7: 3.5 | N7: =IF(F7="%",M7,IF(E7="C",M7,IF(E7="I",SUM(H7:M7)))) -> 3.5 | P7: DESE | Q7: Trimestrielle | R7: Statistiques sur le tourisme au Maroc | S7: Observatoire du tourisme
A8: 1.3 | B8: Une offre culturelle spécifique à la Région est mise en place et est constamment mise à jour | C8: Nombre d'offre culturelle | D8: 6 000 bibliothèques municipales, 40 000 monuments et sites protégés, 8 000 musées, 5 000 salles de cinéma, 500 festivals de théâtre, de musique et de danse, sans compter les saisons théâtrales et d’innombrables expositions. L’offre culturelle que l’on trouve en France est extraordinaire. des activités culturelles de grande envergure. Depuis quelques années, l’agenda dispose d’une grande offre en animation. | E8: I | F8: Offre culturelle | G8: 0 | M8: 1 | N8: =IF(F8="%",M8,IF(E8="C",M79,IF(E8="I",SUM(H8:M8)))) -> 1 | S8: La Direction Régionale du Ministère de la Culture Région
A9: 1.4 | N9: FALSE | T9: Idem | AF9: I
A10: 1.5 | N10: FALSE | T10: Idem | AF10: C
A11: 1.6 | N11: FALSE
A12: 2. | B12: ='VCMI Projets'!D3 -> 
A13: 2.1 | N13: =IF(E13="C",M13,SUM(H13:M13)) -> 0
A14: 2.2 | N14: =IF(E14="C",M14,SUM(H14:M14)) -> 0
A15: 2.3 | N15: =IF(E15="C",M15,SUM(H15:M15)) -> 0
A16: 2.4 | N16: =IF(E16="C",M16,SUM(H16:M16)) -> 0 | T16: Idem
A17: 2.5 | N17: 0
A18: 2.6 | N18: 0
A19: 3. | B19: ='VCMI Projets'!D4 -> 
A20: 3.1 | N20: =IF(E20="C",M20,SUM(H20:M20)) -> 0 | T20: Idem
A21: 3.2 | N21: 0 | T21: Idem
A22: 3.3 | N22: 0
A23: 3.4 | N23: 0 | T23: Idem
A24: 3.5 | N24: 0
A25: 3.6 | N25: 0
A26: 4. | B26: ='VCMI Projets'!D5 ->  | T26: Idem
A27: 4.1 | N27: 0
A28: 4.2 | N28: 0 | T28: Idem
A29: 4.3 | N29: 0 | T29: Idem
A30: 4.4 | N30: 0
A31: 4.5 | N31: 0
A32: 4.6 | N32: 0
A33: 5. | B33: ='VCMI Projets'!D6 ->  | T33: Idem
A34: 5.1 | N34: 0 | T34: Idem
A35: 5.2 | N35: 0
A36: 5.3 | N36: 0
A37: 5.4 | N37: 0 | T37: Idem
A38: 5.5 | N38: 0
A39: 5.6 | N39: 0
A40: 6. | B40: ='VCMI Projets'!D7 ->  | T40: Idem
A41: 6.1 | N41: 0 | T41: Idem
A42: 6.2 | N42: 0 | T42: Idem
A43: 6.3 | N43: 0 | T43: Idem
A44: 6.4 | N44: 0 | T44: Idem
A45: 6.5 | N45: 0
A46: 6.6 | N46: 0
A47: 7. | B47: ='VCMI Projets'!D8 ->  | T47: Idem
A48: 7.1 | N48: 0 | T48: Idem
A49: 7.2 | N49: 0 | T49: Idem
A50: 7.3 | N50: 0 | T50: Idem
A51: 7.4 | N51: 0 | T51: Idem
A52: 7.5 | N52: 0
A53: 7.6 | N53: 0
A54: 8. | B54: ='VCMI Projets'!D9 ->  | T54: Idem
A55: 8.1 | N55: 0 | T55: Idem
A56: 8.2 | N56: 0 | T56: Idem
A57: 8.3 | N57: 0 | T57: Idem
A58: 8.4 | N58: 0 | T58: Idem
A59: 8.5 | N59: 0
A60: 8.6 | N60: 0
A61: 9. | B61: ='VCMI Projets'!D10 ->  | T61: Idem
A62: 9.1 | N62: 0 | T62: Idem
A63: 9.2 | N63: 0 | T63: Idem
A64: 9.3 | N64: 0 | T64: Idem
A65: 9.4 | N65: 0 | T65: Idem
A66: 9.5 | N66: 0
A67: 9.6 | N67: 0
A68: 10. | B68: ='VCMI Projets'!D11 ->  | T68: Idem
A69: 10.1 | N69: 0 | T69: Idem
A70: 10.2 | N70: 0 | T70: Idem
A71: 10.3 | N71: 0 | T71: Idem
A72: 10.4 | N72: 0 | T72: Idem
A73: 10.5 | N73: 0
A74: 10.6 | N74: 0
A75: AUTRES COMPETENCES
A76: 1. | B76: ='VCMI Projets'!D12 -> Programme de gestion des menaces du changement climatique
A77: 1.1 | N77: =IF(F77="%",M77,IF(E77="C",M148,IF(E77="I",SUM(H77:M77)))) -> FALSE
A78: 1.2 | B78: • Réduction des impacts négatifs du changement climatique et préservation des écosystèmes • Augmentation de l’impact des actions menées à travers la mobilisation et l’implication de l’ensemble des acteurs concernés (entreprises, citoyens, etc.) • Positionnement de la région en tant qu’acteur actif dans le domaine de la protection de l’environnement | N78: FALSE
A79: 1.3 | B79: Accompagnement et encouragement de la reconversion des entreprises polluantes | N79: FALSE
A80: 1.4 | B80: Adoption du modèle de développement durable à bas carbone (inclus dans l'agenda de la COP 22) | N80: FALSE | T80: Idem
A81: 1.5 | N81: FALSE
A82: 1.6 | N82: FALSE
A83: 2. | B83: ='VCMI Projets'!D13 -> Programme de valorisation du patrimoine historique
A84: 2.1 | B84: emploi | N84: =IF(F84="%",M84,IF(E84="C",M84,IF(E84="I",SUM(H84:M84)))) -> FALSE
A85: 2.2 | B85: Contribuer au renforcement de l’attractivité touristique de la région | C85: Durée Moyenne de Séjour | D85: Durée Moyenne de Séjour au niveau des établissements d'hébergement classés | E85: I | F85: Nuitée | G85: 1.9 | M85: 3.5 | N85: 3.5 | P85: DESE | Q85: Trimestrielle | R85: Statistiques sur le tourisme au Maroc | S85: Observatoire du tourisme
A86: 2.3 | B86: Les médinas de la région sont valorisées | C86: Nombre de médina | D86: Nombre de médina où tous les sites historiques necessitant une rehabilitation, l'ont eu, des espaces verts ont été aménagé et des circuits pédestres, crées | E86: C | F86: Médina | G86: 0 | K86: 8 | L86: 8 | M86: 8 | N86: 8
A87: 2.4 | N87: FALSE | T87: Idem
A88: 2.5 | N88: FALSE
A89: 2.6 | N89: FALSE
A90: 3. | B90: ='VCMI Projets'!D14 -> 
A91: 3.1 | N91: =IF(E91="C",M91,SUM(H91:M91)) -> 0 | T91: Idem
A92: 3.2 | N92: 0 | T92: Idem
A93: 3.3 | N93: 0
A94: 3.4 | N94: 0 | T94: Idem
A95: 3.5 | N95: 0
A96: 3.6 | N96: 0
A97: 4. | B97: ='VCMI Projets'!D15 -> 
A98: 4.1 | N98: =IF(E98="C",M98,SUM(H98:M98)) -> 0 | T98: Idem
A99: 4.2 | N99: 0
A100: 4.3 | N100: 0
A101: 4.4 | N101: 0
A102: 4.5 | N102: 0
A103: 4.6 | N103: 0
A104: 5. | B104: ='VCMI Projets'!D16 -> 
A105: 5.1 | N105: =IF(E105="C",M105,SUM(H105:M105)) -> 0 | T105: Idem
A106: 5.2 | N106: 0 | T106: Idem
A107: 5.3 | N107: 0
A108: 5.4 | N108: 0 | T108: Idem
A109: 5.5 | N109: 0
A110: 5.6 | N110: 0
A111: 6. | B111: ='VCMI Projets'!D17 ->  | T111: Idem
A112: 6.1 | N112: =IF(E112="C",M112,SUM(H112:M112)) -> 0 | T112: Idem
A113: 6.2 | N113: 0 | T113: Idem
A114: 6.3 | N114: 0 | T114: Idem
A115: 6.4 | N115: 0 | T115: Idem
A116: 6.5 | N116: 0
A117: 6.6 | N117: 0
A118: 7. | B118: ='VCMI Projets'!D18 ->  | T118: Idem
A119: 7.1 | N119: =IF(E119="C",M119,SUM(H119:M119)) -> 0 | T119: Idem
A120: 7.2 | N120: 0 | T120: Idem
A121: 7.3 | N121: 0 | T121: Idem
A122: 7.4 | N122: 0 | T122: Idem
A123: 7.5 | N123: 0
A124: 7.6 | N124: 0
A125: 8. | B125: ='VCMI Projets'!D19 ->  | T125: Idem
A126: 8.1 | N126: =IF(E126="C",M126,SUM(H126:M126)) -> 0 | T126: Idem
A127: 8.2 | N127: 0 | T127: Idem
A128: 8.3 | N128: 0 | T128: Idem
A129: 8.4 | N129: 0 | T129: Idem
A130: 8.5 | N130: 0
A131: 8.6 | N131: 0
A132: 9. | B132: ='VCMI Projets'!D20 ->  | T132: Idem
A133: 9.1 | N133: =IF(E133="C",M133,SUM(H133:M133)) -> 0 | T133: Idem
A134: 9.2 | N134: 0 | T134: Idem
A135: 9.3 | N135: 0 | T135: Idem
A136: 9.4 | N136: 0 | T136: Idem
A137: 9.5 | N137: 0
A138: 9.6 | N138: 0
A139: 10. | B139: ='VCMI Projets'!D21 ->  | T139: Idem
A140: 10.1 | N140: =IF(E140="C",M140,SUM(H140:M140)) -> 0 | T140: Idem
A141: 10.2 | N141: 0 | T141: Idem
A142: 10.3 | N142: 0 | T142: Idem
A143: 10.4 | N143: 0 | T143: Idem
A144: 10.5 | N144: 0
A145: 10.6 | N145: 0

Sheet VCMI Itt
A1: PDR. D. Attractivité du territoire | G1: Valeurs trimestrielles prevues, réalisées et performance | S1: Valeurs annuelles prevues, réalisées et performance. | V1: Valeurs trimestrielles prevues, réalisées et performance | AH1: Valeurs annuelles prevues, réalisées et performance. | AK1: Valeurs trimestrielles prevues, réalisées et performance | AW1: Valeurs annuelles prevues, réalisées et performance. | AZ1: Valeurs trimestrielles prevues, réalisées et performance | BL1: Valeurs annuelles prevues, réalisées et performance. | BO1: =AZ1 -> Valeurs trimestrielles prevues, réalisées et performance | CA1: Valeurs annuelles prevues, réalisées et performance. | CD1: =BO1 -> Valeurs trimestrielles prevues, réalisées et performance | CP1: Valeurs annuelles prevues, réalisées et performance. | CS1: Valeurs terminales prevues, réalisées et performance.
A2: Nº R. | B2: Résultats | C2: Indicateur | D2: Type | E2: Unité | F2: Baseline | G2: 2017 | S2: 2017 | V2: 2018 | AH2: 2018 | AK2: 2019 | AW2: 2019 | AZ2: 2020 | BL2: 2020 | BO2: 2021 | CA2: 2021 | CD2: 2022 | CP2: 2022 | CS2: FIN du PDR
G3: S1 | M3: S2 | S3: P | T3: R | U3: Perf. | V3: S1 | AB3: S2 | AH3: P | AI3: R | AJ3: Perf. | AK3: S1 | AQ3: S2 | AW3: P | AX3: R | AY3: Perf. | AZ3: S1 | BF3: S2 | BL3: P | BM3: R | BN3: Perf. | BO3: S1 | BU3: S2 | CA3: P | CB3: R | CC3: Perf. | CD3: S1 | CJ3: S2 | CP3: P | CQ3: R | CR3: Perf.
G4: TM1 | J4: TM2 | M4: TM3 | P4: TM4 | V4: TM1 | Y4: TM2 | AB4: TM3 | AE4: TM4 | AK4: TM1 | AN4: TM2 | AQ4: TM3 | AT4: TM4 | AZ4: TM1 | BC4: TM2 | BF4: TM3 | BI4: TM4 | BO4: TM1 | BR4: TM2 | BU4: TM3 | BX4: TM4 | CD4: TM1 | CG4: TM2 | CJ4: TM3 | CM4: TM4
G5: P | H5: R | I5: Perf. | J5: P | K5: R | L5: Perf. | M5: P | N5: R | O5: Perf. | P5: P | Q5: R | R5: Perf. | V5: P | W5: R | X5: Perf. | Y5: P | Z5: R | AA5: Perf. | AB5: P | AC5: R | AD5: Perf. | AE5: P | AF5: R | AG5: Perf. | AK5: P | AL5: R | AM5: Perf. | AN5: P | AO5: R | AP5: Perf. | AQ5: P | AR5: R | AS5: Perf. | AT5: P | AU5: R | AV5: Perf. | AZ5: P | BA5: R | BB5: Perf. | BC5: P | BD5: R | BE5: Perf. | BF5: P | BG5: R | BH5: Perf. | BI5: P | BJ5: R | BK5: Perf. | BO5: P | BP5: R | BQ5: Perf. | BR5: P | BS5: R | BT5: Perf. | BU5: P | BV5: R | BW5: Perf. | BX5: P | BY5: R | BZ5: Perf. | CD5: P | CE5: R | CF5: Perf. | CG5: P | CH5: R | CI5: Perf. | CJ5: P | CK5: R | CL5: Perf. | CM5: P | CN5: R | CO5: Perf.
A6: ='VCMI CdR'!A4 -> COMPETENCES PROPRES
A7: ='VCMI CdR'!A5 -> 1. | B7: ='VCMI CdR'!B5:S5 -> Programme de valorisation du patrimoine culturel
A8: ='VCMI CdR'!A6 -> 1.1 | B8: ='VCMI CdR'!B6 -> Contribuer à la création d'emplois au niveau de la région | C8: ='VCMI CdR'!C6 -> Nombre d'emploi | D8: ='VCMI CdR'!E6 -> C | E8: ='VCMI CdR'!F6 -> poste | F8: ='VCMI CdR'!G6 -> 0 | I8: =IFERROR((H8-$F8)/(G8-$F8),"") ->  | L8: =IFERROR((K8-$F8)/(J8-$F8),"") ->  | O8: =IFERROR((N8-$F8)/(M8-$F8),"") ->  | R8: =IFERROR((Q8-$F8)/(P8-$F8),"") ->  | S8: ='VCMI CdR'!H6 -> 0 | U8: =IFERROR((T8-$F8)/(S8-$F8),"") ->  | X8: =IFERROR((W8-$F8)/(V8-$F8),"") ->  | AA8: =IFERROR((Z8-$F8)/(Y8-$F8),"") ->  | AD8: =IFERROR((AC8-$F8)/(AB8-$F8),"") ->  | AG8: =IFERROR((AF8-$F8)/(AE8-$F8),"") ->  | AH8: ='VCMI CdR'!I6 -> 0 | AJ8: =IFERROR((AI8-$F8)/(AH8-$F8),"") ->  | AM8: =IFERROR((AL8-$F8)/(AK8-$F8),"") ->  | AP8: =IFERROR((AO8-$F8)/(AN8-$F8),"") ->  | AS8: =IFERROR((AR8-$F8)/(AQ8-$F8),"") ->  | AV8: =IFERROR((AU8-$F8)/(AT8-$F8),"") ->  | AW8: ='VCMI CdR'!J6 ->  | AY8: =IFERROR((AX8-$F8)/(AW8-$F8),"") ->  | BB8: =IFERROR((BA8-$F8)/(AZ8-$F8),"") ->  | BE8: =IFERROR((BD8-$F8)/(BC8-$F8),"") ->  | BH8: =IFERROR((BG8-$F8)/(BF8-$F8),"") ->  | BK8: =IFERROR((BJ8-$F8)/(BI8-$F8),"") ->  | BL8: ='VCMI CdR'!K6 ->  | BN8: =IFERROR((BM8-$F8)/(BL8-$F8),"") ->  | BQ8: =IFERROR((BP8-$F8)/(BO8-$F8),"") ->  | BT8: =IFERROR((BS8-$F8)/(BR8-$F8),"") ->  | BW8: =IFERROR((BV8-$F8)/(BU8-$F8),"") ->  | BZ8: =IFERROR((BY8-$F8)/(BX8-$F8),"") ->  | CA8: ='VCMI CdR'!L6 ->  | CC8: =IFERROR((CB8-$F8)/(CA8-$F8),"") ->  | CF8: =IFERROR((CE8-$F8)/(CD8-$F8),"") ->  | CI8: =IFERROR((CH8-$F8)/(CG8-$F8),"") ->  | CL8: =IFERROR((CK8-$F8)/(CJ8-$F8),"") ->  | CO8: =IFERROR((CN8-$F8)/(CM8-$F8),"") ->  | CP8: ='VCMI CdR'!M6 -> 5000 | CR8: =IFERROR((CQ8-$F8)/(CP8-$F8),"") -> 0 | CS8: ='VCMI CdR'!N6 -> 5000
A9: ='VCMI CdR'!A7 -> 1.2 | B9: ='VCMI CdR'!B7 -> Contribuer au renforcement de l’attractivité touristique de la région | C9: ='VCMI CdR'!C7 -> Durée Moyenne de Séjour | D9: ='VCMI CdR'!E7 -> I | E9: ='VCMI CdR'!F7 -> Nuitée | F9: ='VCMI CdR'!G7 -> 1.9 | I9: =IFERROR((H9-$F9)/(G9-$F9),"") ->  | L9: =IFERROR((K9-$F9)/(J9-$F9),"") ->  | O9: =IFERROR((N9-$F9)/(M9-$F9),"") ->  | R9: =IFERROR((Q9-$F9)/(P9-$F9),"") ->  | S9: ='VCMI CdR'!H7 ->  | U9: =IFERROR((T9-$F9)/(S9-$F9),"") ->  | X9: =IFERROR((W9-$F9)/(V9-$F9),"") ->  | AA9: =IFERROR((Z9-$F9)/(Y9-$F9),"") ->  | AD9: =IFERROR((AC9-$F9)/(AB9-$F9),"") ->  | AG9: =IFERROR((AF9-$F9)/(AE9-$F9),"") ->  | AH9: ='VCMI CdR'!I7 ->  | AJ9: =IFERROR((AI9-$F9)/(AH9-$F9),"") ->  | AM9: =IFERROR((AL9-$F9)/(AK9-$F9),"") ->  | AP9: =IFERROR((AO9-$F9)/(AN9-$F9),"") ->  | AS9: =IFERROR((AR9-$F9)/(AQ9-$F9),"") ->  | AV9: =IFERROR((AU9-$F9)/(AT9-$F9),"") ->  | AW9: ='VCMI CdR'!J7 ->  | AY9: =IFERROR((AX9-$F9)/(AW9-$F9),"") ->  | BB9: =IFERROR((BA9-$F9)/(AZ9-$F9),"") ->  | BE9: =IFERROR((BD9-$F9)/(BC9-$F9),"") ->  | BH9: =IFERROR((BG9-$F9)/(BF9-$F9),"") ->  | BK9: =IFERROR((BJ9-$F9)/(BI9-$F9),"") ->  | BL9: ='VCMI CdR'!K7 ->  | BN9: =IFERROR((BM9-$F9)/(BL9-$F9),"") ->  | BQ9: =IFERROR((BP9-$F9)/(BO9-$F9),"") ->  | BT9: =IFERROR((BS9-$F9)/(BR9-$F9),"") ->  | BW9: =IFERROR((BV9-$F9)/(BU9-$F9),"") ->  | BZ9: =IFERROR((BY9-$F9)/(BX9-$F9),"") ->  | CA9: ='VCMI CdR'!L7 ->  | CC9: =IFERROR((CB9-$F9)/(CA9-$F9),"") ->  | CF9: =IFERROR((CE9-$F9)/(CD9-$F9),"") ->  | CI9: =IFERROR((CH9-$F9)/(CG9-$F9),"") ->  | CL9: =IFERROR((CK9-$F9)/(CJ9-$F9),"") ->  | CO9: =IFERROR((CN9-$F9)/(CM9-$F9),"") ->  | CP9: ='VCMI CdR'!M7 -> 3.5 | CR9: =IFERROR((CQ9-$F9)/(CP9-$F9),"") -> -1.1875 | CS9: ='VCMI CdR'!N7 -> 3.5
A10: ='VCMI CdR'!A8 -> 1.3 | B10: ='VCMI CdR'!B8 -> Une offre culturelle spécifique à la Région est mise en place et est constamment mise à jour | C10: ='VCMI CdR'!C8 -> Nombre d'offre culturelle | D10: ='VCMI CdR'!E8 -> I | E10: ='VCMI CdR'!F8 -> Offre culturelle | F10: ='VCMI CdR'!G8 -> 0 | S10: ='VCMI CdR'!H8 -> 0 | AH10: ='VCMI CdR'!I8 -> 0 | AW10: ='VCMI CdR'!J8 -> 0 | BL10: ='VCMI CdR'!K8 -> 0 | CA10: ='VCMI CdR'!L8 -> 0 | CP10: ='VCMI CdR'!M8 -> 1 | CR10: 0 | CS10: ='VCMI CdR'!N8 -> 1
A11: ='VCMI CdR'!A9 -> 1.4 | B11: ='VCMI CdR'!B9 -> 0 | C11: ='VCMI CdR'!C9 -> 0 | D11: ='VCMI CdR'!E9 -> 0 | E11: ='VCMI CdR'!F9 -> 0 | F11: ='VCMI CdR'!G9 -> 0 | S11: ='VCMI CdR'!H9 -> 0 | AH11: ='VCMI CdR'!I9 -> 0 | AW11: ='VCMI CdR'!J9 -> 0 | BL11: ='VCMI CdR'!K9 -> 0 | CA11: ='VCMI CdR'!L9 -> 0 | CP11: ='VCMI CdR'!M9 -> 0 | CS11: ='VCMI CdR'!N9 -> FALSE
A12: ='VCMI CdR'!A10 -> 1.5 | B12: ='VCMI CdR'!B10 -> 0 | C12: ='VCMI CdR'!C10 -> 0 | D12: ='VCMI CdR'!E10 -> 0 | E12: ='VCMI CdR'!F10 -> 0 | F12: ='VCMI CdR'!G10 -> 0 | S12: ='VCMI CdR'!H10 -> 0 | AH12: ='VCMI CdR'!I10 -> 0 | AW12: ='VCMI CdR'!J10 -> 0 | BL12: ='VCMI CdR'!K10 -> 0 | CA12: ='VCMI CdR'!L10 -> 0 | CP12: ='VCMI CdR'!M10 -> 0 | CS12: ='VCMI CdR'!N10 -> FALSE
A13: ='VCMI CdR'!A11 -> 1.6 | B13: ='VCMI CdR'!B11 -> 0 | C13: ='VCMI CdR'!C11 -> 0 | D13: ='VCMI CdR'!E11 -> 0 | E13: ='VCMI CdR'!F11 -> 0 | F13: ='VCMI CdR'!G11 -> 0 | S13: ='VCMI CdR'!H11 -> 0 | AH13: ='VCMI CdR'!I11 -> 0 | AW13: ='VCMI CdR'!J11 -> 0 | BL13: ='VCMI CdR'!K11 -> 0 | CA13: ='VCMI CdR'!L11 -> 0 | CP13: ='VCMI CdR'!M11 -> 0 | CS13: ='VCMI CdR'!N11 -> FALSE
A14: ='VCMI CdR'!A12 -> 2. | B14: ='VCMI CdR'!B12:S12 -> 
A15: ='VCMI CdR'!A13 -> 2.1 | B15: ='VCMI CdR'!B13 -> 0 | C15: ='VCMI CdR'!C13 -> 0 | D15: ='VCMI CdR'!E13 -> 0 | E15: ='VCMI CdR'!F13 -> 0 | F15: ='VCMI CdR'!G13 -> 0 | I15: =IFERROR((H15-$F15)/(G15-$F15),"") ->  | L15: =IFERROR((K15-$F15)/(J15-$F15),"") ->  | O15: =IFERROR((N15-$F15)/(M15-$F15),"") ->  | R15: =IFERROR((Q15-$F15)/(P15-$F15),"") ->  | S15: ='VCMI CdR'!H13 -> 0 | U15: =IFERROR((T15-$F15)/(S15-$F15),"") ->  | X15: =IFERROR((W15-$F15)/(V15-$F15),"") ->  | AA15: =IFERROR((Z15-$F15)/(Y15-$F15),"") ->  | AD15: =IFERROR((AC15-$F15)/(AB15-$F15),"") ->  | AG15: =IFERROR((AF15-$F15)/(AE15-$F15),"") ->  | AH15: ='VCMI CdR'!I13 -> 0 | AJ15: =IFERROR((AI15-$F15)/(AH15-$F15),"") ->  | AM15: =IFERROR((AL15-$F15)/(AK15-$F15),"") ->  | AP15: =IFERROR((AO15-$F15)/(AN15-$F15),"") ->  | AS15: =IFERROR((AR15-$F15)/(AQ15-$F15),"") ->  | AV15: =IFERROR((AU15-$F15)/(AT15-$F15),"") ->  | AW15: ='VCMI CdR'!J13 -> 0 | AY15: =IFERROR((AX15-$F15)/(AW15-$F15),"") ->  | BB15: =IFERROR((BA15-$F15)/(AZ15-$F15),"") ->  | BE15: =IFERROR((BD15-$F15)/(BC15-$F15),"") ->  | BH15: =IFERROR((BG15-$F15)/(BF15-$F15),"") ->  | BK15: =IFERROR((BJ15-$F15)/(BI15-$F15),"") ->  | BL15: ='VCMI CdR'!K13 -> 0 | BN15: =IFERROR((BM15-$F15)/(BL15-$F15),"") ->  | BQ15: =IFERROR((BP15-$F15)/(BO15-$F15),"") ->  | BT15: =IFERROR((BS15-$F15)/(BR15-$F15),"") ->  | BW15: =IFERROR((BV15-$F15)/(BU15-$F15),"") ->  | BZ15: =IFERROR((BY15-$F15)/(BX15-$F15),"") ->  | CA15: ='VCMI CdR'!L13 -> 0 | CC15: =IFERROR((CB15-$F15)/(CA15-$F15),"") ->  | CF15: =IFERROR((CE15-$F15)/(CD15-$F15),"") ->  | CI15: =IFERROR((CH15-$F15)/(CG15-$F15),"") ->  | CL15: =IFERROR((CK15-$F15)/(CJ15-$F15),"") ->  | CO15: =IFERROR((CN15-$F15)/(CM15-$F15),"") ->  | CP15: ='VCMI CdR'!M13 -> 0 | CR15: =IFERROR((CQ15-$F15)/(CP15-$F15),"") ->  | CS15: ='VCMI CdR'!N13 -> 0
A16: ='VCMI CdR'!A14 -> 2.2 | B16: ='VCMI CdR'!B14 -> 0 | C16: ='VCMI CdR'!C14 -> 0 | D16: ='VCMI CdR'!E14 -> 0 | E16: ='VCMI CdR'!F14 -> 0 | F16: ='VCMI CdR'!G14 -> 0 | R16: =IFERROR((Q16-$F16)/(P16-$F16),"") ->  | S16: ='VCMI CdR'!H14 -> 0 | AH16: ='VCMI CdR'!I14 -> 0 | AW16: ='VCMI CdR'!J14 -> 0 | BL16: ='VCMI CdR'!K14 -> 0 | CA16: ='VCMI CdR'!L14 -> 0 | CP16: ='VCMI CdR'!M14 -> 0 | CS16: ='VCMI CdR'!N14 -> 0
A17: ='VCMI CdR'!A15 -> 2.3 | B17: ='VCMI CdR'!B15 -> 0 | C17: ='VCMI CdR'!C15 -> 0 | D17: ='VCMI CdR'!E15 -> 0 | E17: ='VCMI CdR'!F15 -> 0 | F17: ='VCMI CdR'!G15 -> 0 | S17: ='VCMI CdR'!H15 -> 0 | AH17: ='VCMI CdR'!I15 -> 0 | AW17: ='VCMI CdR'!J15 -> 0 | BL17: ='VCMI CdR'!K15 -> 0 | CA17: ='VCMI CdR'!L15 -> 0 | CP17: ='VCMI CdR'!M15 -> 0 | CS17: ='VCMI CdR'!N15 -> 0
A18: ='VCMI CdR'!A16 -> 2.4 | B18: ='VCMI CdR'!B16 -> 0 | C18: ='VCMI CdR'!C16 -> 0 | D18: ='VCMI CdR'!E16 -> 0 | E18: ='VCMI CdR'!F16 -> 0 | F18: ='VCMI CdR'!G16 -> 0 | S18: ='VCMI CdR'!H16 -> 0 | AH18: ='VCMI CdR'!I16 -> 0 | AW18: ='VCMI CdR'!J16 -> 0 | BL18: ='VCMI CdR'!K16 -> 0 | CA18: ='VCMI CdR'!L16 -> 0 | CP18: ='VCMI CdR'!M16 -> 0 | CS18: ='VCMI CdR'!N16 -> 0
A19: ='VCMI CdR'!A17 -> 2.5 | B19: ='VCMI CdR'!B17 -> 0 | C19: ='VCMI CdR'!C17 -> 0 | D19: ='VCMI CdR'!E17 -> 0 | E19: ='VCMI CdR'!F17 -> 0 | F19: ='VCMI CdR'!G17 -> 0 | S19: ='VCMI CdR'!H17 -> 0 | AH19: ='VCMI CdR'!I17 -> 0 | AW19: ='VCMI CdR'!J17 -> 0 | BL19: ='VCMI CdR'!K17 -> 0 | CA19: ='VCMI CdR'!L17 -> 0 | CP19: ='VCMI CdR'!M17 -> 0 | CS19: ='VCMI CdR'!N17 -> 0
A20: ='VCMI CdR'!A18 -> 2.6 | B20: ='VCMI CdR'!B18 -> 0 | C20: ='VCMI CdR'!C18 -> 0 | D20: ='VCMI CdR'!E18 -> 0 | E20: ='VCMI CdR'!F18 -> 0 | F20: ='VCMI CdR'!G18 -> 0 | S20: ='VCMI CdR'!H18 -> 0 | AH20: ='VCMI CdR'!I18 -> 0 | AW20: ='VCMI CdR'!J18 -> 0 | BL20: ='VCMI CdR'!K18 -> 0 | CA20: ='VCMI CdR'!L18 -> 0 | CP20: ='VCMI CdR'!M18 -> 0 | CS20: ='VCMI CdR'!N18 -> 0
A21: ='VCMI CdR'!A19 -> 3. | B21: ='VCMI CdR'!B19:S19 -> 
A22: ='VCMI CdR'!A20 -> 3.1 | B22: ='VCMI CdR'!B20 -> 0 | C22: ='VCMI CdR'!C20 -> 0 | D22: ='VCMI CdR'!E20 -> 0 | E22: ='VCMI CdR'!F20 -> 0 | F22: ='VCMI CdR'!G20 -> 0 | I22: =IFERROR((H22-$F22)/(G22-$F22),"") ->  | L22: =IFERROR((K22-$F22)/(J22-$F22),"") ->  | O22: =IFERROR((N22-$F22)/(M22-$F22),"") ->  | R22: =IFERROR((Q22-$F22)/(P22-$F22),"") ->  | S22: ='VCMI CdR'!H20 -> 0 | U22: =IFERROR((T22-$F22)/(S22-$F22),"") ->  | X22: =IFERROR((W22-$F22)/(V22-$F22),"") ->  | AA22: =IFERROR((Z22-$F22)/(Y22-$F22),"") ->  | AD22: =IFERROR((AC22-$F22)/(AB22-$F22),"") ->  | AG22: =IFERROR((AF22-$F22)/(AE22-$F22),"") ->  | AH22: ='VCMI CdR'!I20 -> 0 | AJ22: =IFERROR((AI22-$F22)/(AH22-$F22),"") ->  | AM22: =IFERROR((AL22-$F22)/(AK22-$F22),"") ->  | AP22: =IFERROR((AO22-$F22)/(AN22-$F22),"") ->  | AS22: =IFERROR((AR22-$F22)/(AQ22-$F22),"") ->  | AV22: =IFERROR((AU22-$F22)/(AT22-$F22),"") ->  | AW22: ='VCMI CdR'!J20 -> 0 | AY22: =IFERROR((AX22-$F22)/(AW22-$F22),"") ->  | BB22: =IFERROR((BA22-$F22)/(AZ22-$F22),"") ->  | BE22: =IFERROR((BD22-$F22)/(BC22-$F22),"") ->  | BH22: =IFERROR((BG22-$F22)/(BF22-$F22),"") ->  | BK22: =IFERROR((BJ22-$F22)/(BI22-$F22),"") ->  | BL22: ='VCMI CdR'!K20 -> 0 | BN22: =IFERROR((BM22-$F22)/(BL22-$F22),"") ->  | BQ22: =IFERROR((BP22-$F22)/(BO22-$F22),"") ->  | BT22: =IFERROR((BS22-$F22)/(BR22-$F22),"") ->  | BW22: =IFERROR((BV22-$F22)/(BU22-$F22),"") ->  | BZ22: =IFERROR((BY22-$F22)/(BX22-$F22),"") ->  | CA22: ='VCMI CdR'!L20 -> 0 | CC22: =IFERROR((CB22-$F22)/(CA22-$F22),"") ->  | CF22: =IFERROR((CE22-$F22)/(CD22-$F22),"") ->  | CI22: =IFERROR((CH22-$F22)/(CG22-$F22),"") ->  | CL22: =IFERROR((CK22-$F22)/(CJ22-$F22),"") ->  | CO22: =IFERROR((CN22-$F22)/(CM22-$F22),"") ->  | CP22: ='VCMI CdR'!M20 -> 0 | CR22: =IFERROR((CQ22-$F22)/(CP22-$F22),"") ->  | CS22: ='VCMI CdR'!N20 -> 0
A23: ='VCMI CdR'!A21 -> 3.2 | B23: ='VCMI CdR'!B21 -> 0 | C23: ='VCMI CdR'!C21 -> 0 | D23: ='VCMI CdR'!E21 -> 0 | E23: ='VCMI CdR'!F21 -> 0 | F23: ='VCMI CdR'!G21 -> 0 | R23: =IFERROR((Q23-$F23)/(P23-$F23),"") ->  | S23: ='VCMI CdR'!H21 -> 0 | AH23: ='VCMI CdR'!I21 -> 0 | AW23: ='VCMI CdR'!J21 -> 0 | BL23: ='VCMI CdR'!K21 -> 0 | CA23: ='VCMI CdR'!L21 -> 0 | CP23: ='VCMI CdR'!M21 -> 0 | CS23: ='VCMI CdR'!N21 -> 0
A24: ='VCMI CdR'!A22 -> 3.3 | B24: ='VCMI CdR'!B22 -> 0 | C24: ='VCMI CdR'!C22 -> 0 | D24: ='VCMI CdR'!E22 -> 0 | E24: ='VCMI CdR'!F22 -> 0 | F24: ='VCMI CdR'!G22 -> 0 | S24: ='VCMI CdR'!H22 -> 0 | AH24: ='VCMI CdR'!I22 -> 0 | AW24: ='VCMI CdR'!J22 -> 0 | BL24: ='VCMI CdR'!K22 -> 0 | CA24: ='VCMI CdR'!L22 -> 0 | CP24: ='VCMI CdR'!M22 -> 0 | CS24: ='VCMI CdR'!N22 -> 0
A25: ='VCMI CdR'!A23 -> 3.4 | B25: ='VCMI CdR'!B23 -> 0 | C25: ='VCMI CdR'!C23 -> 0 | D25: ='VCMI CdR'!E23 -> 0 | E25: ='VCMI CdR'!F23 -> 0 | F25: ='VCMI CdR'!G23 -> 0 | S25: ='VCMI CdR'!H23 -> 0 | AH25: ='VCMI CdR'!I23 -> 0 | AW25: ='VCMI CdR'!J23 -> 0 | BL25: ='VCMI CdR'!K23 -> 0 | CA25: ='VCMI CdR'!L23 -> 0 | CP25: ='VCMI CdR'!M23 -> 0 | CS25: ='VCMI CdR'!N23 -> 0
A26: ='VCMI CdR'!A24 -> 3.5 | B26: ='VCMI CdR'!B24 -> 0 | C26: ='VCMI CdR'!C24 -> 0 | D26: ='VCMI CdR'!E24 -> 0 | E26: ='VCMI CdR'!F24 -> 0 | F26: ='VCMI CdR'!G24 -> 0 | S26: ='VCMI CdR'!H24 -> 0 | AH26: ='VCMI CdR'!I24 -> 0 | AW26: ='VCMI CdR'!J24 -> 0 | BL26: ='VCMI CdR'!K24 -> 0 | CA26: ='VCMI CdR'!L24 -> 0 | CP26: ='VCMI CdR'!M24 -> 0 | CS26: ='VCMI CdR'!N24 -> 0
A27: ='VCMI CdR'!A25 -> 3.6 | B27: ='VCMI CdR'!B25 -> 0 | C27: ='VCMI CdR'!C25 -> 0 | D27: ='VCMI CdR'!E25 -> 0 | E27: ='VCMI CdR'!F25 -> 0 | F27: ='VCMI CdR'!G25 -> 0 | S27: ='VCMI CdR'!H25 -> 0 | AH27: ='VCMI CdR'!I25 -> 0 | AW27: ='VCMI CdR'!J25 -> 0 | BL27: ='VCMI CdR'!K25 -> 0 | CA27: ='VCMI CdR'!L25 -> 0 | CP27: ='VCMI CdR'!M25 -> 0 | CS27: ='VCMI CdR'!N25 -> 0
A28: ='VCMI CdR'!A26 -> 4. | B28: ='VCMI CdR'!B26:S26 -> 
A29: ='VCMI CdR'!A27 -> 4.1 | B29: ='VCMI CdR'!B27 -> 0 | C29: ='VCMI CdR'!C27 -> 0 | D29: ='VCMI CdR'!E27 -> 0 | E29: ='VCMI CdR'!F27 -> 0 | F29: ='VCMI CdR'!G27 -> 0 | I29: =IFERROR((H29-$F29)/(G29-$F29),"") ->  | L29: =IFERROR((K29-$F29)/(J29-$F29),"") ->  | O29: =IFERROR((N29-$F29)/(M29-$F29),"") ->  | R29: =IFERROR((Q29-$F29)/(P29-$F29),"") ->  | S29: ='VCMI CdR'!H27 -> 0 | U29: =IFERROR((T29-$F29)/(S29-$F29),"") ->  | X29: =IFERROR((W29-$F29)/(V29-$F29),"") ->  | AA29: =IFERROR((Z29-$F29)/(Y29-$F29),"") ->  | AD29: =IFERROR((AC29-$F29)/(AB29-$F29),"") ->  | AG29: =IFERROR((AF29-$F29)/(AE29-$F29),"") ->  | AH29: ='VCMI CdR'!I27 -> 0 | AJ29: =IFERROR((AI29-$F29)/(AH29-$F29),"") ->  | AM29: =IFERROR((AL29-$F29)/(AK29-$F29),"") ->  | AP29: =IFERROR((AO29-$F29)/(AN29-$F29),"") ->  | AS29: =IFERROR((AR29-$F29)/(AQ29-$F29),"") ->  | AV29: =IFERROR((AU29-$F29)/(AT29-$F29),"") ->  | AW29: ='VCMI CdR'!J27 -> 0 | AY29: =IFERROR((AX29-$F29)/(AW29-$F29),"") ->  | BB29: =IFERROR((BA29-$F29)/(AZ29-$F29),"") ->  | BE29: =IFERROR((BD29-$F29)/(BC29-$F29),"") ->  | BH29: =IFERROR((BG29-$F29)/(BF29-$F29),"") ->  | BK29: =IFERROR((BJ29-$F29)/(BI29-$F29),"") ->  | BL29: ='VCMI CdR'!K27 -> 0 | BN29: =IFERROR((BM29-$F29)/(BL29-$F29),"") ->  | BQ29: =IFERROR((BP29-$F29)/(BO29-$F29),"") ->  | BT29: =IFERROR((BS29-$F29)/(BR29-$F29),"") ->  | BW29: =IFERROR((BV29-$F29)/(BU29-$F29),"") ->  | BZ29: =IFERROR((BY29-$F29)/(BX29-$F29),"") ->  | CA29: ='VCMI CdR'!L27 -> 0 | CC29: =IFERROR((CB29-$F29)/(CA29-$F29),"") ->  | CF29: =IFERROR((CE29-$F29)/(CD29-$F29),"") ->  | CI29: =IFERROR((CH29-$F29)/(CG29-$F29),"") ->  | CL29: =IFERROR((CK29-$F29)/(CJ29-$F29),"") ->  | CO29: =IFERROR((CN29-$F29)/(CM29-$F29),"") ->  | CP29: ='VCMI CdR'!M27 -> 0 | CR29: =IFERROR((CQ29-$F29)/(CP29-$F29),"") ->  | CS29: ='VCMI CdR'!N27 -> 0
A30: ='VCMI CdR'!A28 -> 4.2 | B30: ='VCMI CdR'!B28 -> 0 | C30: ='VCMI CdR'!C28 -> 0 | D30: ='VCMI CdR'!E28 -> 0 | E30: ='VCMI CdR'!F28 -> 0 | F30: ='VCMI CdR'!G28 -> 0 | R30: =IFERROR((Q30-$F30)/(P30-$F30),"") ->  | S30: ='VCMI CdR'!H28 -> 0 | AH30: ='VCMI CdR'!I28 -> 0 | AW30: ='VCMI CdR'!J28 -> 0 | BL30: ='VCMI CdR'!K28 -> 0 | CA30: ='VCMI CdR'!L28 -> 0 | CP30: ='VCMI CdR'!M28 -> 0 | CS30: ='VCMI CdR'!N28 -> 0
A31: ='VCMI CdR'!A29 -> 4.3 | B31: ='VCMI CdR'!B29 -> 0 | C31: ='VCMI CdR'!C29 -> 0 | D31: ='VCMI CdR'!E29 -> 0 | E31: ='VCMI CdR'!F29 -> 0 | F31: ='VCMI CdR'!G29 -> 0 | S31: ='VCMI CdR'!H29 -> 0 | AH31: ='VCMI CdR'!I29 -> 0 | AW31: ='VCMI CdR'!J29 -> 0 | BL31: ='VCMI CdR'!K29 -> 0 | CA31: ='VCMI CdR'!L29 -> 0 | CP31: ='VCMI CdR'!M29 -> 0 | CS31: ='VCMI CdR'!N29 -> 0
A32: ='VCMI CdR'!A30 -> 4.4 | B32: ='VCMI CdR'!B30 -> 0 | C32: ='VCMI CdR'!C30 -> 0 | D32: ='VCMI CdR'!E30 -> 0 | E32: ='VCMI CdR'!F30 -> 0 | F32: ='VCMI CdR'!G30 -> 0 | S32: ='VCMI CdR'!H30 -> 0 | AH32: ='VCMI CdR'!I30 -> 0 | AW32: ='VCMI CdR'!J30 -> 0 | BL32: ='VCMI CdR'!K30 -> 0 | CA32: ='VCMI CdR'!L30 -> 0 | CP32: ='VCMI CdR'!M30 -> 0 | CS32: ='VCMI CdR'!N30 -> 0
A33: ='VCMI CdR'!A31 -> 4.5 | B33: ='VCMI CdR'!B31 -> 0 | C33: ='VCMI CdR'!C31 -> 0 | D33: ='VCMI CdR'!E31 -> 0 | E33: ='VCMI CdR'!F31 -> 0 | F33: ='VCMI CdR'!G31 -> 0 | S33: ='VCMI CdR'!H31 -> 0 | AH33: ='VCMI CdR'!I31 -> 0 | AW33: ='VCMI CdR'!J31 -> 0 | BL33: ='VCMI CdR'!K31 -> 0 | CA33: ='VCMI CdR'!L31 -> 0 | CP33: ='VCMI CdR'!M31 -> 0 | CS33: ='VCMI CdR'!N31 -> 0
A34: ='VCMI CdR'!A32 -> 4.6 | B34: ='VCMI CdR'!B32 -> 0 | C34: ='VCMI CdR'!C32 -> 0 | D34: ='VCMI CdR'!E32 -> 0 | E34: ='VCMI CdR'!F32 -> 0 | F34: ='VCMI CdR'!G32 -> 0 | S34: ='VCMI CdR'!H32 -> 0 | AH34: ='VCMI CdR'!I32 -> 0 | AW34: ='VCMI CdR'!J32 -> 0 | BL34: ='VCMI CdR'!K32 -> 0 | CA34: ='VCMI CdR'!L32 -> 0 | CP34: ='VCMI CdR'!M32 -> 0 | CS34: ='VCMI CdR'!N32 -> 0
A35: ='VCMI CdR'!A33 -> 5. | B35: ='VCMI CdR'!B33:S33 -> 
A36: ='VCMI CdR'!A34 -> 5.1 | B36: ='VCMI CdR'!B34 -> 0 | C36: ='VCMI CdR'!C34 -> 0 | D36: ='VCMI CdR'!E34 -> 0 | E36: ='VCMI CdR'!F34 -> 0 | F36: ='VCMI CdR'!G34 -> 0 | I36: =IFERROR((H36-$F36)/(G36-$F36),"") ->  | L36: =IFERROR((K36-$F36)/(J36-$F36),"") ->  | O36: =IFERROR((N36-$F36)/(M36-$F36),"") ->  | R36: =IFERROR((Q36-$F36)/(P36-$F36),"") ->  | S36: ='VCMI CdR'!H34 -> 0 | U36: =IFERROR((T36-$F36)/(S36-$F36),"") ->  | X36: =IFERROR((W36-$F36)/(V36-$F36),"") ->  | AA36: =IFERROR((Z36-$F36)/(Y36-$F36),"") ->  | AD36: =IFERROR((AC36-$F36)/(AB36-$F36),"") ->  | AG36: =IFERROR((AF36-$F36)/(AE36-$F36),"") ->  | AH36: ='VCMI CdR'!I34 -> 0 | AJ36: =IFERROR((AI36-$F36)/(AH36-$F36),"") ->  | AM36: =IFERROR((AL36-$F36)/(AK36-$F36),"") ->  | AP36: =IFERROR((AO36-$F36)/(AN36-$F36),"") ->  | AS36: =IFERROR((AR36-$F36)/(AQ36-$F36),"") ->  | AV36: =IFERROR((AU36-$F36)/(AT36-$F36),"") ->  | AW36: ='VCMI CdR'!J34 -> 0 | AY36: =IFERROR((AX36-$F36)/(AW36-$F36),"") ->  | BB36: =IFERROR((BA36-$F36)/(AZ36-$F36),"") ->  | BE36: =IFERROR((BD36-$F36)/(BC36-$F36),"") ->  | BH36: =IFERROR((BG36-$F36)/(BF36-$F36),"") ->  | BK36: =IFERROR((BJ36-$F36)/(BI36-$F36),"") ->  | BL36: ='VCMI CdR'!K34 -> 0 | BN36: =IFERROR((BM36-$F36)/(BL36-$F36),"") ->  | BQ36: =IFERROR((BP36-$F36)/(BO36-$F36),"") ->  | BT36: =IFERROR((BS36-$F36)/(BR36-$F36),"") ->  | BW36: =IFERROR((BV36-$F36)/(BU36-$F36),"") ->  | BZ36: =IFERROR((BY36-$F36)/(BX36-$F36),"") ->  | CA36: ='VCMI CdR'!L34 -> 0 | CC36: =IFERROR((CB36-$F36)/(CA36-$F36),"") ->  | CF36: =IFERROR((CE36-$F36)/(CD36-$F36),"") ->  | CI36: =IFERROR((CH36-$F36)/(CG36-$F36),"") ->  | CL36: =IFERROR((CK36-$F36)/(CJ36-$F36),"") ->  | CO36: =IFERROR((CN36-$F36)/(CM36-$F36),"") ->  | CP36: ='VCMI CdR'!M34 -> 0 | CR36: =IFERROR((CQ36-$F36)/(CP36-$F36),"") ->  | CS36: ='VCMI CdR'!N34 -> 0
A37: ='VCMI CdR'!A35 -> 5.2 | B37: ='VCMI CdR'!B35 -> 0 | C37: ='VCMI CdR'!C35 -> 0 | D37: ='VCMI CdR'!E35 -> 0 | E37: ='VCMI CdR'!F35 -> 0 | F37: ='VCMI CdR'!G35 -> 0 | R37: =IFERROR((Q37-$F37)/(P37-$F37),"") ->  | S37: ='VCMI CdR'!H35 -> 0 | AH37: ='VCMI CdR'!I35 -> 0 | AW37: ='VCMI CdR'!J35 -> 0 | BL37: ='VCMI CdR'!K35 -> 0 | CA37: ='VCMI CdR'!L35 -> 0 | CP37: ='VCMI CdR'!M35 -> 0 | CS37: ='VCMI CdR'!N35 -> 0
A38: ='VCMI CdR'!A36 -> 5.3 | B38: ='VCMI CdR'!B36 -> 0 | C38: ='VCMI CdR'!C36 -> 0 | D38: ='VCMI CdR'!E36 -> 0 | E38: ='VCMI CdR'!F36 -> 0 | F38: ='VCMI CdR'!G36 -> 0 | S38: ='VCMI CdR'!H36 -> 0 | AH38: ='VCMI CdR'!I36 -> 0 | AW38: ='VCMI CdR'!J36 -> 0 | BL38: ='VCMI CdR'!K36 -> 0 | CA38: ='VCMI CdR'!L36 -> 0 | CP38: ='VCMI CdR'!M36 -> 0 | CS38: ='VCMI CdR'!N36 -> 0
A39: ='VCMI CdR'!A37 -> 5.4 | B39: ='VCMI CdR'!B37 -> 0 | C39: ='VCMI CdR'!C37 -> 0 | D39: ='VCMI CdR'!E37 -> 0 | E39: ='VCMI CdR'!F37 -> 0 | F39: ='VCMI CdR'!G37 -> 0 | S39: ='VCMI CdR'!H37 -> 0 | AH39: ='VCMI CdR'!I37 -> 0 | AW39: ='VCMI CdR'!J37 -> 0 | BL39: ='VCMI CdR'!K37 -> 0 | CA39: ='VCMI CdR'!L37 -> 0 | CP39: ='VCMI CdR'!M37 -> 0 | CS39: ='VCMI CdR'!N37 -> 0
A40: ='VCMI CdR'!A38 -> 5.5 | B40: ='VCMI CdR'!B38 -> 0 | C40: ='VCMI CdR'!C38 -> 0 | D40: ='VCMI CdR'!E38 -> 0 | E40: ='VCMI CdR'!F38 -> 0 | F40: ='VCMI CdR'!G38 -> 0 | S40: ='VCMI CdR'!H38 -> 0 | AH40: ='VCMI CdR'!I38 -> 0 | AW40: ='VCMI CdR'!J38 -> 0 | BL40: ='VCMI CdR'!K38 -> 0 | CA40: ='VCMI CdR'!L38 -> 0 | CP40: ='VCMI CdR'!M38 -> 0 | CS40: ='VCMI CdR'!N38 -> 0
A41: ='VCMI CdR'!A39 -> 5.6 | B41: ='VCMI CdR'!B39 -> 0 | C41: ='VCMI CdR'!C39 -> 0 | D41: ='VCMI CdR'!E39 -> 0 | E41: ='VCMI CdR'!F39 -> 0 | F41: ='VCMI CdR'!G39 -> 0 | S41: ='VCMI CdR'!H39 -> 0 | AH41: ='VCMI CdR'!I39 -> 0 | AW41: ='VCMI CdR'!J39 -> 0 | BL41: ='VCMI CdR'!K39 -> 0 | CA41: ='VCMI CdR'!L39 -> 0 | CP41: ='VCMI CdR'!M39 -> 0 | CS41: ='VCMI CdR'!N39 -> 0
A42: ='VCMI CdR'!A40 -> 6. | B42: ='VCMI CdR'!B40:S40 -> 
A43: ='VCMI CdR'!A41 -> 6.1 | B43: ='VCMI CdR'!B41 -> 0 | C43: ='VCMI CdR'!C41 -> 0 | D43: ='VCMI CdR'!E41 -> 0 | E43: ='VCMI CdR'!F41 -> 0 | F43: ='VCMI CdR'!G41 -> 0 | I43: =IFERROR((H43-$F43)/(G43-$F43),"") ->  | L43: =IFERROR((K43-$F43)/(J43-$F43),"") ->  | O43: =IFERROR((N43-$F43)/(M43-$F43),"") ->  | R43: =IFERROR((Q43-$F43)/(P43-$F43),"") ->  | S43: ='VCMI CdR'!H41 -> 0 | U43: =IFERROR((T43-$F43)/(S43-$F43),"") ->  | X43: =IFERROR((W43-$F43)/(V43-$F43),"") ->  | AA43: =IFERROR((Z43-$F43)/(Y43-$F43),"") ->  | AD43: =IFERROR((AC43-$F43)/(AB43-$F43),"") ->  | AG43: =IFERROR((AF43-$F43)/(AE43-$F43),"") ->  | AH43: ='VCMI CdR'!I41 -> 0 | AJ43: =IFERROR((AI43-$F43)/(AH43-$F43),"") ->  | AM43: =IFERROR((AL43-$F43)/(AK43-$F43),"") ->  | AP43: =IFERROR((AO43-$F43)/(AN43-$F43),"") ->  | AS43: =IFERROR((AR43-$F43)/(AQ43-$F43),"") ->  | AV43: =IFERROR((AU43-$F43)/(AT43-$F43),"") ->  | AW43: ='VCMI CdR'!J41 -> 0 | AY43: =IFERROR((AX43-$F43)/(AW43-$F43),"") ->  | BB43: =IFERROR((BA43-$F43)/(AZ43-$F43),"") ->  | BE43: =IFERROR((BD43-$F43)/(BC43-$F43),"") ->  | BH43: =IFERROR((BG43-$F43)/(BF43-$F43),"") ->  | BK43: =IFERROR((BJ43-$F43)/(BI43-$F43),"") ->  | BL43: ='VCMI CdR'!K41 -> 0 | BN43: =IFERROR((BM43-$F43)/(BL43-$F43),"") ->  | BQ43: =IFERROR((BP43-$F43)/(BO43-$F43),"") ->  | BT43: =IFERROR((BS43-$F43)/(BR43-$F43),"") ->  | BW43: =IFERROR((BV43-$F43)/(BU43-$F43),"") ->  | BZ43: =IFERROR((BY43-$F43)/(BX43-$F43),"") ->  | CA43: ='VCMI CdR'!L41 -> 0 | CC43: =IFERROR((CB43-$F43)/(CA43-$F43),"") ->  | CF43: =IFERROR((CE43-$F43)/(CD43-$F43),"") ->  | CI43: =IFERROR((CH43-$F43)/(CG43-$F43),"") ->  | CL43: =IFERROR((CK43-$F43)/(CJ43-$F43),"") ->  | CO43: =IFERROR((CN43-$F43)/(CM43-$F43),"") ->  | CP43: ='VCMI CdR'!M41 -> 0 | CR43: =IFERROR((CQ43-$F43)/(CP43-$F43),"") ->  | CS43: ='VCMI CdR'!N41 -> 0
A44: ='VCMI CdR'!A42 -> 6.2 | B44: ='VCMI CdR'!B42 -> 0 | C44: ='VCMI CdR'!C42 -> 0 | D44: ='VCMI CdR'!E42 -> 0 | E44: ='VCMI CdR'!F42 -> 0 | F44: ='VCMI CdR'!G42 -> 0 | R44: =IFERROR((Q44-$F44)/(P44-$F44),"") ->  | S44: ='VCMI CdR'!H42 -> 0 | AH44: ='VCMI CdR'!I42 -> 0 | AW44: ='VCMI CdR'!J42 -> 0 | BL44: ='VCMI CdR'!K42 -> 0 | CA44: ='VCMI CdR'!L42 -> 0 | CP44: ='VCMI CdR'!M42 -> 0 | CS44: ='VCMI CdR'!N42 -> 0
A45: ='VCMI CdR'!A43 -> 6.3 | B45: ='VCMI CdR'!B43 -> 0 | C45: ='VCMI CdR'!C43 -> 0 | D45: ='VCMI CdR'!E43 -> 0 | E45: ='VCMI CdR'!F43 -> 0 | F45: ='VCMI CdR'!G43 -> 0 | S45: ='VCMI CdR'!H43 -> 0 | AH45: ='VCMI CdR'!I43 -> 0 | AW45: ='VCMI CdR'!J43 -> 0 | BL45: ='VCMI CdR'!K43 -> 0 | CA45: ='VCMI CdR'!L43 -> 0 | CP45: ='VCMI CdR'!M43 -> 0 | CS45: ='VCMI CdR'!N43 -> 0
A46: ='VCMI CdR'!A44 -> 6.4 | B46: ='VCMI CdR'!B44 -> 0 | C46: ='VCMI CdR'!C44 -> 0 | D46: ='VCMI CdR'!E44 -> 0 | E46: ='VCMI CdR'!F44 -> 0 | F46: ='VCMI CdR'!G44 -> 0 | S46: ='VCMI CdR'!H44 -> 0 | AH46: ='VCMI CdR'!I44 -> 0 | AW46: ='VCMI CdR'!J44 -> 0 | BL46: ='VCMI CdR'!K44 -> 0 | CA46: ='VCMI CdR'!L44 -> 0 | CP46: ='VCMI CdR'!M44 -> 0 | CS46: ='VCMI CdR'!N44 -> 0
A47: ='VCMI CdR'!A45 -> 6.5 | B47: ='VCMI CdR'!B45 -> 0 | C47: ='VCMI CdR'!C45 -> 0 | D47: ='VCMI CdR'!E45 -> 0 | E47: ='VCMI CdR'!F45 -> 0 | F47: ='VCMI CdR'!G45 -> 0 | S47: ='VCMI CdR'!H45 -> 0 | AH47: ='VCMI CdR'!I45 -> 0 | AW47: ='VCMI CdR'!J45 -> 0 | BL47: ='VCMI CdR'!K45 -> 0 | CA47: ='VCMI CdR'!L45 -> 0 | CP47: ='VCMI CdR'!M45 -> 0 | CS47: ='VCMI CdR'!N45 -> 0
A48: ='VCMI CdR'!A46 -> 6.6 | B48: ='VCMI CdR'!B46 -> 0 | C48: ='VCMI CdR'!C46 -> 0 | D48: ='VCMI CdR'!E46 -> 0 | E48: ='VCMI CdR'!F46 -> 0 | F48: ='VCMI CdR'!G46 -> 0 | S48: ='VCMI CdR'!H46 -> 0 | AH48: ='VCMI CdR'!I46 -> 0 | AW48: ='VCMI CdR'!J46 -> 0 | BL48: ='VCMI CdR'!K46 -> 0 | CA48: ='VCMI CdR'!L46 -> 0 | CP48: ='VCMI CdR'!M46 -> 0 | CS48: ='VCMI CdR'!N46 -> 0
A49: ='VCMI CdR'!A47 -> 7. | B49: ='VCMI CdR'!B47:S47 -> 
A50: ='VCMI CdR'!A48 -> 7.1 | B50: ='VCMI CdR'!B48 -> 0 | C50: ='VCMI CdR'!C48 -> 0 | D50: ='VCMI CdR'!E48 -> 0 | E50: ='VCMI CdR'!F48 -> 0 | F50: ='VCMI CdR'!G48 -> 0 | I50: =IFERROR((H50-$F50)/(G50-$F50),"") ->  | L50: =IFERROR((K50-$F50)/(J50-$F50),"") ->  | O50: =IFERROR((N50-$F50)/(M50-$F50),"") ->  | R50: =IFERROR((Q50-$F50)/(P50-$F50),"") ->  | S50: ='VCMI CdR'!H48 -> 0 | U50: =IFERROR((T50-$F50)/(S50-$F50),"") ->  | X50: =IFERROR((W50-$F50)/(V50-$F50),"") ->  | AA50: =IFERROR((Z50-$F50)/(Y50-$F50),"") ->  | AD50: =IFERROR((AC50-$F50)/(AB50-$F50),"") ->  | AG50: =IFERROR((AF50-$F50)/(AE50-$F50),"") ->  | AH50: ='VCMI CdR'!I48 -> 0 | AJ50: =IFERROR((AI50-$F50)/(AH50-$F50),"") ->  | AM50: =IFERROR((AL50-$F50)/(AK50-$F50),"") ->  | AP50: =IFERROR((AO50-$F50)/(AN50-$F50),"") ->  | AS50: =IFERROR((AR50-$F50)/(AQ50-$F50),"") ->  | AV50: =IFERROR((AU50-$F50)/(AT50-$F50),"") ->  | AW50: ='VCMI CdR'!J48 -> 0 | AY50: =IFERROR((AX50-$F50)/(AW50-$F50),"") ->  | BB50: =IFERROR((BA50-$F50)/(AZ50-$F50),"") ->  | BE50: =IFERROR((BD50-$F50)/(BC50-$F50),"") ->  | BH50: =IFERROR((BG50-$F50)/(BF50-$F50),"") ->  | BK50: =IFERROR((BJ50-$F50)/(BI50-$F50),"") ->  | BL50: ='VCMI CdR'!K48 -> 0 | BN50: =IFERROR((BM50-$F50)/(BL50-$F50),"") ->  | BQ50: =IFERROR((BP50-$F50)/(BO50-$F50),"") ->  | BT50: =IFERROR((BS50-$F50)/(BR50-$F50),"") ->  | BW50: =IFERROR((BV50-$F50)/(BU50-$F50),"") ->  | BZ50: =IFERROR((BY50-$F50)/(BX50-$F50),"") ->  | CA50: ='VCMI CdR'!L48 -> 0 | CC50: =IFERROR((CB50-$F50)/(CA50-$F50),"") ->  | CF50: =IFERROR((CE50-$F50)/(CD50-$F50),"") ->  | CI50: =IFERROR((CH50-$F50)/(CG50-$F50),"") ->  | CL50: =IFERROR((CK50-$F50)/(CJ50-$F50),"") ->  | CO50: =IFERROR((CN50-$F50)/(CM50-$F50),"") ->  | CP50: ='VCMI CdR'!M48 -> 0 | CR50: =IFERROR((CQ50-$F50)/(CP50-$F50),"") ->  | CS50: ='VCMI CdR'!N48 -> 0
A51: ='VCMI CdR'!A49 -> 7.2 | B51: ='VCMI CdR'!B49 -> 0 | C51: ='VCMI CdR'!C49 -> 0 | D51: ='VCMI CdR'!E49 -> 0 | E51: ='VCMI CdR'!F49 -> 0 | F51: ='VCMI CdR'!G49 -> 0 | R51: =IFERROR((Q51-$F51)/(P51-$F51),"") ->  | S51: ='VCMI CdR'!H49 -> 0 | AH51: ='VCMI CdR'!I49 -> 0 | AW51: ='VCMI CdR'!J49 -> 0 | BL51: ='VCMI CdR'!K49 -> 0 | CA51: ='VCMI CdR'!L49 -> 0 | CP51: ='VCMI CdR'!M49 -> 0 | CS51: ='VCMI CdR'!N49 -> 0
A52: ='VCMI CdR'!A50 -> 7.3 | B52: ='VCMI CdR'!B50 -> 0 | C52: ='VCMI CdR'!C50 -> 0 | D52: ='VCMI CdR'!E50 -> 0 | E52: ='VCMI CdR'!F50 -> 0 | F52: ='VCMI CdR'!G50 -> 0 | S52: ='VCMI CdR'!H50 -> 0 | AH52: ='VCMI CdR'!I50 -> 0 | AW52: ='VCMI CdR'!J50 -> 0 | BL52: ='VCMI CdR'!K50 -> 0 | CA52: ='VCMI CdR'!L50 -> 0 | CP52: ='VCMI CdR'!M50 -> 0 | CS52: ='VCMI CdR'!N50 -> 0
A53: ='VCMI CdR'!A51 -> 7.4 | B53: ='VCMI CdR'!B51 -> 0 | C53: ='VCMI CdR'!C51 -> 0 | D53: ='VCMI CdR'!E51 -> 0 | E53: ='VCMI CdR'!F51 -> 0 | F53: ='VCMI CdR'!G51 -> 0 | S53: ='VCMI CdR'!H51 -> 0 | AH53: ='VCMI CdR'!I51 -> 0 | AW53: ='VCMI CdR'!J51 -> 0 | BL53: ='VCMI CdR'!K51 -> 0 | CA53: ='VCMI CdR'!L51 -> 0 | CP53: ='VCMI CdR'!M51 -> 0 | CS53: ='VCMI CdR'!N51 -> 0
A54: ='VCMI CdR'!A52 -> 7.5 | B54: ='VCMI CdR'!B52 -> 0 | C54: ='VCMI CdR'!C52 -> 0 | D54: ='VCMI CdR'!E52 -> 0 | E54: ='VCMI CdR'!F52 -> 0 | F54: ='VCMI CdR'!G52 -> 0 | S54: ='VCMI CdR'!H52 -> 0 | AH54: ='VCMI CdR'!I52 -> 0 | AW54: ='VCMI CdR'!J52 -> 0 | BL54: ='VCMI CdR'!K52 -> 0 | CA54: ='VCMI CdR'!L52 -> 0 | CP54: ='VCMI CdR'!M52 -> 0 | CS54: ='VCMI CdR'!N52 -> 0
A55: ='VCMI CdR'!A53 -> 7.6 | B55: ='VCMI CdR'!B53 -> 0 | C55: ='VCMI CdR'!C53 -> 0 | D55: ='VCMI CdR'!E53 -> 0 | E55: ='VCMI CdR'!F53 -> 0 | F55: ='VCMI CdR'!G53 -> 0 | S55: ='VCMI CdR'!H53 -> 0 | AH55: ='VCMI CdR'!I53 -> 0 | AW55: ='VCMI CdR'!J53 -> 0 | BL55: ='VCMI CdR'!K53 -> 0 | CA55: ='VCMI CdR'!L53 -> 0 | CP55: ='VCMI CdR'!M53 -> 0 | CS55: ='VCMI CdR'!N53 -> 0
A56: ='VCMI CdR'!A54 -> 8. | B56: ='VCMI CdR'!B54:S54 -> 
A57: ='VCMI CdR'!A55 -> 8.1 | B57: ='VCMI CdR'!B55 -> 0 | C57: ='VCMI CdR'!C55 -> 0 | D57: ='VCMI CdR'!E55 -> 0 | E57: ='VCMI CdR'!F55 -> 0 | F57: ='VCMI CdR'!G55 -> 0 | I57: =IFERROR((H57-$F57)/(G57-$F57),"") ->  | L57: =IFERROR((K57-$F57)/(J57-$F57),"") ->  | O57: =IFERROR((N57-$F57)/(M57-$F57),"") ->  | R57: =IFERROR((Q57-$F57)/(P57-$F57),"") ->  | S57: ='VCMI CdR'!H55 -> 0 | U57: =IFERROR((T57-$F57)/(S57-$F57),"") ->  | X57: =IFERROR((W57-$F57)/(V57-$F57),"") ->  | AA57: =IFERROR((Z57-$F57)/(Y57-$F57),"") ->  | AD57: =IFERROR((AC57-$F57)/(AB57-$F57),"") ->  | AG57: =IFERROR((AF57-$F57)/(AE57-$F57),"") ->  | AH57: ='VCMI CdR'!I55 -> 0 | AJ57: =IFERROR((AI57-$F57)/(AH57-$F57),"") ->  | AM57: =IFERROR((AL57-$F57)/(AK57-$F57),"") ->  | AP57: =IFERROR((AO57-$F57)/(AN57-$F57),"") ->  | AS57: =IFERROR((AR57-$F57)/(AQ57-$F57),"") ->  | AV57: =IFERROR((AU57-$F57)/(AT57-$F57),"") ->  | AW57: ='VCMI CdR'!J55 -> 0 | AY57: =IFERROR((AX57-$F57)/(AW57-$F57),"") ->  | BB57: =IFERROR((BA57-$F57)/(AZ57-$F57),"") ->  | BE57: =IFERROR((BD57-$F57)/(BC57-$F57),"") ->  | BH57: =IFERROR((BG57-$F57)/(BF57-$F57),"") ->  | BK57: =IFERROR((BJ57-$F57)/(BI57-$F57),"") ->  | BL57: ='VCMI CdR'!K55 -> 0 | BN57: =IFERROR((BM57-$F57)/(BL57-$F57),"") ->  | BQ57: =IFERROR((BP57-$F57)/(BO57-$F57),"") ->  | BT57: =IFERROR((BS57-$F57)/(BR57-$F57),"") ->  | BW57: =IFERROR((BV57-$F57)/(BU57-$F57),"") ->  | BZ57: =IFERROR((BY57-$F57)/(BX57-$F57),"") ->  | CA57: ='VCMI CdR'!L55 -> 0 | CC57: =IFERROR((CB57-$F57)/(CA57-$F57),"") ->  | CF57: =IFERROR((CE57-$F57)/(CD57-$F57),"") ->  | CI57: =IFERROR((CH57-$F57)/(CG57-$F57),"") ->  | CL57: =IFERROR((CK57-$F57)/(CJ57-$F57),"") ->  | CO57: =IFERROR((CN57-$F57)/(CM57-$F57),"") ->  | CP57: ='VCMI CdR'!M55 -> 0 | CR57: =IFERROR((CQ57-$F57)/(CP57-$F57),"") ->  | CS57: ='VCMI CdR'!N55 -> 0
A58: ='VCMI CdR'!A56 -> 8.2 | B58: ='VCMI CdR'!B56 -> 0 | C58: ='VCMI CdR'!C56 -> 0 | D58: ='VCMI CdR'!E56 -> 0 | E58: ='VCMI CdR'!F56 -> 0 | F58: ='VCMI CdR'!G56 -> 0 | R58: =IFERROR((Q58-$F58)/(P58-$F58),"") ->  | S58: ='VCMI CdR'!H56 -> 0 | AH58: ='VCMI CdR'!I56 -> 0 | AW58: ='VCMI CdR'!J56 -> 0 | BL58: ='VCMI CdR'!K56 -> 0 | CA58: ='VCMI CdR'!L56 -> 0 | CP58: ='VCMI CdR'!M56 -> 0 | CS58: ='VCMI CdR'!N56 -> 0
A59: ='VCMI CdR'!A57 -> 8.3 | B59: ='VCMI CdR'!B57 -> 0 | C59: ='VCMI CdR'!C57 -> 0 | D59: ='VCMI CdR'!E57 -> 0 | E59: ='VCMI CdR'!F57 -> 0 | F59: ='VCMI CdR'!G57 -> 0 | S59: ='VCMI CdR'!H57 -> 0 | AH59: ='VCMI CdR'!I57 -> 0 | AW59: ='VCMI CdR'!J57 -> 0 | BL59: ='VCMI CdR'!K57 -> 0 | CA59: ='VCMI CdR'!L57 -> 0 | CP59: ='VCMI CdR'!M57 -> 0 | CS59: ='VCMI CdR'!N57 -> 0
A60: ='VCMI CdR'!A58 -> 8.4 | B60: ='VCMI CdR'!B58 -> 0 | C60: ='VCMI CdR'!C58 -> 0 | D60: ='VCMI CdR'!E58 -> 0 | E60: ='VCMI CdR'!F58 -> 0 | F60: ='VCMI CdR'!G58 -> 0 | S60: ='VCMI CdR'!H58 -> 0 | AH60: ='VCMI CdR'!I58 -> 0 | AW60: ='VCMI CdR'!J58 -> 0 | BL60: ='VCMI CdR'!K58 -> 0 | CA60: ='VCMI CdR'!L58 -> 0 | CP60: ='VCMI CdR'!M58 -> 0 | CS60: ='VCMI CdR'!N58 -> 0
A61: ='VCMI CdR'!A59 -> 8.5 | B61: ='VCMI CdR'!B59 -> 0 | C61: ='VCMI CdR'!C59 -> 0 | D61: ='VCMI CdR'!E59 -> 0 | E61: ='VCMI CdR'!F59 -> 0 | F61: ='VCMI CdR'!G59 -> 0 | S61: ='VCMI CdR'!H59 -> 0 | AH61: ='VCMI CdR'!I59 -> 0 | AW61: ='VCMI CdR'!J59 -> 0 | BL61: ='VCMI CdR'!K59 -> 0 | CA61: ='VCMI CdR'!L59 -> 0 | CP61: ='VCMI CdR'!M59 -> 0 | CS61: ='VCMI CdR'!N59 -> 0
A62: ='VCMI CdR'!A60 -> 8.6 | B62: ='VCMI CdR'!B60 -> 0 | C62: ='VCMI CdR'!C60 -> 0 | D62: ='VCMI CdR'!E60 -> 0 | E62: ='VCMI CdR'!F60 -> 0 | F62: ='VCMI CdR'!G60 -> 0 | S62: ='VCMI CdR'!H60 -> 0 | AH62: ='VCMI CdR'!I60 -> 0 | AW62: ='VCMI CdR'!J60 -> 0 | BL62: ='VCMI CdR'!K60 -> 0 | CA62: ='VCMI CdR'!L60 -> 0 | CP62: ='VCMI CdR'!M60 -> 0 | CS62: ='VCMI CdR'!N60 -> 0
A63: ='VCMI CdR'!A61 -> 9. | B63: ='VCMI CdR'!B61:S61 -> 
A64: ='VCMI CdR'!A62 -> 9.1 | B64: ='VCMI CdR'!B62 -> 0 | C64: ='VCMI CdR'!C62 -> 0 | D64: ='VCMI CdR'!E62 -> 0 | E64: ='VCMI CdR'!F62 -> 0 | F64: ='VCMI CdR'!G62 -> 0 | I64: =IFERROR((H64-$F64)/(G64-$F64),"") ->  | L64: =IFERROR((K64-$F64)/(J64-$F64),"") ->  | O64: =IFERROR((N64-$F64)/(M64-$F64),"") ->  | R64: =IFERROR((Q64-$F64)/(P64-$F64),"") ->  | S64: ='VCMI CdR'!H62 -> 0 | U64: =IFERROR((T64-$F64)/(S64-$F64),"") ->  | X64: =IFERROR((W64-$F64)/(V64-$F64),"") ->  | AA64: =IFERROR((Z64-$F64)/(Y64-$F64),"") ->  | AD64: =IFERROR((AC64-$F64)/(AB64-$F64),"") ->  | AG64: =IFERROR((AF64-$F64)/(AE64-$F64),"") ->  | AH64: ='VCMI CdR'!I62 -> 0 | AJ64: =IFERROR((AI64-$F64)/(AH64-$F64),"") ->  | AM64: =IFERROR((AL64-$F64)/(AK64-$F64),"") ->  | AP64: =IFERROR((AO64-$F64)/(AN64-$F64),"") ->  | AS64: =IFERROR((AR64-$F64)/(AQ64-$F64),"") ->  | AV64: =IFERROR((AU64-$F64)/(AT64-$F64),"") ->  | AW64: ='VCMI CdR'!J62 -> 0 | AY64: =IFERROR((AX64-$F64)/(AW64-$F64),"") ->  | BB64: =IFERROR((BA64-$F64)/(AZ64-$F64),"") ->  | BE64: =IFERROR((BD64-$F64)/(BC64-$F64),"") ->  | BH64: =IFERROR((BG64-$F64)/(BF64-$F64),"") ->  | BK64: =IFERROR((BJ64-$F64)/(BI64-$F64),"") ->  | BL64: ='VCMI CdR'!K62 -> 0 | BN64: =IFERROR((BM64-$F64)/(BL64-$F64),"") ->  | BQ64: =IFERROR((BP64-$F64)/(BO64-$F64),"") ->  | BT64: =IFERROR((BS64-$F64)/(BR64-$F64),"") ->  | BW64: =IFERROR((BV64-$F64)/(BU64-$F64),"") ->  | BZ64: =IFERROR((BY64-$F64)/(BX64-$F64),"") ->  | CA64: ='VCMI CdR'!L62 -> 0 | CC64: =IFERROR((CB64-$F64)/(CA64-$F64),"") ->  | CF64: =IFERROR((CE64-$F64)/(CD64-$F64),"") ->  | CI64: =IFERROR((CH64-$F64)/(CG64-$F64),"") ->  | CL64: =IFERROR((CK64-$F64)/(CJ64-$F64),"") ->  | CO64: =IFERROR((CN64-$F64)/(CM64-$F64),"") ->  | CP64: ='VCMI CdR'!M62 -> 0 | CR64: =IFERROR((CQ64-$F64)/(CP64-$F64),"") ->  | CS64: ='VCMI CdR'!N62 -> 0
A65: ='VCMI CdR'!A63 -> 9.2 | B65: ='VCMI CdR'!B63 -> 0 | C65: ='VCMI CdR'!C63 -> 0 | D65: ='VCMI CdR'!E63 -> 0 | E65: ='VCMI CdR'!F63 -> 0 | F65: ='VCMI CdR'!G63 -> 0 | R65: =IFERROR((Q65-$F65)/(P65-$F65),"") ->  | S65: ='VCMI CdR'!H63 -> 0 | AH65: ='VCMI CdR'!I63 -> 0 | AW65: ='VCMI CdR'!J63 -> 0 | BL65: ='VCMI CdR'!K63 -> 0 | CA65: ='VCMI CdR'!L63 -> 0 | CP65: ='VCMI CdR'!M63 -> 0 | CS65: ='VCMI CdR'!N63 -> 0
A66: ='VCMI CdR'!A64 -> 9.3 | B66: ='VCMI CdR'!B64 -> 0 | C66: ='VCMI CdR'!C64 -> 0 | D66: ='VCMI CdR'!E64 -> 0 | E66: ='VCMI CdR'!F64 -> 0 | F66: ='VCMI CdR'!G64 -> 0 | S66: ='VCMI CdR'!H64 -> 0 | AH66: ='VCMI CdR'!I64 -> 0 | AW66: ='VCMI CdR'!J64 -> 0 | BL66: ='VCMI CdR'!K64 -> 0 | CA66: ='VCMI CdR'!L64 -> 0 | CP66: ='VCMI CdR'!M64 -> 0 | CS66: ='VCMI CdR'!N64 -> 0
A67: ='VCMI CdR'!A65 -> 9.4 | B67: ='VCMI CdR'!B65 -> 0 | C67: ='VCMI CdR'!C65 -> 0 | D67: ='VCMI CdR'!E65 -> 0 | E67: ='VCMI CdR'!F65 -> 0 | F67: ='VCMI CdR'!G65 -> 0 | S67: ='VCMI CdR'!H65 -> 0 | AH67: ='VCMI CdR'!I65 -> 0 | AW67: ='VCMI CdR'!J65 -> 0 | BL67: ='VCMI CdR'!K65 -> 0 | CA67: ='VCMI CdR'!L65 -> 0 | CP67: ='VCMI CdR'!M65 -> 0 | CS67: ='VCMI CdR'!N65 -> 0
A68: ='VCMI CdR'!A66 -> 9.5 | B68: ='VCMI CdR'!B66 -> 0 | C68: ='VCMI CdR'!C66 -> 0 | D68: ='VCMI CdR'!E66 -> 0 | E68: ='VCMI CdR'!F66 -> 0 | F68: ='VCMI CdR'!G66 -> 0 | S68: ='VCMI CdR'!H66 -> 0 | AH68: ='VCMI CdR'!I66 -> 0 | AW68: ='VCMI CdR'!J66 -> 0 | BL68: ='VCMI CdR'!K66 -> 0 | CA68: ='VCMI CdR'!L66 -> 0 | CP68: ='VCMI CdR'!M66 -> 0 | CS68: ='VCMI CdR'!N66 -> 0
A69: ='VCMI CdR'!A67 -> 9.6 | B69: ='VCMI CdR'!B67 -> 0 | C69: ='VCMI CdR'!C67 -> 0 | D69: ='VCMI CdR'!E67 -> 0 | E69: ='VCMI CdR'!F67 -> 0 | F69: ='VCMI CdR'!G67 -> 0 | S69: ='VCMI CdR'!H67 -> 0 | AH69: ='VCMI CdR'!I67 -> 0 | AW69: ='VCMI CdR'!J67 -> 0 | BL69: ='VCMI CdR'!K67 -> 0 | CA69: ='VCMI CdR'!L67 -> 0 | CP69: ='VCMI CdR'!M67 -> 0 | CS69: ='VCMI CdR'!N67 -> 0
A70: ='VCMI CdR'!A68 -> 10. | B70: ='VCMI CdR'!B68:S68 -> 
A71: ='VCMI CdR'!A69 -> 10.1 | B71: ='VCMI CdR'!B69 -> 0 | C71: ='VCMI CdR'!C69 -> 0 | D71: ='VCMI CdR'!E69 -> 0 | E71: ='VCMI CdR'!F69 -> 0 | F71: ='VCMI CdR'!G69 -> 0 | I71: =IFERROR((H71-$F71)/(G71-$F71),"") ->  | L71: =IFERROR((K71-$F71)/(J71-$F71),"") ->  | O71: =IFERROR((N71-$F71)/(M71-$F71),"") ->  | R71: =IFERROR((Q71-$F71)/(P71-$F71),"") ->  | S71: ='VCMI CdR'!H69 -> 0 | U71: =IFERROR((T71-$F71)/(S71-$F71),"") ->  | X71: =IFERROR((W71-$F71)/(V71-$F71),"") ->  | AA71: =IFERROR((Z71-$F71)/(Y71-$F71),"") ->  | AD71: =IFERROR((AC71-$F71)/(AB71-$F71),"") ->  | AG71: =IFERROR((AF71-$F71)/(AE71-$F71),"") ->  | AH71: ='VCMI CdR'!I69 -> 0 | AJ71: =IFERROR((AI71-$F71)/(AH71-$F71),"") ->  | AM71: =IFERROR((AL71-$F71)/(AK71-$F71),"") ->  | AP71: =IFERROR((AO71-$F71)/(AN71-$F71),"") ->  | AS71: =IFERROR((AR71-$F71)/(AQ71-$F71),"") ->  | AV71: =IFERROR((AU71-$F71)/(AT71-$F71),"") ->  | AW71: ='VCMI CdR'!J69 -> 0 | AY71: =IFERROR((AX71-$F71)/(AW71-$F71),"") ->  | BB71: =IFERROR((BA71-$F71)/(AZ71-$F71),"") ->  | BE71: =IFERROR((BD71-$F71)/(BC71-$F71),"") ->  | BH71: =IFERROR((BG71-$F71)/(BF71-$F71),"") ->  | BK71: =IFERROR((BJ71-$F71)/(BI71-$F71),"") ->  | BL71: ='VCMI CdR'!K69 -> 0 | BN71: =IFERROR((BM71-$F71)/(BL71-$F71),"") ->  | BQ71: =IFERROR((BP71-$F71)/(BO71-$F71),"") ->  | BT71: =IFERROR((BS71-$F71)/(BR71-$F71),"") ->  | BW71: =IFERROR((BV71-$F71)/(BU71-$F71),"") ->  | BZ71: =IFERROR((BY71-$F71)/(BX71-$F71),"") ->  | CA71: ='VCMI CdR'!L69 -> 0 | CC71: =IFERROR((CB71-$F71)/(CA71-$F71),"") ->  | CF71: =IFERROR((CE71-$F71)/(CD71-$F71),"") ->  | CI71: =IFERROR((CH71-$F71)/(CG71-$F71),"") ->  | CL71: =IFERROR((CK71-$F71)/(CJ71-$F71),"") ->  | CO71: =IFERROR((CN71-$F71)/(CM71-$F71),"") ->  | CP71: ='VCMI CdR'!M69 -> 0 | CR71: =IFERROR((CQ71-$F71)/(CP71-$F71),"") ->  | CS71: ='VCMI CdR'!N69 -> 0
A72: ='VCMI CdR'!A70 -> 10.2 | B72: ='VCMI CdR'!B70 -> 0 | C72: ='VCMI CdR'!C70 -> 0 | D72: ='VCMI CdR'!E70 -> 0 | E72: ='VCMI CdR'!F70 -> 0 | F72: ='VCMI CdR'!G70 -> 0 | R72: =IFERROR((Q72-$F72)/(P72-$F72),"") ->  | S72: ='VCMI CdR'!H70 -> 0 | AH72: ='VCMI CdR'!I70 -> 0 | AW72: ='VCMI CdR'!J70 -> 0 | BL72: ='VCMI CdR'!K70 -> 0 | CA72: ='VCMI CdR'!L70 -> 0 | CP72: ='VCMI CdR'!M70 -> 0 | CS72: ='VCMI CdR'!N70 -> 0
A73: ='VCMI CdR'!A71 -> 10.3 | B73: ='VCMI CdR'!B71 -> 0 | C73: ='VCMI CdR'!C71 -> 0 | D73: ='VCMI CdR'!E71 -> 0 | E73: ='VCMI CdR'!F71 -> 0 | F73: ='VCMI CdR'!G71 -> 0 | S73: ='VCMI CdR'!H71 -> 0 | AH73: ='VCMI CdR'!I71 -> 0 | AW73: ='VCMI CdR'!J71 -> 0 | BL73: ='VCMI CdR'!K71 -> 0 | CA73: ='VCMI CdR'!L71 -> 0 | CP73: ='VCMI CdR'!M71 -> 0 | CS73: ='VCMI CdR'!N71 -> 0
A74: ='VCMI CdR'!A72 -> 10.4 | B74: ='VCMI CdR'!B72 -> 0 | C74: ='VCMI CdR'!C72 -> 0 | D74: ='VCMI CdR'!E72 -> 0 | E74: ='VCMI CdR'!F72 -> 0 | F74: ='VCMI CdR'!G72 -> 0 | S74: ='VCMI CdR'!H72 -> 0 | AH74: ='VCMI CdR'!I72 -> 0 | AW74: ='VCMI CdR'!J72 -> 0 | BL74: ='VCMI CdR'!K72 -> 0 | CA74: ='VCMI CdR'!L72 -> 0 | CP74: ='VCMI CdR'!M72 -> 0 | CS74: ='VCMI CdR'!N72 -> 0
A75: ='VCMI CdR'!A73 -> 10.5 | B75: ='VCMI CdR'!B73 -> 0 | C75: ='VCMI CdR'!C73 -> 0 | D75: ='VCMI CdR'!E73 -> 0 | E75: ='VCMI CdR'!F73 -> 0 | F75: ='VCMI CdR'!G73 -> 0 | S75: ='VCMI CdR'!H73 -> 0 | AH75: ='VCMI CdR'!I73 -> 0 | AW75: ='VCMI CdR'!J73 -> 0 | BL75: ='VCMI CdR'!K73 -> 0 | CA75: ='VCMI CdR'!L73 -> 0 | CP75: ='VCMI CdR'!M73 -> 0 | CS75: ='VCMI CdR'!N73 -> 0
A76: ='VCMI CdR'!A74 -> 10.6 | B76: ='VCMI CdR'!B74 -> 0 | C76: ='VCMI CdR'!C74 -> 0 | D76: ='VCMI CdR'!E74 -> 0 | E76: ='VCMI CdR'!F74 -> 0 | F76: ='VCMI CdR'!G74 -> 0 | S76: ='VCMI CdR'!H74 -> 0 | AH76: ='VCMI CdR'!I74 -> 0 | AW76: ='VCMI CdR'!J74 -> 0 | BL76: ='VCMI CdR'!K74 -> 0 | CA76: ='VCMI CdR'!L74 -> 0 | CP76: ='VCMI CdR'!M74 -> 0 | CS76: ='VCMI CdR'!N74 -> 0
A77: ='VCMI CdR'!A75 -> AUTRES COMPETENCES
A78: ='VCMI CdR'!A76 -> 1. | B78: ='VCMI CdR'!B76:S76 -> Programme de gestion des menaces du changement climatique
A79: ='VCMI CdR'!A77 -> 1.1 | B79: ='VCMI CdR'!B77 ->  | C79: ='VCMI CdR'!C77 -> 0 | D79: ='VCMI CdR'!E77 -> 0 | E79: ='VCMI CdR'!F77 -> 0 | F79: ='VCMI CdR'!G77 -> 0 | I79: =IFERROR((H79-$F79)/(G79-$F79),"") ->  | L79: =IFERROR((K79-$F79)/(J79-$F79),"") ->  | O79: =IFERROR((N79-$F79)/(M79-$F79),"") ->  | R79: =IFERROR((Q79-$F79)/(P79-$F79),"") ->  | S79: ='VCMI CdR'!H77 -> 0 | U79: =IFERROR((T79-$F79)/(S79-$F79),"") ->  | X79: =IFERROR((W79-$F79)/(V79-$F79),"") ->  | AA79: =IFERROR((Z79-$F79)/(Y79-$F79),"") ->  | AD79: =IFERROR((AC79-$F79)/(AB79-$F79),"") ->  | AG79: =IFERROR((AF79-$F79)/(AE79-$F79),"") ->  | AH79: ='VCMI CdR'!I77 -> 0 | AJ79: =IFERROR((AI79-$F79)/(AH79-$F79),"") ->  | AM79: =IFERROR((AL79-$F79)/(AK79-$F79),"") ->  | AP79: =IFERROR((AO79-$F79)/(AN79-$F79),"") ->  | AS79: =IFERROR((AR79-$F79)/(AQ79-$F79),"") ->  | AV79: =IFERROR((AU79-$F79)/(AT79-$F79),"") ->  | AW79: ='VCMI CdR'!J77 -> 0 | AY79: =IFERROR((AX79-$F79)/(AW79-$F79),"") ->  | BB79: =IFERROR((BA79-$F79)/(AZ79-$F79),"") ->  | BE79: =IFERROR((BD79-$F79)/(BC79-$F79),"") ->  | BH79: =IFERROR((BG79-$F79)/(BF79-$F79),"") ->  | BK79: =IFERROR((BJ79-$F79)/(BI79-$F79),"") ->  | BL79: ='VCMI CdR'!K77 -> 0 | BN79: =IFERROR((BM79-$F79)/(BL79-$F79),"") ->  | BQ79: =IFERROR((BP79-$F79)/(BO79-$F79),"") ->  | BT79: =IFERROR((BS79-$F79)/(BR79-$F79),"") ->  | BW79: =IFERROR((BV79-$F79)/(BU79-$F79),"") ->  | BZ79: =IFERROR((BY79-$F79)/(BX79-$F79),"") ->  | CA79: ='VCMI CdR'!L77 -> 0 | CC79: =IFERROR((CB79-$F79)/(CA79-$F79),"") ->  | CF79: =IFERROR((CE79-$F79)/(CD79-$F79),"") ->  | CI79: =IFERROR((CH79-$F79)/(CG79-$F79),"") ->  | CL79: =IFERROR((CK79-$F79)/(CJ79-$F79),"") ->  | CO79: =IFERROR((CN79-$F79)/(CM79-$F79),"") ->  | CP79: ='VCMI CdR'!M77 -> 0 | CR79: =IFERROR((CQ79-$F79)/(CP79-$F79),"") ->  | CS79: ='VCMI CdR'!N77 -> FALSE
A80: ='VCMI CdR'!A78 -> 1.2 | B80: ='VCMI CdR'!B78 -> • Réduction des impacts négatifs du changement climatique et préservation des écosystèmes • Augmentation de l’impact des actions menées à travers la mobilisation et l’implication de l’ensemble des acteurs concernés (entreprises, citoyens, etc.) • Positionnement de la région en tant qu’acteur actif dans le domaine de la protection de l’environnement | C80: ='VCMI CdR'!C78 -> 0 | D80: ='VCMI CdR'!E78 -> 0 | E80: ='VCMI CdR'!F78 -> 0 | F80: ='VCMI CdR'!G78 -> 0 | R80: =IFERROR((Q80-$F80)/(P80-$F80),"") ->  | S80: ='VCMI CdR'!H78 -> 0 | AH80: ='VCMI CdR'!I78 -> 0 | AW80: ='VCMI CdR'!J78 -> 0 | BL80: ='VCMI CdR'!K78 -> 0 | CA80: ='VCMI CdR'!L78 -> 0 | CP80: ='VCMI CdR'!M78 -> 0 | CS80: ='VCMI CdR'!N78 -> FALSE
A81: ='VCMI CdR'!A79 -> 1.3 | B81: ='VCMI CdR'!B80 -> Adoption du modèle de développement durable à bas carbone (inclus dans l'agenda de la COP 22) | C81: ='VCMI CdR'!C79 -> 0 | D81: ='VCMI CdR'!E79 -> 0 | E81: ='VCMI CdR'!F79 -> 0 | F81: ='VCMI CdR'!G79 -> 0 | S81: ='VCMI CdR'!H79 -> 0 | AH81: ='VCMI CdR'!I79 -> 0 | AW81: ='VCMI CdR'!J79 -> 0 | BL81: ='VCMI CdR'!K79 -> 0 | CA81: ='VCMI CdR'!L79 -> 0 | CP81: ='VCMI CdR'!M79 -> 0 | CS81: ='VCMI CdR'!N79 -> FALSE
A82: ='VCMI CdR'!A80 -> 1.4 | B82: ='VCMI CdR'!#REF! ->  | C82: ='VCMI CdR'!C80 -> 0 | D82: ='VCMI CdR'!E80 -> 0 | E82: ='VCMI CdR'!F80 -> 0 | F82: ='VCMI CdR'!G80 -> 0 | S82: ='VCMI CdR'!H80 -> 0 | AH82: ='VCMI CdR'!I80 -> 0 | AW82: ='VCMI CdR'!J80 -> 0 | BL82: ='VCMI CdR'!K80 -> 0 | CA82: ='VCMI CdR'!L80 -> 0 | CP82: ='VCMI CdR'!M80 -> 0 | CS82: ='VCMI CdR'!N80 -> FALSE
A83: ='VCMI CdR'!A81 -> 1.5 | B83: ='VCMI CdR'!B81 -> 0 | C83: ='VCMI CdR'!C81 -> 0 | D83: ='VCMI CdR'!E81 -> 0 | E83: ='VCMI CdR'!F81 -> 0 | F83: ='VCMI CdR'!G81 -> 0 | S83: ='VCMI CdR'!H81 -> 0 | AH83: ='VCMI CdR'!I81 -> 0 | AW83: ='VCMI CdR'!J81 -> 0 | BL83: ='VCMI CdR'!K81 -> 0 | CA83: ='VCMI CdR'!L81 -> 0 | CP83: ='VCMI CdR'!M81 -> 0 | CS83: ='VCMI CdR'!N81 -> FALSE
A84: ='VCMI CdR'!A82 -> 1.6 | B84: ='VCMI CdR'!B82 -> 0 | C84: ='VCMI CdR'!C82 -> 0 | D84: ='VCMI CdR'!E82 -> 0 | E84: ='VCMI CdR'!F82 -> 0 | F84: ='VCMI CdR'!G82 -> 0 | S84: ='VCMI CdR'!H82 -> 0 | AH84: ='VCMI CdR'!I82 -> 0 | AW84: ='VCMI CdR'!J82 -> 0 | BL84: ='VCMI CdR'!K82 -> 0 | CA84: ='VCMI CdR'!L82 -> 0 | CP84: ='VCMI CdR'!M82 -> 0 | CS84: ='VCMI CdR'!N82 -> FALSE
A85: ='VCMI CdR'!A83 -> 2. | B85: ='VCMI CdR'!B83:S83 -> Programme de valorisation du patrimoine historique
A86: ='VCMI CdR'!A84 -> 2.1 | B86: ='VCMI CdR'!B84 -> emploi | C86: ='VCMI CdR'!C84 -> 0 | D86: ='VCMI CdR'!E84 -> 0 | E86: ='VCMI CdR'!F84 -> 0 | F86: ='VCMI CdR'!G84 -> 0 | I86: =IFERROR((H86-$F86)/(G86-$F86),"") ->  | L86: =IFERROR((K86-$F86)/(J86-$F86),"") ->  | O86: =IFERROR((N86-$F86)/(M86-$F86),"") ->  | R86: =IFERROR((Q86-$F86)/(P86-$F86),"") ->  | S86: ='VCMI CdR'!H84 -> 0 | U86: =IFERROR((T86-$F86)/(S86-$F86),"") ->  | X86: =IFERROR((W86-$F86)/(V86-$F86),"") ->  | AA86: =IFERROR((Z86-$F86)/(Y86-$F86),"") ->  | AD86: =IFERROR((AC86-$F86)/(AB86-$F86),"") ->  | AG86: =IFERROR((AF86-$F86)/(AE86-$F86),"") ->  | AH86: ='VCMI CdR'!I84 -> 0 | AJ86: =IFERROR((AI86-$F86)/(AH86-$F86),"") ->  | AM86: =IFERROR((AL86-$F86)/(AK86-$F86),"") ->  | AP86: =IFERROR((AO86-$F86)/(AN86-$F86),"") ->  | AS86: =IFERROR((AR86-$F86)/(AQ86-$F86),"") ->  | AV86: =IFERROR((AU86-$F86)/(AT86-$F86),"") ->  | AW86: ='VCMI CdR'!J84 -> 0 | AY86: =IFERROR((AX86-$F86)/(AW86-$F86),"") ->  | BB86: =IFERROR((BA86-$F86)/(AZ86-$F86),"") ->  | BE86: =IFERROR((BD86-$F86)/(BC86-$F86),"") ->  | BH86: =IFERROR((BG86-$F86)/(BF86-$F86),"") ->  | BK86: =IFERROR((BJ86-$F86)/(BI86-$F86),"") ->  | BL86: ='VCMI CdR'!K84 -> 0 | BN86: =IFERROR((BM86-$F86)/(BL86-$F86),"") ->  | BQ86: =IFERROR((BP86-$F86)/(BO86-$F86),"") ->  | BT86: =IFERROR((BS86-$F86)/(BR86-$F86),"") ->  | BW86: =IFERROR((BV86-$F86)/(BU86-$F86),"") ->  | BZ86: =IFERROR((BY86-$F86)/(BX86-$F86),"") ->  | CA86: ='VCMI CdR'!L84 -> 0 | CC86: =IFERROR((CB86-$F86)/(CA86-$F86),"") ->  | CF86: =IFERROR((CE86-$F86)/(CD86-$F86),"") ->  | CI86: =IFERROR((CH86-$F86)/(CG86-$F86),"") ->  | CL86: =IFERROR((CK86-$F86)/(CJ86-$F86),"") ->  | CO86: =IFERROR((CN86-$F86)/(CM86-$F86),"") ->  | CP86: ='VCMI CdR'!M84 -> 0 | CR86: =IFERROR((CQ86-$F86)/(CP86-$F86),"") ->  | CS86: ='VCMI CdR'!N84 -> FALSE
A87: ='VCMI CdR'!A85 -> 2.2 | B87: ='VCMI CdR'!B85 -> Contribuer au renforcement de l’attractivité touristique de la région | C87: ='VCMI CdR'!C85 -> Durée Moyenne de Séjour | D87: ='VCMI CdR'!D85 -> Durée Moyenne de Séjour au niveau des établissements d'hébergement classés | E87: ='VCMI CdR'!E85 -> I | F87: ='VCMI CdR'!F85 -> Nuitée | R87: =IFERROR((Q87-$F87)/(P87-$F87),"") ->  | S87: ='VCMI CdR'!G85 -> 1.9 | AH87: ='VCMI CdR'!I85 ->  | AW87: ='VCMI CdR'!J85 ->  | BL87: ='VCMI CdR'!K85 ->  | CA87: ='VCMI CdR'!L85 ->  | CP87: ='VCMI CdR'!M85 -> 3.5 | CS87: ='VCMI CdR'!N85 -> 3.5
A88: ='VCMI CdR'!A86 -> 2.3 | B88: ='VCMI CdR'!B86 -> Les médinas de la région sont valorisées | C88: ='VCMI CdR'!C86 -> Nombre de médina | D88: ='VCMI CdR'!E86 -> C | E88: ='VCMI CdR'!F86 -> Médina | F88: ='VCMI CdR'!G86 -> 0 | S88: ='VCMI CdR'!H86 -> 0 | AH88: ='VCMI CdR'!I86 -> 0 | AW88: ='VCMI CdR'!J86 -> 0 | BL88: ='VCMI CdR'!K86 -> 8 | BN88: 0 | CA88: ='VCMI CdR'!L86 -> 8 | CC88: 0 | CP88: ='VCMI CdR'!M86 -> 8 | CR88: 0 | CS88: ='VCMI CdR'!N86 -> 8
A89: ='VCMI CdR'!A87 -> 2.4 | B89: ='VCMI CdR'!B87 -> 0 | C89: ='VCMI CdR'!C87 -> 0 | D89: ='VCMI CdR'!E87 -> 0 | E89: ='VCMI CdR'!F87 -> 0 | F89: ='VCMI CdR'!G87 -> 0 | S89: ='VCMI CdR'!H87 -> 0 | AH89: ='VCMI CdR'!I87 -> 0 | AW89: ='VCMI CdR'!J87 -> 0 | BL89: ='VCMI CdR'!K87 -> 0 | CA89: ='VCMI CdR'!L87 -> 0 | CP89: ='VCMI CdR'!M87 -> 0 | CS89: ='VCMI CdR'!N87 -> FALSE
A90: ='VCMI CdR'!A88 -> 2.5 | B90: ='VCMI CdR'!B88 -> 0 | C90: ='VCMI CdR'!C88 -> 0 | D90: ='VCMI CdR'!E88 -> 0 | E90: ='VCMI CdR'!F88 -> 0 | F90: ='VCMI CdR'!G88 -> 0 | S90: ='VCMI CdR'!H88 -> 0 | AH90: ='VCMI CdR'!I88 -> 0 | AW90: ='VCMI CdR'!J88 -> 0 | BL90: ='VCMI CdR'!K88 -> 0 | CA90: ='VCMI CdR'!L88 -> 0 | CP90: ='VCMI CdR'!M88 -> 0 | CS90: ='VCMI CdR'!N88 -> FALSE
A91: ='VCMI CdR'!A89 -> 2.6 | B91: ='VCMI CdR'!B89 -> 0 | C91: ='VCMI CdR'!C89 -> 0 | D91: ='VCMI CdR'!E89 -> 0 | E91: ='VCMI CdR'!F89 -> 0 | F91: ='VCMI CdR'!G89 -> 0 | S91: ='VCMI CdR'!H89 -> 0 | AH91: ='VCMI CdR'!I89 -> 0 | AW91: ='VCMI CdR'!J89 -> 0 | BL91: ='VCMI CdR'!K89 -> 0 | CA91: ='VCMI CdR'!L89 -> 0 | CP91: ='VCMI CdR'!M89 -> 0 | CS91: ='VCMI CdR'!N89 -> FALSE
A92: ='VCMI CdR'!A90 -> 3. | B92: ='VCMI CdR'!B90:S90 -> 
A93: ='VCMI CdR'!A91 -> 3.1 | B93: ='VCMI CdR'!B91 -> 0 | C93: ='VCMI CdR'!C91 -> 0 | D93: ='VCMI CdR'!E91 -> 0 | E93: ='VCMI CdR'!F91 -> 0 | F93: ='VCMI CdR'!G91 -> 0 | I93: =IFERROR((H93-$F93)/(G93-$F93),"") ->  | L93: =IFERROR((K93-$F93)/(J93-$F93),"") ->  | O93: =IFERROR((N93-$F93)/(M93-$F93),"") ->  | R93: =IFERROR((Q93-$F93)/(P93-$F93),"") ->  | S93: ='VCMI CdR'!H91 -> 0 | U93: =IFERROR((T93-$F93)/(S93-$F93),"") ->  | X93: =IFERROR((W93-$F93)/(V93-$F93),"") ->  | AA93: =IFERROR((Z93-$F93)/(Y93-$F93),"") ->  | AD93: =IFERROR((AC93-$F93)/(AB93-$F93),"") ->  | AG93: =IFERROR((AF93-$F93)/(AE93-$F93),"") ->  | AH93: ='VCMI CdR'!I91 -> 0 | AJ93: =IFERROR((AI93-$F93)/(AH93-$F93),"") ->  | AM93: =IFERROR((AL93-$F93)/(AK93-$F93),"") ->  | AP93: =IFERROR((AO93-$F93)/(AN93-$F93),"") ->  | AS93: =IFERROR((AR93-$F93)/(AQ93-$F93),"") ->  | AV93: =IFERROR((AU93-$F93)/(AT93-$F93),"") ->  | AW93: ='VCMI CdR'!J91 -> 0 | AY93: =IFERROR((AX93-$F93)/(AW93-$F93),"") ->  | BB93: =IFERROR((BA93-$F93)/(AZ93-$F93),"") ->  | BE93: =IFERROR((BD93-$F93)/(BC93-$F93),"") ->  | BH93: =IFERROR((BG93-$F93)/(BF93-$F93),"") ->  | BK93: =IFERROR((BJ93-$F93)/(BI93-$F93),"") ->  | BL93: ='VCMI CdR'!K91 -> 0 | BN93: =IFERROR((BM93-$F93)/(BL93-$F93),"") ->  | BQ93: =IFERROR((BP93-$F93)/(BO93-$F93),"") ->  | BT93: =IFERROR((BS93-$F93)/(BR93-$F93),"") ->  | BW93: =IFERROR((BV93-$F93)/(BU93-$F93),"") ->  | BZ93: =IFERROR((BY93-$F93)/(BX93-$F93),"") ->  | CA93: ='VCMI CdR'!L91 -> 0 | CC93: =IFERROR((CB93-$F93)/(CA93-$F93),"") ->  | CF93: =IFERROR((CE93-$F93)/(CD93-$F93),"") ->  | CI93: =IFERROR((CH93-$F93)/(CG93-$F93),"") ->  | CL93: =IFERROR((CK93-$F93)/(CJ93-$F93),"") ->  | CO93: =IFERROR((CN93-$F93)/(CM93-$F93),"") ->  | CP93: ='VCMI CdR'!M91 -> 0 | CR93: =IFERROR((CQ93-$F93)/(CP93-$F93),"") ->  | CS93: ='VCMI CdR'!N91 -> 0
A94: ='VCMI CdR'!A92 -> 3.2 | B94: ='VCMI CdR'!B92 -> 0 | C94: ='VCMI CdR'!C92 -> 0 | D94: ='VCMI CdR'!E92 -> 0 | E94: ='VCMI CdR'!F92 -> 0 | F94: ='VCMI CdR'!G92 -> 0 | R94: =IFERROR((Q94-$F94)/(P94-$F94),"") ->  | S94: ='VCMI CdR'!H92 -> 0 | AH94: ='VCMI CdR'!I92 -> 0 | AW94: ='VCMI CdR'!J92 -> 0 | BL94: ='VCMI CdR'!K92 -> 0 | CA94: ='VCMI CdR'!L92 -> 0 | CP94: ='VCMI CdR'!M92 -> 0 | CS94: ='VCMI CdR'!N92 -> 0
A95: ='VCMI CdR'!A93 -> 3.3 | B95: ='VCMI CdR'!B93 -> 0 | C95: ='VCMI CdR'!C93 -> 0 | D95: ='VCMI CdR'!E93 -> 0 | E95: ='VCMI CdR'!F93 -> 0 | F95: ='VCMI CdR'!G93 -> 0 | S95: ='VCMI CdR'!H93 -> 0 | AH95: ='VCMI CdR'!I93 -> 0 | AW95: ='VCMI CdR'!J93 -> 0 | BL95: ='VCMI CdR'!K93 -> 0 | CA95: ='VCMI CdR'!L93 -> 0 | CP95: ='VCMI CdR'!M93 -> 0 | CS95: ='VCMI CdR'!N93 -> 0
A96: ='VCMI CdR'!A94 -> 3.4 | B96: ='VCMI CdR'!B94 -> 0 | C96: ='VCMI CdR'!C94 -> 0 | D96: ='VCMI CdR'!E94 -> 0 | E96: ='VCMI CdR'!F94 -> 0 | F96: ='VCMI CdR'!G94 -> 0 | S96: ='VCMI CdR'!H94 -> 0 | AH96: ='VCMI CdR'!I94 -> 0 | AW96: ='VCMI CdR'!J94 -> 0 | BL96: ='VCMI CdR'!K94 -> 0 | CA96: ='VCMI CdR'!L94 -> 0 | CP96: ='VCMI CdR'!M94 -> 0 | CS96: ='VCMI CdR'!N94 -> 0
A97: ='VCMI CdR'!A95 -> 3.5 | B97: ='VCMI CdR'!B95 -> 0 | C97: ='VCMI CdR'!C95 -> 0 | D97: ='VCMI CdR'!E95 -> 0 | E97: ='VCMI CdR'!F95 -> 0 | F97: ='VCMI CdR'!G95 -> 0 | S97: ='VCMI CdR'!H95 -> 0 | AH97: ='VCMI CdR'!I95 -> 0 | AW97: ='VCMI CdR'!J95 -> 0 | BL97: ='VCMI CdR'!K95 -> 0 | CA97: ='VCMI CdR'!L95 -> 0 | CP97: ='VCMI CdR'!M95 -> 0 | CS97: ='VCMI CdR'!N95 -> 0
A98: ='VCMI CdR'!A96 -> 3.6 | B98: ='VCMI CdR'!B96 -> 0 | C98: ='VCMI CdR'!C96 -> 0 | D98: ='VCMI CdR'!E96 -> 0 | E98: ='VCMI CdR'!F96 -> 0 | F98: ='VCMI CdR'!G96 -> 0 | S98: ='VCMI CdR'!H96 -> 0 | AH98: ='VCMI CdR'!I96 -> 0 | AW98: ='VCMI CdR'!J96 -> 0 | BL98: ='VCMI CdR'!K96 -> 0 | CA98: ='VCMI CdR'!L96 -> 0 | CP98: ='VCMI CdR'!M96 -> 0 | CS98: ='VCMI CdR'!N96 -> 0
A99: ='VCMI CdR'!A97 -> 4. | B99: ='VCMI CdR'!B97:S97 -> 
A100: ='VCMI CdR'!A98 -> 4.1 | B100: ='VCMI CdR'!B98 -> 0 | C100: ='VCMI CdR'!C98 -> 0 | D100: ='VCMI CdR'!E98 -> 0 | E100: ='VCMI CdR'!F98 -> 0 | F100: ='VCMI CdR'!G98 -> 0 | I100: =IFERROR((H100-$F100)/(G100-$F100),"") ->  | L100: =IFERROR((K100-$F100)/(J100-$F100),"") ->  | O100: =IFERROR((N100-$F100)/(M100-$F100),"") ->  | R100: =IFERROR((Q100-$F100)/(P100-$F100),"") ->  | S100: ='VCMI CdR'!H98 -> 0 | U100: =IFERROR((T100-$F100)/(S100-$F100),"") ->  | X100: =IFERROR((W100-$F100)/(V100-$F100),"") ->  | AA100: =IFERROR((Z100-$F100)/(Y100-$F100),"") ->  | AD100: =IFERROR((AC100-$F100)/(AB100-$F100),"") ->  | AG100: =IFERROR((AF100-$F100)/(AE100-$F100),"") ->  | AH100: ='VCMI CdR'!I98 -> 0 | AJ100: =IFERROR((AI100-$F100)/(AH100-$F100),"") ->  | AM100: =IFERROR((AL100-$F100)/(AK100-$F100),"") ->  | AP100: =IFERROR((AO100-$F100)/(AN100-$F100),"") ->  | AS100: =IFERROR((AR100-$F100)/(AQ100-$F100),"") ->  | AV100: =IFERROR((AU100-$F100)/(AT100-$F100),"") ->  | AW100: ='VCMI CdR'!J98 -> 0 | AY100: =IFERROR((AX100-$F100)/(AW100-$F100),"") ->  | BB100: =IFERROR((BA100-$F100)/(AZ100-$F100),"") ->  | BE100: =IFERROR((BD100-$F100)/(BC100-$F100),"") ->  | BH100: =IFERROR((BG100-$F100)/(BF100-$F100),"") ->  | BK100: =IFERROR((BJ100-$F100)/(BI100-$F100),"") ->  | BL100: ='VCMI CdR'!K98 -> 0 | BN100: =IFERROR((BM100-$F100)/(BL100-$F100),"") ->  | BQ100: =IFERROR((BP100-$F100)/(BO100-$F100),"") ->  | BT100: =IFERROR((BS100-$F100)/(BR100-$F100),"") ->  | BW100: =IFERROR((BV100-$F100)/(BU100-$F100),"") ->  | BZ100: =IFERROR((BY100-$F100)/(BX100-$F100),"") ->  | CA100: ='VCMI CdR'!L98 -> 0 | CC100: =IFERROR((CB100-$F100)/(CA100-$F100),"") ->  | CF100: =IFERROR((CE100-$F100)/(CD100-$F100),"") ->  | CI100: =IFERROR((CH100-$F100)/(CG100-$F100),"") ->  | CL100: =IFERROR((CK100-$F100)/(CJ100-$F100),"") ->  | CO100: =IFERROR((CN100-$F100)/(CM100-$F100),"") ->  | CP100: ='VCMI CdR'!M98 -> 0 | CR100: =IFERROR((CQ100-$F100)/(CP100-$F100),"") ->  | CS100: ='VCMI CdR'!N98 -> 0
A101: ='VCMI CdR'!A99 -> 4.2 | B101: ='VCMI CdR'!B99 -> 0 | C101: ='VCMI CdR'!C99 -> 0 | D101: ='VCMI CdR'!E99 -> 0 | E101: ='VCMI CdR'!F99 -> 0 | F101: ='VCMI CdR'!G99 -> 0 | R101: =IFERROR((Q101-$F101)/(P101-$F101),"") ->  | S101: ='VCMI CdR'!H99 -> 0 | AH101: ='VCMI CdR'!I99 -> 0 | AW101: ='VCMI CdR'!J99 -> 0 | BL101: ='VCMI CdR'!K99 -> 0 | CA101: ='VCMI CdR'!L99 -> 0 | CP101: ='VCMI CdR'!M99 -> 0 | CS101: ='VCMI CdR'!N99 -> 0
A102: ='VCMI CdR'!A100 -> 4.3 | B102: ='VCMI CdR'!B100 -> 0 | C102: ='VCMI CdR'!C100 -> 0 | D102: ='VCMI CdR'!E100 -> 0 | E102: ='VCMI CdR'!F100 -> 0 | F102: ='VCMI CdR'!G100 -> 0 | S102: ='VCMI CdR'!H100 -> 0 | AH102: ='VCMI CdR'!I100 -> 0 | AW102: ='VCMI CdR'!J100 -> 0 | BL102: ='VCMI CdR'!K100 -> 0 | CA102: ='VCMI CdR'!L100 -> 0 | CP102: ='VCMI CdR'!M100 -> 0 | CS102: ='VCMI CdR'!N100 -> 0
A103: ='VCMI CdR'!A101 -> 4.4 | B103: ='VCMI CdR'!B101 -> 0 | C103: ='VCMI CdR'!C101 -> 0 | D103: ='VCMI CdR'!E101 -> 0 | E103: ='VCMI CdR'!F101 -> 0 | F103: ='VCMI CdR'!G101 -> 0 | S103: ='VCMI CdR'!H101 -> 0 | AH103: ='VCMI CdR'!I101 -> 0 | AW103: ='VCMI CdR'!J101 -> 0 | BL103: ='VCMI CdR'!K101 -> 0 | CA103: ='VCMI CdR'!L101 -> 0 | CP103: ='VCMI CdR'!M101 -> 0 | CS103: ='VCMI CdR'!N101 -> 0
A104: ='VCMI CdR'!A102 -> 4.5 | B104: ='VCMI CdR'!B102 -> 0 | C104: ='VCMI CdR'!C102 -> 0 | D104: ='VCMI CdR'!E102 -> 0 | E104: ='VCMI CdR'!F102 -> 0 | F104: ='VCMI CdR'!G102 -> 0 | S104: ='VCMI CdR'!H102 -> 0 | AH104: ='VCMI CdR'!I102 -> 0 | AW104: ='VCMI CdR'!J102 -> 0 | BL104: ='VCMI CdR'!K102 -> 0 | CA104: ='VCMI CdR'!L102 -> 0 | CP104: ='VCMI CdR'!M102 -> 0 | CS104: ='VCMI CdR'!N102 -> 0
A105: ='VCMI CdR'!A103 -> 4.6 | B105: ='VCMI CdR'!B103 -> 0 | C105: ='VCMI CdR'!C103 -> 0 | D105: ='VCMI CdR'!E103 -> 0 | E105: ='VCMI CdR'!F103 -> 0 | F105: ='VCMI CdR'!G103 -> 0 | S105: ='VCMI CdR'!H103 -> 0 | AH105: ='VCMI CdR'!I103 -> 0 | AW105: ='VCMI CdR'!J103 -> 0 | BL105: ='VCMI CdR'!K103 -> 0 | CA105: ='VCMI CdR'!L103 -> 0 | CP105: ='VCMI CdR'!M103 -> 0 | CS105: ='VCMI CdR'!N103 -> 0
A106: ='VCMI CdR'!A104 -> 5. | B106: ='VCMI CdR'!B104:S104 -> 
A107: ='VCMI CdR'!A105 -> 5.1 | B107: ='VCMI CdR'!B105 -> 0 | C107: ='VCMI CdR'!C105 -> 0 | D107: ='VCMI CdR'!E105 -> 0 | E107: ='VCMI CdR'!F105 -> 0 | F107: ='VCMI CdR'!G105 -> 0 | I107: =IFERROR((H107-$F107)/(G107-$F107),"") ->  | L107: =IFERROR((K107-$F107)/(J107-$F107),"") ->  | O107: =IFERROR((N107-$F107)/(M107-$F107),"") ->  | R107: =IFERROR((Q107-$F107)/(P107-$F107),"") ->  | S107: ='VCMI CdR'!H105 -> 0 | U107: =IFERROR((T107-$F107)/(S107-$F107),"") ->  | X107: =IFERROR((W107-$F107)/(V107-$F107),"") ->  | AA107: =IFERROR((Z107-$F107)/(Y107-$F107),"") ->  | AD107: =IFERROR((AC107-$F107)/(AB107-$F107),"") ->  | AG107: =IFERROR((AF107-$F107)/(AE107-$F107),"") ->  | AH107: ='VCMI CdR'!I105 -> 0 | AJ107: =IFERROR((AI107-$F107)/(AH107-$F107),"") ->  | AM107: =IFERROR((AL107-$F107)/(AK107-$F107),"") ->  | AP107: =IFERROR((AO107-$F107)/(AN107-$F107),"") ->  | AS107: =IFERROR((AR107-$F107)/(AQ107-$F107),"") ->  | AV107: =IFERROR((AU107-$F107)/(AT107-$F107),"") ->  | AW107: ='VCMI CdR'!J105 -> 0 | AY107: =IFERROR((AX107-$F107)/(AW107-$F107),"") ->  | BB107: =IFERROR((BA107-$F107)/(AZ107-$F107),"") ->  | BE107: =IFERROR((BD107-$F107)/(BC107-$F107),"") ->  | BH107: =IFERROR((BG107-$F107)/(BF107-$F107),"") ->  | BK107: =IFERROR((BJ107-$F107)/(BI107-$F107),"") ->  | BL107: ='VCMI CdR'!K105 -> 0 | BN107: =IFERROR((BM107-$F107)/(BL107-$F107),"") ->  | BQ107: =IFERROR((BP107-$F107)/(BO107-$F107),"") ->  | BT107: =IFERROR((BS107-$F107)/(BR107-$F107),"") ->  | BW107: =IFERROR((BV107-$F107)/(BU107-$F107),"") ->  | BZ107: =IFERROR((BY107-$F107)/(BX107-$F107),"") ->  | CA107: ='VCMI CdR'!L105 -> 0 | CC107: =IFERROR((CB107-$F107)/(CA107-$F107),"") ->  | CF107: =IFERROR((CE107-$F107)/(CD107-$F107),"") ->  | CI107: =IFERROR((CH107-$F107)/(CG107-$F107),"") ->  | CL107: =IFERROR((CK107-$F107)/(CJ107-$F107),"") ->  | CO107: =IFERROR((CN107-$F107)/(CM107-$F107),"") ->  | CP107: ='VCMI CdR'!M105 -> 0 | CR107: =IFERROR((CQ107-$F107)/(CP107-$F107),"") ->  | CS107: ='VCMI CdR'!N105 -> 0
A108: ='VCMI CdR'!A106 -> 5.2 | B108: ='VCMI CdR'!B106 -> 0 | C108: ='VCMI CdR'!C106 -> 0 | D108: ='VCMI CdR'!E106 -> 0 | E108: ='VCMI CdR'!F106 -> 0 | F108: ='VCMI CdR'!G106 -> 0 | R108: =IFERROR((Q108-$F108)/(P108-$F108),"") ->  | S108: ='VCMI CdR'!H106 -> 0 | AH108: ='VCMI CdR'!I106 -> 0 | AW108: ='VCMI CdR'!J106 -> 0 | BL108: ='VCMI CdR'!K106 -> 0 | CA108: ='VCMI CdR'!L106 -> 0 | CP108: ='VCMI CdR'!M106 -> 0 | CS108: ='VCMI CdR'!N106 -> 0
A109: ='VCMI CdR'!A107 -> 5.3 | B109: ='VCMI CdR'!B107 -> 0 | C109: ='VCMI CdR'!C107 -> 0 | D109: ='VCMI CdR'!E107 -> 0 | E109: ='VCMI CdR'!F107 -> 0 | F109: ='VCMI CdR'!G107 -> 0 | S109: ='VCMI CdR'!H107 -> 0 | AH109: ='VCMI CdR'!I107 -> 0 | AW109: ='VCMI CdR'!J107 -> 0 | BL109: ='VCMI CdR'!K107 -> 0 | CA109: ='VCMI CdR'!L107 -> 0 | CP109: ='VCMI CdR'!M107 -> 0 | CS109: ='VCMI CdR'!N107 -> 0
A110: ='VCMI CdR'!A108 -> 5.4 | B110: ='VCMI CdR'!B108 -> 0 | C110: ='VCMI CdR'!C108 -> 0 | D110: ='VCMI CdR'!E108 -> 0 | E110: ='VCMI CdR'!F108 -> 0 | F110: ='VCMI CdR'!G108 -> 0 | S110: ='VCMI CdR'!H108 -> 0 | AH110: ='VCMI CdR'!I108 -> 0 | AW110: ='VCMI CdR'!J108 -> 0 | BL110: ='VCMI CdR'!K108 -> 0 | CA110: ='VCMI CdR'!L108 -> 0 | CP110: ='VCMI CdR'!M108 -> 0 | CS110: ='VCMI CdR'!N108 -> 0
A111: ='VCMI CdR'!A109 -> 5.5 | B111: ='VCMI CdR'!B109 -> 0 | C111: ='VCMI CdR'!C109 -> 0 | D111: ='VCMI CdR'!E109 -> 0 | E111: ='VCMI CdR'!F109 -> 0 | F111: ='VCMI CdR'!G109 -> 0 | S111: ='VCMI CdR'!H109 -> 0 | AH111: ='VCMI CdR'!I109 -> 0 | AW111: ='VCMI CdR'!J109 -> 0 | BL111: ='VCMI CdR'!K109 -> 0 | CA111: ='VCMI CdR'!L109 -> 0 | CP111: ='VCMI CdR'!M109 -> 0 | CS111: ='VCMI CdR'!N109 -> 0
A112: ='VCMI CdR'!A110 -> 5.6 | B112: ='VCMI CdR'!B110 -> 0 | C112: ='VCMI CdR'!C110 -> 0 | D112: ='VCMI CdR'!E110 -> 0 | E112: ='VCMI CdR'!F110 -> 0 | F112: ='VCMI CdR'!G110 -> 0 | S112: ='VCMI CdR'!H110 -> 0 | AH112: ='VCMI CdR'!I110 -> 0 | AW112: ='VCMI CdR'!J110 -> 0 | BL112: ='VCMI CdR'!K110 -> 0 | CA112: ='VCMI CdR'!L110 -> 0 | CP112: ='VCMI CdR'!M110 -> 0 | CS112: ='VCMI CdR'!N110 -> 0
A113: ='VCMI CdR'!A111 -> 6. | B113: ='VCMI CdR'!B111:S111 -> 
A114: ='VCMI CdR'!A112 -> 6.1 | B114: ='VCMI CdR'!B112 -> 0 | C114: ='VCMI CdR'!C112 -> 0 | D114: ='VCMI CdR'!E112 -> 0 | E114: ='VCMI CdR'!F112 -> 0 | F114: ='VCMI CdR'!G112 -> 0 | I114: =IFERROR((H114-$F114)/(G114-$F114),"") ->  | L114: =IFERROR((K114-$F114)/(J114-$F114),"") ->  | O114: =IFERROR((N114-$F114)/(M114-$F114),"") ->  | R114: =IFERROR((Q114-$F114)/(P114-$F114),"") ->  | S114: ='VCMI CdR'!H112 -> 0 | U114: =IFERROR((T114-$F114)/(S114-$F114),"") ->  | X114: =IFERROR((W114-$F114)/(V114-$F114),"") ->  | AA114: =IFERROR((Z114-$F114)/(Y114-$F114),"") ->  | AD114: =IFERROR((AC114-$F114)/(AB114-$F114),"") ->  | AG114: =IFERROR((AF114-$F114)/(AE114-$F114),"") ->  | AH114: ='VCMI CdR'!I112 -> 0 | AJ114: =IFERROR((AI114-$F114)/(AH114-$F114),"") ->  | AM114: =IFERROR((AL114-$F114)/(AK114-$F114),"") ->  | AP114: =IFERROR((AO114-$F114)/(AN114-$F114),"") ->  | AS114: =IFERROR((AR114-$F114)/(AQ114-$F114),"") ->  | AV114: =IFERROR((AU114-$F114)/(AT114-$F114),"") ->  | AW114: ='VCMI CdR'!J112 -> 0 | AY114: =IFERROR((AX114-$F114)/(AW114-$F114),"") ->  | BB114: =IFERROR((BA114-$F114)/(AZ114-$F114),"") ->  | BE114: =IFERROR((BD114-$F114)/(BC114-$F114),"") ->  | BH114: =IFERROR((BG114-$F114)/(BF114-$F114),"") ->  | BK114: =IFERROR((BJ114-$F114)/(BI114-$F114),"") ->  | BL114: ='VCMI CdR'!K112 -> 0 | BN114: =IFERROR((BM114-$F114)/(BL114-$F114),"") ->  | BQ114: =IFERROR((BP114-$F114)/(BO114-$F114),"") ->  | BT114: =IFERROR((BS114-$F114)/(BR114-$F114),"") ->  | BW114: =IFERROR((BV114-$F114)/(BU114-$F114),"") ->  | BZ114: =IFERROR((BY114-$F114)/(BX114-$F114),"") ->  | CA114: ='VCMI CdR'!L112 -> 0 | CC114: =IFERROR((CB114-$F114)/(CA114-$F114),"") ->  | CF114: =IFERROR((CE114-$F114)/(CD114-$F114),"") ->  | CI114: =IFERROR((CH114-$F114)/(CG114-$F114),"") ->  | CL114: =IFERROR((CK114-$F114)/(CJ114-$F114),"") ->  | CO114: =IFERROR((CN114-$F114)/(CM114-$F114),"") ->  | CP114: ='VCMI CdR'!M112 -> 0 | CR114: =IFERROR((CQ114-$F114)/(CP114-$F114),"") ->  | CS114: ='VCMI CdR'!N112 -> 0
A115: ='VCMI CdR'!A113 -> 6.2 | B115: ='VCMI CdR'!B113 -> 0 | C115: ='VCMI CdR'!C113 -> 0 | D115: ='VCMI CdR'!E113 -> 0 | E115: ='VCMI CdR'!F113 -> 0 | F115: ='VCMI CdR'!G113 -> 0 | R115: =IFERROR((Q115-$F115)/(P115-$F115),"") ->  | S115: ='VCMI CdR'!H113 -> 0 | AH115: ='VCMI CdR'!I113 -> 0 | AW115: ='VCMI CdR'!J113 -> 0 | BL115: ='VCMI CdR'!K113 -> 0 | CA115: ='VCMI CdR'!L113 -> 0 | CP115: ='VCMI CdR'!M113 -> 0 | CS115: ='VCMI CdR'!N113 -> 0
A116: ='VCMI CdR'!A114 -> 6.3 | B116: ='VCMI CdR'!B114 -> 0 | C116: ='VCMI CdR'!C114 -> 0 | D116: ='VCMI CdR'!E114 -> 0 | E116: ='VCMI CdR'!F114 -> 0 | F116: ='VCMI CdR'!G114 -> 0 | S116: ='VCMI CdR'!H114 -> 0 | AH116: ='VCMI CdR'!I114 -> 0 | AW116: ='VCMI CdR'!J114 -> 0 | BL116: ='VCMI CdR'!K114 -> 0 | CA116: ='VCMI CdR'!L114 -> 0 | CP116: ='VCMI CdR'!M114 -> 0 | CS116: ='VCMI CdR'!N114 -> 0
A117: ='VCMI CdR'!A115 -> 6.4 | B117: ='VCMI CdR'!B115 -> 0 | C117: ='VCMI CdR'!C115 -> 0 | D117: ='VCMI CdR'!E115 -> 0 | E117: ='VCMI CdR'!F115 -> 0 | F117: ='VCMI CdR'!G115 -> 0 | S117: ='VCMI CdR'!H115 -> 0 | AH117: ='VCMI CdR'!I115 -> 0 | AW117: ='VCMI CdR'!J115 -> 0 | BL117: ='VCMI CdR'!K115 -> 0 | CA117: ='VCMI CdR'!L115 -> 0 | CP117: ='VCMI CdR'!M115 -> 0 | CS117: ='VCMI CdR'!N115 -> 0
A118: ='VCMI CdR'!A116 -> 6.5 | B118: ='VCMI CdR'!B116 -> 0 | C118: ='VCMI CdR'!C116 -> 0 | D118: ='VCMI CdR'!E116 -> 0 | E118: ='VCMI CdR'!F116 -> 0 | F118: ='VCMI CdR'!G116 -> 0 | S118: ='VCMI CdR'!H116 -> 0 | AH118: ='VCMI CdR'!I116 -> 0 | AW118: ='VCMI CdR'!J116 -> 0 | BL118: ='VCMI CdR'!K116 -> 0 | CA118: ='VCMI CdR'!L116 -> 0 | CP118: ='VCMI CdR'!M116 -> 0 | CS118: ='VCMI CdR'!N116 -> 0
A119: ='VCMI CdR'!A117 -> 6.6 | B119: ='VCMI CdR'!B117 -> 0 | C119: ='VCMI CdR'!C117 -> 0 | D119: ='VCMI CdR'!E117 -> 0 | E119: ='VCMI CdR'!F117 -> 0 | F119: ='VCMI CdR'!G117 -> 0 | S119: ='VCMI CdR'!H117 -> 0 | AH119: ='VCMI CdR'!I117 -> 0 | AW119: ='VCMI CdR'!J117 -> 0 | BL119: ='VCMI CdR'!K117 -> 0 | CA119: ='VCMI CdR'!L117 -> 0 | CP119: ='VCMI CdR'!M117 -> 0 | CS119: ='VCMI CdR'!N117 -> 0
A120: ='VCMI CdR'!A118 -> 7. | B120: ='VCMI CdR'!B118:S118 -> 
A121: ='VCMI CdR'!A119 -> 7.1 | B121: ='VCMI CdR'!B119 -> 0 | C121: ='VCMI CdR'!C119 -> 0 | D121: ='VCMI CdR'!E119 -> 0 | E121: ='VCMI CdR'!F119 -> 0 | F121: ='VCMI CdR'!G119 -> 0 | I121: =IFERROR((H121-$F121)/(G121-$F121),"") ->  | L121: =IFERROR((K121-$F121)/(J121-$F121),"") ->  | O121: =IFERROR((N121-$F121)/(M121-$F121),"") ->  | R121: =IFERROR((Q121-$F121)/(P121-$F121),"") ->  | S121: ='VCMI CdR'!H119 -> 0 | U121: =IFERROR((T121-$F121)/(S121-$F121),"") ->  | X121: =IFERROR((W121-$F121)/(V121-$F121),"") ->  | AA121: =IFERROR((Z121-$F121)/(Y121-$F121),"") ->  | AD121: =IFERROR((AC121-$F121)/(AB121-$F121),"") ->  | AG121: =IFERROR((AF121-$F121)/(AE121-$F121),"") ->  | AH121: ='VCMI CdR'!I119 -> 0 | AJ121: =IFERROR((AI121-$F121)/(AH121-$F121),"") ->  | AM121: =IFERROR((AL121-$F121)/(AK121-$F121),"") ->  | AP121: =IFERROR((AO121-$F121)/(AN121-$F121),"") ->  | AS121: =IFERROR((AR121-$F121)/(AQ121-$F121),"") ->  | AV121: =IFERROR((AU121-$F121)/(AT121-$F121),"") ->  | AW121: ='VCMI CdR'!J119 -> 0 | AY121: =IFERROR((AX121-$F121)/(AW121-$F121),"") ->  | BB121: =IFERROR((BA121-$F121)/(AZ121-$F121),"") ->  | BE121: =IFERROR((BD121-$F121)/(BC121-$F121),"") ->  | BH121: =IFERROR((BG121-$F121)/(BF121-$F121),"") ->  | BK121: =IFERROR((BJ121-$F121)/(BI121-$F121),"") ->  | BL121: ='VCMI CdR'!K119 -> 0 | BN121: =IFERROR((BM121-$F121)/(BL121-$F121),"") ->  | BQ121: =IFERROR((BP121-$F121)/(BO121-$F121),"") ->  | BT121: =IFERROR((BS121-$F121)/(BR121-$F121),"") ->  | BW121: =IFERROR((BV121-$F121)/(BU121-$F121),"") ->  | BZ121: =IFERROR((BY121-$F121)/(BX121-$F121),"") ->  | CA121: ='VCMI CdR'!L119 -> 0 | CC121: =IFERROR((CB121-$F121)/(CA121-$F121),"") ->  | CF121: =IFERROR((CE121-$F121)/(CD121-$F121),"") ->  | CI121: =IFERROR((CH121-$F121)/(CG121-$F121),"") ->  | CL121: =IFERROR((CK121-$F121)/(CJ121-$F121),"") ->  | CO121: =IFERROR((CN121-$F121)/(CM121-$F121),"") ->  | CP121: ='VCMI CdR'!M119 -> 0 | CR121: =IFERROR((CQ121-$F121)/(CP121-$F121),"") ->  | CS121: ='VCMI CdR'!N119 -> 0
A122: ='VCMI CdR'!A120 -> 7.2 | B122: ='VCMI CdR'!B120 -> 0 | C122: ='VCMI CdR'!C120 -> 0 | D122: ='VCMI CdR'!E120 -> 0 | E122: ='VCMI CdR'!F120 -> 0 | F122: ='VCMI CdR'!G120 -> 0 | R122: =IFERROR((Q122-$F122)/(P122-$F122),"") ->  | S122: ='VCMI CdR'!H120 -> 0 | AH122: ='VCMI CdR'!I120 -> 0 | AW122: ='VCMI CdR'!J120 -> 0 | BL122: ='VCMI CdR'!K120 -> 0 | CA122: ='VCMI CdR'!L120 -> 0 | CP122: ='VCMI CdR'!M120 -> 0 | CS122: ='VCMI CdR'!N120 -> 0
A123: ='VCMI CdR'!A121 -> 7.3 | B123: ='VCMI CdR'!B121 -> 0 | C123: ='VCMI CdR'!C121 -> 0 | D123: ='VCMI CdR'!E121 -> 0 | E123: ='VCMI CdR'!F121 -> 0 | F123: ='VCMI CdR'!G121 -> 0 | S123: ='VCMI CdR'!H121 -> 0 | AH123: ='VCMI CdR'!I121 -> 0 | AW123: ='VCMI CdR'!J121 -> 0 | BL123: ='VCMI CdR'!K121 -> 0 | CA123: ='VCMI CdR'!L121 -> 0 | CP123: ='VCMI CdR'!M121 -> 0 | CS123: ='VCMI CdR'!N121 -> 0
A124: ='VCMI CdR'!A122 -> 7.4 | B124: ='VCMI CdR'!B122 -> 0 | C124: ='VCMI CdR'!C122 -> 0 | D124: ='VCMI CdR'!E122 -> 0 | E124: ='VCMI CdR'!F122 -> 0 | F124: ='VCMI CdR'!G122 -> 0 | S124: ='VCMI CdR'!H122 -> 0 | AH124: ='VCMI CdR'!I122 -> 0 | AW124: ='VCMI CdR'!J122 -> 0 | BL124: ='VCMI CdR'!K122 -> 0 | CA124: ='VCMI CdR'!L122 -> 0 | CP124: ='VCMI CdR'!M122 -> 0 | CS124: ='VCMI CdR'!N122 -> 0
A125: ='VCMI CdR'!A123 -> 7.5 | B125: ='VCMI CdR'!B123 -> 0 | C125: ='VCMI CdR'!C123 -> 0 | D125: ='VCMI CdR'!E123 -> 0 | E125: ='VCMI CdR'!F123 -> 0 | F125: ='VCMI CdR'!G123 -> 0 | S125: ='VCMI CdR'!H123 -> 0 | AH125: ='VCMI CdR'!I123 -> 0 | AW125: ='VCMI CdR'!J123 -> 0 | BL125: ='VCMI CdR'!K123 -> 0 | CA125: ='VCMI CdR'!L123 -> 0 | CP125: ='VCMI CdR'!M123 -> 0 | CS125: ='VCMI CdR'!N123 -> 0
A126: ='VCMI CdR'!A124 -> 7.6 | B126: ='VCMI CdR'!B124 -> 0 | C126: ='VCMI CdR'!C124 -> 0 | D126: ='VCMI CdR'!E124 -> 0 | E126: ='VCMI CdR'!F124 -> 0 | F126: ='VCMI CdR'!G124 -> 0 | S126: ='VCMI CdR'!H124 -> 0 | AH126: ='VCMI CdR'!I124 -> 0 | AW126: ='VCMI CdR'!J124 -> 0 | BL126: ='VCMI CdR'!K124 -> 0 | CA126: ='VCMI CdR'!L124 -> 0 | CP126: ='VCMI CdR'!M124 -> 0 | CS126: ='VCMI CdR'!N124 -> 0
A127: ='VCMI CdR'!A125 -> 8. | B127: ='VCMI CdR'!B125:S125 -> 
A128: ='VCMI CdR'!A126 -> 8.1 | B128: ='VCMI CdR'!B126 -> 0 | C128: ='VCMI CdR'!C126 -> 0 | D128: ='VCMI CdR'!E126 -> 0 | E128: ='VCMI CdR'!F126 -> 0 | F128: ='VCMI CdR'!G126 -> 0 | I128: =IFERROR((H128-$F128)/(G128-$F128),"") ->  | L128: =IFERROR((K128-$F128)/(J128-$F128),"") ->  | O128: =IFERROR((N128-$F128)/(M128-$F128),"") ->  | R128: =IFERROR((Q128-$F128)/(P128-$F128),"") ->  | S128: ='VCMI CdR'!H126 -> 0 | U128: =IFERROR((T128-$F128)/(S128-$F128),"") ->  | X128: =IFERROR((W128-$F128)/(V128-$F128),"") ->  | AA128: =IFERROR((Z128-$F128)/(Y128-$F128),"") ->  | AD128: =IFERROR((AC128-$F128)/(AB128-$F128),"") ->  | AG128: =IFERROR((AF128-$F128)/(AE128-$F128),"") ->  | AH128: ='VCMI CdR'!I126 -> 0 | AJ128: =IFERROR((AI128-$F128)/(AH128-$F128),"") ->  | AM128: =IFERROR((AL128-$F128)/(AK128-$F128),"") ->  | AP128: =IFERROR((AO128-$F128)/(AN128-$F128),"") ->  | AS128: =IFERROR((AR128-$F128)/(AQ128-$F128),"") ->  | AV128: =IFERROR((AU128-$F128)/(AT128-$F128),"") ->  | AW128: ='VCMI CdR'!J126 -> 0 | AY128: =IFERROR((AX128-$F128)/(AW128-$F128),"") ->  | BB128: =IFERROR((BA128-$F128)/(AZ128-$F128),"") ->  | BE128: =IFERROR((BD128-$F128)/(BC128-$F128),"") ->  | BH128: =IFERROR((BG128-$F128)/(BF128-$F128),"") ->  | BK128: =IFERROR((BJ128-$F128)/(BI128-$F128),"") ->  | BL128: ='VCMI CdR'!K126 -> 0 | BN128: =IFERROR((BM128-$F128)/(BL128-$F128),"") ->  | BQ128: =IFERROR((BP128-$F128)/(BO128-$F128),"") ->  | BT128: =IFERROR((BS128-$F128)/(BR128-$F128),"") ->  | BW128: =IFERROR((BV128-$F128)/(BU128-$F128),"") ->  | BZ128: =IFERROR((BY128-$F128)/(BX128-$F128),"") ->  | CA128: ='VCMI CdR'!L126 -> 0 | CC128: =IFERROR((CB128-$F128)/(CA128-$F128),"") ->  | CF128: =IFERROR((CE128-$F128)/(CD128-$F128),"") ->  | CI128: =IFERROR((CH128-$F128)/(CG128-$F128),"") ->  | CL128: =IFERROR((CK128-$F128)/(CJ128-$F128),"") ->  | CO128: =IFERROR((CN128-$F128)/(CM128-$F128),"") ->  | CP128: ='VCMI CdR'!M126 -> 0 | CR128: =IFERROR((CQ128-$F128)/(CP128-$F128),"") ->  | CS128: ='VCMI CdR'!N126 -> 0
A129: ='VCMI CdR'!A127 -> 8.2 | B129: ='VCMI CdR'!B127 -> 0 | C129: ='VCMI CdR'!C127 -> 0 | D129: ='VCMI CdR'!E127 -> 0 | E129: ='VCMI CdR'!F127 -> 0 | F129: ='VCMI CdR'!G127 -> 0 | R129: =IFERROR((Q129-$F129)/(P129-$F129),"") ->  | S129: ='VCMI CdR'!H127 -> 0 | AH129: ='VCMI CdR'!I127 -> 0 | AW129: ='VCMI CdR'!J127 -> 0 | BL129: ='VCMI CdR'!K127 -> 0 | CA129: ='VCMI CdR'!L127 -> 0 | CP129: ='VCMI CdR'!M127 -> 0 | CS129: ='VCMI CdR'!N127 -> 0
A130: ='VCMI CdR'!A128 -> 8.3 | B130: ='VCMI CdR'!B128 -> 0 | C130: ='VCMI CdR'!C128 -> 0 | D130: ='VCMI CdR'!E128 -> 0 | E130: ='VCMI CdR'!F128 -> 0 | F130: ='VCMI CdR'!G128 -> 0 | S130: ='VCMI CdR'!H128 -> 0 | AH130: ='VCMI CdR'!I128 -> 0 | AW130: ='VCMI CdR'!J128 -> 0 | BL130: ='VCMI CdR'!K128 -> 0 | CA130: ='VCMI CdR'!L128 -> 0 | CP130: ='VCMI CdR'!M128 -> 0 | CS130: ='VCMI CdR'!N128 -> 0
A131: ='VCMI CdR'!A129 -> 8.4 | B131: ='VCMI CdR'!B129 -> 0 | C131: ='VCMI CdR'!C129 -> 0 | D131: ='VCMI CdR'!E129 -> 0 | E131: ='VCMI CdR'!F129 -> 0 | F131: ='VCMI CdR'!G129 -> 0 | S131: ='VCMI CdR'!H129 -> 0 | AH131: ='VCMI CdR'!I129 -> 0 | AW131: ='VCMI CdR'!J129 -> 0 | BL131: ='VCMI CdR'!K129 -> 0 | CA131: ='VCMI CdR'!L129 -> 0 | CP131: ='VCMI CdR'!M129 -> 0 | CS131: ='VCMI CdR'!N129 -> 0
A132: ='VCMI CdR'!A130 -> 8.5 | B132: ='VCMI CdR'!B130 -> 0 | C132: ='VCMI CdR'!C130 -> 0 | D132: ='VCMI CdR'!E130 -> 0 | E132: ='VCMI CdR'!F130 -> 0 | F132: ='VCMI CdR'!G130 -> 0 | S132: ='VCMI CdR'!H130 -> 0 | AH132: ='VCMI CdR'!I130 -> 0 | AW132: ='VCMI CdR'!J130 -> 0 | BL132: ='VCMI CdR'!K130 -> 0 | CA132: ='VCMI CdR'!L130 -> 0 | CP132: ='VCMI CdR'!M130 -> 0 | CS132: ='VCMI CdR'!N130 -> 0
A133: ='VCMI CdR'!A131 -> 8.6 | B133: ='VCMI CdR'!B131 -> 0 | C133: ='VCMI CdR'!C131 -> 0 | D133: ='VCMI CdR'!E131 -> 0 | E133: ='VCMI CdR'!F131 -> 0 | F133: ='VCMI CdR'!G131 -> 0 | S133: ='VCMI CdR'!H131 -> 0 | AH133: ='VCMI CdR'!I131 -> 0 | AW133: ='VCMI CdR'!J131 -> 0 | BL133: ='VCMI CdR'!K131 -> 0 | CA133: ='VCMI CdR'!L131 -> 0 | CP133: ='VCMI CdR'!M131 -> 0 | CS133: ='VCMI CdR'!N131 -> 0
A134: ='VCMI CdR'!A132 -> 9. | B134: ='VCMI CdR'!B132:S132 -> 
